{"text_format":"1","workbook":"xlsx","n_sheets":8,"sheets":["Fragebogen Habilitation","2.2","3","4.1","5.1","5.5.1","CORE","IDEV"],"not_rendered":{"charts":0,"images":0,"macros":1,"external_links":1,"defined_names":21,"comments":1,"pivot_tables":0},"unopened":[],"bounds":{"document_bytes":16777216,"sheet_cells":100000,"rows_first":2000,"rows_last":500,"rows_between":2000,"halvings":0,"cell_chars":16384,"cell_head_chars":4096},"cells_cut":0,"cells_raw":0,"read":"whole","date_system":"1900"}

{"sheet":"Fragebogen Habilitation","index":0,"n_rows":138,"n_cols":29,"rows_kept":138,"cut":false,"hidden":false,"merged":[[12,17,14,17],[12,21,14,21],[10,19,14,19],[12,22,14,22],[13,20,14,20],[9,11,11,12],[12,12,14,12],[12,11,14,11],[9,7,10,8],[9,10,14,10],[9,9,14,9],[11,7,14,7],[11,8,14,8],[12,15,14,15],[10,17,11,17],[10,26,11,27],[9,13,11,16],[12,24,14,24],[12,26,14,26],[10,18,14,18],[12,27,14,27],[12,25,14,25],[12,14,14,14],[10,21,11,21],[12,13,14,13],[10,22,11,25],[12,23,14,23],[10,20,12,20],[12,16,14,16],[9,6,14,6],[13,2,14,2],[13,3,14,3],[9,0,14,0],[9,1,14,1],[9,3,12,3],[9,2,12,2],[9,4,14,4],[9,5,14,5]]}
[null,null,"Bayerisches Landesamt für Statistik "]
[null,null,"90762 Fürth"]
[null,null,"Sachgebiet 45"]
[null,null,"Tel.: 0911/98208-6590"]
[null,null,"E-mail: HS_Personal@statistik.bayern.de"]
[]
["Erhebung der im Kalenderjahr 2025 Habilitierten (§ 3 Abs. 1 Nr. 3 HStatG)"]
["Achtung! Bei den blau markierten Feldern bitte nur die Pull-Down-Auswahl benützen."]
[]
["Lfd. Nr.","Berichts- land \n(09= Bayern)","Listen-Nr.","Paginier-Nummer","Hochschule (2.2)","Hochschule","Geschlecht 1=männlich 2=weiblich 3=divers 4=ohne Angabe","Geburtsdatum",null,"Staatsangehörigkeit (5.5.1)","Staats-        ange-           hörig-keit      (SV Nr. 5.5.1)","Datum der Habilitation",null,"Fachgebiet der Habilitation",null,null,null,"Dienst- oder Beschäftigungsverhältnis der/des Habilitierten (an o.g. Hochschule)"]
[null,null,null,null,null,null,null,null,null,null,null,null,null,null,null,null,null,"Beschäf- tigung","Dienstbezeichnung (5.1)","Dienstbe- zeichnung          (SV Nr. 5.1)    ","Tätigkeit (haupt-/ne- benberufl.","Dienst-/Be- schäft.-verh.","Organisatorische Zugehörigkeit",null,null,null,"Fachliche Zugehörigkeit"]
[null,null,null,null,null,null,null,"Monat \n(mm)","Jahr \n(jjjj)"]
[null,null,null,null,null,null,null,null,null,null,null,"Monat\n(mm)","Jahr\n(jjjj)","Lehr- und Forschungsbereich (4.1)","LFB          (SV Nr.4.1)","Fachgebiet (4.1)","Fachgebiet     (SV Nr. 4.1)","0=keine 1=auf Dauer 2=auf Zeit",null,null,null,"1=beamtet 2=angestellt 3=sonstiges","Kategorie (3)","Kategorie (SV Nr. 3)","Lehr- und Forschungsbereich (4.1)","LFB         (SV Nr.4.1)","Fachgebiet (4.1)\nHINWEIS: Es besteht keine Abhängigkeit von der Organisatorischen Zugehörigkeit!","Fachgebiet  (SV Nr. 4.1)"]
[null,null,"(=Fakultäts-nummer)","(=Zähler d. Fakultät)",null,null,null,null,null,null,null,null,null,null,null,null,null,null,null,null,"1=hauptber. 2=nebenberufl."]
[null,null,null,null,null,null,null,null,null,null,null,null,null,null,null,null,null,null,null,null,null,null,null,null,null,null,null,null,"Ansprechpartner für die jeweilige Listen-Nr."]
[1,2,2,3,null,null,null,"2","4","zusätzlich",3,2,"2","zusätzlich","3","zusätzlich","4","1","zusätzlich","3","1","1","zusätzlich","2","zusätzlich","3","zusätzlich","4"]
[1,9,null,null,null,null,null,null,null,null,{"$f":"IF(J17=0,\"\",VLOOKUP(J17,'5.5.1'!$B$3:$C$208,2,FALSE))","v":""},null,null,null,{"$f":"IF(N17=0,\"\",VLOOKUP(N17,'4.1'!$A$2:$B$85,2,FALSE))","v":""},null,{"$f":"IF(P17=0,\"\",VLOOKUP(P17,'4.1'!$F$2:$G$547,2,FALSE))","v":""},0,null,{"$f":"IF(S17=0,\"\",VLOOKUP(S17,'5.1'!$B$2:$C$33,2,FALSE))","v":""},null,null,null,{"$f":"IF(W17=0,\"\",VLOOKUP(W17,'3'!$B$3:$D$42,2,FALSE))","v":""},null,{"$f":"IF(Y17=0,\"\",VLOOKUP(Y17,'4.1'!$A$2:$B$84,2,FALSE))","v":""},null,{"$f":"IF(AA17=0,\"\",VLOOKUP(AA17,'4.1'!$F$2:$G$603,2,FALSE))","v":""}]
[2,9,null,null,null,{"$f":"IF(E18=0,\"\",VLOOKUP(E18,'2.2'!$A$3:$B$101,2,FALSE))","v":""},null,null,null,null,{"$f":"IF(J18=0,\"\",VLOOKUP(J18,'5.5.1'!$B$3:$C$208,2,FALSE))","v":""},null,null,null,{"$f":"IF(N18=0,\"\",VLOOKUP(N18,'4.1'!$A$2:$B$85,2,FALSE))","v":""},null,{"$f":"IF(P18=0,\"\",VLOOKUP(P18,'4.1'!$F$2:$G$547,2,FALSE))","v":""},null,null,{"$f":"IF(S18=0,\"\",VLOOKUP(S18,'5.1'!$B$2:$C$33,2,FALSE))","v":""},null,null,null,{"$f":"IF(W18=0,\"\",VLOOKUP(W18,'3'!$B$3:$D$42,2,FALSE))","v":""},null,{"$f":"IF(Y18=0,\"\",VLOOKUP(Y18,'4.1'!$A$2:$B$84,2,FALSE))","v":""},null,{"$f":"IF(AA18=0,\"\",VLOOKUP(AA18,'4.1'!$F$2:$G$603,2,FALSE))","v":""}]
[3,9,null,null,null,{"$f":"IF(E19=0,\"\",VLOOKUP(E19,'2.2'!$A$3:$B$101,2,FALSE))","v":""},null,null,null,null,{"$f":"IF(J19=0,\"\",VLOOKUP(J19,'5.5.1'!$B$3:$C$208,2,FALSE))","v":""},null,null,null,{"$f":"IF(N19=0,\"\",VLOOKUP(N19,'4.1'!$A$2:$B$85,2,FALSE))","v":""},null,{"$f":"IF(P19=0,\"\",VLOOKUP(P19,'4.1'!$F$2:$G$547,2,FALSE))","v":""},null,null,{"$f":"IF(S19=0,\"\",VLOOKUP(S19,'5.1'!$B$2:$C$33,2,FALSE))","v":""},null,null,null,{"$f":"IF(W19=0,\"\",VLOOKUP(W19,'3'!$B$3:$D$42,2,FALSE))","v":""},null,{"$f":"IF(Y19=0,\"\",VLOOKUP(Y19,'4.1'!$A$2:$B$84,2,FALSE))","v":""},null,{"$f":"IF(AA19=0,\"\",VLOOKUP(AA19,'4.1'!$F$2:$G$603,2,FALSE))","v":""}]
[4,9,null,null,null,{"$f":"IF(E20=0,\"\",VLOOKUP(E20,'2.2'!$A$3:$B$101,2,FALSE))","v":""},null,null,null,null,{"$f":"IF(J20=0,\"\",VLOOKUP(J20,'5.5.1'!$B$3:$C$208,2,FALSE))","v":""},null,null,null,{"$f":"IF(N20=0,\"\",VLOOKUP(N20,'4.1'!$A$2:$B$85,2,FALSE))","v":""},null,{"$f":"IF(P20=0,\"\",VLOOKUP(P20,'4.1'!$F$2:$G$547,2,FALSE))","v":""},null,null,{"$f":"IF(S20=0,\"\",VLOOKUP(S20,'5.1'!$B$2:$C$33,2,FALSE))","v":""},null,null,null,{"$f":"IF(W20=0,\"\",VLOOKUP(W20,'3'!$B$3:$D$42,2,FALSE))","v":""},null,{"$f":"IF(Y20=0,\"\",VLOOKUP(Y20,'4.1'!$A$2:$B$84,2,FALSE))","v":""},null,{"$f":"IF(AA20=0,\"\",VLOOKUP(AA20,'4.1'!$F$2:$G$603,2,FALSE))","v":""}]
[5,9,null,null,null,{"$f":"IF(E21=0,\"\",VLOOKUP(E21,'2.2'!$A$3:$B$101,2,FALSE))","v":""},null,null,null,null,{"$f":"IF(J21=0,\"\",VLOOKUP(J21,'5.5.1'!$B$3:$C$208,2,FALSE))","v":""},null,null,null,{"$f":"IF(N21=0,\"\",VLOOKUP(N21,'4.1'!$A$2:$B$85,2,FALSE))","v":""},null,{"$f":"IF(P21=0,\"\",VLOOKUP(P21,'4.1'!$F$2:$G$547,2,FALSE))","v":""},null,null,{"$f":"IF(S21=0,\"\",VLOOKUP(S21,'5.1'!$B$2:$C$33,2,FALSE))","v":""},null,null,null,{"$f":"IF(W21=0,\"\",VLOOKUP(W21,'3'!$B$3:$D$42,2,FALSE))","v":""},null,{"$f":"IF(Y21=0,\"\",VLOOKUP(Y21,'4.1'!$A$2:$B$84,2,FALSE))","v":""},null,{"$f":"IF(AA21=0,\"\",VLOOKUP(AA21,'4.1'!$F$2:$G$603,2,FALSE))","v":""}]
[6,9,null,null,null,{"$f":"IF(E22=0,\"\",VLOOKUP(E22,'2.2'!$A$3:$B$101,2,FALSE))","v":""},null,null,null,null,{"$f":"IF(J22=0,\"\",VLOOKUP(J22,'5.5.1'!$B$3:$C$208,2,FALSE))","v":""},null,null,null,{"$f":"IF(N22=0,\"\",VLOOKUP(N22,'4.1'!$A$2:$B$85,2,FALSE))","v":""},null,{"$f":"IF(P22=0,\"\",VLOOKUP(P22,'4.1'!$F$2:$G$547,2,FALSE))","v":""},null,null,{"$f":"IF(S22=0,\"\",VLOOKUP(S22,'5.1'!$B$2:$C$33,2,FALSE))","v":""},null,null,null,{"$f":"IF(W22=0,\"\",VLOOKUP(W22,'3'!$B$3:$D$42,2,FALSE))","v":""},null,{"$f":"IF(Y22=0,\"\",VLOOKUP(Y22,'4.1'!$A$2:$B$84,2,FALSE))","v":""},null,{"$f":"IF(AA22=0,\"\",VLOOKUP(AA22,'4.1'!$F$2:$G$603,2,FALSE))","v":""}]
[7,9,null,null,null,{"$f":"IF(E23=0,\"\",VLOOKUP(E23,'2.2'!$A$3:$B$101,2,FALSE))","v":""},null,null,null,null,{"$f":"IF(J23=0,\"\",VLOOKUP(J23,'5.5.1'!$B$3:$C$208,2,FALSE))","v":""},null,null,null,{"$f":"IF(N23=0,\"\",VLOOKUP(N23,'4.1'!$A$2:$B$85,2,FALSE))","v":""},null,{"$f":"IF(P23=0,\"\",VLOOKUP(P23,'4.1'!$F$2:$G$547,2,FALSE))","v":""},null,null,{"$f":"IF(S23=0,\"\",VLOOKUP(S23,'5.1'!$B$2:$C$33,2,FALSE))","v":""},null,null,null,{"$f":"IF(W23=0,\"\",VLOOKUP(W23,'3'!$B$3:$D$42,2,FALSE))","v":""},null,{"$f":"IF(Y23=0,\"\",VLOOKUP(Y23,'4.1'!$A$2:$B$84,2,FALSE))","v":""},null,{"$f":"IF(AA23=0,\"\",VLOOKUP(AA23,'4.1'!$F$2:$G$603,2,FALSE))","v":""}]
[8,9,null,null,null,{"$f":"IF(E24=0,\"\",VLOOKUP(E24,'2.2'!$A$3:$B$101,2,FALSE))","v":""},null,null,null,null,{"$f":"IF(J24=0,\"\",VLOOKUP(J24,'5.5.1'!$B$3:$C$208,2,FALSE))","v":""},null,null,null,{"$f":"IF(N24=0,\"\",VLOOKUP(N24,'4.1'!$A$2:$B$85,2,FALSE))","v":""},null,{"$f":"IF(P24=0,\"\",VLOOKUP(P24,'4.1'!$F$2:$G$547,2,FALSE))","v":""},null,null,{"$f":"IF(S24=0,\"\",VLOOKUP(S24,'5.1'!$B$2:$C$33,2,FALSE))","v":""},null,null,null,{"$f":"IF(W24=0,\"\",VLOOKUP(W24,'3'!$B$3:$D$42,2,FALSE))","v":""},null,{"$f":"IF(Y24=0,\"\",VLOOKUP(Y24,'4.1'!$A$2:$B$84,2,FALSE))","v":""},null,{"$f":"IF(AA24=0,\"\",VLOOKUP(AA24,'4.1'!$F$2:$G$603,2,FALSE))","v":""}]
[9,9,null,null,null,{"$f":"IF(E25=0,\"\",VLOOKUP(E25,'2.2'!$A$3:$B$101,2,FALSE))","v":""},null,null,null,null,{"$f":"IF(J25=0,\"\",VLOOKUP(J25,'5.5.1'!$B$3:$C$208,2,FALSE))","v":""},null,null,null,{"$f":"IF(N25=0,\"\",VLOOKUP(N25,'4.1'!$A$2:$B$85,2,FALSE))","v":""},null,{"$f":"IF(P25=0,\"\",VLOOKUP(P25,'4.1'!$F$2:$G$547,2,FALSE))","v":""},null,null,{"$f":"IF(S25=0,\"\",VLOOKUP(S25,'5.1'!$B$2:$C$33,2,FALSE))","v":""},null,null,null,{"$f":"IF(W25=0,\"\",VLOOKUP(W25,'3'!$B$3:$D$42,2,FALSE))","v":""},null,{"$f":"IF(Y25=0,\"\",VLOOKUP(Y25,'4.1'!$A$2:$B$84,2,FALSE))","v":""},null,{"$f":"IF(AA25=0,\"\",VLOOKUP(AA25,'4.1'!$F$2:$G$603,2,FALSE))","v":""}]
[10,9,null,null,null,{"$f":"IF(E26=0,\"\",VLOOKUP(E26,'2.2'!$A$3:$B$101,2,FALSE))","v":""},null,null,null,null,{"$f":"IF(J26=0,\"\",VLOOKUP(J26,'5.5.1'!$B$3:$C$208,2,FALSE))","v":""},null,null,null,{"$f":"IF(N26=0,\"\",VLOOKUP(N26,'4.1'!$A$2:$B$85,2,FALSE))","v":""},null,{"$f":"IF(P26=0,\"\",VLOOKUP(P26,'4.1'!$F$2:$G$547,2,FALSE))","v":""},null,null,{"$f":"IF(S26=0,\"\",VLOOKUP(S26,'5.1'!$B$2:$C$33,2,FALSE))","v":""},null,null,null,{"$f":"IF(W26=0,\"\",VLOOKUP(W26,'3'!$B$3:$D$42,2,FALSE))","v":""},null,{"$f":"IF(Y26=0,\"\",VLOOKUP(Y26,'4.1'!$A$2:$B$84,2,FALSE))","v":""},null,{"$f":"IF(AA26=0,\"\",VLOOKUP(AA26,'4.1'!$F$2:$G$603,2,FALSE))","v":""}]
[11,9,null,null,null,{"$f":"IF(E27=0,\"\",VLOOKUP(E27,'2.2'!$A$3:$B$101,2,FALSE))","v":""},null,null,null,null,{"$f":"IF(J27=0,\"\",VLOOKUP(J27,'5.5.1'!$B$3:$C$208,2,FALSE))","v":""},null,null,null,{"$f":"IF(N27=0,\"\",VLOOKUP(N27,'4.1'!$A$2:$B$85,2,FALSE))","v":""},null,{"$f":"IF(P27=0,\"\",VLOOKUP(P27,'4.1'!$F$2:$G$547,2,FALSE))","v":""},null,null,{"$f":"IF(S27=0,\"\",VLOOKUP(S27,'5.1'!$B$2:$C$33,2,FALSE))","v":""},null,null,null,{"$f":"IF(W27=0,\"\",VLOOKUP(W27,'3'!$B$3:$D$42,2,FALSE))","v":""},null,{"$f":"IF(Y27=0,\"\",VLOOKUP(Y27,'4.1'!$A$2:$B$84,2,FALSE))","v":""},null,{"$f":"IF(AA27=0,\"\",VLOOKUP(AA27,'4.1'!$F$2:$G$603,2,FALSE))","v":""}]
[12,9,null,null,null,{"$f":"IF(E28=0,\"\",VLOOKUP(E28,'2.2'!$A$3:$B$101,2,FALSE))","v":""},null,null,null,null,{"$f":"IF(J28=0,\"\",VLOOKUP(J28,'5.5.1'!$B$3:$C$208,2,FALSE))","v":""},null,null,null,{"$f":"IF(N28=0,\"\",VLOOKUP(N28,'4.1'!$A$2:$B$85,2,FALSE))","v":""},null,{"$f":"IF(P28=0,\"\",VLOOKUP(P28,'4.1'!$F$2:$G$547,2,FALSE))","v":""},null,null,{"$f":"IF(S28=0,\"\",VLOOKUP(S28,'5.1'!$B$2:$C$33,2,FALSE))","v":""},null,null,null,{"$f":"IF(W28=0,\"\",VLOOKUP(W28,'3'!$B$3:$D$42,2,FALSE))","v":""},null,{"$f":"IF(Y28=0,\"\",VLOOKUP(Y28,'4.1'!$A$2:$B$84,2,FALSE))","v":""},null,{"$f":"IF(AA28=0,\"\",VLOOKUP(AA28,'4.1'!$F$2:$G$603,2,FALSE))","v":""}]
[13,9,null,null,null,{"$f":"IF(E29=0,\"\",VLOOKUP(E29,'2.2'!$A$3:$B$101,2,FALSE))","v":""},null,null,null,null,{"$f":"IF(J29=0,\"\",VLOOKUP(J29,'5.5.1'!$B$3:$C$208,2,FALSE))","v":""},null,null,null,{"$f":"IF(N29=0,\"\",VLOOKUP(N29,'4.1'!$A$2:$B$85,2,FALSE))","v":""},null,{"$f":"IF(P29=0,\"\",VLOOKUP(P29,'4.1'!$F$2:$G$547,2,FALSE))","v":""},null,null,{"$f":"IF(S29=0,\"\",VLOOKUP(S29,'5.1'!$B$2:$C$33,2,FALSE))","v":""},null,null,null,{"$f":"IF(W29=0,\"\",VLOOKUP(W29,'3'!$B$3:$D$42,2,FALSE))","v":""},null,{"$f":"IF(Y29=0,\"\",VLOOKUP(Y29,'4.1'!$A$2:$B$84,2,FALSE))","v":""},null,{"$f":"IF(AA29=0,\"\",VLOOKUP(AA29,'4.1'!$F$2:$G$603,2,FALSE))","v":""}]
[14,9,null,null,null,{"$f":"IF(E30=0,\"\",VLOOKUP(E30,'2.2'!$A$3:$B$101,2,FALSE))","v":""},null,null,null,null,{"$f":"IF(J30=0,\"\",VLOOKUP(J30,'5.5.1'!$B$3:$C$208,2,FALSE))","v":""},null,null,null,{"$f":"IF(N30=0,\"\",VLOOKUP(N30,'4.1'!$A$2:$B$85,2,FALSE))","v":""},null,{"$f":"IF(P30=0,\"\",VLOOKUP(P30,'4.1'!$F$2:$G$547,2,FALSE))","v":""},null,null,{"$f":"IF(S30=0,\"\",VLOOKUP(S30,'5.1'!$B$2:$C$33,2,FALSE))","v":""},null,null,null,{"$f":"IF(W30=0,\"\",VLOOKUP(W30,'3'!$B$3:$D$42,2,FALSE))","v":""},null,{"$f":"IF(Y30=0,\"\",VLOOKUP(Y30,'4.1'!$A$2:$B$84,2,FALSE))","v":""},null,{"$f":"IF(AA30=0,\"\",VLOOKUP(AA30,'4.1'!$F$2:$G$603,2,FALSE))","v":""}]
[15,9,null,null,null,{"$f":"IF(E31=0,\"\",VLOOKUP(E31,'2.2'!$A$3:$B$101,2,FALSE))","v":""},null,null,null,null,{"$f":"IF(J31=0,\"\",VLOOKUP(J31,'5.5.1'!$B$3:$C$208,2,FALSE))","v":""},null,null,null,{"$f":"IF(N31=0,\"\",VLOOKUP(N31,'4.1'!$A$2:$B$85,2,FALSE))","v":""},null,{"$f":"IF(P31=0,\"\",VLOOKUP(P31,'4.1'!$F$2:$G$547,2,FALSE))","v":""},null,null,{"$f":"IF(S31=0,\"\",VLOOKUP(S31,'5.1'!$B$2:$C$33,2,FALSE))","v":""},null,null,null,{"$f":"IF(W31=0,\"\",VLOOKUP(W31,'3'!$B$3:$D$42,2,FALSE))","v":""},null,{"$f":"IF(Y31=0,\"\",VLOOKUP(Y31,'4.1'!$A$2:$B$84,2,FALSE))","v":""},null,{"$f":"IF(AA31=0,\"\",VLOOKUP(AA31,'4.1'!$F$2:$G$603,2,FALSE))","v":""}]
[16,9,null,null,null,{"$f":"IF(E32=0,\"\",VLOOKUP(E32,'2.2'!$A$3:$B$101,2,FALSE))","v":""},null,null,null,null,{"$f":"IF(J32=0,\"\",VLOOKUP(J32,'5.5.1'!$B$3:$C$208,2,FALSE))","v":""},null,null,null,{"$f":"IF(N32=0,\"\",VLOOKUP(N32,'4.1'!$A$2:$B$85,2,FALSE))","v":""},null,{"$f":"IF(P32=0,\"\",VLOOKUP(P32,'4.1'!$F$2:$G$547,2,FALSE))","v":""},null,null,{"$f":"IF(S32=0,\"\",VLOOKUP(S32,'5.1'!$B$2:$C$33,2,FALSE))","v":""},null,null,null,{"$f":"IF(W32=0,\"\",VLOOKUP(W32,'3'!$B$3:$D$42,2,FALSE))","v":""},null,{"$f":"IF(Y32=0,\"\",VLOOKUP(Y32,'4.1'!$A$2:$B$84,2,FALSE))","v":""},null,{"$f":"IF(AA32=0,\"\",VLOOKUP(AA32,'4.1'!$F$2:$G$603,2,FALSE))","v":""}]
[17,9,null,null,null,{"$f":"IF(E33=0,\"\",VLOOKUP(E33,'2.2'!$A$3:$B$101,2,FALSE))","v":""},null,null,null,null,{"$f":"IF(J33=0,\"\",VLOOKUP(J33,'5.5.1'!$B$3:$C$208,2,FALSE))","v":""},null,null,null,{"$f":"IF(N33=0,\"\",VLOOKUP(N33,'4.1'!$A$2:$B$85,2,FALSE))","v":""},null,{"$f":"IF(P33=0,\"\",VLOOKUP(P33,'4.1'!$F$2:$G$547,2,FALSE))","v":""},null,null,{"$f":"IF(S33=0,\"\",VLOOKUP(S33,'5.1'!$B$2:$C$33,2,FALSE))","v":""},null,null,null,{"$f":"IF(W33=0,\"\",VLOOKUP(W33,'3'!$B$3:$D$42,2,FALSE))","v":""},null,{"$f":"IF(Y33=0,\"\",VLOOKUP(Y33,'4.1'!$A$2:$B$84,2,FALSE))","v":""},null,{"$f":"IF(AA33=0,\"\",VLOOKUP(AA33,'4.1'!$F$2:$G$603,2,FALSE))","v":""}]
[18,9,null,null,null,{"$f":"IF(E34=0,\"\",VLOOKUP(E34,'2.2'!$A$3:$B$101,2,FALSE))","v":""},null,null,null,null,{"$f":"IF(J34=0,\"\",VLOOKUP(J34,'5.5.1'!$B$3:$C$208,2,FALSE))","v":""},null,null,null,{"$f":"IF(N34=0,\"\",VLOOKUP(N34,'4.1'!$A$2:$B$85,2,FALSE))","v":""},null,{"$f":"IF(P34=0,\"\",VLOOKUP(P34,'4.1'!$F$2:$G$547,2,FALSE))","v":""},null,null,{"$f":"IF(S34=0,\"\",VLOOKUP(S34,'5.1'!$B$2:$C$33,2,FALSE))","v":""},null,null,null,{"$f":"IF(W34=0,\"\",VLOOKUP(W34,'3'!$B$3:$D$42,2,FALSE))","v":""},null,{"$f":"IF(Y34=0,\"\",VLOOKUP(Y34,'4.1'!$A$2:$B$84,2,FALSE))","v":""},null,{"$f":"IF(AA34=0,\"\",VLOOKUP(AA34,'4.1'!$F$2:$G$603,2,FALSE))","v":""}]
[19,9,null,null,null,{"$f":"IF(E35=0,\"\",VLOOKUP(E35,'2.2'!$A$3:$B$101,2,FALSE))","v":""},null,null,null,null,{"$f":"IF(J35=0,\"\",VLOOKUP(J35,'5.5.1'!$B$3:$C$208,2,FALSE))","v":""},null,null,null,{"$f":"IF(N35=0,\"\",VLOOKUP(N35,'4.1'!$A$2:$B$85,2,FALSE))","v":""},null,{"$f":"IF(P35=0,\"\",VLOOKUP(P35,'4.1'!$F$2:$G$547,2,FALSE))","v":""},null,null,{"$f":"IF(S35=0,\"\",VLOOKUP(S35,'5.1'!$B$2:$C$33,2,FALSE))","v":""},null,null,null,{"$f":"IF(W35=0,\"\",VLOOKUP(W35,'3'!$B$3:$D$42,2,FALSE))","v":""},null,{"$f":"IF(Y35=0,\"\",VLOOKUP(Y35,'4.1'!$A$2:$B$84,2,FALSE))","v":""},null,{"$f":"IF(AA35=0,\"\",VLOOKUP(AA35,'4.1'!$F$2:$G$603,2,FALSE))","v":""}]
[20,9,null,null,null,{"$f":"IF(E36=0,\"\",VLOOKUP(E36,'2.2'!$A$3:$B$101,2,FALSE))","v":""},null,null,null,null,{"$f":"IF(J36=0,\"\",VLOOKUP(J36,'5.5.1'!$B$3:$C$208,2,FALSE))","v":""},null,null,null,{"$f":"IF(N36=0,\"\",VLOOKUP(N36,'4.1'!$A$2:$B$85,2,FALSE))","v":""},null,{"$f":"IF(P36=0,\"\",VLOOKUP(P36,'4.1'!$F$2:$G$547,2,FALSE))","v":""},null,null,{"$f":"IF(S36=0,\"\",VLOOKUP(S36,'5.1'!$B$2:$C$33,2,FALSE))","v":""},null,null,null,{"$f":"IF(W36=0,\"\",VLOOKUP(W36,'3'!$B$3:$D$42,2,FALSE))","v":""},null,{"$f":"IF(Y36=0,\"\",VLOOKUP(Y36,'4.1'!$A$2:$B$84,2,FALSE))","v":""},null,{"$f":"IF(AA36=0,\"\",VLOOKUP(AA36,'4.1'!$F$2:$G$603,2,FALSE))","v":""}]
[21,9,null,null,null,{"$f":"IF(E37=0,\"\",VLOOKUP(E37,'2.2'!$A$3:$B$101,2,FALSE))","v":""},null,null,null,null,{"$f":"IF(J37=0,\"\",VLOOKUP(J37,'5.5.1'!$B$3:$C$208,2,FALSE))","v":""},null,null,null,{"$f":"IF(N37=0,\"\",VLOOKUP(N37,'4.1'!$A$2:$B$85,2,FALSE))","v":""},null,{"$f":"IF(P37=0,\"\",VLOOKUP(P37,'4.1'!$F$2:$G$547,2,FALSE))","v":""},null,null,{"$f":"IF(S37=0,\"\",VLOOKUP(S37,'5.1'!$B$2:$C$33,2,FALSE))","v":""},null,null,null,{"$f":"IF(W37=0,\"\",VLOOKUP(W37,'3'!$B$3:$D$42,2,FALSE))","v":""},null,{"$f":"IF(Y37=0,\"\",VLOOKUP(Y37,'4.1'!$A$2:$B$84,2,FALSE))","v":""},null,{"$f":"IF(AA37=0,\"\",VLOOKUP(AA37,'4.1'!$F$2:$G$603,2,FALSE))","v":""}]
[22,9,null,null,null,{"$f":"IF(E38=0,\"\",VLOOKUP(E38,'2.2'!$A$3:$B$101,2,FALSE))","v":""},null,null,null,null,{"$f":"IF(J38=0,\"\",VLOOKUP(J38,'5.5.1'!$B$3:$C$208,2,FALSE))","v":""},null,null,null,{"$f":"IF(N38=0,\"\",VLOOKUP(N38,'4.1'!$A$2:$B$85,2,FALSE))","v":""},null,{"$f":"IF(P38=0,\"\",VLOOKUP(P38,'4.1'!$F$2:$G$547,2,FALSE))","v":""},null,null,{"$f":"IF(S38=0,\"\",VLOOKUP(S38,'5.1'!$B$2:$C$33,2,FALSE))","v":""},null,null,null,{"$f":"IF(W38=0,\"\",VLOOKUP(W38,'3'!$B$3:$D$42,2,FALSE))","v":""},null,{"$f":"IF(Y38=0,\"\",VLOOKUP(Y38,'4.1'!$A$2:$B$84,2,FALSE))","v":""},null,{"$f":"IF(AA38=0,\"\",VLOOKUP(AA38,'4.1'!$F$2:$G$603,2,FALSE))","v":""}]
[23,9,null,null,null,{"$f":"IF(E39=0,\"\",VLOOKUP(E39,'2.2'!$A$3:$B$101,2,FALSE))","v":""},null,null,null,null,{"$f":"IF(J39=0,\"\",VLOOKUP(J39,'5.5.1'!$B$3:$C$208,2,FALSE))","v":""},null,null,null,{"$f":"IF(N39=0,\"\",VLOOKUP(N39,'4.1'!$A$2:$B$85,2,FALSE))","v":""},null,{"$f":"IF(P39=0,\"\",VLOOKUP(P39,'4.1'!$F$2:$G$547,2,FALSE))","v":""},null,null,{"$f":"IF(S39=0,\"\",VLOOKUP(S39,'5.1'!$B$2:$C$33,2,FALSE))","v":""},null,null,null,{"$f":"IF(W39=0,\"\",VLOOKUP(W39,'3'!$B$3:$D$42,2,FALSE))","v":""},null,{"$f":"IF(Y39=0,\"\",VLOOKUP(Y39,'4.1'!$A$2:$B$84,2,FALSE))","v":""},null,{"$f":"IF(AA39=0,\"\",VLOOKUP(AA39,'4.1'!$F$2:$G$603,2,FALSE))","v":""}]
[24,9,null,null,null,{"$f":"IF(E40=0,\"\",VLOOKUP(E40,'2.2'!$A$3:$B$101,2,FALSE))","v":""},null,null,null,null,{"$f":"IF(J40=0,\"\",VLOOKUP(J40,'5.5.1'!$B$3:$C$208,2,FALSE))","v":""},null,null,null,{"$f":"IF(N40=0,\"\",VLOOKUP(N40,'4.1'!$A$2:$B$85,2,FALSE))","v":""},null,{"$f":"IF(P40=0,\"\",VLOOKUP(P40,'4.1'!$F$2:$G$547,2,FALSE))","v":""},null,null,{"$f":"IF(S40=0,\"\",VLOOKUP(S40,'5.1'!$B$2:$C$33,2,FALSE))","v":""},null,null,null,{"$f":"IF(W40=0,\"\",VLOOKUP(W40,'3'!$B$3:$D$42,2,FALSE))","v":""},null,{"$f":"IF(Y40=0,\"\",VLOOKUP(Y40,'4.1'!$A$2:$B$84,2,FALSE))","v":""},null,{"$f":"IF(AA40=0,\"\",VLOOKUP(AA40,'4.1'!$F$2:$G$603,2,FALSE))","v":""}]
[25,9,null,null,null,{"$f":"IF(E41=0,\"\",VLOOKUP(E41,'2.2'!$A$3:$B$101,2,FALSE))","v":""},null,null,null,null,{"$f":"IF(J41=0,\"\",VLOOKUP(J41,'5.5.1'!$B$3:$C$208,2,FALSE))","v":""},null,null,null,{"$f":"IF(N41=0,\"\",VLOOKUP(N41,'4.1'!$A$2:$B$85,2,FALSE))","v":""},null,{"$f":"IF(P41=0,\"\",VLOOKUP(P41,'4.1'!$F$2:$G$547,2,FALSE))","v":""},null,null,{"$f":"IF(S41=0,\"\",VLOOKUP(S41,'5.1'!$B$2:$C$33,2,FALSE))","v":""},null,null,null,{"$f":"IF(W41=0,\"\",VLOOKUP(W41,'3'!$B$3:$D$42,2,FALSE))","v":""},null,{"$f":"IF(Y41=0,\"\",VLOOKUP(Y41,'4.1'!$A$2:$B$84,2,FALSE))","v":""},null,{"$f":"IF(AA41=0,\"\",VLOOKUP(AA41,'4.1'!$F$2:$G$603,2,FALSE))","v":""}]
[26,9,null,null,null,{"$f":"IF(E42=0,\"\",VLOOKUP(E42,'2.2'!$A$3:$B$101,2,FALSE))","v":""},null,null,null,null,{"$f":"IF(J42=0,\"\",VLOOKUP(J42,'5.5.1'!$B$3:$C$208,2,FALSE))","v":""},null,null,null,{"$f":"IF(N42=0,\"\",VLOOKUP(N42,'4.1'!$A$2:$B$85,2,FALSE))","v":""},null,{"$f":"IF(P42=0,\"\",VLOOKUP(P42,'4.1'!$F$2:$G$547,2,FALSE))","v":""},null,null,{"$f":"IF(S42=0,\"\",VLOOKUP(S42,'5.1'!$B$2:$C$33,2,FALSE))","v":""},null,null,null,{"$f":"IF(W42=0,\"\",VLOOKUP(W42,'3'!$B$3:$D$42,2,FALSE))","v":""},null,{"$f":"IF(Y42=0,\"\",VLOOKUP(Y42,'4.1'!$A$2:$B$84,2,FALSE))","v":""},null,{"$f":"IF(AA42=0,\"\",VLOOKUP(AA42,'4.1'!$F$2:$G$603,2,FALSE))","v":""}]
[27,9,null,null,null,{"$f":"IF(E43=0,\"\",VLOOKUP(E43,'2.2'!$A$3:$B$101,2,FALSE))","v":""},null,null,null,null,{"$f":"IF(J43=0,\"\",VLOOKUP(J43,'5.5.1'!$B$3:$C$208,2,FALSE))","v":""},null,null,null,{"$f":"IF(N43=0,\"\",VLOOKUP(N43,'4.1'!$A$2:$B$85,2,FALSE))","v":""},null,{"$f":"IF(P43=0,\"\",VLOOKUP(P43,'4.1'!$F$2:$G$547,2,FALSE))","v":""},null,null,{"$f":"IF(S43=0,\"\",VLOOKUP(S43,'5.1'!$B$2:$C$33,2,FALSE))","v":""},null,null,null,{"$f":"IF(W43=0,\"\",VLOOKUP(W43,'3'!$B$3:$D$42,2,FALSE))","v":""},null,{"$f":"IF(Y43=0,\"\",VLOOKUP(Y43,'4.1'!$A$2:$B$84,2,FALSE))","v":""},null,{"$f":"IF(AA43=0,\"\",VLOOKUP(AA43,'4.1'!$F$2:$G$603,2,FALSE))","v":""}]
[28,9,null,null,null,{"$f":"IF(E44=0,\"\",VLOOKUP(E44,'2.2'!$A$3:$B$101,2,FALSE))","v":""},null,null,null,null,{"$f":"IF(J44=0,\"\",VLOOKUP(J44,'5.5.1'!$B$3:$C$208,2,FALSE))","v":""},null,null,null,{"$f":"IF(N44=0,\"\",VLOOKUP(N44,'4.1'!$A$2:$B$85,2,FALSE))","v":""},null,{"$f":"IF(P44=0,\"\",VLOOKUP(P44,'4.1'!$F$2:$G$547,2,FALSE))","v":""},null,null,{"$f":"IF(S44=0,\"\",VLOOKUP(S44,'5.1'!$B$2:$C$33,2,FALSE))","v":""},null,null,null,{"$f":"IF(W44=0,\"\",VLOOKUP(W44,'3'!$B$3:$D$42,2,FALSE))","v":""},null,{"$f":"IF(Y44=0,\"\",VLOOKUP(Y44,'4.1'!$A$2:$B$84,2,FALSE))","v":""},null,{"$f":"IF(AA44=0,\"\",VLOOKUP(AA44,'4.1'!$F$2:$G$603,2,FALSE))","v":""}]
[29,9,null,null,null,{"$f":"IF(E45=0,\"\",VLOOKUP(E45,'2.2'!$A$3:$B$101,2,FALSE))","v":""},null,null,null,null,{"$f":"IF(J45=0,\"\",VLOOKUP(J45,'5.5.1'!$B$3:$C$208,2,FALSE))","v":""},null,null,null,{"$f":"IF(N45=0,\"\",VLOOKUP(N45,'4.1'!$A$2:$B$85,2,FALSE))","v":""},null,{"$f":"IF(P45=0,\"\",VLOOKUP(P45,'4.1'!$F$2:$G$547,2,FALSE))","v":""},null,null,{"$f":"IF(S45=0,\"\",VLOOKUP(S45,'5.1'!$B$2:$C$33,2,FALSE))","v":""},null,null,null,{"$f":"IF(W45=0,\"\",VLOOKUP(W45,'3'!$B$3:$D$42,2,FALSE))","v":""},null,{"$f":"IF(Y45=0,\"\",VLOOKUP(Y45,'4.1'!$A$2:$B$84,2,FALSE))","v":""},null,{"$f":"IF(AA45=0,\"\",VLOOKUP(AA45,'4.1'!$F$2:$G$603,2,FALSE))","v":""}]
[30,9,null,null,null,{"$f":"IF(E46=0,\"\",VLOOKUP(E46,'2.2'!$A$3:$B$101,2,FALSE))","v":""},null,null,null,null,{"$f":"IF(J46=0,\"\",VLOOKUP(J46,'5.5.1'!$B$3:$C$208,2,FALSE))","v":""},null,null,null,{"$f":"IF(N46=0,\"\",VLOOKUP(N46,'4.1'!$A$2:$B$85,2,FALSE))","v":""},null,{"$f":"IF(P46=0,\"\",VLOOKUP(P46,'4.1'!$F$2:$G$547,2,FALSE))","v":""},null,null,{"$f":"IF(S46=0,\"\",VLOOKUP(S46,'5.1'!$B$2:$C$33,2,FALSE))","v":""},null,null,null,{"$f":"IF(W46=0,\"\",VLOOKUP(W46,'3'!$B$3:$D$42,2,FALSE))","v":""},null,{"$f":"IF(Y46=0,\"\",VLOOKUP(Y46,'4.1'!$A$2:$B$84,2,FALSE))","v":""},null,{"$f":"IF(AA46=0,\"\",VLOOKUP(AA46,'4.1'!$F$2:$G$603,2,FALSE))","v":""}]
[31,9,null,null,null,{"$f":"IF(E47=0,\"\",VLOOKUP(E47,'2.2'!$A$3:$B$101,2,FALSE))","v":""},null,null,null,null,{"$f":"IF(J47=0,\"\",VLOOKUP(J47,'5.5.1'!$B$3:$C$208,2,FALSE))","v":""},null,null,null,{"$f":"IF(N47=0,\"\",VLOOKUP(N47,'4.1'!$A$2:$B$85,2,FALSE))","v":""},null,{"$f":"IF(P47=0,\"\",VLOOKUP(P47,'4.1'!$F$2:$G$547,2,FALSE))","v":""},null,null,{"$f":"IF(S47=0,\"\",VLOOKUP(S47,'5.1'!$B$2:$C$33,2,FALSE))","v":""},null,null,null,{"$f":"IF(W47=0,\"\",VLOOKUP(W47,'3'!$B$3:$D$42,2,FALSE))","v":""},null,{"$f":"IF(Y47=0,\"\",VLOOKUP(Y47,'4.1'!$A$2:$B$84,2,FALSE))","v":""},null,{"$f":"IF(AA47=0,\"\",VLOOKUP(AA47,'4.1'!$F$2:$G$603,2,FALSE))","v":""}]
[32,9,null,null,null,{"$f":"IF(E48=0,\"\",VLOOKUP(E48,'2.2'!$A$3:$B$101,2,FALSE))","v":""},null,null,null,null,{"$f":"IF(J48=0,\"\",VLOOKUP(J48,'5.5.1'!$B$3:$C$208,2,FALSE))","v":""},null,null,null,{"$f":"IF(N48=0,\"\",VLOOKUP(N48,'4.1'!$A$2:$B$85,2,FALSE))","v":""},null,{"$f":"IF(P48=0,\"\",VLOOKUP(P48,'4.1'!$F$2:$G$547,2,FALSE))","v":""},null,null,{"$f":"IF(S48=0,\"\",VLOOKUP(S48,'5.1'!$B$2:$C$33,2,FALSE))","v":""},null,null,null,{"$f":"IF(W48=0,\"\",VLOOKUP(W48,'3'!$B$3:$D$42,2,FALSE))","v":""},null,{"$f":"IF(Y48=0,\"\",VLOOKUP(Y48,'4.1'!$A$2:$B$84,2,FALSE))","v":""},null,{"$f":"IF(AA48=0,\"\",VLOOKUP(AA48,'4.1'!$F$2:$G$603,2,FALSE))","v":""}]
[33,9,null,null,null,{"$f":"IF(E49=0,\"\",VLOOKUP(E49,'2.2'!$A$3:$B$101,2,FALSE))","v":""},null,null,null,null,{"$f":"IF(J49=0,\"\",VLOOKUP(J49,'5.5.1'!$B$3:$C$208,2,FALSE))","v":""},null,null,null,{"$f":"IF(N49=0,\"\",VLOOKUP(N49,'4.1'!$A$2:$B$85,2,FALSE))","v":""},null,{"$f":"IF(P49=0,\"\",VLOOKUP(P49,'4.1'!$F$2:$G$547,2,FALSE))","v":""},null,null,{"$f":"IF(S49=0,\"\",VLOOKUP(S49,'5.1'!$B$2:$C$33,2,FALSE))","v":""},null,null,null,{"$f":"IF(W49=0,\"\",VLOOKUP(W49,'3'!$B$3:$D$42,2,FALSE))","v":""},null,{"$f":"IF(Y49=0,\"\",VLOOKUP(Y49,'4.1'!$A$2:$B$84,2,FALSE))","v":""},null,{"$f":"IF(AA49=0,\"\",VLOOKUP(AA49,'4.1'!$F$2:$G$603,2,FALSE))","v":""}]
[34,9,null,null,null,{"$f":"IF(E50=0,\"\",VLOOKUP(E50,'2.2'!$A$3:$B$101,2,FALSE))","v":""},null,null,null,null,{"$f":"IF(J50=0,\"\",VLOOKUP(J50,'5.5.1'!$B$3:$C$208,2,FALSE))","v":""},null,null,null,{"$f":"IF(N50=0,\"\",VLOOKUP(N50,'4.1'!$A$2:$B$85,2,FALSE))","v":""},null,{"$f":"IF(P50=0,\"\",VLOOKUP(P50,'4.1'!$F$2:$G$547,2,FALSE))","v":""},null,null,{"$f":"IF(S50=0,\"\",VLOOKUP(S50,'5.1'!$B$2:$C$33,2,FALSE))","v":""},null,null,null,{"$f":"IF(W50=0,\"\",VLOOKUP(W50,'3'!$B$3:$D$42,2,FALSE))","v":""},null,{"$f":"IF(Y50=0,\"\",VLOOKUP(Y50,'4.1'!$A$2:$B$84,2,FALSE))","v":""},null,{"$f":"IF(AA50=0,\"\",VLOOKUP(AA50,'4.1'!$F$2:$G$603,2,FALSE))","v":""}]
[35,9,null,null,null,{"$f":"IF(E51=0,\"\",VLOOKUP(E51,'2.2'!$A$3:$B$101,2,FALSE))","v":""},null,null,null,null,{"$f":"IF(J51=0,\"\",VLOOKUP(J51,'5.5.1'!$B$3:$C$208,2,FALSE))","v":""},null,null,null,{"$f":"IF(N51=0,\"\",VLOOKUP(N51,'4.1'!$A$2:$B$85,2,FALSE))","v":""},null,{"$f":"IF(P51=0,\"\",VLOOKUP(P51,'4.1'!$F$2:$G$547,2,FALSE))","v":""},null,null,{"$f":"IF(S51=0,\"\",VLOOKUP(S51,'5.1'!$B$2:$C$33,2,FALSE))","v":""},null,null,null,{"$f":"IF(W51=0,\"\",VLOOKUP(W51,'3'!$B$3:$D$42,2,FALSE))","v":""},null,{"$f":"IF(Y51=0,\"\",VLOOKUP(Y51,'4.1'!$A$2:$B$84,2,FALSE))","v":""},null,{"$f":"IF(AA51=0,\"\",VLOOKUP(AA51,'4.1'!$F$2:$G$603,2,FALSE))","v":""}]
[36,9,null,null,null,{"$f":"IF(E52=0,\"\",VLOOKUP(E52,'2.2'!$A$3:$B$101,2,FALSE))","v":""},null,null,null,null,{"$f":"IF(J52=0,\"\",VLOOKUP(J52,'5.5.1'!$B$3:$C$208,2,FALSE))","v":""},null,null,null,{"$f":"IF(N52=0,\"\",VLOOKUP(N52,'4.1'!$A$2:$B$85,2,FALSE))","v":""},null,{"$f":"IF(P52=0,\"\",VLOOKUP(P52,'4.1'!$F$2:$G$547,2,FALSE))","v":""},null,null,{"$f":"IF(S52=0,\"\",VLOOKUP(S52,'5.1'!$B$2:$C$33,2,FALSE))","v":""},null,null,null,{"$f":"IF(W52=0,\"\",VLOOKUP(W52,'3'!$B$3:$D$42,2,FALSE))","v":""},null,{"$f":"IF(Y52=0,\"\",VLOOKUP(Y52,'4.1'!$A$2:$B$84,2,FALSE))","v":""},null,{"$f":"IF(AA52=0,\"\",VLOOKUP(AA52,'4.1'!$F$2:$G$603,2,FALSE))","v":""}]
[37,9,null,null,null,{"$f":"IF(E53=0,\"\",VLOOKUP(E53,'2.2'!$A$3:$B$101,2,FALSE))","v":""},null,null,null,null,{"$f":"IF(J53=0,\"\",VLOOKUP(J53,'5.5.1'!$B$3:$C$208,2,FALSE))","v":""},null,null,null,{"$f":"IF(N53=0,\"\",VLOOKUP(N53,'4.1'!$A$2:$B$85,2,FALSE))","v":""},null,{"$f":"IF(P53=0,\"\",VLOOKUP(P53,'4.1'!$F$2:$G$547,2,FALSE))","v":""},null,null,{"$f":"IF(S53=0,\"\",VLOOKUP(S53,'5.1'!$B$2:$C$33,2,FALSE))","v":""},null,null,null,{"$f":"IF(W53=0,\"\",VLOOKUP(W53,'3'!$B$3:$D$42,2,FALSE))","v":""},null,{"$f":"IF(Y53=0,\"\",VLOOKUP(Y53,'4.1'!$A$2:$B$84,2,FALSE))","v":""},null,{"$f":"IF(AA53=0,\"\",VLOOKUP(AA53,'4.1'!$F$2:$G$603,2,FALSE))","v":""}]
[38,9,null,null,null,{"$f":"IF(E54=0,\"\",VLOOKUP(E54,'2.2'!$A$3:$B$101,2,FALSE))","v":""},null,null,null,null,{"$f":"IF(J54=0,\"\",VLOOKUP(J54,'5.5.1'!$B$3:$C$208,2,FALSE))","v":""},null,null,null,{"$f":"IF(N54=0,\"\",VLOOKUP(N54,'4.1'!$A$2:$B$85,2,FALSE))","v":""},null,{"$f":"IF(P54=0,\"\",VLOOKUP(P54,'4.1'!$F$2:$G$547,2,FALSE))","v":""},null,null,{"$f":"IF(S54=0,\"\",VLOOKUP(S54,'5.1'!$B$2:$C$33,2,FALSE))","v":""},null,null,null,{"$f":"IF(W54=0,\"\",VLOOKUP(W54,'3'!$B$3:$D$42,2,FALSE))","v":""},null,{"$f":"IF(Y54=0,\"\",VLOOKUP(Y54,'4.1'!$A$2:$B$84,2,FALSE))","v":""},null,{"$f":"IF(AA54=0,\"\",VLOOKUP(AA54,'4.1'!$F$2:$G$603,2,FALSE))","v":""}]
[39,9,null,null,null,{"$f":"IF(E55=0,\"\",VLOOKUP(E55,'2.2'!$A$3:$B$101,2,FALSE))","v":""},null,null,null,null,{"$f":"IF(J55=0,\"\",VLOOKUP(J55,'5.5.1'!$B$3:$C$208,2,FALSE))","v":""},null,null,null,{"$f":"IF(N55=0,\"\",VLOOKUP(N55,'4.1'!$A$2:$B$85,2,FALSE))","v":""},null,{"$f":"IF(P55=0,\"\",VLOOKUP(P55,'4.1'!$F$2:$G$547,2,FALSE))","v":""},null,null,{"$f":"IF(S55=0,\"\",VLOOKUP(S55,'5.1'!$B$2:$C$33,2,FALSE))","v":""},null,null,null,{"$f":"IF(W55=0,\"\",VLOOKUP(W55,'3'!$B$3:$D$42,2,FALSE))","v":""},null,{"$f":"IF(Y55=0,\"\",VLOOKUP(Y55,'4.1'!$A$2:$B$84,2,FALSE))","v":""},null,{"$f":"IF(AA55=0,\"\",VLOOKUP(AA55,'4.1'!$F$2:$G$603,2,FALSE))","v":""}]
[40,9,null,null,null,{"$f":"IF(E56=0,\"\",VLOOKUP(E56,'2.2'!$A$3:$B$101,2,FALSE))","v":""},null,null,null,null,{"$f":"IF(J56=0,\"\",VLOOKUP(J56,'5.5.1'!$B$3:$C$208,2,FALSE))","v":""},null,null,null,{"$f":"IF(N56=0,\"\",VLOOKUP(N56,'4.1'!$A$2:$B$85,2,FALSE))","v":""},null,{"$f":"IF(P56=0,\"\",VLOOKUP(P56,'4.1'!$F$2:$G$547,2,FALSE))","v":""},null,null,{"$f":"IF(S56=0,\"\",VLOOKUP(S56,'5.1'!$B$2:$C$33,2,FALSE))","v":""},null,null,null,{"$f":"IF(W56=0,\"\",VLOOKUP(W56,'3'!$B$3:$D$42,2,FALSE))","v":""},null,{"$f":"IF(Y56=0,\"\",VLOOKUP(Y56,'4.1'!$A$2:$B$84,2,FALSE))","v":""},null,{"$f":"IF(AA56=0,\"\",VLOOKUP(AA56,'4.1'!$F$2:$G$603,2,FALSE))","v":""}]
[41,9,null,null,null,{"$f":"IF(E57=0,\"\",VLOOKUP(E57,'2.2'!$A$3:$B$101,2,FALSE))","v":""},null,null,null,null,{"$f":"IF(J57=0,\"\",VLOOKUP(J57,'5.5.1'!$B$3:$C$208,2,FALSE))","v":""},null,null,null,{"$f":"IF(N57=0,\"\",VLOOKUP(N57,'4.1'!$A$2:$B$85,2,FALSE))","v":""},null,{"$f":"IF(P57=0,\"\",VLOOKUP(P57,'4.1'!$F$2:$G$547,2,FALSE))","v":""},null,null,{"$f":"IF(S57=0,\"\",VLOOKUP(S57,'5.1'!$B$2:$C$33,2,FALSE))","v":""},null,null,null,{"$f":"IF(W57=0,\"\",VLOOKUP(W57,'3'!$B$3:$D$42,2,FALSE))","v":""},null,{"$f":"IF(Y57=0,\"\",VLOOKUP(Y57,'4.1'!$A$2:$B$84,2,FALSE))","v":""},null,{"$f":"IF(AA57=0,\"\",VLOOKUP(AA57,'4.1'!$F$2:$G$603,2,FALSE))","v":""}]
[42,9,null,null,null,{"$f":"IF(E58=0,\"\",VLOOKUP(E58,'2.2'!$A$3:$B$101,2,FALSE))","v":""},null,null,null,null,{"$f":"IF(J58=0,\"\",VLOOKUP(J58,'5.5.1'!$B$3:$C$208,2,FALSE))","v":""},null,null,null,{"$f":"IF(N58=0,\"\",VLOOKUP(N58,'4.1'!$A$2:$B$85,2,FALSE))","v":""},null,{"$f":"IF(P58=0,\"\",VLOOKUP(P58,'4.1'!$F$2:$G$547,2,FALSE))","v":""},null,null,{"$f":"IF(S58=0,\"\",VLOOKUP(S58,'5.1'!$B$2:$C$33,2,FALSE))","v":""},null,null,null,{"$f":"IF(W58=0,\"\",VLOOKUP(W58,'3'!$B$3:$D$42,2,FALSE))","v":""},null,{"$f":"IF(Y58=0,\"\",VLOOKUP(Y58,'4.1'!$A$2:$B$84,2,FALSE))","v":""},null,{"$f":"IF(AA58=0,\"\",VLOOKUP(AA58,'4.1'!$F$2:$G$603,2,FALSE))","v":""}]
[43,9,null,null,null,{"$f":"IF(E59=0,\"\",VLOOKUP(E59,'2.2'!$A$3:$B$101,2,FALSE))","v":""},null,null,null,null,{"$f":"IF(J59=0,\"\",VLOOKUP(J59,'5.5.1'!$B$3:$C$208,2,FALSE))","v":""},null,null,null,{"$f":"IF(N59=0,\"\",VLOOKUP(N59,'4.1'!$A$2:$B$85,2,FALSE))","v":""},null,{"$f":"IF(P59=0,\"\",VLOOKUP(P59,'4.1'!$F$2:$G$547,2,FALSE))","v":""},null,null,{"$f":"IF(S59=0,\"\",VLOOKUP(S59,'5.1'!$B$2:$C$33,2,FALSE))","v":""},null,null,null,{"$f":"IF(W59=0,\"\",VLOOKUP(W59,'3'!$B$3:$D$42,2,FALSE))","v":""},null,{"$f":"IF(Y59=0,\"\",VLOOKUP(Y59,'4.1'!$A$2:$B$84,2,FALSE))","v":""},null,{"$f":"IF(AA59=0,\"\",VLOOKUP(AA59,'4.1'!$F$2:$G$603,2,FALSE))","v":""}]
[44,9,null,null,null,{"$f":"IF(E60=0,\"\",VLOOKUP(E60,'2.2'!$A$3:$B$101,2,FALSE))","v":""},null,null,null,null,{"$f":"IF(J60=0,\"\",VLOOKUP(J60,'5.5.1'!$B$3:$C$208,2,FALSE))","v":""},null,null,null,{"$f":"IF(N60=0,\"\",VLOOKUP(N60,'4.1'!$A$2:$B$85,2,FALSE))","v":""},null,{"$f":"IF(P60=0,\"\",VLOOKUP(P60,'4.1'!$F$2:$G$547,2,FALSE))","v":""},null,null,{"$f":"IF(S60=0,\"\",VLOOKUP(S60,'5.1'!$B$2:$C$33,2,FALSE))","v":""},null,null,null,{"$f":"IF(W60=0,\"\",VLOOKUP(W60,'3'!$B$3:$D$42,2,FALSE))","v":""},null,{"$f":"IF(Y60=0,\"\",VLOOKUP(Y60,'4.1'!$A$2:$B$84,2,FALSE))","v":""},null,{"$f":"IF(AA60=0,\"\",VLOOKUP(AA60,'4.1'!$F$2:$G$603,2,FALSE))","v":""}]
[45,9,null,null,null,{"$f":"IF(E61=0,\"\",VLOOKUP(E61,'2.2'!$A$3:$B$101,2,FALSE))","v":""},null,null,null,null,{"$f":"IF(J61=0,\"\",VLOOKUP(J61,'5.5.1'!$B$3:$C$208,2,FALSE))","v":""},null,null,null,{"$f":"IF(N61=0,\"\",VLOOKUP(N61,'4.1'!$A$2:$B$85,2,FALSE))","v":""},null,{"$f":"IF(P61=0,\"\",VLOOKUP(P61,'4.1'!$F$2:$G$547,2,FALSE))","v":""},null,null,{"$f":"IF(S61=0,\"\",VLOOKUP(S61,'5.1'!$B$2:$C$33,2,FALSE))","v":""},null,null,null,{"$f":"IF(W61=0,\"\",VLOOKUP(W61,'3'!$B$3:$D$42,2,FALSE))","v":""},null,{"$f":"IF(Y61=0,\"\",VLOOKUP(Y61,'4.1'!$A$2:$B$84,2,FALSE))","v":""},null,{"$f":"IF(AA61=0,\"\",VLOOKUP(AA61,'4.1'!$F$2:$G$603,2,FALSE))","v":""}]
[46,9,null,null,null,{"$f":"IF(E62=0,\"\",VLOOKUP(E62,'2.2'!$A$3:$B$101,2,FALSE))","v":""},null,null,null,null,{"$f":"IF(J62=0,\"\",VLOOKUP(J62,'5.5.1'!$B$3:$C$208,2,FALSE))","v":""},null,null,null,{"$f":"IF(N62=0,\"\",VLOOKUP(N62,'4.1'!$A$2:$B$85,2,FALSE))","v":""},null,{"$f":"IF(P62=0,\"\",VLOOKUP(P62,'4.1'!$F$2:$G$547,2,FALSE))","v":""},null,null,{"$f":"IF(S62=0,\"\",VLOOKUP(S62,'5.1'!$B$2:$C$33,2,FALSE))","v":""},null,null,null,{"$f":"IF(W62=0,\"\",VLOOKUP(W62,'3'!$B$3:$D$42,2,FALSE))","v":""},null,{"$f":"IF(Y62=0,\"\",VLOOKUP(Y62,'4.1'!$A$2:$B$84,2,FALSE))","v":""},null,{"$f":"IF(AA62=0,\"\",VLOOKUP(AA62,'4.1'!$F$2:$G$603,2,FALSE))","v":""}]
[47,9,null,null,null,{"$f":"IF(E63=0,\"\",VLOOKUP(E63,'2.2'!$A$3:$B$101,2,FALSE))","v":""},null,null,null,null,{"$f":"IF(J63=0,\"\",VLOOKUP(J63,'5.5.1'!$B$3:$C$208,2,FALSE))","v":""},null,null,null,{"$f":"IF(N63=0,\"\",VLOOKUP(N63,'4.1'!$A$2:$B$85,2,FALSE))","v":""},null,{"$f":"IF(P63=0,\"\",VLOOKUP(P63,'4.1'!$F$2:$G$547,2,FALSE))","v":""},null,null,{"$f":"IF(S63=0,\"\",VLOOKUP(S63,'5.1'!$B$2:$C$33,2,FALSE))","v":""},null,null,null,{"$f":"IF(W63=0,\"\",VLOOKUP(W63,'3'!$B$3:$D$42,2,FALSE))","v":""},null,{"$f":"IF(Y63=0,\"\",VLOOKUP(Y63,'4.1'!$A$2:$B$84,2,FALSE))","v":""},null,{"$f":"IF(AA63=0,\"\",VLOOKUP(AA63,'4.1'!$F$2:$G$603,2,FALSE))","v":""}]
[48,9,null,null,null,{"$f":"IF(E64=0,\"\",VLOOKUP(E64,'2.2'!$A$3:$B$101,2,FALSE))","v":""},null,null,null,null,{"$f":"IF(J64=0,\"\",VLOOKUP(J64,'5.5.1'!$B$3:$C$208,2,FALSE))","v":""},null,null,null,{"$f":"IF(N64=0,\"\",VLOOKUP(N64,'4.1'!$A$2:$B$85,2,FALSE))","v":""},null,{"$f":"IF(P64=0,\"\",VLOOKUP(P64,'4.1'!$F$2:$G$547,2,FALSE))","v":""},null,null,{"$f":"IF(S64=0,\"\",VLOOKUP(S64,'5.1'!$B$2:$C$33,2,FALSE))","v":""},null,null,null,{"$f":"IF(W64=0,\"\",VLOOKUP(W64,'3'!$B$3:$D$42,2,FALSE))","v":""},null,{"$f":"IF(Y64=0,\"\",VLOOKUP(Y64,'4.1'!$A$2:$B$84,2,FALSE))","v":""},null,{"$f":"IF(AA64=0,\"\",VLOOKUP(AA64,'4.1'!$F$2:$G$603,2,FALSE))","v":""}]
[49,9,null,null,null,{"$f":"IF(E65=0,\"\",VLOOKUP(E65,'2.2'!$A$3:$B$101,2,FALSE))","v":""},null,null,null,null,{"$f":"IF(J65=0,\"\",VLOOKUP(J65,'5.5.1'!$B$3:$C$208,2,FALSE))","v":""},null,null,null,{"$f":"IF(N65=0,\"\",VLOOKUP(N65,'4.1'!$A$2:$B$85,2,FALSE))","v":""},null,{"$f":"IF(P65=0,\"\",VLOOKUP(P65,'4.1'!$F$2:$G$547,2,FALSE))","v":""},null,null,{"$f":"IF(S65=0,\"\",VLOOKUP(S65,'5.1'!$B$2:$C$33,2,FALSE))","v":""},null,null,null,{"$f":"IF(W65=0,\"\",VLOOKUP(W65,'3'!$B$3:$D$42,2,FALSE))","v":""},null,{"$f":"IF(Y65=0,\"\",VLOOKUP(Y65,'4.1'!$A$2:$B$84,2,FALSE))","v":""},null,{"$f":"IF(AA65=0,\"\",VLOOKUP(AA65,'4.1'!$F$2:$G$603,2,FALSE))","v":""}]
[50,9,null,null,null,{"$f":"IF(E66=0,\"\",VLOOKUP(E66,'2.2'!$A$3:$B$101,2,FALSE))","v":""},null,null,null,null,{"$f":"IF(J66=0,\"\",VLOOKUP(J66,'5.5.1'!$B$3:$C$208,2,FALSE))","v":""},null,null,null,{"$f":"IF(N66=0,\"\",VLOOKUP(N66,'4.1'!$A$2:$B$85,2,FALSE))","v":""},null,{"$f":"IF(P66=0,\"\",VLOOKUP(P66,'4.1'!$F$2:$G$547,2,FALSE))","v":""},null,null,{"$f":"IF(S66=0,\"\",VLOOKUP(S66,'5.1'!$B$2:$C$33,2,FALSE))","v":""},null,null,null,{"$f":"IF(W66=0,\"\",VLOOKUP(W66,'3'!$B$3:$D$42,2,FALSE))","v":""},null,{"$f":"IF(Y66=0,\"\",VLOOKUP(Y66,'4.1'!$A$2:$B$84,2,FALSE))","v":""},null,{"$f":"IF(AA66=0,\"\",VLOOKUP(AA66,'4.1'!$F$2:$G$603,2,FALSE))","v":""}]
[51,9,null,null,null,{"$f":"IF(E67=0,\"\",VLOOKUP(E67,'2.2'!$A$3:$B$101,2,FALSE))","v":""},null,null,null,null,{"$f":"IF(J67=0,\"\",VLOOKUP(J67,'5.5.1'!$B$3:$C$208,2,FALSE))","v":""},null,null,null,{"$f":"IF(N67=0,\"\",VLOOKUP(N67,'4.1'!$A$2:$B$85,2,FALSE))","v":""},null,{"$f":"IF(P67=0,\"\",VLOOKUP(P67,'4.1'!$F$2:$G$547,2,FALSE))","v":""},null,null,{"$f":"IF(S67=0,\"\",VLOOKUP(S67,'5.1'!$B$2:$C$33,2,FALSE))","v":""},null,null,null,{"$f":"IF(W67=0,\"\",VLOOKUP(W67,'3'!$B$3:$D$42,2,FALSE))","v":""},null,{"$f":"IF(Y67=0,\"\",VLOOKUP(Y67,'4.1'!$A$2:$B$84,2,FALSE))","v":""},null,{"$f":"IF(AA67=0,\"\",VLOOKUP(AA67,'4.1'!$F$2:$G$603,2,FALSE))","v":""}]
[52,9,null,null,null,{"$f":"IF(E68=0,\"\",VLOOKUP(E68,'2.2'!$A$3:$B$101,2,FALSE))","v":""},null,null,null,null,{"$f":"IF(J68=0,\"\",VLOOKUP(J68,'5.5.1'!$B$3:$C$208,2,FALSE))","v":""},null,null,null,{"$f":"IF(N68=0,\"\",VLOOKUP(N68,'4.1'!$A$2:$B$85,2,FALSE))","v":""},null,{"$f":"IF(P68=0,\"\",VLOOKUP(P68,'4.1'!$F$2:$G$547,2,FALSE))","v":""},null,null,{"$f":"IF(S68=0,\"\",VLOOKUP(S68,'5.1'!$B$2:$C$33,2,FALSE))","v":""},null,null,null,{"$f":"IF(W68=0,\"\",VLOOKUP(W68,'3'!$B$3:$D$42,2,FALSE))","v":""},null,{"$f":"IF(Y68=0,\"\",VLOOKUP(Y68,'4.1'!$A$2:$B$84,2,FALSE))","v":""},null,{"$f":"IF(AA68=0,\"\",VLOOKUP(AA68,'4.1'!$F$2:$G$603,2,FALSE))","v":""}]
[53,9,null,null,null,{"$f":"IF(E69=0,\"\",VLOOKUP(E69,'2.2'!$A$3:$B$101,2,FALSE))","v":""},null,null,null,null,{"$f":"IF(J69=0,\"\",VLOOKUP(J69,'5.5.1'!$B$3:$C$208,2,FALSE))","v":""},null,null,null,{"$f":"IF(N69=0,\"\",VLOOKUP(N69,'4.1'!$A$2:$B$85,2,FALSE))","v":""},null,{"$f":"IF(P69=0,\"\",VLOOKUP(P69,'4.1'!$F$2:$G$547,2,FALSE))","v":""},null,null,{"$f":"IF(S69=0,\"\",VLOOKUP(S69,'5.1'!$B$2:$C$33,2,FALSE))","v":""},null,null,null,{"$f":"IF(W69=0,\"\",VLOOKUP(W69,'3'!$B$3:$D$42,2,FALSE))","v":""},null,{"$f":"IF(Y69=0,\"\",VLOOKUP(Y69,'4.1'!$A$2:$B$84,2,FALSE))","v":""},null,{"$f":"IF(AA69=0,\"\",VLOOKUP(AA69,'4.1'!$F$2:$G$603,2,FALSE))","v":""}]
[54,9,null,null,null,{"$f":"IF(E70=0,\"\",VLOOKUP(E70,'2.2'!$A$3:$B$101,2,FALSE))","v":""},null,null,null,null,{"$f":"IF(J70=0,\"\",VLOOKUP(J70,'5.5.1'!$B$3:$C$208,2,FALSE))","v":""},null,null,null,{"$f":"IF(N70=0,\"\",VLOOKUP(N70,'4.1'!$A$2:$B$85,2,FALSE))","v":""},null,{"$f":"IF(P70=0,\"\",VLOOKUP(P70,'4.1'!$F$2:$G$547,2,FALSE))","v":""},null,null,{"$f":"IF(S70=0,\"\",VLOOKUP(S70,'5.1'!$B$2:$C$33,2,FALSE))","v":""},null,null,null,{"$f":"IF(W70=0,\"\",VLOOKUP(W70,'3'!$B$3:$D$42,2,FALSE))","v":""},null,{"$f":"IF(Y70=0,\"\",VLOOKUP(Y70,'4.1'!$A$2:$B$84,2,FALSE))","v":""},null,{"$f":"IF(AA70=0,\"\",VLOOKUP(AA70,'4.1'!$F$2:$G$603,2,FALSE))","v":""}]
[55,9,null,null,null,{"$f":"IF(E71=0,\"\",VLOOKUP(E71,'2.2'!$A$3:$B$101,2,FALSE))","v":""},null,null,null,null,{"$f":"IF(J71=0,\"\",VLOOKUP(J71,'5.5.1'!$B$3:$C$208,2,FALSE))","v":""},null,null,null,{"$f":"IF(N71=0,\"\",VLOOKUP(N71,'4.1'!$A$2:$B$85,2,FALSE))","v":""},null,{"$f":"IF(P71=0,\"\",VLOOKUP(P71,'4.1'!$F$2:$G$547,2,FALSE))","v":""},null,null,{"$f":"IF(S71=0,\"\",VLOOKUP(S71,'5.1'!$B$2:$C$33,2,FALSE))","v":""},null,null,null,{"$f":"IF(W71=0,\"\",VLOOKUP(W71,'3'!$B$3:$D$42,2,FALSE))","v":""},null,{"$f":"IF(Y71=0,\"\",VLOOKUP(Y71,'4.1'!$A$2:$B$84,2,FALSE))","v":""},null,{"$f":"IF(AA71=0,\"\",VLOOKUP(AA71,'4.1'!$F$2:$G$603,2,FALSE))","v":""}]
[56,9,null,null,null,{"$f":"IF(E72=0,\"\",VLOOKUP(E72,'2.2'!$A$3:$B$101,2,FALSE))","v":""},null,null,null,null,{"$f":"IF(J72=0,\"\",VLOOKUP(J72,'5.5.1'!$B$3:$C$208,2,FALSE))","v":""},null,null,null,{"$f":"IF(N72=0,\"\",VLOOKUP(N72,'4.1'!$A$2:$B$85,2,FALSE))","v":""},null,{"$f":"IF(P72=0,\"\",VLOOKUP(P72,'4.1'!$F$2:$G$547,2,FALSE))","v":""},null,null,{"$f":"IF(S72=0,\"\",VLOOKUP(S72,'5.1'!$B$2:$C$33,2,FALSE))","v":""},null,null,null,{"$f":"IF(W72=0,\"\",VLOOKUP(W72,'3'!$B$3:$D$42,2,FALSE))","v":""},null,{"$f":"IF(Y72=0,\"\",VLOOKUP(Y72,'4.1'!$A$2:$B$84,2,FALSE))","v":""},null,{"$f":"IF(AA72=0,\"\",VLOOKUP(AA72,'4.1'!$F$2:$G$603,2,FALSE))","v":""}]
[57,9,null,null,null,{"$f":"IF(E73=0,\"\",VLOOKUP(E73,'2.2'!$A$3:$B$101,2,FALSE))","v":""},null,null,null,null,{"$f":"IF(J73=0,\"\",VLOOKUP(J73,'5.5.1'!$B$3:$C$208,2,FALSE))","v":""},null,null,null,{"$f":"IF(N73=0,\"\",VLOOKUP(N73,'4.1'!$A$2:$B$85,2,FALSE))","v":""},null,{"$f":"IF(P73=0,\"\",VLOOKUP(P73,'4.1'!$F$2:$G$547,2,FALSE))","v":""},null,null,{"$f":"IF(S73=0,\"\",VLOOKUP(S73,'5.1'!$B$2:$C$33,2,FALSE))","v":""},null,null,null,{"$f":"IF(W73=0,\"\",VLOOKUP(W73,'3'!$B$3:$D$42,2,FALSE))","v":""},null,{"$f":"IF(Y73=0,\"\",VLOOKUP(Y73,'4.1'!$A$2:$B$84,2,FALSE))","v":""},null,{"$f":"IF(AA73=0,\"\",VLOOKUP(AA73,'4.1'!$F$2:$G$603,2,FALSE))","v":""}]
[58,9,null,null,null,{"$f":"IF(E74=0,\"\",VLOOKUP(E74,'2.2'!$A$3:$B$101,2,FALSE))","v":""},null,null,null,null,{"$f":"IF(J74=0,\"\",VLOOKUP(J74,'5.5.1'!$B$3:$C$208,2,FALSE))","v":""},null,null,null,{"$f":"IF(N74=0,\"\",VLOOKUP(N74,'4.1'!$A$2:$B$85,2,FALSE))","v":""},null,{"$f":"IF(P74=0,\"\",VLOOKUP(P74,'4.1'!$F$2:$G$547,2,FALSE))","v":""},null,null,{"$f":"IF(S74=0,\"\",VLOOKUP(S74,'5.1'!$B$2:$C$33,2,FALSE))","v":""},null,null,null,{"$f":"IF(W74=0,\"\",VLOOKUP(W74,'3'!$B$3:$D$42,2,FALSE))","v":""},null,{"$f":"IF(Y74=0,\"\",VLOOKUP(Y74,'4.1'!$A$2:$B$84,2,FALSE))","v":""},null,{"$f":"IF(AA74=0,\"\",VLOOKUP(AA74,'4.1'!$F$2:$G$603,2,FALSE))","v":""}]
[59,9,null,null,null,{"$f":"IF(E75=0,\"\",VLOOKUP(E75,'2.2'!$A$3:$B$101,2,FALSE))","v":""},null,null,null,null,{"$f":"IF(J75=0,\"\",VLOOKUP(J75,'5.5.1'!$B$3:$C$208,2,FALSE))","v":""},null,null,null,{"$f":"IF(N75=0,\"\",VLOOKUP(N75,'4.1'!$A$2:$B$85,2,FALSE))","v":""},null,{"$f":"IF(P75=0,\"\",VLOOKUP(P75,'4.1'!$F$2:$G$547,2,FALSE))","v":""},null,null,{"$f":"IF(S75=0,\"\",VLOOKUP(S75,'5.1'!$B$2:$C$33,2,FALSE))","v":""},null,null,null,{"$f":"IF(W75=0,\"\",VLOOKUP(W75,'3'!$B$3:$D$42,2,FALSE))","v":""},null,{"$f":"IF(Y75=0,\"\",VLOOKUP(Y75,'4.1'!$A$2:$B$84,2,FALSE))","v":""},null,{"$f":"IF(AA75=0,\"\",VLOOKUP(AA75,'4.1'!$F$2:$G$603,2,FALSE))","v":""}]
[60,9,null,null,null,{"$f":"IF(E76=0,\"\",VLOOKUP(E76,'2.2'!$A$3:$B$101,2,FALSE))","v":""},null,null,null,null,{"$f":"IF(J76=0,\"\",VLOOKUP(J76,'5.5.1'!$B$3:$C$208,2,FALSE))","v":""},null,null,null,{"$f":"IF(N76=0,\"\",VLOOKUP(N76,'4.1'!$A$2:$B$85,2,FALSE))","v":""},null,{"$f":"IF(P76=0,\"\",VLOOKUP(P76,'4.1'!$F$2:$G$547,2,FALSE))","v":""},null,null,{"$f":"IF(S76=0,\"\",VLOOKUP(S76,'5.1'!$B$2:$C$33,2,FALSE))","v":""},null,null,null,{"$f":"IF(W76=0,\"\",VLOOKUP(W76,'3'!$B$3:$D$42,2,FALSE))","v":""},null,{"$f":"IF(Y76=0,\"\",VLOOKUP(Y76,'4.1'!$A$2:$B$84,2,FALSE))","v":""},null,{"$f":"IF(AA76=0,\"\",VLOOKUP(AA76,'4.1'!$F$2:$G$603,2,FALSE))","v":""}]
[61,9,null,null,null,{"$f":"IF(E77=0,\"\",VLOOKUP(E77,'2.2'!$A$3:$B$101,2,FALSE))","v":""},null,null,null,null,{"$f":"IF(J77=0,\"\",VLOOKUP(J77,'5.5.1'!$B$3:$C$208,2,FALSE))","v":""},null,null,null,{"$f":"IF(N77=0,\"\",VLOOKUP(N77,'4.1'!$A$2:$B$85,2,FALSE))","v":""},null,{"$f":"IF(P77=0,\"\",VLOOKUP(P77,'4.1'!$F$2:$G$547,2,FALSE))","v":""},null,null,{"$f":"IF(S77=0,\"\",VLOOKUP(S77,'5.1'!$B$2:$C$33,2,FALSE))","v":""},null,null,null,{"$f":"IF(W77=0,\"\",VLOOKUP(W77,'3'!$B$3:$D$42,2,FALSE))","v":""},null,{"$f":"IF(Y77=0,\"\",VLOOKUP(Y77,'4.1'!$A$2:$B$84,2,FALSE))","v":""},null,{"$f":"IF(AA77=0,\"\",VLOOKUP(AA77,'4.1'!$F$2:$G$603,2,FALSE))","v":""}]
[62,9,null,null,null,{"$f":"IF(E78=0,\"\",VLOOKUP(E78,'2.2'!$A$3:$B$101,2,FALSE))","v":""},null,null,null,null,{"$f":"IF(J78=0,\"\",VLOOKUP(J78,'5.5.1'!$B$3:$C$208,2,FALSE))","v":""},null,null,null,{"$f":"IF(N78=0,\"\",VLOOKUP(N78,'4.1'!$A$2:$B$85,2,FALSE))","v":""},null,{"$f":"IF(P78=0,\"\",VLOOKUP(P78,'4.1'!$F$2:$G$547,2,FALSE))","v":""},null,null,{"$f":"IF(S78=0,\"\",VLOOKUP(S78,'5.1'!$B$2:$C$33,2,FALSE))","v":""},null,null,null,{"$f":"IF(W78=0,\"\",VLOOKUP(W78,'3'!$B$3:$D$42,2,FALSE))","v":""},null,{"$f":"IF(Y78=0,\"\",VLOOKUP(Y78,'4.1'!$A$2:$B$84,2,FALSE))","v":""},null,{"$f":"IF(AA78=0,\"\",VLOOKUP(AA78,'4.1'!$F$2:$G$603,2,FALSE))","v":""}]
[63,9,null,null,null,{"$f":"IF(E79=0,\"\",VLOOKUP(E79,'2.2'!$A$3:$B$101,2,FALSE))","v":""},null,null,null,null,{"$f":"IF(J79=0,\"\",VLOOKUP(J79,'5.5.1'!$B$3:$C$208,2,FALSE))","v":""},null,null,null,{"$f":"IF(N79=0,\"\",VLOOKUP(N79,'4.1'!$A$2:$B$85,2,FALSE))","v":""},null,{"$f":"IF(P79=0,\"\",VLOOKUP(P79,'4.1'!$F$2:$G$547,2,FALSE))","v":""},null,null,{"$f":"IF(S79=0,\"\",VLOOKUP(S79,'5.1'!$B$2:$C$33,2,FALSE))","v":""},null,null,null,{"$f":"IF(W79=0,\"\",VLOOKUP(W79,'3'!$B$3:$D$42,2,FALSE))","v":""},null,{"$f":"IF(Y79=0,\"\",VLOOKUP(Y79,'4.1'!$A$2:$B$84,2,FALSE))","v":""},null,{"$f":"IF(AA79=0,\"\",VLOOKUP(AA79,'4.1'!$F$2:$G$603,2,FALSE))","v":""}]
[64,9,null,null,null,{"$f":"IF(E80=0,\"\",VLOOKUP(E80,'2.2'!$A$3:$B$101,2,FALSE))","v":""},null,null,null,null,{"$f":"IF(J80=0,\"\",VLOOKUP(J80,'5.5.1'!$B$3:$C$208,2,FALSE))","v":""},null,null,null,{"$f":"IF(N80=0,\"\",VLOOKUP(N80,'4.1'!$A$2:$B$85,2,FALSE))","v":""},null,{"$f":"IF(P80=0,\"\",VLOOKUP(P80,'4.1'!$F$2:$G$547,2,FALSE))","v":""},null,null,{"$f":"IF(S80=0,\"\",VLOOKUP(S80,'5.1'!$B$2:$C$33,2,FALSE))","v":""},null,null,null,{"$f":"IF(W80=0,\"\",VLOOKUP(W80,'3'!$B$3:$D$42,2,FALSE))","v":""},null,{"$f":"IF(Y80=0,\"\",VLOOKUP(Y80,'4.1'!$A$2:$B$84,2,FALSE))","v":""},null,{"$f":"IF(AA80=0,\"\",VLOOKUP(AA80,'4.1'!$F$2:$G$603,2,FALSE))","v":""}]
[65,9,null,null,null,{"$f":"IF(E81=0,\"\",VLOOKUP(E81,'2.2'!$A$3:$B$101,2,FALSE))","v":""},null,null,null,null,{"$f":"IF(J81=0,\"\",VLOOKUP(J81,'5.5.1'!$B$3:$C$208,2,FALSE))","v":""},null,null,null,{"$f":"IF(N81=0,\"\",VLOOKUP(N81,'4.1'!$A$2:$B$85,2,FALSE))","v":""},null,{"$f":"IF(P81=0,\"\",VLOOKUP(P81,'4.1'!$F$2:$G$547,2,FALSE))","v":""},null,null,{"$f":"IF(S81=0,\"\",VLOOKUP(S81,'5.1'!$B$2:$C$33,2,FALSE))","v":""},null,null,null,{"$f":"IF(W81=0,\"\",VLOOKUP(W81,'3'!$B$3:$D$42,2,FALSE))","v":""},null,{"$f":"IF(Y81=0,\"\",VLOOKUP(Y81,'4.1'!$A$2:$B$84,2,FALSE))","v":""},null,{"$f":"IF(AA81=0,\"\",VLOOKUP(AA81,'4.1'!$F$2:$G$603,2,FALSE))","v":""}]
[66,9,null,null,null,{"$f":"IF(E82=0,\"\",VLOOKUP(E82,'2.2'!$A$3:$B$101,2,FALSE))","v":""},null,null,null,null,{"$f":"IF(J82=0,\"\",VLOOKUP(J82,'5.5.1'!$B$3:$C$208,2,FALSE))","v":""},null,null,null,{"$f":"IF(N82=0,\"\",VLOOKUP(N82,'4.1'!$A$2:$B$85,2,FALSE))","v":""},null,{"$f":"IF(P82=0,\"\",VLOOKUP(P82,'4.1'!$F$2:$G$547,2,FALSE))","v":""},null,null,{"$f":"IF(S82=0,\"\",VLOOKUP(S82,'5.1'!$B$2:$C$33,2,FALSE))","v":""},null,null,null,{"$f":"IF(W82=0,\"\",VLOOKUP(W82,'3'!$B$3:$D$42,2,FALSE))","v":""},null,{"$f":"IF(Y82=0,\"\",VLOOKUP(Y82,'4.1'!$A$2:$B$84,2,FALSE))","v":""},null,{"$f":"IF(AA82=0,\"\",VLOOKUP(AA82,'4.1'!$F$2:$G$603,2,FALSE))","v":""}]
[67,9,null,null,null,{"$f":"IF(E83=0,\"\",VLOOKUP(E83,'2.2'!$A$3:$B$101,2,FALSE))","v":""},null,null,null,null,{"$f":"IF(J83=0,\"\",VLOOKUP(J83,'5.5.1'!$B$3:$C$208,2,FALSE))","v":""},null,null,null,{"$f":"IF(N83=0,\"\",VLOOKUP(N83,'4.1'!$A$2:$B$85,2,FALSE))","v":""},null,{"$f":"IF(P83=0,\"\",VLOOKUP(P83,'4.1'!$F$2:$G$547,2,FALSE))","v":""},null,null,{"$f":"IF(S83=0,\"\",VLOOKUP(S83,'5.1'!$B$2:$C$33,2,FALSE))","v":""},null,null,null,{"$f":"IF(W83=0,\"\",VLOOKUP(W83,'3'!$B$3:$D$42,2,FALSE))","v":""},null,{"$f":"IF(Y83=0,\"\",VLOOKUP(Y83,'4.1'!$A$2:$B$84,2,FALSE))","v":""},null,{"$f":"IF(AA83=0,\"\",VLOOKUP(AA83,'4.1'!$F$2:$G$603,2,FALSE))","v":""}]
[68,9,null,null,null,{"$f":"IF(E84=0,\"\",VLOOKUP(E84,'2.2'!$A$3:$B$101,2,FALSE))","v":""},null,null,null,null,{"$f":"IF(J84=0,\"\",VLOOKUP(J84,'5.5.1'!$B$3:$C$208,2,FALSE))","v":""},null,null,null,{"$f":"IF(N84=0,\"\",VLOOKUP(N84,'4.1'!$A$2:$B$85,2,FALSE))","v":""},null,{"$f":"IF(P84=0,\"\",VLOOKUP(P84,'4.1'!$F$2:$G$547,2,FALSE))","v":""},null,null,{"$f":"IF(S84=0,\"\",VLOOKUP(S84,'5.1'!$B$2:$C$33,2,FALSE))","v":""},null,null,null,{"$f":"IF(W84=0,\"\",VLOOKUP(W84,'3'!$B$3:$D$42,2,FALSE))","v":""},null,{"$f":"IF(Y84=0,\"\",VLOOKUP(Y84,'4.1'!$A$2:$B$84,2,FALSE))","v":""},null,{"$f":"IF(AA84=0,\"\",VLOOKUP(AA84,'4.1'!$F$2:$G$603,2,FALSE))","v":""}]
[69,9,null,null,null,{"$f":"IF(E85=0,\"\",VLOOKUP(E85,'2.2'!$A$3:$B$101,2,FALSE))","v":""},null,null,null,null,{"$f":"IF(J85=0,\"\",VLOOKUP(J85,'5.5.1'!$B$3:$C$208,2,FALSE))","v":""},null,null,null,{"$f":"IF(N85=0,\"\",VLOOKUP(N85,'4.1'!$A$2:$B$85,2,FALSE))","v":""},null,{"$f":"IF(P85=0,\"\",VLOOKUP(P85,'4.1'!$F$2:$G$547,2,FALSE))","v":""},null,null,{"$f":"IF(S85=0,\"\",VLOOKUP(S85,'5.1'!$B$2:$C$33,2,FALSE))","v":""},null,null,null,{"$f":"IF(W85=0,\"\",VLOOKUP(W85,'3'!$B$3:$D$42,2,FALSE))","v":""},null,{"$f":"IF(Y85=0,\"\",VLOOKUP(Y85,'4.1'!$A$2:$B$84,2,FALSE))","v":""},null,{"$f":"IF(AA85=0,\"\",VLOOKUP(AA85,'4.1'!$F$2:$G$603,2,FALSE))","v":""}]
[70,9,null,null,null,{"$f":"IF(E86=0,\"\",VLOOKUP(E86,'2.2'!$A$3:$B$101,2,FALSE))","v":""},null,null,null,null,{"$f":"IF(J86=0,\"\",VLOOKUP(J86,'5.5.1'!$B$3:$C$208,2,FALSE))","v":""},null,null,null,{"$f":"IF(N86=0,\"\",VLOOKUP(N86,'4.1'!$A$2:$B$85,2,FALSE))","v":""},null,{"$f":"IF(P86=0,\"\",VLOOKUP(P86,'4.1'!$F$2:$G$547,2,FALSE))","v":""},null,null,{"$f":"IF(S86=0,\"\",VLOOKUP(S86,'5.1'!$B$2:$C$33,2,FALSE))","v":""},null,null,null,{"$f":"IF(W86=0,\"\",VLOOKUP(W86,'3'!$B$3:$D$42,2,FALSE))","v":""},null,{"$f":"IF(Y86=0,\"\",VLOOKUP(Y86,'4.1'!$A$2:$B$84,2,FALSE))","v":""},null,{"$f":"IF(AA86=0,\"\",VLOOKUP(AA86,'4.1'!$F$2:$G$603,2,FALSE))","v":""}]
[71,9,null,null,null,{"$f":"IF(E87=0,\"\",VLOOKUP(E87,'2.2'!$A$3:$B$101,2,FALSE))","v":""},null,null,null,null,{"$f":"IF(J87=0,\"\",VLOOKUP(J87,'5.5.1'!$B$3:$C$208,2,FALSE))","v":""},null,null,null,{"$f":"IF(N87=0,\"\",VLOOKUP(N87,'4.1'!$A$2:$B$85,2,FALSE))","v":""},null,{"$f":"IF(P87=0,\"\",VLOOKUP(P87,'4.1'!$F$2:$G$547,2,FALSE))","v":""},null,null,{"$f":"IF(S87=0,\"\",VLOOKUP(S87,'5.1'!$B$2:$C$33,2,FALSE))","v":""},null,null,null,{"$f":"IF(W87=0,\"\",VLOOKUP(W87,'3'!$B$3:$D$42,2,FALSE))","v":""},null,{"$f":"IF(Y87=0,\"\",VLOOKUP(Y87,'4.1'!$A$2:$B$84,2,FALSE))","v":""},null,{"$f":"IF(AA87=0,\"\",VLOOKUP(AA87,'4.1'!$F$2:$G$603,2,FALSE))","v":""}]
[72,9,null,null,null,{"$f":"IF(E88=0,\"\",VLOOKUP(E88,'2.2'!$A$3:$B$101,2,FALSE))","v":""},null,null,null,null,{"$f":"IF(J88=0,\"\",VLOOKUP(J88,'5.5.1'!$B$3:$C$208,2,FALSE))","v":""},null,null,null,{"$f":"IF(N88=0,\"\",VLOOKUP(N88,'4.1'!$A$2:$B$85,2,FALSE))","v":""},null,{"$f":"IF(P88=0,\"\",VLOOKUP(P88,'4.1'!$F$2:$G$547,2,FALSE))","v":""},null,null,{"$f":"IF(S88=0,\"\",VLOOKUP(S88,'5.1'!$B$2:$C$33,2,FALSE))","v":""},null,null,null,{"$f":"IF(W88=0,\"\",VLOOKUP(W88,'3'!$B$3:$D$42,2,FALSE))","v":""},null,{"$f":"IF(Y88=0,\"\",VLOOKUP(Y88,'4.1'!$A$2:$B$84,2,FALSE))","v":""},null,{"$f":"IF(AA88=0,\"\",VLOOKUP(AA88,'4.1'!$F$2:$G$603,2,FALSE))","v":""}]
[73,9,null,null,null,{"$f":"IF(E89=0,\"\",VLOOKUP(E89,'2.2'!$A$3:$B$101,2,FALSE))","v":""},null,null,null,null,{"$f":"IF(J89=0,\"\",VLOOKUP(J89,'5.5.1'!$B$3:$C$208,2,FALSE))","v":""},null,null,null,{"$f":"IF(N89=0,\"\",VLOOKUP(N89,'4.1'!$A$2:$B$85,2,FALSE))","v":""},null,{"$f":"IF(P89=0,\"\",VLOOKUP(P89,'4.1'!$F$2:$G$547,2,FALSE))","v":""},null,null,{"$f":"IF(S89=0,\"\",VLOOKUP(S89,'5.1'!$B$2:$C$33,2,FALSE))","v":""},null,null,null,{"$f":"IF(W89=0,\"\",VLOOKUP(W89,'3'!$B$3:$D$42,2,FALSE))","v":""},null,{"$f":"IF(Y89=0,\"\",VLOOKUP(Y89,'4.1'!$A$2:$B$84,2,FALSE))","v":""},null,{"$f":"IF(AA89=0,\"\",VLOOKUP(AA89,'4.1'!$F$2:$G$603,2,FALSE))","v":""}]
[74,9,null,null,null,{"$f":"IF(E90=0,\"\",VLOOKUP(E90,'2.2'!$A$3:$B$101,2,FALSE))","v":""},null,null,null,null,{"$f":"IF(J90=0,\"\",VLOOKUP(J90,'5.5.1'!$B$3:$C$208,2,FALSE))","v":""},null,null,null,{"$f":"IF(N90=0,\"\",VLOOKUP(N90,'4.1'!$A$2:$B$85,2,FALSE))","v":""},null,{"$f":"IF(P90=0,\"\",VLOOKUP(P90,'4.1'!$F$2:$G$547,2,FALSE))","v":""},null,null,{"$f":"IF(S90=0,\"\",VLOOKUP(S90,'5.1'!$B$2:$C$33,2,FALSE))","v":""},null,null,null,{"$f":"IF(W90=0,\"\",VLOOKUP(W90,'3'!$B$3:$D$42,2,FALSE))","v":""},null,{"$f":"IF(Y90=0,\"\",VLOOKUP(Y90,'4.1'!$A$2:$B$84,2,FALSE))","v":""},null,{"$f":"IF(AA90=0,\"\",VLOOKUP(AA90,'4.1'!$F$2:$G$603,2,FALSE))","v":""}]
[75,9,null,null,null,{"$f":"IF(E91=0,\"\",VLOOKUP(E91,'2.2'!$A$3:$B$101,2,FALSE))","v":""},null,null,null,null,{"$f":"IF(J91=0,\"\",VLOOKUP(J91,'5.5.1'!$B$3:$C$208,2,FALSE))","v":""},null,null,null,{"$f":"IF(N91=0,\"\",VLOOKUP(N91,'4.1'!$A$2:$B$85,2,FALSE))","v":""},null,{"$f":"IF(P91=0,\"\",VLOOKUP(P91,'4.1'!$F$2:$G$547,2,FALSE))","v":""},null,null,{"$f":"IF(S91=0,\"\",VLOOKUP(S91,'5.1'!$B$2:$C$33,2,FALSE))","v":""},null,null,null,{"$f":"IF(W91=0,\"\",VLOOKUP(W91,'3'!$B$3:$D$42,2,FALSE))","v":""},null,{"$f":"IF(Y91=0,\"\",VLOOKUP(Y91,'4.1'!$A$2:$B$84,2,FALSE))","v":""},null,{"$f":"IF(AA91=0,\"\",VLOOKUP(AA91,'4.1'!$F$2:$G$603,2,FALSE))","v":""}]
[76,9,null,null,null,{"$f":"IF(E92=0,\"\",VLOOKUP(E92,'2.2'!$A$3:$B$101,2,FALSE))","v":""},null,null,null,null,{"$f":"IF(J92=0,\"\",VLOOKUP(J92,'5.5.1'!$B$3:$C$208,2,FALSE))","v":""},null,null,null,{"$f":"IF(N92=0,\"\",VLOOKUP(N92,'4.1'!$A$2:$B$85,2,FALSE))","v":""},null,{"$f":"IF(P92=0,\"\",VLOOKUP(P92,'4.1'!$F$2:$G$547,2,FALSE))","v":""},null,null,{"$f":"IF(S92=0,\"\",VLOOKUP(S92,'5.1'!$B$2:$C$33,2,FALSE))","v":""},null,null,null,{"$f":"IF(W92=0,\"\",VLOOKUP(W92,'3'!$B$3:$D$42,2,FALSE))","v":""},null,{"$f":"IF(Y92=0,\"\",VLOOKUP(Y92,'4.1'!$A$2:$B$84,2,FALSE))","v":""},null,{"$f":"IF(AA92=0,\"\",VLOOKUP(AA92,'4.1'!$F$2:$G$603,2,FALSE))","v":""}]
[77,9,null,null,null,{"$f":"IF(E93=0,\"\",VLOOKUP(E93,'2.2'!$A$3:$B$101,2,FALSE))","v":""},null,null,null,null,{"$f":"IF(J93=0,\"\",VLOOKUP(J93,'5.5.1'!$B$3:$C$208,2,FALSE))","v":""},null,null,null,{"$f":"IF(N93=0,\"\",VLOOKUP(N93,'4.1'!$A$2:$B$85,2,FALSE))","v":""},null,{"$f":"IF(P93=0,\"\",VLOOKUP(P93,'4.1'!$F$2:$G$547,2,FALSE))","v":""},null,null,{"$f":"IF(S93=0,\"\",VLOOKUP(S93,'5.1'!$B$2:$C$33,2,FALSE))","v":""},null,null,null,{"$f":"IF(W93=0,\"\",VLOOKUP(W93,'3'!$B$3:$D$42,2,FALSE))","v":""},null,{"$f":"IF(Y93=0,\"\",VLOOKUP(Y93,'4.1'!$A$2:$B$84,2,FALSE))","v":""},null,{"$f":"IF(AA93=0,\"\",VLOOKUP(AA93,'4.1'!$F$2:$G$603,2,FALSE))","v":""}]
[78,9,null,null,null,{"$f":"IF(E94=0,\"\",VLOOKUP(E94,'2.2'!$A$3:$B$101,2,FALSE))","v":""},null,null,null,null,{"$f":"IF(J94=0,\"\",VLOOKUP(J94,'5.5.1'!$B$3:$C$208,2,FALSE))","v":""},null,null,null,{"$f":"IF(N94=0,\"\",VLOOKUP(N94,'4.1'!$A$2:$B$85,2,FALSE))","v":""},null,{"$f":"IF(P94=0,\"\",VLOOKUP(P94,'4.1'!$F$2:$G$547,2,FALSE))","v":""},null,null,{"$f":"IF(S94=0,\"\",VLOOKUP(S94,'5.1'!$B$2:$C$33,2,FALSE))","v":""},null,null,null,{"$f":"IF(W94=0,\"\",VLOOKUP(W94,'3'!$B$3:$D$42,2,FALSE))","v":""},null,{"$f":"IF(Y94=0,\"\",VLOOKUP(Y94,'4.1'!$A$2:$B$84,2,FALSE))","v":""},null,{"$f":"IF(AA94=0,\"\",VLOOKUP(AA94,'4.1'!$F$2:$G$603,2,FALSE))","v":""}]
[79,9,null,null,null,{"$f":"IF(E95=0,\"\",VLOOKUP(E95,'2.2'!$A$3:$B$101,2,FALSE))","v":""},null,null,null,null,{"$f":"IF(J95=0,\"\",VLOOKUP(J95,'5.5.1'!$B$3:$C$208,2,FALSE))","v":""},null,null,null,{"$f":"IF(N95=0,\"\",VLOOKUP(N95,'4.1'!$A$2:$B$85,2,FALSE))","v":""},null,{"$f":"IF(P95=0,\"\",VLOOKUP(P95,'4.1'!$F$2:$G$547,2,FALSE))","v":""},null,null,{"$f":"IF(S95=0,\"\",VLOOKUP(S95,'5.1'!$B$2:$C$33,2,FALSE))","v":""},null,null,null,{"$f":"IF(W95=0,\"\",VLOOKUP(W95,'3'!$B$3:$D$42,2,FALSE))","v":""},null,{"$f":"IF(Y95=0,\"\",VLOOKUP(Y95,'4.1'!$A$2:$B$84,2,FALSE))","v":""},null,{"$f":"IF(AA95=0,\"\",VLOOKUP(AA95,'4.1'!$F$2:$G$603,2,FALSE))","v":""}]
[80,9,null,null,null,{"$f":"IF(E96=0,\"\",VLOOKUP(E96,'2.2'!$A$3:$B$101,2,FALSE))","v":""},null,null,null,null,{"$f":"IF(J96=0,\"\",VLOOKUP(J96,'5.5.1'!$B$3:$C$208,2,FALSE))","v":""},null,null,null,{"$f":"IF(N96=0,\"\",VLOOKUP(N96,'4.1'!$A$2:$B$85,2,FALSE))","v":""},null,{"$f":"IF(P96=0,\"\",VLOOKUP(P96,'4.1'!$F$2:$G$547,2,FALSE))","v":""},null,null,{"$f":"IF(S96=0,\"\",VLOOKUP(S96,'5.1'!$B$2:$C$33,2,FALSE))","v":""},null,null,null,{"$f":"IF(W96=0,\"\",VLOOKUP(W96,'3'!$B$3:$D$42,2,FALSE))","v":""},null,{"$f":"IF(Y96=0,\"\",VLOOKUP(Y96,'4.1'!$A$2:$B$84,2,FALSE))","v":""},null,{"$f":"IF(AA96=0,\"\",VLOOKUP(AA96,'4.1'!$F$2:$G$603,2,FALSE))","v":""}]
[81,9,null,null,null,{"$f":"IF(E97=0,\"\",VLOOKUP(E97,'2.2'!$A$3:$B$101,2,FALSE))","v":""},null,null,null,null,{"$f":"IF(J97=0,\"\",VLOOKUP(J97,'5.5.1'!$B$3:$C$208,2,FALSE))","v":""},null,null,null,{"$f":"IF(N97=0,\"\",VLOOKUP(N97,'4.1'!$A$2:$B$85,2,FALSE))","v":""},null,{"$f":"IF(P97=0,\"\",VLOOKUP(P97,'4.1'!$F$2:$G$547,2,FALSE))","v":""},null,null,{"$f":"IF(S97=0,\"\",VLOOKUP(S97,'5.1'!$B$2:$C$33,2,FALSE))","v":""},null,null,null,{"$f":"IF(W97=0,\"\",VLOOKUP(W97,'3'!$B$3:$D$42,2,FALSE))","v":""},null,{"$f":"IF(Y97=0,\"\",VLOOKUP(Y97,'4.1'!$A$2:$B$84,2,FALSE))","v":""},null,{"$f":"IF(AA97=0,\"\",VLOOKUP(AA97,'4.1'!$F$2:$G$603,2,FALSE))","v":""}]
[82,9,null,null,null,{"$f":"IF(E98=0,\"\",VLOOKUP(E98,'2.2'!$A$3:$B$101,2,FALSE))","v":""},null,null,null,null,{"$f":"IF(J98=0,\"\",VLOOKUP(J98,'5.5.1'!$B$3:$C$208,2,FALSE))","v":""},null,null,null,{"$f":"IF(N98=0,\"\",VLOOKUP(N98,'4.1'!$A$2:$B$85,2,FALSE))","v":""},null,{"$f":"IF(P98=0,\"\",VLOOKUP(P98,'4.1'!$F$2:$G$547,2,FALSE))","v":""},null,null,{"$f":"IF(S98=0,\"\",VLOOKUP(S98,'5.1'!$B$2:$C$33,2,FALSE))","v":""},null,null,null,{"$f":"IF(W98=0,\"\",VLOOKUP(W98,'3'!$B$3:$D$42,2,FALSE))","v":""},null,{"$f":"IF(Y98=0,\"\",VLOOKUP(Y98,'4.1'!$A$2:$B$84,2,FALSE))","v":""},null,{"$f":"IF(AA98=0,\"\",VLOOKUP(AA98,'4.1'!$F$2:$G$603,2,FALSE))","v":""}]
[83,9,null,null,null,{"$f":"IF(E99=0,\"\",VLOOKUP(E99,'2.2'!$A$3:$B$101,2,FALSE))","v":""},null,null,null,null,{"$f":"IF(J99=0,\"\",VLOOKUP(J99,'5.5.1'!$B$3:$C$208,2,FALSE))","v":""},null,null,null,{"$f":"IF(N99=0,\"\",VLOOKUP(N99,'4.1'!$A$2:$B$85,2,FALSE))","v":""},null,{"$f":"IF(P99=0,\"\",VLOOKUP(P99,'4.1'!$F$2:$G$547,2,FALSE))","v":""},null,null,{"$f":"IF(S99=0,\"\",VLOOKUP(S99,'5.1'!$B$2:$C$33,2,FALSE))","v":""},null,null,null,{"$f":"IF(W99=0,\"\",VLOOKUP(W99,'3'!$B$3:$D$42,2,FALSE))","v":""},null,{"$f":"IF(Y99=0,\"\",VLOOKUP(Y99,'4.1'!$A$2:$B$84,2,FALSE))","v":""},null,{"$f":"IF(AA99=0,\"\",VLOOKUP(AA99,'4.1'!$F$2:$G$603,2,FALSE))","v":""}]
[84,9,null,null,null,{"$f":"IF(E100=0,\"\",VLOOKUP(E100,'2.2'!$A$3:$B$101,2,FALSE))","v":""},null,null,null,null,{"$f":"IF(J100=0,\"\",VLOOKUP(J100,'5.5.1'!$B$3:$C$208,2,FALSE))","v":""},null,null,null,{"$f":"IF(N100=0,\"\",VLOOKUP(N100,'4.1'!$A$2:$B$85,2,FALSE))","v":""},null,{"$f":"IF(P100=0,\"\",VLOOKUP(P100,'4.1'!$F$2:$G$547,2,FALSE))","v":""},null,null,{"$f":"IF(S100=0,\"\",VLOOKUP(S100,'5.1'!$B$2:$C$33,2,FALSE))","v":""},null,null,null,{"$f":"IF(W100=0,\"\",VLOOKUP(W100,'3'!$B$3:$D$42,2,FALSE))","v":""},null,{"$f":"IF(Y100=0,\"\",VLOOKUP(Y100,'4.1'!$A$2:$B$84,2,FALSE))","v":""},null,{"$f":"IF(AA100=0,\"\",VLOOKUP(AA100,'4.1'!$F$2:$G$603,2,FALSE))","v":""}]
[85,9,null,null,null,{"$f":"IF(E101=0,\"\",VLOOKUP(E101,'2.2'!$A$3:$B$101,2,FALSE))","v":""},null,null,null,null,{"$f":"IF(J101=0,\"\",VLOOKUP(J101,'5.5.1'!$B$3:$C$208,2,FALSE))","v":""},null,null,null,{"$f":"IF(N101=0,\"\",VLOOKUP(N101,'4.1'!$A$2:$B$85,2,FALSE))","v":""},null,{"$f":"IF(P101=0,\"\",VLOOKUP(P101,'4.1'!$F$2:$G$547,2,FALSE))","v":""},null,null,{"$f":"IF(S101=0,\"\",VLOOKUP(S101,'5.1'!$B$2:$C$33,2,FALSE))","v":""},null,null,null,{"$f":"IF(W101=0,\"\",VLOOKUP(W101,'3'!$B$3:$D$42,2,FALSE))","v":""},null,{"$f":"IF(Y101=0,\"\",VLOOKUP(Y101,'4.1'!$A$2:$B$84,2,FALSE))","v":""},null,{"$f":"IF(AA101=0,\"\",VLOOKUP(AA101,'4.1'!$F$2:$G$603,2,FALSE))","v":""}]
[86,9,null,null,null,{"$f":"IF(E102=0,\"\",VLOOKUP(E102,'2.2'!$A$3:$B$101,2,FALSE))","v":""},null,null,null,null,{"$f":"IF(J102=0,\"\",VLOOKUP(J102,'5.5.1'!$B$3:$C$208,2,FALSE))","v":""},null,null,null,{"$f":"IF(N102=0,\"\",VLOOKUP(N102,'4.1'!$A$2:$B$85,2,FALSE))","v":""},null,{"$f":"IF(P102=0,\"\",VLOOKUP(P102,'4.1'!$F$2:$G$547,2,FALSE))","v":""},null,null,{"$f":"IF(S102=0,\"\",VLOOKUP(S102,'5.1'!$B$2:$C$33,2,FALSE))","v":""},null,null,null,{"$f":"IF(W102=0,\"\",VLOOKUP(W102,'3'!$B$3:$D$42,2,FALSE))","v":""},null,{"$f":"IF(Y102=0,\"\",VLOOKUP(Y102,'4.1'!$A$2:$B$84,2,FALSE))","v":""},null,{"$f":"IF(AA102=0,\"\",VLOOKUP(AA102,'4.1'!$F$2:$G$603,2,FALSE))","v":""}]
[87,9,null,null,null,{"$f":"IF(E103=0,\"\",VLOOKUP(E103,'2.2'!$A$3:$B$101,2,FALSE))","v":""},null,null,null,null,{"$f":"IF(J103=0,\"\",VLOOKUP(J103,'5.5.1'!$B$3:$C$208,2,FALSE))","v":""},null,null,null,{"$f":"IF(N103=0,\"\",VLOOKUP(N103,'4.1'!$A$2:$B$85,2,FALSE))","v":""},null,{"$f":"IF(P103=0,\"\",VLOOKUP(P103,'4.1'!$F$2:$G$547,2,FALSE))","v":""},null,null,{"$f":"IF(S103=0,\"\",VLOOKUP(S103,'5.1'!$B$2:$C$33,2,FALSE))","v":""},null,null,null,{"$f":"IF(W103=0,\"\",VLOOKUP(W103,'3'!$B$3:$D$42,2,FALSE))","v":""},null,{"$f":"IF(Y103=0,\"\",VLOOKUP(Y103,'4.1'!$A$2:$B$84,2,FALSE))","v":""},null,{"$f":"IF(AA103=0,\"\",VLOOKUP(AA103,'4.1'!$F$2:$G$603,2,FALSE))","v":""}]
[88,9,null,null,null,{"$f":"IF(E104=0,\"\",VLOOKUP(E104,'2.2'!$A$3:$B$101,2,FALSE))","v":""},null,null,null,null,{"$f":"IF(J104=0,\"\",VLOOKUP(J104,'5.5.1'!$B$3:$C$208,2,FALSE))","v":""},null,null,null,{"$f":"IF(N104=0,\"\",VLOOKUP(N104,'4.1'!$A$2:$B$85,2,FALSE))","v":""},null,{"$f":"IF(P104=0,\"\",VLOOKUP(P104,'4.1'!$F$2:$G$547,2,FALSE))","v":""},null,null,{"$f":"IF(S104=0,\"\",VLOOKUP(S104,'5.1'!$B$2:$C$33,2,FALSE))","v":""},null,null,null,{"$f":"IF(W104=0,\"\",VLOOKUP(W104,'3'!$B$3:$D$42,2,FALSE))","v":""},null,{"$f":"IF(Y104=0,\"\",VLOOKUP(Y104,'4.1'!$A$2:$B$84,2,FALSE))","v":""},null,{"$f":"IF(AA104=0,\"\",VLOOKUP(AA104,'4.1'!$F$2:$G$603,2,FALSE))","v":""}]
[89,9,null,null,null,{"$f":"IF(E105=0,\"\",VLOOKUP(E105,'2.2'!$A$3:$B$101,2,FALSE))","v":""},null,null,null,null,{"$f":"IF(J105=0,\"\",VLOOKUP(J105,'5.5.1'!$B$3:$C$208,2,FALSE))","v":""},null,null,null,{"$f":"IF(N105=0,\"\",VLOOKUP(N105,'4.1'!$A$2:$B$85,2,FALSE))","v":""},null,{"$f":"IF(P105=0,\"\",VLOOKUP(P105,'4.1'!$F$2:$G$547,2,FALSE))","v":""},null,null,{"$f":"IF(S105=0,\"\",VLOOKUP(S105,'5.1'!$B$2:$C$33,2,FALSE))","v":""},null,null,null,{"$f":"IF(W105=0,\"\",VLOOKUP(W105,'3'!$B$3:$D$42,2,FALSE))","v":""},null,{"$f":"IF(Y105=0,\"\",VLOOKUP(Y105,'4.1'!$A$2:$B$84,2,FALSE))","v":""},null,{"$f":"IF(AA105=0,\"\",VLOOKUP(AA105,'4.1'!$F$2:$G$603,2,FALSE))","v":""}]
[90,9,null,null,null,{"$f":"IF(E106=0,\"\",VLOOKUP(E106,'2.2'!$A$3:$B$101,2,FALSE))","v":""},null,null,null,null,{"$f":"IF(J106=0,\"\",VLOOKUP(J106,'5.5.1'!$B$3:$C$208,2,FALSE))","v":""},null,null,null,{"$f":"IF(N106=0,\"\",VLOOKUP(N106,'4.1'!$A$2:$B$85,2,FALSE))","v":""},null,{"$f":"IF(P106=0,\"\",VLOOKUP(P106,'4.1'!$F$2:$G$547,2,FALSE))","v":""},null,null,{"$f":"IF(S106=0,\"\",VLOOKUP(S106,'5.1'!$B$2:$C$33,2,FALSE))","v":""},null,null,null,{"$f":"IF(W106=0,\"\",VLOOKUP(W106,'3'!$B$3:$D$42,2,FALSE))","v":""},null,{"$f":"IF(Y106=0,\"\",VLOOKUP(Y106,'4.1'!$A$2:$B$84,2,FALSE))","v":""},null,{"$f":"IF(AA106=0,\"\",VLOOKUP(AA106,'4.1'!$F$2:$G$603,2,FALSE))","v":""}]
[91,9,null,null,null,{"$f":"IF(E107=0,\"\",VLOOKUP(E107,'2.2'!$A$3:$B$101,2,FALSE))","v":""},null,null,null,null,{"$f":"IF(J107=0,\"\",VLOOKUP(J107,'5.5.1'!$B$3:$C$208,2,FALSE))","v":""},null,null,null,{"$f":"IF(N107=0,\"\",VLOOKUP(N107,'4.1'!$A$2:$B$85,2,FALSE))","v":""},null,{"$f":"IF(P107=0,\"\",VLOOKUP(P107,'4.1'!$F$2:$G$547,2,FALSE))","v":""},null,null,{"$f":"IF(S107=0,\"\",VLOOKUP(S107,'5.1'!$B$2:$C$33,2,FALSE))","v":""},null,null,null,{"$f":"IF(W107=0,\"\",VLOOKUP(W107,'3'!$B$3:$D$42,2,FALSE))","v":""},null,{"$f":"IF(Y107=0,\"\",VLOOKUP(Y107,'4.1'!$A$2:$B$84,2,FALSE))","v":""},null,{"$f":"IF(AA107=0,\"\",VLOOKUP(AA107,'4.1'!$F$2:$G$603,2,FALSE))","v":""}]
[92,9,null,null,null,{"$f":"IF(E108=0,\"\",VLOOKUP(E108,'2.2'!$A$3:$B$101,2,FALSE))","v":""},null,null,null,null,{"$f":"IF(J108=0,\"\",VLOOKUP(J108,'5.5.1'!$B$3:$C$208,2,FALSE))","v":""},null,null,null,{"$f":"IF(N108=0,\"\",VLOOKUP(N108,'4.1'!$A$2:$B$85,2,FALSE))","v":""},null,{"$f":"IF(P108=0,\"\",VLOOKUP(P108,'4.1'!$F$2:$G$547,2,FALSE))","v":""},null,null,{"$f":"IF(S108=0,\"\",VLOOKUP(S108,'5.1'!$B$2:$C$33,2,FALSE))","v":""},null,null,null,{"$f":"IF(W108=0,\"\",VLOOKUP(W108,'3'!$B$3:$D$42,2,FALSE))","v":""},null,{"$f":"IF(Y108=0,\"\",VLOOKUP(Y108,'4.1'!$A$2:$B$84,2,FALSE))","v":""},null,{"$f":"IF(AA108=0,\"\",VLOOKUP(AA108,'4.1'!$F$2:$G$603,2,FALSE))","v":""}]
[93,9,null,null,null,{"$f":"IF(E109=0,\"\",VLOOKUP(E109,'2.2'!$A$3:$B$101,2,FALSE))","v":""},null,null,null,null,{"$f":"IF(J109=0,\"\",VLOOKUP(J109,'5.5.1'!$B$3:$C$208,2,FALSE))","v":""},null,null,null,{"$f":"IF(N109=0,\"\",VLOOKUP(N109,'4.1'!$A$2:$B$85,2,FALSE))","v":""},null,{"$f":"IF(P109=0,\"\",VLOOKUP(P109,'4.1'!$F$2:$G$547,2,FALSE))","v":""},null,null,{"$f":"IF(S109=0,\"\",VLOOKUP(S109,'5.1'!$B$2:$C$33,2,FALSE))","v":""},null,null,null,{"$f":"IF(W109=0,\"\",VLOOKUP(W109,'3'!$B$3:$D$42,2,FALSE))","v":""},null,{"$f":"IF(Y109=0,\"\",VLOOKUP(Y109,'4.1'!$A$2:$B$84,2,FALSE))","v":""},null,{"$f":"IF(AA109=0,\"\",VLOOKUP(AA109,'4.1'!$F$2:$G$603,2,FALSE))","v":""}]
[94,9,null,null,null,{"$f":"IF(E110=0,\"\",VLOOKUP(E110,'2.2'!$A$3:$B$101,2,FALSE))","v":""},null,null,null,null,{"$f":"IF(J110=0,\"\",VLOOKUP(J110,'5.5.1'!$B$3:$C$208,2,FALSE))","v":""},null,null,null,{"$f":"IF(N110=0,\"\",VLOOKUP(N110,'4.1'!$A$2:$B$85,2,FALSE))","v":""},null,{"$f":"IF(P110=0,\"\",VLOOKUP(P110,'4.1'!$F$2:$G$547,2,FALSE))","v":""},null,null,{"$f":"IF(S110=0,\"\",VLOOKUP(S110,'5.1'!$B$2:$C$33,2,FALSE))","v":""},null,null,null,{"$f":"IF(W110=0,\"\",VLOOKUP(W110,'3'!$B$3:$D$42,2,FALSE))","v":""},null,{"$f":"IF(Y110=0,\"\",VLOOKUP(Y110,'4.1'!$A$2:$B$84,2,FALSE))","v":""},null,{"$f":"IF(AA110=0,\"\",VLOOKUP(AA110,'4.1'!$F$2:$G$603,2,FALSE))","v":""}]
[95,9,null,null,null,{"$f":"IF(E111=0,\"\",VLOOKUP(E111,'2.2'!$A$3:$B$101,2,FALSE))","v":""},null,null,null,null,{"$f":"IF(J111=0,\"\",VLOOKUP(J111,'5.5.1'!$B$3:$C$208,2,FALSE))","v":""},null,null,null,{"$f":"IF(N111=0,\"\",VLOOKUP(N111,'4.1'!$A$2:$B$85,2,FALSE))","v":""},null,{"$f":"IF(P111=0,\"\",VLOOKUP(P111,'4.1'!$F$2:$G$547,2,FALSE))","v":""},null,null,{"$f":"IF(S111=0,\"\",VLOOKUP(S111,'5.1'!$B$2:$C$33,2,FALSE))","v":""},null,null,null,{"$f":"IF(W111=0,\"\",VLOOKUP(W111,'3'!$B$3:$D$42,2,FALSE))","v":""},null,{"$f":"IF(Y111=0,\"\",VLOOKUP(Y111,'4.1'!$A$2:$B$84,2,FALSE))","v":""},null,{"$f":"IF(AA111=0,\"\",VLOOKUP(AA111,'4.1'!$F$2:$G$603,2,FALSE))","v":""}]
[96,9,null,null,null,{"$f":"IF(E112=0,\"\",VLOOKUP(E112,'2.2'!$A$3:$B$101,2,FALSE))","v":""},null,null,null,null,{"$f":"IF(J112=0,\"\",VLOOKUP(J112,'5.5.1'!$B$3:$C$208,2,FALSE))","v":""},null,null,null,{"$f":"IF(N112=0,\"\",VLOOKUP(N112,'4.1'!$A$2:$B$85,2,FALSE))","v":""},null,{"$f":"IF(P112=0,\"\",VLOOKUP(P112,'4.1'!$F$2:$G$547,2,FALSE))","v":""},null,null,{"$f":"IF(S112=0,\"\",VLOOKUP(S112,'5.1'!$B$2:$C$33,2,FALSE))","v":""},null,null,null,{"$f":"IF(W112=0,\"\",VLOOKUP(W112,'3'!$B$3:$D$42,2,FALSE))","v":""},null,{"$f":"IF(Y112=0,\"\",VLOOKUP(Y112,'4.1'!$A$2:$B$84,2,FALSE))","v":""},null,{"$f":"IF(AA112=0,\"\",VLOOKUP(AA112,'4.1'!$F$2:$G$603,2,FALSE))","v":""}]
[97,9,null,null,null,{"$f":"IF(E113=0,\"\",VLOOKUP(E113,'2.2'!$A$3:$B$101,2,FALSE))","v":""},null,null,null,null,{"$f":"IF(J113=0,\"\",VLOOKUP(J113,'5.5.1'!$B$3:$C$208,2,FALSE))","v":""},null,null,null,{"$f":"IF(N113=0,\"\",VLOOKUP(N113,'4.1'!$A$2:$B$85,2,FALSE))","v":""},null,{"$f":"IF(P113=0,\"\",VLOOKUP(P113,'4.1'!$F$2:$G$547,2,FALSE))","v":""},null,null,{"$f":"IF(S113=0,\"\",VLOOKUP(S113,'5.1'!$B$2:$C$33,2,FALSE))","v":""},null,null,null,{"$f":"IF(W113=0,\"\",VLOOKUP(W113,'3'!$B$3:$D$42,2,FALSE))","v":""},null,{"$f":"IF(Y113=0,\"\",VLOOKUP(Y113,'4.1'!$A$2:$B$84,2,FALSE))","v":""},null,{"$f":"IF(AA113=0,\"\",VLOOKUP(AA113,'4.1'!$F$2:$G$603,2,FALSE))","v":""}]
[98,9,null,null,null,{"$f":"IF(E114=0,\"\",VLOOKUP(E114,'2.2'!$A$3:$B$101,2,FALSE))","v":""},null,null,null,null,{"$f":"IF(J114=0,\"\",VLOOKUP(J114,'5.5.1'!$B$3:$C$208,2,FALSE))","v":""},null,null,null,{"$f":"IF(N114=0,\"\",VLOOKUP(N114,'4.1'!$A$2:$B$85,2,FALSE))","v":""},null,{"$f":"IF(P114=0,\"\",VLOOKUP(P114,'4.1'!$F$2:$G$547,2,FALSE))","v":""},null,null,{"$f":"IF(S114=0,\"\",VLOOKUP(S114,'5.1'!$B$2:$C$33,2,FALSE))","v":""},null,null,null,{"$f":"IF(W114=0,\"\",VLOOKUP(W114,'3'!$B$3:$D$42,2,FALSE))","v":""},null,{"$f":"IF(Y114=0,\"\",VLOOKUP(Y114,'4.1'!$A$2:$B$84,2,FALSE))","v":""},null,{"$f":"IF(AA114=0,\"\",VLOOKUP(AA114,'4.1'!$F$2:$G$603,2,FALSE))","v":""}]
[99,9,null,null,null,{"$f":"IF(E115=0,\"\",VLOOKUP(E115,'2.2'!$A$3:$B$101,2,FALSE))","v":""},null,null,null,null,{"$f":"IF(J115=0,\"\",VLOOKUP(J115,'5.5.1'!$B$3:$C$208,2,FALSE))","v":""},null,null,null,{"$f":"IF(N115=0,\"\",VLOOKUP(N115,'4.1'!$A$2:$B$85,2,FALSE))","v":""},null,{"$f":"IF(P115=0,\"\",VLOOKUP(P115,'4.1'!$F$2:$G$547,2,FALSE))","v":""},null,null,{"$f":"IF(S115=0,\"\",VLOOKUP(S115,'5.1'!$B$2:$C$33,2,FALSE))","v":""},null,null,null,{"$f":"IF(W115=0,\"\",VLOOKUP(W115,'3'!$B$3:$D$42,2,FALSE))","v":""},null,{"$f":"IF(Y115=0,\"\",VLOOKUP(Y115,'4.1'!$A$2:$B$84,2,FALSE))","v":""},null,{"$f":"IF(AA115=0,\"\",VLOOKUP(AA115,'4.1'!$F$2:$G$603,2,FALSE))","v":""}]
[100,9,null,null,null,{"$f":"IF(E116=0,\"\",VLOOKUP(E116,'2.2'!$A$3:$B$101,2,FALSE))","v":""},null,null,null,null,{"$f":"IF(J116=0,\"\",VLOOKUP(J116,'5.5.1'!$B$3:$C$208,2,FALSE))","v":""},null,null,null,{"$f":"IF(N116=0,\"\",VLOOKUP(N116,'4.1'!$A$2:$B$85,2,FALSE))","v":""},null,{"$f":"IF(P116=0,\"\",VLOOKUP(P116,'4.1'!$F$2:$G$547,2,FALSE))","v":""},null,null,{"$f":"IF(S116=0,\"\",VLOOKUP(S116,'5.1'!$B$2:$C$33,2,FALSE))","v":""},null,null,null,{"$f":"IF(W116=0,\"\",VLOOKUP(W116,'3'!$B$3:$D$42,2,FALSE))","v":""},null,{"$f":"IF(Y116=0,\"\",VLOOKUP(Y116,'4.1'!$A$2:$B$84,2,FALSE))","v":""},null,{"$f":"IF(AA116=0,\"\",VLOOKUP(AA116,'4.1'!$F$2:$G$603,2,FALSE))","v":""}]
[101,9,null,null,null,{"$f":"IF(E117=0,\"\",VLOOKUP(E117,'2.2'!$A$3:$B$101,2,FALSE))","v":""},null,null,null,null,{"$f":"IF(J117=0,\"\",VLOOKUP(J117,'5.5.1'!$B$3:$C$208,2,FALSE))","v":""},null,null,null,{"$f":"IF(N117=0,\"\",VLOOKUP(N117,'4.1'!$A$2:$B$85,2,FALSE))","v":""},null,{"$f":"IF(P117=0,\"\",VLOOKUP(P117,'4.1'!$F$2:$G$547,2,FALSE))","v":""},null,null,{"$f":"IF(S117=0,\"\",VLOOKUP(S117,'5.1'!$B$2:$C$33,2,FALSE))","v":""},null,null,null,{"$f":"IF(W117=0,\"\",VLOOKUP(W117,'3'!$B$3:$D$42,2,FALSE))","v":""},null,{"$f":"IF(Y117=0,\"\",VLOOKUP(Y117,'4.1'!$A$2:$B$84,2,FALSE))","v":""},null,{"$f":"IF(AA117=0,\"\",VLOOKUP(AA117,'4.1'!$F$2:$G$603,2,FALSE))","v":""}]
[102,9,null,null,null,{"$f":"IF(E118=0,\"\",VLOOKUP(E118,'2.2'!$A$3:$B$101,2,FALSE))","v":""},null,null,null,null,{"$f":"IF(J118=0,\"\",VLOOKUP(J118,'5.5.1'!$B$3:$C$208,2,FALSE))","v":""},null,null,null,{"$f":"IF(N118=0,\"\",VLOOKUP(N118,'4.1'!$A$2:$B$85,2,FALSE))","v":""},null,{"$f":"IF(P118=0,\"\",VLOOKUP(P118,'4.1'!$F$2:$G$547,2,FALSE))","v":""},null,null,{"$f":"IF(S118=0,\"\",VLOOKUP(S118,'5.1'!$B$2:$C$33,2,FALSE))","v":""},null,null,null,{"$f":"IF(W118=0,\"\",VLOOKUP(W118,'3'!$B$3:$D$42,2,FALSE))","v":""},null,{"$f":"IF(Y118=0,\"\",VLOOKUP(Y118,'4.1'!$A$2:$B$84,2,FALSE))","v":""},null,{"$f":"IF(AA118=0,\"\",VLOOKUP(AA118,'4.1'!$F$2:$G$603,2,FALSE))","v":""}]
[103,9,null,null,null,{"$f":"IF(E119=0,\"\",VLOOKUP(E119,'2.2'!$A$3:$B$101,2,FALSE))","v":""},null,null,null,null,{"$f":"IF(J119=0,\"\",VLOOKUP(J119,'5.5.1'!$B$3:$C$208,2,FALSE))","v":""},null,null,null,{"$f":"IF(N119=0,\"\",VLOOKUP(N119,'4.1'!$A$2:$B$85,2,FALSE))","v":""},null,{"$f":"IF(P119=0,\"\",VLOOKUP(P119,'4.1'!$F$2:$G$547,2,FALSE))","v":""},null,null,{"$f":"IF(S119=0,\"\",VLOOKUP(S119,'5.1'!$B$2:$C$33,2,FALSE))","v":""},null,null,null,{"$f":"IF(W119=0,\"\",VLOOKUP(W119,'3'!$B$3:$D$42,2,FALSE))","v":""},null,{"$f":"IF(Y119=0,\"\",VLOOKUP(Y119,'4.1'!$A$2:$B$84,2,FALSE))","v":""},null,{"$f":"IF(AA119=0,\"\",VLOOKUP(AA119,'4.1'!$F$2:$G$603,2,FALSE))","v":""}]
[104,9,null,null,null,{"$f":"IF(E120=0,\"\",VLOOKUP(E120,'2.2'!$A$3:$B$101,2,FALSE))","v":""},null,null,null,null,{"$f":"IF(J120=0,\"\",VLOOKUP(J120,'5.5.1'!$B$3:$C$208,2,FALSE))","v":""},null,null,null,{"$f":"IF(N120=0,\"\",VLOOKUP(N120,'4.1'!$A$2:$B$85,2,FALSE))","v":""},null,{"$f":"IF(P120=0,\"\",VLOOKUP(P120,'4.1'!$F$2:$G$547,2,FALSE))","v":""},null,null,{"$f":"IF(S120=0,\"\",VLOOKUP(S120,'5.1'!$B$2:$C$33,2,FALSE))","v":""},null,null,null,{"$f":"IF(W120=0,\"\",VLOOKUP(W120,'3'!$B$3:$D$42,2,FALSE))","v":""},null,{"$f":"IF(Y120=0,\"\",VLOOKUP(Y120,'4.1'!$A$2:$B$84,2,FALSE))","v":""},null,{"$f":"IF(AA120=0,\"\",VLOOKUP(AA120,'4.1'!$F$2:$G$603,2,FALSE))","v":""}]
[105,9,null,null,null,{"$f":"IF(E121=0,\"\",VLOOKUP(E121,'2.2'!$A$3:$B$101,2,FALSE))","v":""},null,null,null,null,{"$f":"IF(J121=0,\"\",VLOOKUP(J121,'5.5.1'!$B$3:$C$208,2,FALSE))","v":""},null,null,null,{"$f":"IF(N121=0,\"\",VLOOKUP(N121,'4.1'!$A$2:$B$85,2,FALSE))","v":""},null,{"$f":"IF(P121=0,\"\",VLOOKUP(P121,'4.1'!$F$2:$G$547,2,FALSE))","v":""},null,null,{"$f":"IF(S121=0,\"\",VLOOKUP(S121,'5.1'!$B$2:$C$33,2,FALSE))","v":""},null,null,null,{"$f":"IF(W121=0,\"\",VLOOKUP(W121,'3'!$B$3:$D$42,2,FALSE))","v":""},null,{"$f":"IF(Y121=0,\"\",VLOOKUP(Y121,'4.1'!$A$2:$B$84,2,FALSE))","v":""},null,{"$f":"IF(AA121=0,\"\",VLOOKUP(AA121,'4.1'!$F$2:$G$603,2,FALSE))","v":""}]
[106,9,null,null,null,{"$f":"IF(E122=0,\"\",VLOOKUP(E122,'2.2'!$A$3:$B$101,2,FALSE))","v":""},null,null,null,null,{"$f":"IF(J122=0,\"\",VLOOKUP(J122,'5.5.1'!$B$3:$C$208,2,FALSE))","v":""},null,null,null,{"$f":"IF(N122=0,\"\",VLOOKUP(N122,'4.1'!$A$2:$B$85,2,FALSE))","v":""},null,{"$f":"IF(P122=0,\"\",VLOOKUP(P122,'4.1'!$F$2:$G$547,2,FALSE))","v":""},null,null,{"$f":"IF(S122=0,\"\",VLOOKUP(S122,'5.1'!$B$2:$C$33,2,FALSE))","v":""},null,null,null,{"$f":"IF(W122=0,\"\",VLOOKUP(W122,'3'!$B$3:$D$42,2,FALSE))","v":""},null,{"$f":"IF(Y122=0,\"\",VLOOKUP(Y122,'4.1'!$A$2:$B$84,2,FALSE))","v":""},null,{"$f":"IF(AA122=0,\"\",VLOOKUP(AA122,'4.1'!$F$2:$G$603,2,FALSE))","v":""}]
[107,9,null,null,null,{"$f":"IF(E123=0,\"\",VLOOKUP(E123,'2.2'!$A$3:$B$101,2,FALSE))","v":""},null,null,null,null,{"$f":"IF(J123=0,\"\",VLOOKUP(J123,'5.5.1'!$B$3:$C$208,2,FALSE))","v":""},null,null,null,{"$f":"IF(N123=0,\"\",VLOOKUP(N123,'4.1'!$A$2:$B$85,2,FALSE))","v":""},null,{"$f":"IF(P123=0,\"\",VLOOKUP(P123,'4.1'!$F$2:$G$547,2,FALSE))","v":""},null,null,{"$f":"IF(S123=0,\"\",VLOOKUP(S123,'5.1'!$B$2:$C$33,2,FALSE))","v":""},null,null,null,{"$f":"IF(W123=0,\"\",VLOOKUP(W123,'3'!$B$3:$D$42,2,FALSE))","v":""},null,{"$f":"IF(Y123=0,\"\",VLOOKUP(Y123,'4.1'!$A$2:$B$84,2,FALSE))","v":""},null,{"$f":"IF(AA123=0,\"\",VLOOKUP(AA123,'4.1'!$F$2:$G$603,2,FALSE))","v":""}]
[108,9,null,null,null,{"$f":"IF(E124=0,\"\",VLOOKUP(E124,'2.2'!$A$3:$B$101,2,FALSE))","v":""},null,null,null,null,{"$f":"IF(J124=0,\"\",VLOOKUP(J124,'5.5.1'!$B$3:$C$208,2,FALSE))","v":""},null,null,null,{"$f":"IF(N124=0,\"\",VLOOKUP(N124,'4.1'!$A$2:$B$85,2,FALSE))","v":""},null,{"$f":"IF(P124=0,\"\",VLOOKUP(P124,'4.1'!$F$2:$G$547,2,FALSE))","v":""},null,null,{"$f":"IF(S124=0,\"\",VLOOKUP(S124,'5.1'!$B$2:$C$33,2,FALSE))","v":""},null,null,null,{"$f":"IF(W124=0,\"\",VLOOKUP(W124,'3'!$B$3:$D$42,2,FALSE))","v":""},null,{"$f":"IF(Y124=0,\"\",VLOOKUP(Y124,'4.1'!$A$2:$B$84,2,FALSE))","v":""},null,{"$f":"IF(AA124=0,\"\",VLOOKUP(AA124,'4.1'!$F$2:$G$603,2,FALSE))","v":""}]
[109,9,null,null,null,{"$f":"IF(E125=0,\"\",VLOOKUP(E125,'2.2'!$A$3:$B$101,2,FALSE))","v":""},null,null,null,null,{"$f":"IF(J125=0,\"\",VLOOKUP(J125,'5.5.1'!$B$3:$C$208,2,FALSE))","v":""},null,null,null,{"$f":"IF(N125=0,\"\",VLOOKUP(N125,'4.1'!$A$2:$B$85,2,FALSE))","v":""},null,{"$f":"IF(P125=0,\"\",VLOOKUP(P125,'4.1'!$F$2:$G$547,2,FALSE))","v":""},null,null,{"$f":"IF(S125=0,\"\",VLOOKUP(S125,'5.1'!$B$2:$C$33,2,FALSE))","v":""},null,null,null,{"$f":"IF(W125=0,\"\",VLOOKUP(W125,'3'!$B$3:$D$42,2,FALSE))","v":""},null,{"$f":"IF(Y125=0,\"\",VLOOKUP(Y125,'4.1'!$A$2:$B$84,2,FALSE))","v":""},null,{"$f":"IF(AA125=0,\"\",VLOOKUP(AA125,'4.1'!$F$2:$G$603,2,FALSE))","v":""}]
[110,9,null,null,null,{"$f":"IF(E126=0,\"\",VLOOKUP(E126,'2.2'!$A$3:$B$101,2,FALSE))","v":""},null,null,null,null,{"$f":"IF(J126=0,\"\",VLOOKUP(J126,'5.5.1'!$B$3:$C$208,2,FALSE))","v":""},null,null,null,{"$f":"IF(N126=0,\"\",VLOOKUP(N126,'4.1'!$A$2:$B$85,2,FALSE))","v":""},null,{"$f":"IF(P126=0,\"\",VLOOKUP(P126,'4.1'!$F$2:$G$547,2,FALSE))","v":""},null,null,{"$f":"IF(S126=0,\"\",VLOOKUP(S126,'5.1'!$B$2:$C$33,2,FALSE))","v":""},null,null,null,{"$f":"IF(W126=0,\"\",VLOOKUP(W126,'3'!$B$3:$D$42,2,FALSE))","v":""},null,{"$f":"IF(Y126=0,\"\",VLOOKUP(Y126,'4.1'!$A$2:$B$84,2,FALSE))","v":""},null,{"$f":"IF(AA126=0,\"\",VLOOKUP(AA126,'4.1'!$F$2:$G$603,2,FALSE))","v":""}]
[111,9,null,null,null,{"$f":"IF(E127=0,\"\",VLOOKUP(E127,'2.2'!$A$3:$B$101,2,FALSE))","v":""},null,null,null,null,{"$f":"IF(J127=0,\"\",VLOOKUP(J127,'5.5.1'!$B$3:$C$208,2,FALSE))","v":""},null,null,null,{"$f":"IF(N127=0,\"\",VLOOKUP(N127,'4.1'!$A$2:$B$85,2,FALSE))","v":""},null,{"$f":"IF(P127=0,\"\",VLOOKUP(P127,'4.1'!$F$2:$G$547,2,FALSE))","v":""},null,null,{"$f":"IF(S127=0,\"\",VLOOKUP(S127,'5.1'!$B$2:$C$33,2,FALSE))","v":""},null,null,null,{"$f":"IF(W127=0,\"\",VLOOKUP(W127,'3'!$B$3:$D$42,2,FALSE))","v":""},null,{"$f":"IF(Y127=0,\"\",VLOOKUP(Y127,'4.1'!$A$2:$B$84,2,FALSE))","v":""},null,{"$f":"IF(AA127=0,\"\",VLOOKUP(AA127,'4.1'!$F$2:$G$603,2,FALSE))","v":""}]
[112,9,null,null,null,{"$f":"IF(E128=0,\"\",VLOOKUP(E128,'2.2'!$A$3:$B$101,2,FALSE))","v":""},null,null,null,null,{"$f":"IF(J128=0,\"\",VLOOKUP(J128,'5.5.1'!$B$3:$C$208,2,FALSE))","v":""},null,null,null,{"$f":"IF(N128=0,\"\",VLOOKUP(N128,'4.1'!$A$2:$B$85,2,FALSE))","v":""},null,{"$f":"IF(P128=0,\"\",VLOOKUP(P128,'4.1'!$F$2:$G$547,2,FALSE))","v":""},null,null,{"$f":"IF(S128=0,\"\",VLOOKUP(S128,'5.1'!$B$2:$C$33,2,FALSE))","v":""},null,null,null,{"$f":"IF(W128=0,\"\",VLOOKUP(W128,'3'!$B$3:$D$42,2,FALSE))","v":""},null,{"$f":"IF(Y128=0,\"\",VLOOKUP(Y128,'4.1'!$A$2:$B$84,2,FALSE))","v":""},null,{"$f":"IF(AA128=0,\"\",VLOOKUP(AA128,'4.1'!$F$2:$G$603,2,FALSE))","v":""}]
[113,9,null,null,null,{"$f":"IF(E129=0,\"\",VLOOKUP(E129,'2.2'!$A$3:$B$101,2,FALSE))","v":""},null,null,null,null,{"$f":"IF(J129=0,\"\",VLOOKUP(J129,'5.5.1'!$B$3:$C$208,2,FALSE))","v":""},null,null,null,{"$f":"IF(N129=0,\"\",VLOOKUP(N129,'4.1'!$A$2:$B$85,2,FALSE))","v":""},null,{"$f":"IF(P129=0,\"\",VLOOKUP(P129,'4.1'!$F$2:$G$547,2,FALSE))","v":""},null,null,{"$f":"IF(S129=0,\"\",VLOOKUP(S129,'5.1'!$B$2:$C$33,2,FALSE))","v":""},null,null,null,{"$f":"IF(W129=0,\"\",VLOOKUP(W129,'3'!$B$3:$D$42,2,FALSE))","v":""},null,{"$f":"IF(Y129=0,\"\",VLOOKUP(Y129,'4.1'!$A$2:$B$84,2,FALSE))","v":""},null,{"$f":"IF(AA129=0,\"\",VLOOKUP(AA129,'4.1'!$F$2:$G$603,2,FALSE))","v":""}]
[114,9,null,null,null,{"$f":"IF(E130=0,\"\",VLOOKUP(E130,'2.2'!$A$3:$B$101,2,FALSE))","v":""},null,null,null,null,{"$f":"IF(J130=0,\"\",VLOOKUP(J130,'5.5.1'!$B$3:$C$208,2,FALSE))","v":""},null,null,null,{"$f":"IF(N130=0,\"\",VLOOKUP(N130,'4.1'!$A$2:$B$85,2,FALSE))","v":""},null,{"$f":"IF(P130=0,\"\",VLOOKUP(P130,'4.1'!$F$2:$G$547,2,FALSE))","v":""},null,null,{"$f":"IF(S130=0,\"\",VLOOKUP(S130,'5.1'!$B$2:$C$33,2,FALSE))","v":""},null,null,null,{"$f":"IF(W130=0,\"\",VLOOKUP(W130,'3'!$B$3:$D$42,2,FALSE))","v":""},null,{"$f":"IF(Y130=0,\"\",VLOOKUP(Y130,'4.1'!$A$2:$B$84,2,FALSE))","v":""},null,{"$f":"IF(AA130=0,\"\",VLOOKUP(AA130,'4.1'!$F$2:$G$603,2,FALSE))","v":""}]
[115,9,null,null,null,{"$f":"IF(E131=0,\"\",VLOOKUP(E131,'2.2'!$A$3:$B$101,2,FALSE))","v":""},null,null,null,null,{"$f":"IF(J131=0,\"\",VLOOKUP(J131,'5.5.1'!$B$3:$C$208,2,FALSE))","v":""},null,null,null,{"$f":"IF(N131=0,\"\",VLOOKUP(N131,'4.1'!$A$2:$B$85,2,FALSE))","v":""},null,{"$f":"IF(P131=0,\"\",VLOOKUP(P131,'4.1'!$F$2:$G$547,2,FALSE))","v":""},null,null,{"$f":"IF(S131=0,\"\",VLOOKUP(S131,'5.1'!$B$2:$C$33,2,FALSE))","v":""},null,null,null,{"$f":"IF(W131=0,\"\",VLOOKUP(W131,'3'!$B$3:$D$42,2,FALSE))","v":""},null,{"$f":"IF(Y131=0,\"\",VLOOKUP(Y131,'4.1'!$A$2:$B$84,2,FALSE))","v":""},null,{"$f":"IF(AA131=0,\"\",VLOOKUP(AA131,'4.1'!$F$2:$G$603,2,FALSE))","v":""}]
[116,9,null,null,null,{"$f":"IF(E132=0,\"\",VLOOKUP(E132,'2.2'!$A$3:$B$101,2,FALSE))","v":""},null,null,null,null,{"$f":"IF(J132=0,\"\",VLOOKUP(J132,'5.5.1'!$B$3:$C$208,2,FALSE))","v":""},null,null,null,{"$f":"IF(N132=0,\"\",VLOOKUP(N132,'4.1'!$A$2:$B$85,2,FALSE))","v":""},null,{"$f":"IF(P132=0,\"\",VLOOKUP(P132,'4.1'!$F$2:$G$547,2,FALSE))","v":""},null,null,{"$f":"IF(S132=0,\"\",VLOOKUP(S132,'5.1'!$B$2:$C$33,2,FALSE))","v":""},null,null,null,{"$f":"IF(W132=0,\"\",VLOOKUP(W132,'3'!$B$3:$D$42,2,FALSE))","v":""},null,{"$f":"IF(Y132=0,\"\",VLOOKUP(Y132,'4.1'!$A$2:$B$84,2,FALSE))","v":""},null,{"$f":"IF(AA132=0,\"\",VLOOKUP(AA132,'4.1'!$F$2:$G$603,2,FALSE))","v":""}]
[117,9,null,null,null,{"$f":"IF(E133=0,\"\",VLOOKUP(E133,'2.2'!$A$3:$B$101,2,FALSE))","v":""},null,null,null,null,{"$f":"IF(J133=0,\"\",VLOOKUP(J133,'5.5.1'!$B$3:$C$208,2,FALSE))","v":""},null,null,null,{"$f":"IF(N133=0,\"\",VLOOKUP(N133,'4.1'!$A$2:$B$85,2,FALSE))","v":""},null,{"$f":"IF(P133=0,\"\",VLOOKUP(P133,'4.1'!$F$2:$G$547,2,FALSE))","v":""},null,null,{"$f":"IF(S133=0,\"\",VLOOKUP(S133,'5.1'!$B$2:$C$33,2,FALSE))","v":""},null,null,null,{"$f":"IF(W133=0,\"\",VLOOKUP(W133,'3'!$B$3:$D$42,2,FALSE))","v":""},null,{"$f":"IF(Y133=0,\"\",VLOOKUP(Y133,'4.1'!$A$2:$B$84,2,FALSE))","v":""},null,{"$f":"IF(AA133=0,\"\",VLOOKUP(AA133,'4.1'!$F$2:$G$603,2,FALSE))","v":""}]
[118,9,null,null,null,{"$f":"IF(E134=0,\"\",VLOOKUP(E134,'2.2'!$A$3:$B$101,2,FALSE))","v":""},null,null,null,null,{"$f":"IF(J134=0,\"\",VLOOKUP(J134,'5.5.1'!$B$3:$C$208,2,FALSE))","v":""},null,null,null,{"$f":"IF(N134=0,\"\",VLOOKUP(N134,'4.1'!$A$2:$B$85,2,FALSE))","v":""},null,{"$f":"IF(P134=0,\"\",VLOOKUP(P134,'4.1'!$F$2:$G$547,2,FALSE))","v":""},null,null,{"$f":"IF(S134=0,\"\",VLOOKUP(S134,'5.1'!$B$2:$C$33,2,FALSE))","v":""},null,null,null,{"$f":"IF(W134=0,\"\",VLOOKUP(W134,'3'!$B$3:$D$42,2,FALSE))","v":""},null,{"$f":"IF(Y134=0,\"\",VLOOKUP(Y134,'4.1'!$A$2:$B$84,2,FALSE))","v":""},null,{"$f":"IF(AA134=0,\"\",VLOOKUP(AA134,'4.1'!$F$2:$G$603,2,FALSE))","v":""}]
[119,9,null,null,null,{"$f":"IF(E135=0,\"\",VLOOKUP(E135,'2.2'!$A$3:$B$101,2,FALSE))","v":""},null,null,null,null,{"$f":"IF(J135=0,\"\",VLOOKUP(J135,'5.5.1'!$B$3:$C$208,2,FALSE))","v":""},null,null,null,{"$f":"IF(N135=0,\"\",VLOOKUP(N135,'4.1'!$A$2:$B$85,2,FALSE))","v":""},null,{"$f":"IF(P135=0,\"\",VLOOKUP(P135,'4.1'!$F$2:$G$547,2,FALSE))","v":""},null,null,{"$f":"IF(S135=0,\"\",VLOOKUP(S135,'5.1'!$B$2:$C$33,2,FALSE))","v":""},null,null,null,{"$f":"IF(W135=0,\"\",VLOOKUP(W135,'3'!$B$3:$D$42,2,FALSE))","v":""},null,{"$f":"IF(Y135=0,\"\",VLOOKUP(Y135,'4.1'!$A$2:$B$84,2,FALSE))","v":""},null,{"$f":"IF(AA135=0,\"\",VLOOKUP(AA135,'4.1'!$F$2:$G$603,2,FALSE))","v":""}]
[120,9,null,null,null,{"$f":"IF(E136=0,\"\",VLOOKUP(E136,'2.2'!$A$3:$B$101,2,FALSE))","v":""},null,null,null,null,{"$f":"IF(J136=0,\"\",VLOOKUP(J136,'5.5.1'!$B$3:$C$208,2,FALSE))","v":""},null,null,null,{"$f":"IF(N136=0,\"\",VLOOKUP(N136,'4.1'!$A$2:$B$85,2,FALSE))","v":""},null,{"$f":"IF(P136=0,\"\",VLOOKUP(P136,'4.1'!$F$2:$G$547,2,FALSE))","v":""},null,null,{"$f":"IF(S136=0,\"\",VLOOKUP(S136,'5.1'!$B$2:$C$33,2,FALSE))","v":""},null,null,null,{"$f":"IF(W136=0,\"\",VLOOKUP(W136,'3'!$B$3:$D$42,2,FALSE))","v":""},null,{"$f":"IF(Y136=0,\"\",VLOOKUP(Y136,'4.1'!$A$2:$B$84,2,FALSE))","v":""},null,{"$f":"IF(AA136=0,\"\",VLOOKUP(AA136,'4.1'!$F$2:$G$603,2,FALSE))","v":""}]
[121,9,null,null,null,{"$f":"IF(E137=0,\"\",VLOOKUP(E137,'2.2'!$A$3:$B$101,2,FALSE))","v":""},null,null,null,null,{"$f":"IF(J137=0,\"\",VLOOKUP(J137,'5.5.1'!$B$3:$C$208,2,FALSE))","v":""},null,null,null,{"$f":"IF(N137=0,\"\",VLOOKUP(N137,'4.1'!$A$2:$B$85,2,FALSE))","v":""},null,{"$f":"IF(P137=0,\"\",VLOOKUP(P137,'4.1'!$F$2:$G$547,2,FALSE))","v":""},null,null,{"$f":"IF(S137=0,\"\",VLOOKUP(S137,'5.1'!$B$2:$C$33,2,FALSE))","v":""},null,null,null,{"$f":"IF(W137=0,\"\",VLOOKUP(W137,'3'!$B$3:$D$42,2,FALSE))","v":""},null,{"$f":"IF(Y137=0,\"\",VLOOKUP(Y137,'4.1'!$A$2:$B$84,2,FALSE))","v":""},null,{"$f":"IF(AA137=0,\"\",VLOOKUP(AA137,'4.1'!$F$2:$G$603,2,FALSE))","v":""}]
[122,9,null,null,null,{"$f":"IF(E138=0,\"\",VLOOKUP(E138,'2.2'!$A$3:$B$101,2,FALSE))","v":""},null,null,null,null,{"$f":"IF(J138=0,\"\",VLOOKUP(J138,'5.5.1'!$B$3:$C$208,2,FALSE))","v":""},null,null,null,{"$f":"IF(N138=0,\"\",VLOOKUP(N138,'4.1'!$A$2:$B$85,2,FALSE))","v":""},null,{"$f":"IF(P138=0,\"\",VLOOKUP(P138,'4.1'!$F$2:$G$547,2,FALSE))","v":""},null,null,{"$f":"IF(S138=0,\"\",VLOOKUP(S138,'5.1'!$B$2:$C$33,2,FALSE))","v":""},null,null,null,{"$f":"IF(W138=0,\"\",VLOOKUP(W138,'3'!$B$3:$D$42,2,FALSE))","v":""},null,{"$f":"IF(Y138=0,\"\",VLOOKUP(Y138,'4.1'!$A$2:$B$84,2,FALSE))","v":""},null,{"$f":"IF(AA138=0,\"\",VLOOKUP(AA138,'4.1'!$F$2:$G$603,2,FALSE))","v":""}]

{"sheet":"2.2","index":1,"n_rows":25,"n_cols":2,"rows_kept":25,"cut":false,"hidden":false,"merged":[]}
["Universität"]
[]
["Augsburg, U (ohne Klinikum)",1351]
["Augsburg, U (Klinikum)",1359]
["Bamberg, U",500]
["Bayreuth, U in Bayreuth",510]
["Bayreuth, U in Kulmbach",511]
["Eichstätt-Ingolstadt, Kath. U in Eichstätt",551]
["Eichstätt-Ingolstadt, Kath. U in Ingolstadt",552]
["Erlangen-Nürnberg, U in Erlangen (ohne Klinikum)",1311]
["Erlangen-Nürnberg, U in Erlangen (Klinikum)",1319]
["Erlangen-Nürnberg, U in Nürnberg",1312]
["München, U (ohne Klinikum)",1321]
["München, U (Klinikum)",1329]
["München, U der Bundeswehr (FB Universitätsstudiengänge)",811]
["München, TU in München (ohne Klinikum)",1631]
["München, TU in München (Klinikum)",1639]
["Nürnberg, TU ",3370]
["Passau, U",540]
["Regensburg, U (ohne Klinikum)",1341]
["Regensburg, U (Klinikum)",1349]
["Würzburg, U (ohne Klinikum)",1331]
["Würzburg, U (Klinikum)",1339]
["München, H für Philosophie (rk)",2170]
["Neuendettelsau, Augustana-H (ev)",560]

{"sheet":"3","index":2,"n_rows":53,"n_cols":4,"rows_kept":53,"cut":false,"hidden":false,"merged":[]}
[null,"Kategorie"]
[]
[10,"Fachbezogene Einrichtungen der Lehre und Forschung (ohne Kliniken)",10,10]
[11,"Fachbereich/Fakultät",11,11]
[12,"Abteilung/Sektion",12,12]
[13,"Institut/Seminar",13,13]
[14,"Wiss. Einheit/Bereich/Forschungsstelle",14,14]
[15,"Lehrstuhl",15,15]
[16,"Lehrsammlung/Museum",16,16]
[17,"Versuchsbetrieb/-anlage",17,17]
[18,"Laboratorium",18,18]
[19,"Prüfungsamt/-ausschuss der Hochschule",19,19]
[null,"."," "]
[20,"Zentrale Einrichtungen der Lehre und Forschung (ohne Kliniken)",20,20]
[21,"Zentrale wiss. oder künstlerische Einrichtung",21,21]
[22,"Zentrale pädagogische Einrichtung",22,22]
[23,"Hochschulbibliothek",23,23]
[24,"Forschungszentrum/-schwerpunkt",24,24]
[25,"Sonderforschungsbereich",25,25]
[null,"."," "]
[30,"Hochschulkliniken1)",30,30]
[null,"."," "]
[40,"Hochschulverwaltung, zentrale Dienste",40,40]
[41,"Zentrale Hochschulverwaltung",41,41]
[42,"Hochschulrechenzentrum",42,42]
[43,"Informations-, Koordinierungs-, Planungszentrum",43,43]
[44,"Zentrales Laboratorium",44,44]
[45,"Sportzentrum (für allgem. Hochschulsport)",45,45]
[46,"Betriebstechnische u. Versorgungseinrichtungen",46,46]
[null,"."," "]
[null,"Soziale Einrichtungen",47,47]
[null,"."," "]
[null,"Mit der Hochschule verbundene Einrichtungen",50,50]
[null,"Studentenwerk",51,51]
[null,"Kirchliches bzw. Staatliches Prüfungsamt",52,52]
[null,"Akademie",53,53]
[null,"An-Institut, sonstiges Institut",54,54]
[null,"Staatl. Behörden / Anstalten",55,55]
[null,"."," "]
[null,"Sonstige hochschulfremde Einrichtungen",60,60]
[null,"Studienkolleg, Vorkurs zum Erwerb der Hochschulreife",61,61]
[47,"Schule für nichtakademische Ausbildungsgänge",62,"622)"]
[61]
[62]
[]
[null,"1) Das nichtwissenschaftliche Personal an Hochschulkliniken ist im Schlüssel \"Fachgebiete, Lehr- und Forschungsbereiche, "]
[null,"    Fächergruppen\" (SV Nr. 4)"]
[null,"     - soweit es im humanmedizinischen Bereich tätig ist (z.B. Pflegepersonal), den entsprechenden Lehr- und Forschungsbereichen "]
[null,"       (440 - 520) der Fächergruppe ”Humanmedizin” und,"]
[null,"     - wenn es im Verwaltungsbereich beschäftigt ist, der Fächergruppe ”Zentrale Einrichtungen der Hochschulkliniken "]
[null,"       (nur Humanmedizin (970 - 990))” "]
[null,"    zuzuordnen."]
[null,"2) Z.B. Berufsfachschulen des Gesundheitswesens mit Ausbildung von med./techn. Assistenten, Krankenpflegern etc."]

{"sheet":"4.1","index":3,"n_rows":585,"n_cols":7,"rows_kept":585,"cut":false,"hidden":false,"merged":[]}
["Lehr- und Forschungsbereich","Schlüssel",null,null,"Schlüssel Lehr- und Forschungsbereich","Fachgebiet","Schlüssel Fachgebiet"]
["Geisteswissenschaften allgemein","010",null,null,"010","Geisteswissenschaften allgemein","0100"]
["Evangelische Theologie","020",null,null,"010","Interdisziplinäre Studien (Schwerpunkt Geisteswissenschaften)","0120"]
["Katholische Theologie","030",null,null,"020","Evang. Theologie allgemein","0200"]
["Philosophie","040",null,null,"020","Altes Testament (ev.)","0210"]
["Geschichte","050",null,null,"020","Diakoniewissenschaft","0215"]
["Informations- und Bibliothekswissenschaften","070",null,null,"020","Neues Testament (ev.)","0220"]
["Allgemeine und vergleichende Literatur- und Sprachwissenschaft","080",null,null,"020","Historische Theologie (ev.)","0230"]
["Altphilologie (klassische Philologie)","090",null,null,"020","Systematische Theologie (ev.)","0240"]
["Germanistik (Deutsch, germanische Sprachen ohne Anglistik)",100,null,null,"020","Praktische Theologie und Religionspädagogik (ev.)","0250"]
["Anglistik, Amerikanistik",110,null,null,"020","Religionsgeschichte und Missionswissenschaft (ev.)","0260"]
["Romanistik",120,null,null,"030","Kath. Theologie allgemein","0300"]
["Slawistik, Baltistik, Finno-Ugristik",130,null,null,"030","Biblische Theologie (kath.)","0310"]
["Sonstige Sprach- und Kulturwissenschaften",140,null,null,"030","Caritaswissenschaft","0315"]
["Kulturwissenschaften i.e.S.",160,null,null,"030","Historische Theologie (kath.)","0320"]
["Islamische Studien/Islamische Theologie",195,null,null,"030","Systematische Theologie (kath.)","0330"]
["Medienwissenschaft",197,null,null,"030","Praktische Theologie und Religionspädagogik (kath.)","0340"]
["Sozial- und Verhaltenswissenschaften, Sport allgemein",220,null,null,"030","Kanonistik (kath.)","0350"]
["Regionalwissenschaften",225,null,null,"030","Altkatholische Theologie","0390"]
["Politikwissenschaft",230,null,null,"040","Philosophie allgemein","0400"]
["Sozialwissenschaften/Soziologie",235,null,null,"040","Religionswissenschaft","0410"]
["Sozialwesen",240,null,null,"040","Didaktik der Philosophie/der Ethik","0420"]
["Rechtswissenschaften",250,null,null,"040","Geschichte der Philosophie","0425"]
["Verwaltungswissenschaften",270,null,null,"040","Logik","0426"]
["Wirtschaftswissenschaften",290,null,null,"050","Geschichte allgemein","0500"]
["Wirtschaftsingenieurwesen mit wirtschaftswissenschaftlichem Schwerpunkt",310,null,null,"050","Ur- und Frühgeschichte","0510"]
["Psychologie",315,null,null,"050","Alte Geschichte","0520"]
["Erziehungswissenschaften",320,null,null,"050","Mittelalterliche Geschichte","0530"]
["Kommunikationswissenschaft/Publizistik",325,null,null,"050","Neuere und neueste Geschichte","0540"]
["Sport, Sportwissenschaft",327,null,null,"050","Länder-, Landesgeschichte","0550"]
["Mathematik, Naturwissenschaften allgemein",330,null,null,"050","Wirtschafts- und Sozialgeschichte","0560"]
["Mathematik",340,null,null,"050","Archäologie","0570"]
["Physik, Astronomie",360,null,null,"050","Didaktik der Geschichte","0580"]
["Chemie",370,null,null,"050","Kultur- und Geistesgeschichte","0585"]
["Pharmazie",390,null,null,"050","Wissenschaftsgeschichte/Technikgeschichte","0595"]
["Biologie",400,null,null,"070","Informations- und Bibliothekswissenschaften allgemein","0700"]
["Geowissenschaften (ohne Geographie)",410,null,null,"070","Bibliothekswissenschaft (nicht für Verwaltungs-FH)","0710"]
["Geographie",420,null,null,"070","Archiv- und Dokumentationswissenschaft","0720"]
["Humanmedizin allgemein",440,null,null,"070","Informationswissenschaft","0730"]
["Gesundheitswissenschaften",445,null,null,"080","Allgemeine und vergleichende Literatur- und Sprachwissenschaft allgemein","0800"]
["Vorklinische Humanmedizin (einschl. Zahnmedizin)",450,null,null,"080","Allgemeine und vergleichende Sprachwissenschaft","0810"]
["Klinisch-Theoretische Humanmedizin (einschl. Zahnmedizin)",470,null,null,"080","Allgemeine und vergleichende Literaturwissenschaft","0820"]
["Klinisch-Praktische Humanmedizin (ohne Zahnmedizin)",490,null,null,"080","Angewandte Sprachwissenschaft, berufsbezogene Fremdsprachenausbildung","0830"]
["Zahnmedizin (klinisch-praktisch)",520,null,null,"080","Computerlinguistik","0835"]
["Veterinärmedizin allgemein",540,null,null,"080","Fremdsprachenausbildung (für Hörer aller Fakultäten)","0840"]
["Vorklinische Veterinärmedizin",550,null,null,"090","Altphilologie allgemein","0900"]
["Klinisch-Theoretische Veterinärmedizin",560,null,null,"090","Griechische Philologie","0910"]
["Klinisch-Praktische Veterinärmedizin",580,null,null,"090","Lateinische Philologie","0920"]
["Agrar-, Forst- und Ernährungswissenschaften allgemein",610,null,null,"090","Byzantinistik","0930"]
["Landschaftsgestaltung/Naturschutz",615,null,null,"090","Neugriechisch","0940"]
["Agrarwissenschaften, Lebensmittel- und Getränketechnologie",620,null,null,"090","Papyrologie","0950"]
["Forstwissenschaft, Holzwirtschaft",640,null,null,"090","Didaktik der Altphilologie","0960"]
["Ernährungs- und Haushaltswissenschaften",650,null,null,100,"Germanistik (Deutsch, germanische Sprachen ohne Anglistik) allgemein",1000]
["Ingenieurwissenschaften allgemein",670,null,null,100,"Skandinavistik",1020]
["Wirtschaftsingenieurwesen mit ingenieurwissenschaftlichem Schwerpunkt",675,null,null,100,"Niederlandistik",1030]
["Bergbau, Hüttenwesen",680,null,null,100,"Deutsch als Fremdsprache oder als Zweitsprache",1040]
["Maschinenbau/Verfahrenstechnik",690,null,null,100,"Didaktik der deutschen Sprache",1050]
["Elektrotechnik und Informationstechnik",710,null,null,100,"Deutsche Literaturwissenschaft",1080]
["Verkehrstechnik, Nautik",720,null,null,100,"Deutsche Sprachwissenschaft",1090]
["Architektur",730,null,null,110,"Anglistik",1100]
["Raumplanung",740,null,null,110,"Amerikanistik",1110]
["Bauingenieurwesen",750,null,null,110,"Didaktik des Englischen",1120]
["Vermessungswesen",760,null,null,110,"Wirtschaftsenglisch, Englische Fachsprachen",1125]
["Informatik",765,null,null,120,"Romanistik allgemein",1200]
["Materialwissenschaft und Werkstofftechnik",770,null,null,120,"Französische Sprach- und Literaturwissenschaft",1210]
["Kunst, Kunstwissenschaft allgemein",780,null,null,120,"Didaktik des Französischen",1215]
["Bildende Kunst",790,null,null,120,"Italienische Sprach- und Literaturwissenschaft",1220]
["Gestaltung",800,null,null,120,"Didaktik des Italienischen",1225]
["Darst. Kunst, Film und Fernsehen, Theaterwissenschaft",820,null,null,120,"Iberoromanische Sprach- und Literaturwissenschaft",1230]
["Musik",830,null,null,120,"Didaktik des Spanischen",1235]
["Kunstwissenschaft/-pädagogik",835,null,null,120,"Sonstige romanische Sprachen",1240]
["Musikwissenschaft/-pädagogik",840,null,null,130,"Slawistik, Baltistik, Finno-Ugristik allgemein",1300]
["Hochschule insgesamt",870,null,null,130,"Slawistik (Slaw. Philologie, ohne Sorabistik)",1310]
["Zentrale Hochschulverwaltung",880,null,null,130,"Sorabistik",1347]
["Zentralbibliothek",900,null,null,130,"Baltistik",1350]
["Hochschulrechenzentrum",910,null,null,130,"Finno-Ugristik",1370]
["Zentrale wissenschaftliche Einrichtungen",920,null,null,130,"Balkanologie",1380]
["Zentrale Betriebs- und Versorgungseinrichtungen",930,null,null,140,"Sonstige Sprach- und Kulturwissenschaften allgemein",1400]
["Soziale Einrichtungen",940,null,null,140,"Ägyptologie",1410]
["Übrige Ausbildungseinrichtungen",950,null,null,140,"Afrikanistik",1420]
["Mit der Hochschule verbundene sowie hochschulfremde Einrichtungen",960,null,null,140,"Altorientalistik",1430]
["Kliniken insgesamt, Zentrale Dienste",970,null,null,140,"Sprachen und Kulturen des christlichen Orients",1440]
["Soziale Einrichtungen der Kliniken",980,null,null,140,"Sprachen und Kulturen des Nahen und Mittleren Ostens",1445]
["Übrige Ausbildungseinrichtungen der Kliniken",986,null,null,140,"Semitistik, Arabistik",1450]
["Mit den Kliniken verbundene sowie klinikfremde Einrichtungen",990,null,null,140,"Judaistik/Hebräisch",1460]
[null,null,null,null,140,"Kaukasistik",1465]
[null,null,null,null,140,"Islamwissenschaft",1470]
[null,null,null,null,140,"Iranistik",1480]
[null,null,null,null,140,"Indologie",1490]
[null,null,null,null,140,"Turkologie",1510]
[null,null,null,null,140,"Sprachen und Kulturen Zentralasiens",1520]
[null,null,null,null,140,"Sinologie",1530]
[null,null,null,null,140,"Japanologie",1540]
[null,null,null,null,140,"Koreanistik",1550]
[null,null,null,null,140,"Sprachen und Kulturen Südostasiens und Ozeaniens",1560]
[null,null,null,null,140,"Außereurop. Sprachen und Kulturen Amerikas",1570]
[null,null,null,null,140,"Außereurop. Sprachen und Kulturen Australiens",1575]
[null,null,null,null,160,"Ethnologie",1580]
[null,null,null,null,160,"Volkskunde",1590]
[null,null,null,null,160,"Allgemeine Kulturwissenschaft",1650]
[null,null,null,null,160,"Europäische Ethnologie",1660]
[null,null,null,null,195,"Islamische Studien/Islamische Theologie",1950]
[null,null,null,null,197,"Medienwissenschaft",130]
[null,null,null,null,200,"Sportwissenschaften allgemein",2000]
[null,null,null,null,200,"Didaktik des Sports",2005]
[null,null,null,null,200,"Sportmedizin",2010]
[null,null,null,null,200,"Sportpädagogik/Sportpsychologie",2020]
[null,null,null,null,220,"Wissenschaftsforschung/-lehre","0430"]
[null,null,null,null,220,"Sozial- und Verhaltenswissenschaften allgemein",2200]
[null,null,null,null,220,"Interdisziplinäre Studien (Schwerpunkt Sozial- und Verhaltenswissenschaften)",2210]
[null,null,null,null,225,"Afrika-Studien",2250]
[null,null,null,null,225,"Lateinamerika-Studien",2255]
[null,null,null,null,225,"Nordamerika-Studien",2260]
[null,null,null,null,225,"Naher und Mittlerer Osten-Studien",2265]
[null,null,null,null,225,"Ostasien-Studien",2270]
[null,null,null,null,225,"Südasien-Studien",2275]
[null,null,null,null,225,"Südostasien und Ozeanien-Studien",2280]
[null,null,null,null,225,"Ost- und Südosteuropa-Studien",2285]
[null,null,null,null,225,"Nord- und Westeuropa-Studien",2290]
[null,null,null,null,230,"Politikwissenschaft allgemein",2300]
[null,null,null,null,230,"Internationale Politik, Internationale Beziehungen",2350]
[null,null,null,null,230,"Politische Bildung",2360]
[null,null,null,null,230,"Politische Systeme",2370]
[null,null,null,null,230,"Politische Theorie und Ideengeschichte",2380]
[null,null,null,null,235,"Sozialwissenschaften/Soziologie allgemein",2320]
[null,null,null,null,235,"Demographie",2340]
[null,null,null,null,235,"Sozialkunde",2345]
[null,null,null,null,235,"Empirie und Methoden",2355]
[null,null,null,null,235,"Soziologische Theorie",2365]
[null,null,null,null,235,"Spezielle Soziologien",2375]
[null,null,null,null,240,"Sozialwesen allgemein",2400]
[null,null,null,null,240,"Soziale Arbeit",2410]
[null,null,null,null,240,"Sozialpädagogik",2420]
[null,null,null,null,250,"Rechtswissenschaften allgemein",2500]
[null,null,null,null,250,"Rechtsgeschichte",2510]
[null,null,null,null,250,"Rechtsinformatik",2515]
[null,null,null,null,250,"Rechts- und Staatsphilosophie",2520]
[null,null,null,null,250,"Kirchenrecht",2540]
[null,null,null,null,250,"Kriminologie",2545]
[null,null,null,null,250,"Privatrecht (ohne Arbeitsrecht)",2550]
[null,null,null,null,250,"Öffentliches Recht",2560]
[null,null,null,null,250,"Strafrecht",2570]
[null,null,null,null,250,"Internationales Recht und Rechtsvergleichung",2580]
[null,null,null,null,250,"Steuerrecht",2590]
[null,null,null,null,250,"Handelsrecht",2620]
[null,null,null,null,250,"Arbeitsrecht",2630]
[null,null,null,null,250,"Wirtschaftsrecht",2640]
[null,null,null,null,250,"Prozessrecht",2650]
[null,null,null,null,250,"Europarecht",2665]
[null,null,null,null,250,"Bürgerliches Recht",2670]
[null,null,null,null,250,"Sozialrecht",2680]
[null,null,null,null,250,"Versicherungsrecht",2690]
[null,null,null,null,270,"Verwaltungswissenschaft allgemein",2700]
[null,null,null,null,270,"Archiv- und Bibliothekswesen",2711]
[null,null,null,null,270,"Auswärtige Angelegenheiten",2730]
[null,null,null,null,270," Finanz-, Zoll- und Steuerverwaltung",2760]
[null,null,null,null,270,"Allgemeine innere Verwaltung",2770]
[null,null,null,null,270,"Bundeswehr, Justiz und Polizei",2790]
[null,null,null,null,270,"Post- und Fernmeldewesen",2810]
[null,null,null,null,270," Arbeits- und Sozialverwaltung, Berufsberatung",2820]
[null,null,null,null,270,"Verkehrswesen",2830]
[null,null,null,null,290,"Tourismuswirtschaft",2815]
[null,null,null,null,290,"Versicherungswesen",2835]
[null,null,null,null,290,"Wirtschaftswissenschaften allgemein",2900]
[null,null,null,null,290,"Umweltwirtschaft/Umweltökonomie",2905]
[null,null,null,null,290,"Wirtschaftspädagogik",2910]
[null,null,null,null,290,"Wirtschaftsstatistik",2915]
[null,null,null,null,290,"Wirtschaftsinformatik (für Wirtschaftsingenieure)",2920]
[null,null,null,null,290,"Sportmanagement/Sportökonomie",2925]
[null,null,null,null,290,"Volkswirtschaftslehre",2930]
[null,null,null,null,290,"Wirtschaftsinformatik (für Wirtschaftswissenschaften)",2935]
[null,null,null,null,290,"Wirtschaftsmathematik",2936]
[null,null,null,null,290,"Ökonometrie",2940]
[null,null,null,null,290,"Betriebswirtschaftslehre",2960]
[null,null,null,null,290,"Internationale Wirtschaft",2966]
[null,null,null,null,290,"Verkehrswirtschaft",2971]
[null,null,null,null,290,"Finanzwissenschaft",2980]
[null,null,null,null,290,"Medienwirtschaft/Medienmanagement",2985]
[null,null,null,null,290,"Arbeitslehre/-wissenschaft",3010]
[null,null,null,null,310,"Wirtschaftsingenieurwesen mit wirtschaftswissenschaftlichem Schwerpunkt",3100]
[null,null,null,null,310,"Facility Management",3110]
[null,null,null,null,315,"Psychologie allgemein",1700]
[null,null,null,null,315,"Differentielle Psychologie, Persönlichkeitspsychologie und Diagnostik",1710]
[null,null,null,null,315,"Arbeits-, Organisations- und Wirtschaftspsychologie",1715]
[null,null,null,null,315,"Entwicklungspsychologie",1720]
[null,null,null,null,315,"Pädagogische Psychologie",1725]
[null,null,null,null,315,"Sozialpsychologie",1730]
[null,null,null,null,315,"Klinische Psychologie, Diagnostik und Psychotherapie",1740]
[null,null,null,null,315,"Allgemeine und kognitive Psychologie",1750]
[null,null,null,null,315,"Biologische und Neuropsychologie",1760]
[null,null,null,null,315,"Methoden und Evaluation der Psychologie",1770]
[null,null,null,null,320,"Erziehungswissenschaften allgemein",1800]
[null,null,null,null,320,"Didaktik",1801]
[null,null,null,null,320,"Empirische Bildungsforschung",1802]
[null,null,null,null,320,"Grundschul- und Primarstufenpädagogik",1803]
[null,null,null,null,320,"Historische Bildungsforschung",1804]
[null,null,null,null,320,"Berufs- und Wirtschaftspädagogik",1805]
[null,null,null,null,320,"Sonderpädagogik",1806]
[null,null,null,null,320,"Erwachsenenbildung",1820]
[null,null,null,null,320,"Pädagogische Freizeitforschung und Sportpädagogik",1825]
[null,null,null,null,320,"Kindheitspädagogik",1826]
[null,null,null,null,320,"Schulpädagogik",1827]
[null,null,null,null,320,"Kultur- und Medienpädagogik",1828]
[null,null,null,null,320,"Interkulturelle und International Vergleichende Erziehungswissenschaft",1829]
[null,null,null,null,325,"Kommunikationswissenschaft/Publizistik",2240]
[null,null,null,null,327,"Sportwissenschaften allgemein",2000]
[null,null,null,null,327,"Didaktik des Sports",2005]
[null,null,null,null,327,"Sportmedizin",2010]
[null,null,null,null,327,"Sportpädagogik/Sportpsychologie",2020]
[null,null,null,null,330,"Mathematik, Naturwissenschaften allgemein",3300]
[null,null,null,null,330,"Naturwissenschaftliche Fachdidaktiken, soweit nicht aufteilbar",3315]
[null,null,null,null,330,"Interdisziplinäre Studien (Schwerpunkt Naturwissenschaft)",3320]
[null,null,null,null,330,"Statistik",3330]
[null,null,null,null,340,"Mathematik allgemein",3400]
[null,null,null,null,340,"Algebra, Diskrete Mathematik und Zahlentheorie",3440]
[null,null,null,null,340,"Analysis",3445]
[null,null,null,null,340,"Didaktik der Mathematik",3450]
[null,null,null,null,340,"Geometrie und Topologie",3460]
[null,null,null,null,340,"Mathematik in Naturwissenschaften und Technik",3470]
[null,null,null,null,340,"Mathematische Stochastik, Finanz- und Versicherungsmathematik",3480]
[null,null,null,null,340,"Numerische Mathematik und Mathematische Optimierung",3490]
[null,null,null,null,360,"Physik, Astronomie allgemein",3600]
[null,null,null,null,360,"Elementarteilchen, Kerne und Felder",3636]
[null,null,null,null,360,"Optik, Quantenoptik, Physik der Atome, Moleküle und Plasmen",3637]
[null,null,null,null,360,"Didaktik der Physik",3650]
[null,null,null,null,360,"Statistische und Biologische Physik, nichtlineare Dynamik und weiche Materie",3660]
[null,null,null,null,360,"Chemische Physik und Polymerphysik",3670]
[null,null,null,null,360,"Festkörper-, Oberflächen- und Materialphysik",3680]
[null,null,null,null,360,"Astrophysik und Astronomie",3690]
[null,null,null,null,370,"Chemie allgemein",3700]
[null,null,null,null,370,"Anorganische Chemie",3710]
[null,null,null,null,370,"Organische Chemie",3720]
[null,null,null,null,370,"Physikalische Chemie",3730]
[null,null,null,null,370,"Technische Chemie",3740]
[null,null,null,null,370,"Analytische Chemie",3750]
[null,null,null,null,370,"Biochemie (für Chemiker)",3760]
[null,null,null,null,370,"Makromolekulare Chemie",3770]
[null,null,null,null,370,"Nuklearchemie",3780]
[null,null,null,null,370,"Theoretische Chemie",3790]
[null,null,null,null,370,"Didaktik der Chemie",3800]
[null,null,null,null,370,"Lebensmittelchemie",3810]
[null,null,null,null,370,"Materialchemie",3820]
[null,null,null,null,370,"Elektrochemie",3830]
[null,null,null,null,370,"Oberflächen- und Nanochemie",3840]
[null,null,null,null,370,"Umwelt- und Atmosphärenchemie",3850]
[null,null,null,null,390,"Pharmazie allgemein",3900]
[null,null,null,null,390,"Pharmazeutische Biologie/Pharmakognosie",3910]
[null,null,null,null,390,"Pharmazeutische Chemie",3920]
[null,null,null,null,390,"Pharmazeutische Technologie",3930]
[null,null,null,null,390,"Pharmakologie und Toxikologie (Pharmazie)",3940]
[null,null,null,null,390,"Klinische Pharmazie",3950]
[null,null,null,null,400,"Biologie allgemein",4000]
[null,null,null,null,400,"Genetik",4010]
[null,null,null,null,400,"Mikrobiologie",4020]
[null,null,null,null,400,"Biophysik",4030]
[null,null,null,null,400,"Biotechnologie (für Biologen)",4035]
[null,null,null,null,400,"Botanik",4040]
[null,null,null,null,400,"Zoologie",4050]
[null,null,null,null,400,"Anthropologie (Humanbiologie)",4060]
[null,null,null,null,400,"Biochemie (für Biologen)",4065]
[null,null,null,null,400,"Didaktik der Biologie",4070]
[null,null,null,null,400,"Neurobiologie",4080]
[null,null,null,null,400,"Ökologie",4090]
[null,null,null,null,410,"Geowissenschaften allgemein",4100]
[null,null,null,null,410,"Geologie",4110]
[null,null,null,null,410,"Paläontologie",4120]
[null,null,null,null,410,"Mineralogie",4130]
[null,null,null,null,410,"Ozeanographie",4135]
[null,null,null,null,410,"Petrologie, -graphie",4140]
[null,null,null,null,410,"Geophysik",4150]
[null,null,null,null,410,"Hydrologie",4155]
[null,null,null,null,410,"Meteorologie",4160]
[null,null,null,null,410,"Kristallographie",4170]
[null,null,null,null,410,"Geochemie",4180]
[null,null,null,null,410,"Geoökologie",4190]
[null,null,null,null,420,"Geographie allgemein",4200]
[null,null,null,null,420,"Geoinformatik/Geoinformationssysteme",4205]
[null,null,null,null,420,"Physische Geographie",4210]
[null,null,null,null,420,"Wirtschafts- und Sozialgeographie",4215]
[null,null,null,null,420,"Anthropogeographie",4220]
[null,null,null,null,420,"Geographische Länder- und Landschaftskunde",4230]
[null,null,null,null,420,"Landschaftsökologie/Biogeographie",4240]
[null,null,null,null,420,"Didaktik der Geographie",4250]
[null,null,null,null,440,"Humanmedizin allgemein",4400]
[null,null,null,null,440,"Didaktik der Medizin",4410]
[null,null,null,null,445,"Gesundheitswissenschaften allgemein",4450]
[null,null,null,null,445,"Gesundheitspädagogik",4451]
[null,null,null,null,445,"Gesundheitswissenschaft/-management",4453]
[null,null,null,null,445,"Pflegewissenschaft/-management",4457]
[null,null,null,null,445,"Gesundheitsökonomie",4459]
[null,null,null,null,445,"Ergotherapie",4460]
[null,null,null,null,445,"Hebammenwissenschaft",4461]
[null,null,null,null,445,"Logopädie/Sprachtherapie",4462]
[null,null,null,null,445,"Physiotherapie",4463]
[null,null,null,null,450,"Vorklinische Humanmedizin allgemein",4500]
[null,null,null,null,450,"Medizinische Physik",4510]
[null,null,null,null,450,"Medizinische Chemie",4520]
[null,null,null,null,450,"Medizinische Biologie",4530]
[null,null,null,null,450," Physiologie/Neurophysiologie",4540]
[null,null,null,null,450,"Physiologische Chemie (Biochemie)",4550]
[null,null,null,null,450,"Anatomie/Neuroanatomie",4560]
[null,null,null,null,450,"Medizinische Psychologie",4580]
[null,null,null,null,450,"Medizinische Soziologie",4585]
[null,null,null,null,450,"Medizinische Terminologie",4590]
[null,null,null,null,450,"Radiologie/Strahlentherapie/Nuklearmedizin",4595]
[null,null,null,null,450,"Vorklinische Zahnheilkunde",4610]
[null,null,null,null,470,"Medizinische Informatik (f. Mediziner)",4525]
[null,null,null,null,470,"Klinisch-Theoretische Humanmedizin allgemein",4700]
[null,null,null,null,470,"Arbeitsmedizin (klinisch-theoretisch)",4705]
[null,null,null,null,470,"Pathologie, Neuropathologie",4710]
[null,null,null,null,470,"Pharmakologie und Toxikologie (medizinisch)",4715]
[null,null,null,null,470,"Präventiv- und Vorsorgemedizin",4716]
[null,null,null,null,470,"Biomathematik (für Mediziner)",4720]
[null,null,null,null,470,"Biomedizinische Technik",4725]
[null,null,null,null,470,"Klinische Chemie und Hämatologie",4730]
[null,null,null,null,470,"Klinische Krebsforschung und molekulare Tumorforschung",4732]
[null,null,null,null,470,"Medizinische Balneologie und Klimatologie",4735]
[null,null,null,null,470,"Medizinische Biophysik und Elektronenmikroskopie",4736]
[null,null,null,null,470,"Medizinische Statistik und Dokumentation",4737]
[null,null,null,null,470,"Parasitologie",4738]
[null,null,null,null,470,"Radiologie (diagnostisch, ohne Betten)",4740]
[null,null,null,null,470,"Epidemiologie",4745]
[null,null,null,null,470,"Humangenetik",4750]
[null,null,null,null,470,"Geschichte der Medizin",4760]
[null,null,null,null,470,"Rechtsmedizin",4770]
[null,null,null,null,470,"Sexualmedizin",4775]
[null,null,null,null,470,"Sozialmedizin (klinisch-theoretisch)",4776]
[null,null,null,null,470,"Hygiene und medizinische Mikrobiologie",4780]
[null,null,null,null,470,"Virologie",4790]
[null,null,null,null,470,"Immunologie",4810]
[null,null,null,null,470,"Experimentelle Medizin/Medizinforschung (ohne klinische Medizin)",4820]
[null,null,null,null,490,"Klinisch-Praktische Humanmedizin allgemein",4900]
[null,null,null,null,490,"Allgemeinmedizin",4910]
[null,null,null,null,490,"Pathologie (klinisch-praktisch)",4920]
[null,null,null,null,490,"Pharmakologie (klinisch-praktisch)",4930]
[null,null,null,null,490,"Sportmedizin (klinisch-praktisch)",4935]
[null,null,null,null,490,"Tumorzentrum und Transfusionsmedizin",4936]
[null,null,null,null,490,"Innere Medizin",4940]
[null,null,null,null,490,"Kinderheilkunde",4950]
[null,null,null,null,490,"Dermato-Venerologie",4960]
[null,null,null,null,490,"Urologie",4970]
[null,null,null,null,490,"Chirurgie",4980]
[null,null,null,null,490,"Gynäkologie",4990]
[null,null,null,null,490,"Orthopädie",5010]
[null,null,null,null,490,"Physikalische Medizin",5015]
[null,null,null,null,490,"Augenheilkunde",5020]
[null,null,null,null,490,"Hals-, Nasen-, Ohrenheilkunde",5030]
[null,null,null,null,490,"Neurologie",5040]
[null,null,null,null,490,"Psychiatrie",5050]
[null,null,null,null,490,"Psychosomatische Medizin und Psychotherapie",5060]
[null,null,null,null,490,"Anästhesiologie",5070]
[null,null,null,null,490,"Rehabilitation",5080]
[null,null,null,null,490,"Arbeitsmedizin (klinisch-praktisch)",5090]
[null,null,null,null,490,"Sozialmedizin (klinisch-praktisch)",5110]
[null,null,null,null,490,"Geriatrie/Gerontologie",5120]
[null,null,null,null,490,"Neurochirurgie",5130]
[null,null,null,null,490,"Rheumatologie",5140]
[null,null,null,null,490,"Radiologie/Strahlentherapie/Nuklearmedizin (mit Betten)",5150]
[null,null,null,null,490,"Kinder- und Jugendpsychiatrie",5160]
[null,null,null,null,520,"Zahnmedizin allgemein",5200]
[null,null,null,null,520,"Zahnerhaltung und Parodontologie",5210]
[null,null,null,null,520,"Zahnärztliche Prothetik",5220]
[null,null,null,null,520,"Zahn-, Mund- und Kieferchirurgie",5230]
[null,null,null,null,520,"Kieferorthopädie",5240]
[null,null,null,null,540,"Veterinärmedizin allgemein",5400]
[null,null,null,null,550,"Vorklinische Veterinärmedizin allgemein",5500]
[null,null,null,null,550,"Anatomie, Embryologie und Histologie",5510]
[null,null,null,null,550,"Physiologie, Biochemie und Ernährungsphysiologie",5520]
[null,null,null,null,550,"Tierschutz, Mediz. Terminologie, Geschichte der Veterinärmedizin",5530]
[null,null,null,null,550,"Veterinärmedizinische Zoologie und Hydrobiologie",5535]
[null,null,null,null,560,"Klinisch-Theoretische Veterinärmedizin allgemein",5600]
[null,null,null,null,560,"Tierzucht, vet.-med. Genetik und Zuchthygiene",5610]
[null,null,null,null,560,"Tierernährung, allgemeine Landwirtschaftslehre, Verhaltenskunde",5620]
[null,null,null,null,560,"Veterinärmedizinische Pathologie",5630]
[null,null,null,null,560,"Mikrobiologie, Virologie, Tierhygiene und Tierseuchenbekämpfung",5640]
[null,null,null,null,560,"Parasitologie, Tropenveterinärmedizin",5650]
[null,null,null,null,560,"Pharmakolologie, Toxikologie und Arzneiverordnungslehre",5660]
[null,null,null,null,560,"Fleisch-, Lebensmittel- und Milchhygiene",5670]
[null,null,null,null,560,"Versuchstierkunde und Fischkunde einschl. Krankheiten",5680]
[null,null,null,null,580,"Klinisch-Praktische Veterinärmedizin allgemein",5800]
[null,null,null,null,580,"Tierklinik allgemein",5810]
[null,null,null,null,580,"Veterinärmedizinische Chirurgie",5820]
[null,null,null,null,580,"Veterinärmedizinische Geburtshilfe und Gynäkologie",5830]
[null,null,null,null,580,"Andrologie und Haustierbesamung",5840]
[null,null,null,null,580,"Gerichtliche Veterinärmedizin",5850]
[null,null,null,null,580,"Innere Veterinärmedizin einschl. Labordiagnostik",5860]
[null,null,null,null,580,"Krankheiten der Rinder",5880]
[null,null,null,null,610,"Agrar-, Forst- und Ernährungswissenschaften allgemein",6100]
[null,null,null,null,610,"Angewandte Biotechnologie",6105]
[null,null,null,null,610,"Angewandte Maschinenbautechnik",6106]
[null,null,null,null,610,"Angewandte Naturwissenschaften",6107]
[null,null,null,null,610,"Angewandte Verfahrenstechnik",6108]
[null,null,null,null,615,"Landschaftsgestaltung/Naturschutz allgemein",6310]
[null,null,null,null,615,"Landschaftsarchitektur (ohne Gartenbau)",6315]
[null,null,null,null,615,"Landschaftsökologie",6320]
[null,null,null,null,615,"Landschaftsplanung und Landschaftsentwicklung",6330]
[null,null,null,null,615,"Naturschutz",6350]
[null,null,null,null,620,"Agrarwissenschaften allgemein",6200]
[null,null,null,null,620,"Agrarbiologie",6205]
[null,null,null,null,620,"Agrartechnik",6210]
[null,null,null,null,620,"Pflanzenproduktion",6220]
[null,null,null,null,620,"Tierproduktion",6230]
[null,null,null,null,620,"Weinbau- und Kellerwirtschaft",6235]
[null,null,null,null,620,"Wirtschafts- und Sozialwissenschaften des Landbaus",6240]
[null,null,null,null,620,"Lebensmitteltechnologie/Getränketechnologie",6250]
[null,null,null,null,620,"Milch- und Molkereiwirtschaft",6255]
[null,null,null,null,620,"Brauwesen/Getränketechnik",6260]
[null,null,null,null,620,"Gartenbau",6300]
[null,null,null,null,640,"Forstwissenschaft, Holzwirtschaft allgemein",6400]
[null,null,null,null,640,"Forstliche Grundlagenwissenschaften",6410]
[null,null,null,null,640,"Holzwirtschaft",6415]
[null,null,null,null,640,"Forstliche Fachwissenschaften",6420]
[null,null,null,null,640,"Holzwissenschaften",6430]
[null,null,null,null,650,"Ernährungs- und Haushaltswissenschaften allgemein",6500]
[null,null,null,null,650,"Haushaltswissenschaften",6510]
[null,null,null,null,650,"Ernährungswissenschaften",6520]
[null,null,null,null,670,"Ingenieurwissenschaften allgemein",6700]
[null,null,null,null,670,"Technisches Gesundheitswesen",6720]
[null,null,null,null,670,"Interdisziplinäre Studien (Schwerpunkt Ingenieurwesen - ohne Mechatronik)",6740]
[null,null,null,null,670,"Mechatronik",6750]
[null,null,null,null,670,"Medientechnik",6780]
[null,null,null,null,670,"Regenerative Energien",6790]
[null,null,null,null,675,"Wirtschaftsingenieurwesen mit ingenieurwissenschaftlichem Schwerpunkt",6755]
[null,null,null,null,680,"Bergbau, Hüttenwesen allgemein",6800]
[null,null,null,null,680,"Bergbau und mineralische Rohstoffwirtschaft",6810]
[null,null,null,null,680,"Bergtechnik",6820]
[null,null,null,null,680,"Bergbauliche Betriebswirtschaft",6830]
[null,null,null,null,680,"Bergwirtschaft, Bergrecht",6840]
[null,null,null,null,680,"Hütten- und Gießereiwesen",6845]
[null,null,null,null,680,"Markscheidewesen, Bergschadenkunde, Geophysik im Bergbau",6850]
[null,null,null,null,680,"Metallurgie",6855]
[null,null,null,null,680,"Aufbereitung und Veredelung",6860]
[null,null,null,null,680,"Archäometrie (Ingenieurarchäologie)",6870]
[null,null,null,null,690,"Automatisierungstechnik",6760]
[null,null,null,null,690,"Maschinenbau/Verfahrenstechnik allgemein",6900]
[null,null,null,null,690,"Bioverfahrenstechnik",6905]
[null,null,null,null,690,"Print- und Medientechnik",6907]
[null,null,null,null,690,"Energieverfahrenstechnik",6930]
[null,null,null,null,690,"Logistik",6935]
[null,null,null,null,690,"Produktions- und Fertigungstechnologie",6940]
[null,null,null,null,690,"Sicherheitstechnik",6945]
[null,null,null,null,690,"Transport- und Verteiltechnik",6950]
[null,null,null,null,690,"Chemische Verfahrenstechnik",6955]
[null,null,null,null,690,"Versorgungs-/Entsorgungstechnik",6965]
[null,null,null,null,690,"Steuerungs-, Mess- und Regelungstechnik",6970]
[null,null,null,null,690,"Technische/angewandte Optik",6975]
[null,null,null,null,690,"Textiltechnik",6976]
[null,null,null,null,690,"Umwelttechnik (einschl. Recycling)",6985]
[null,null,null,null,690,"Thermische Verfahrenstechnik",6995]
[null,null,null,null,690,"Medizintechnik",7010]
[null,null,null,null,690,"Physikalische Technik/Mechanische Verfahrenstechnik",7020]
[null,null,null,null,690,"Kunststofftechnik",7030]
[null,null,null,null,690,"Holztechnik",7040]
[null,null,null,null,690,"Feinwerktechnik (mechanisch)",7190]
[null,null,null,null,710,"Elektrotechnik und Informationstechnik allgemein",7100]
[null,null,null,null,710,"Allgemeine Elektrotechnik",7110]
[null,null,null,null,710,"Elektrische Energietechnik",7120]
[null,null,null,null,710,"Feinwerktechnik (elektrisch)",7125]
[null,null,null,null,710,"Kommunikations- und Informationstechnik",7130]
[null,null,null,null,710,"Mikrosystemtechnik",7140]
[null,null,null,null,710,"Optoelektronik",7150]
[null,null,null,null,710,"Steuerungs-, Mess- und Regelungstechnik (elektrisch)",7155]
[null,null,null,null,710,"Mikro- und Nanoelektronik",7160]
[null,null,null,null,710,"Sensorik und Messtechnik",7170]
[null,null,null,null,720,"Verkehrstechnik, Nautik allgemein",7200]
[null,null,null,null,720,"Verkehrsingenieurwesen",7215]
[null,null,null,null,720,"Schiffbau/Schiffstechnik, Meerestechnik",7220]
[null,null,null,null,720,"Nautik, Seefahrt",7230]
[null,null,null,null,720,"Fahrzeug- und Flugzeugbau",7240]
[null,null,null,null,720,"Fahrzeugtechnik",7245]
[null,null,null,null,720,"Luft- und Raumfahrttechnik",7246]
[null,null,null,null,730,"Architektur allgemein",7300]
[null,null,null,null,730,"Grundlagen und Hilfswissenschaften der Architektur",7310]
[null,null,null,null,730,"Gestaltung und Darstellung",7320]
[null,null,null,null,730,"Bautechnik und Baubetrieb",7330]
[null,null,null,null,730,"Denkmalpflege (Architektur)",7335]
[null,null,null,null,730,"Gebäudeplanung",7340]
[null,null,null,null,730,"Bau- und Architekturgeschichte",7350]
[null,null,null,null,730,"Innenarchitektur",7390]
[null,null,null,null,730,"Städtebau und Siedlungswesen",7395]
[null,null,null,null,740,"Raumplanung allgemein",7400]
[null,null,null,null,740,"Grundlagen der Raumplanung",7410]
[null,null,null,null,740,"Stadtplanung (Ortsplanung)",7420]
[null,null,null,null,740,"Regional- und Landesplanung",7430]
[null,null,null,null,740,"Raumordnung",7440]
[null,null,null,null,740,"Infrastrukturplanung",7450]
[null,null,null,null,740,"Umweltschutz",7460]
[null,null,null,null,750,"Bauingenieurwesen allgemein",7500]
[null,null,null,null,750,"Konstruktiver Ingenieurbau",7510]
[null,null,null,null,750,"Wasserbau, -wesen",7520]
[null,null,null,null,750,"Verkehrsbau, -wesen",7530]
[null,null,null,null,750,"Baubetriebswesen/Baumanagement",7540]
[null,null,null,null,750,"Sonstige Bereiche des Bauingenieurwesens",7550]
[null,null,null,null,750,"Baustofftechnik",7570]
[null,null,null,null,750,"Bauinformatik",7580]
[null,null,null,null,760,"Vermessungswesen allgemein",7600]
[null,null,null,null,760,"Kartographie",7610]
[null,null,null,null,760,"Photogrammetrie",7620]
[null,null,null,null,765,"Wirtschaftsinformatik (für Informatiker)",2990]
[null,null,null,null,765,"Informatik allgemein",3500]
[null,null,null,null,765,"Theoretische Informatik",3510]
[null,null,null,null,765,"Angewandte Informatik",3520]
[null,null,null,null,765,"Ingenieurinformatik/Technische Informatik",3530]
[null,null,null,null,765,"Bioinformatik",3540]
[null,null,null,null,765,"Computer- und Kommunikationstechniken",3550]
[null,null,null,null,765,"Künstliche Intelligenz",3560]
[null,null,null,null,765,"Softwaretechnologie",3570]
[null,null,null,null,770,"Werkstofftechnik",6990]
[null,null,null,null,770,"Materialwissenschaft",7700]
[null,null,null,null,780,"Kunst allgemein",7800]
[null,null,null,null,780,"Restaurierungskunde",7830]
[null,null,null,null,790,"Bildende Kunst allgemein",7900]
[null,null,null,null,790,"Malerei",7920]
[null,null,null,null,790,"Plastik, Bildhauerei",7930]
[null,null,null,null,790,"Graphik",7940]
[null,null,null,null,790,"Aktionen, Performance, Environment, Fotografie",7950]
[null,null,null,null,790,"Neue Medien",7960]
[null,null,null,null,800,"Gestaltung allgemein",8000]
[null,null,null,null,800,"Industriedesign/Produktgestaltung",8010]
[null,null,null,null,800,"Modedesign",8020]
[null,null,null,null,800,"Visuelle Kommunikation",8030]
[null,null,null,null,800,"Werkerziehung (Gestaltung)",8035]
[null,null,null,null,800,"Textildesign",8040]
[null,null,null,null,800,"Angewandte Kunst",8050]
[null,null,null,null,800,"Bühnenbild, Kostüm",8060]
[null,null,null,null,800,"Designtheorie, -geschichte",8070]
[null,null,null,null,800,"Edelstein- und Schmuckdesign",8075]
[null,null,null,null,800,"Graphikdesign/Kommunikationsgestaltung",8076]
[null,null,null,null,820,"Darst. Kunst, Film und Fernsehen, Theaterwissenschaft allgemein",8200]
[null,null,null,null,820,"Darstellende Kunst",8210]
[null,null,null,null,820,"Schauspiel",8220]
[null,null,null,null,820,"Tanzwissenschaft",8225]
[null,null,null,null,820,"Regie",8230]
[null,null,null,null,820,"Theaterwissenschaft",8240]
[null,null,null,null,820,"Film und Fernsehen",8250]
[null,null,null,null,820,"Musiktheater",8270]
[null,null,null,null,820,"Produktionswirtschaft im Bereich Darst. Kunst, Theater, Film und Fernsehen",8275]
[null,null,null,null,830,"Musik allgemein",8300]
[null,null,null,null,830,"Instrumentalmusik",8310]
[null,null,null,null,830,"Jazz und Popularmusik",8315]
[null,null,null,null,830,"Gesang",8320]
[null,null,null,null,830,"Kirchenmusik",8325]
[null,null,null,null,830,"Komposition",8330]
[null,null,null,null,830,"Dirigieren",8340]
[null,null,null,null,830,"Orchestermusik",8363]
[null,null,null,null,830,"Rhythmik",8364]
[null,null,null,null,830,"Sonstige Musikpraxis",8365]
[null,null,null,null,835,"Kunstwissenschaft/-pädagogik allgemein",7805]
[null,null,null,null,835,"Kunstgeschichte",7810]
[null,null,null,null,835,"Kunstpädagogik",7820]
[null,null,null,null,835,"Kunsttherapie",7840]
[null,null,null,null,840,"Musikwissenschaft, -geschichte",8350]
[null,null,null,null,840," Musikpädagogik",8360]
[null,null,null,null,840,"Musikwissenschaft/-pädagogik allgemein",8410]
[null,null,null,null,870,"Hochschule allgemein",8700]
[null,null,null,null,880,"Allgemeine Hochschulverwaltung",8800]
[null,null,null,null,880,"Akademische Selbstverwaltung",8805]
[null,null,null,null,880,"Personalvertretung einschl. Vertr. für Datenschutz, Behinderte, etc.",8806]
[null,null,null,null,880,"Fakultäts-/Fachbereichsverwaltung",8810]
[null,null,null,null,880,"Studentische Selbstverwaltung",8820]
[null,null,null,null,880,"Zentrale Studienberatung",8830]
[null,null,null,null,900,"Bibliothek",9000]
[null,null,null,null,900,"Archiv",9050]
[null,null,null,null,910,"Rechenzentrum",9100]
[null,null,null,null,920,"Zentrale wissenschaftliche Einrichtungen allgemein",9200]
[null,null,null,null,920,"Sprachenzentrum",9210]
[null,null,null,null,920,"Akademisches Auslandsamt",9230]
[null,null,null,null,920,"Zentrale wissenschaftliche Labore und Anlagen",9240]
[null,null,null,null,920,"Wissenschaftliche/Künstlerische Werkstätten",9260]
[null,null,null,null,920,"Forschungs-/Technologie-/Transferstellen",9280]
[null,null,null,null,920,"Weiterbildungszentrum",9290]
[null,null,null,null,930,"Zentrale Betriebs- und Versorgungseinrichtungen allgemein",9300]
[null,null,null,null,940,"Soziale Einrichtungen allgemein",9400]
[null,null,null,null,950,"Übrige Ausbildungseinrichtungen allgemein",9500]
[null,null,null,null,950,"Studienkolleg",9510]
[null,null,null,null,950,"Sportstätten",9540]
[null,null,null,null,960,"Mit der Hochschule verbundene Einrichtungen allgemein",9600]
[null,null,null,null,970,"Kliniken insgesamt, Zentrale Dienste der Kliniken allgemein",8900]
[null,null,null,null,970,"Ambulanz, Konsiliardienst",8905]
[null,null,null,null,970,"Klinikverwaltung (einschl. Rechenzentrum)",8910]
[null,null,null,null,970,"Apotheke",8930]
[null,null,null,null,970,"Zentrale wissenschaftliche Einrichtungen (einschl. Bibliothek)",9720]
[null,null,null,null,980,"Soziale Einrichtungen der Kliniken allgemein",9800]
[null,null,null,null,986,"Schulen für nichtakademische Ausbildungsgänge",9860]
[null,null,null,null,990,"Mit den Kliniken verbundene sowie klinikfremde Einrichtungen allgemein",9900]

{"sheet":"5.1","index":4,"n_rows":24,"n_cols":3,"rows_kept":24,"cut":false,"hidden":false,"merged":[]}
[null,"Dienstbezeichnung"]
[null,"Universitätsprofessoren",10]
[null,"Professoren an wiss. Hochschulen",20]
[null,"Juniorprofessoren (W1)",50]
[null,"Gastprofessoren (hauptberuflich)",60]
[null,"Hochschuldozenten",110]
[null,"Universitätsdozenten",120]
[null,"Oberassistenten",130]
[null,"Oberingenieure",140]
[null,"Hochschulassistenten",150]
[null,"Wissensch. und künstler. Assistenten (C1, W1, A13-A14, E9-E15, AT)",160]
[null,"Akad. Räte, Oberräte und Direktoren (A13-A16)",210]
[null,"Wiss. und künstler. Mitarbeiter im Angestelltenverhältnis",220]
[null,"Studienräte, Studiendirektor im Hochschuld. (A13-A16, BAT IIb-I)",310]
[null,"Lektoren (A13-A14, BAT II-I, AT)",330]
[null,"Sonst. Lehrkräfte für besondere Aufgaben ",340]
[null,"Gastprofessoren (nebenberuflich)",410]
[null,"Lehrbeauftragte (ohne Honorarprofessoren)",510]
[null,"Privatdozenten, apl. Professoren",530]
[null,"Wiss. Hilfskräfte",610]
[null,"Honorarprofessoren",520]
[null,"Verwaltungspersonal",710]
[null,"Technisches Personal",730]
[null,"Bibliothekspersonal ",720]

{"sheet":"5.5.1","index":5,"n_rows":212,"n_cols":3,"rows_kept":212,"cut":false,"hidden":false,"merged":[]}
[null,"Länder"]
[]
[0,"Deutschland",0]
[121,"Albanien",121]
[122,"Bosnien und Herzegowina",122]
[123,"Andorra",123]
[124,"Belgien",124]
[125,"Bulgarien",125]
[126,"Dänemark",126]
[127,"Estland",127]
[128,"Finnland",128]
[129,"Frankreich",129]
[130,"Kroatien",130]
[131,"Slowenien",131]
[134,"Griechenland",134]
[135,"Irland",135]
[136,"Island",136]
[137,"Italien",137]
[139,"Lettland",139]
[140,"Montenegro",140]
[141,"Liechtenstein",141]
[142,"Litauen",142]
[143,"Luxemburg",143]
[144,"Nordmazedonien",144]
[145,"Malta",145]
[146,"Moldau, Republik",146]
[147,"Monaco",147]
[148,"Niederlande",148]
[149,"Norwegen",149]
[150,"Kosovo",150]
[151,"Österreich",151]
[152,"Polen",152]
[153,"Portugal",153]
[154,"Rumänien",154]
[155,"Slowakei",155]
[156,"San Marino",156]
[157,"Schweden",157]
[158,"Schweiz",158]
[160,"Russische Föderation",160]
[161,"Spanien",161]
[163,"Türkei",163]
[164,"Tschechien",164]
[165,"Ungarn",165]
[166,"Ukraine",166]
[167,"Vatikanstadt",167]
[168,"Vereinigtes Königreich",168]
[169,"Belarus",169]
[170,"Serbien",170]
[181,"Zypern",181]
[185,"Britisches Überseegebiet außerhalb Europas",185]
[221,"Algerien",221]
[223,"Angola",223]
[224,"Eritrea",224]
[225,"Äthiopien",225]
[226,"Lesotho",226]
[227,"Botsuana",227]
[229,"Benin",229]
[230,"Dschibuti",230]
[231,"Cote d'Ivoire",231]
[232,"Nigeria",232]
[233,"Simbabwe",233]
[236,"Gabun",236]
[237,"Gambia",237]
[238,"Ghana",238]
[239,"Mauretanien",239]
[242,"Cabo Verde",242]
[243,"Kenia",243]
[244,"Komoren",244]
[245,"Kongo, Republik",245]
[246,"Kongo, Dem. Republik",246]
[247,"Liberia",247]
[248,"Libyen",248]
[249,"Madagaskar",249]
[251,"Mali",251]
[252,"Marokko",252]
[253,"Mauritius",253]
[254,"Mosambik",254]
[255,"Niger",255]
[256,"Malawi",256]
[257,"Sambia",257]
[258,"Burkina Faso",258]
[259,"Guinea-Bissau",259]
[261,"Guinea",261]
[262,"Kamerun",262]
[263,"Südafrika",263]
[265,"Ruanda",265]
[267,"Namibia",267]
[268,"Sao Tome und Principe",268]
[269,"Senegal",269]
[271,"Seychellen",271]
[272,"Sierra Leone",272]
[273,"Somalia",273]
[274,"Äquatorialguinea",274]
[277,"Sudan",277]
[278,"Südsudan",278]
[281,"Eswatini",281]
[282,"Tansania, Ver. Republik",282]
[283,"Togo",283]
[284,"Tschad",284]
[285,"Tunesien",285]
[286,"Uganda",286]
[287,"Ägypten",287]
[289,"Zentralafrik. Republik",289]
[291,"Burundi",291]
[320,"Antigua und Barbuda",320]
[322,"Barbados",322]
[323,"Argentinien",323]
[324,"Bahamas",324]
[326,"Bolivien",326]
[327,"Brasilien",327]
[328,"Guyana",328]
[330,"Belize",330]
[332,"Chile",332]
[333,"Dominica",333]
[334,"Costa Rica",334]
[335,"Dominikanische Republik",335]
[336,"Ecuador",336]
[337,"El Salvador",337]
[340,"Grenada",340]
[345,"Guatemala",345]
[346,"Haiti",346]
[347,"Honduras",347]
[348,"Kanada",348]
[349,"Kolumbien",349]
[351,"Kuba",351]
[353,"Mexiko",353]
[354,"Nicaragua",354]
[355,"Jamaika",355]
[357,"Panama",357]
[359,"Paraguay",359]
[361,"Peru",361]
[364,"Suriname",364]
[365,"Uruguay",365]
[366,"St. Lucia",366]
[367,"Venezuela",367]
[368,"Vereinigte Staaten",368]
[369,"St. Vincent und die Grenadinen",369]
[370,"St. Kitts und Nevis",370]
[371,"Trinidad und Tobago",371]
[411,"Hongkong",411]
[412,"Macau",412]
[421,"Jemen",421]
[422,"Armenien",422]
[423,"Afghanistan",423]
[424,"Bahrain",424]
[425,"Aserbaidschan",425]
[426,"Bhutan",426]
[427,"Myanmar",427]
[429,"Brunei Darussalam",429]
[430,"Georgien",430]
[431,"Sri Lanka",431]
[432,"Vietnam",432]
[434,"Korea, Dem. Volksrepublik",434]
[436,"Indien",436]
[437,"Indonesien",437]
[438,"Irak",438]
[439,"Iran, Islamische Republik",439]
[441,"Israel",441]
[442,"Japan",442]
[444,"Kasachstan",444]
[445,"Jordanien",445]
[446,"Kambodscha",446]
[447,"Katar",447]
[448,"Kuwait",448]
[449,"Laos, Dem. Volksrepublik",449]
[450,"Kirgisistan",450]
[451,"Libanon",451]
[454,"Malediven",454]
[456,"Oman",456]
[457,"Mongolei",457]
[458,"Nepal",458]
[459,"Palästinensische Gebiete",459]
[460,"Bangladesch",460]
[461,"Pakistan",461]
[462,"Philippinen",462]
[465,"Taiwan",465]
[467,"Korea, Republik",467]
[469,"Vereinigte Arabische Emirate",469]
[470,"Tadschikistan",470]
[471,"Turkmenistan",471]
[472,"Saudi-Arabien",472]
[474,"Singapur",474]
[475,"Syrien, Arab. Republik",475]
[476,"Thailand",476]
[477,"Usbekistan",477]
[479,"China",479]
[482,"Malaysia",482]
[483,"Timor-Leste",483]
[499,"Übriges Asien",499]
[523,"Australien",523]
[524,"Salomonen",524]
[526,"Fidschi",526]
[527,"Cookinseln",527]
[530,"Kiribati",530]
[531,"Nauru",531]
[532,"Vanuatu",532]
[533,"Niue",533]
[536,"Neuseeland",536]
[537,"Palau",537]
[538,"Papua-Neuguinea",538]
[540,"Tuvalu",540]
[541,"Tonga",541]
[543,"Samoa",543]
[544,"Marshallinseln",544]
[545,"Mikronesien",545]
[997,"Staatenlos",997]
[998,"Ungeklärt",998]
[999,"Ohne Angabe",999]
[]
["1)","Unselbständige Länder oder Gebiete. Die bei den unselbständigen Ländern oder Gebieten "]
[null,"angegebene Staatsangehörigkeit weist auf den faktischen Zustand hin; sie bezeichnet nicht "]
[null,"die Staatsangehörigkeit im völkerrechtlichen Sinn."]

{"sheet":"CORE","index":6,"n_rows":123,"n_cols":20,"rows_kept":123,"cut":false,"hidden":true,"merged":[]}
["BerichtseinheitID","TB_Habil.Berichtsland","TB_Habil.Berichtsjahr","TB_Habil.f_HochschulNr","TB_Habil.f_Lfd_Nr","TB_Habil.f_Geschlecht","TB_Habil.f_Geburtsmonat","TB_Habil.f_Geburtsjahr","TB_Habil.f_Staatsang","TB_Habil.f_Habil_Monat","TB_Habil.f_Habil_Jahr","TB_Habil.f_Habil_Lehrbereich","TB_Habil.f_Habil_Fachgebiet","TB_Habil.f_Beschaeftigung","TB_Habil.f_Dienstbez","TB_Habil.f_Taetigkeit","TB_Habil.f_Dienstverh","TB_Habil.f_Org_Kategorie","TB_Habil.f_Org_Lehrbereich","TB_Habil.f_Fach_Fachgebiet"]
[{"$f":"'Fragebogen Habilitation'!F17&\"0000\"","v":"0000"},{"$f":"'Fragebogen Habilitation'!B17","v":9},2024,{"$f":"'Fragebogen Habilitation'!F17","v":0},{"$f":"'Fragebogen Habilitation'!A17","v":1},{"$f":"'Fragebogen Habilitation'!G17","v":0},{"$f":"'Fragebogen Habilitation'!H17","v":0},{"$f":"'Fragebogen Habilitation'!I17","v":0},{"$f":"'Fragebogen Habilitation'!K17","v":""},{"$f":"'Fragebogen Habilitation'!L17","v":0},{"$f":"'Fragebogen Habilitation'!M17","v":0},{"$f":"'Fragebogen Habilitation'!O17","v":""},{"$f":"'Fragebogen Habilitation'!Q17","v":""},{"$f":"'Fragebogen Habilitation'!R17","v":0},{"$f":"'Fragebogen Habilitation'!T17","v":""},{"$f":"IF('Fragebogen Habilitation'!U17=\"\",\"\",'Fragebogen Habilitation'!U17)","v":""},{"$f":"IF('Fragebogen Habilitation'!V17=\"\",\"\",'Fragebogen Habilitation'!V17)","v":""},{"$f":"'Fragebogen Habilitation'!X17","v":""},{"$f":"'Fragebogen Habilitation'!Z17","v":""},{"$f":"'Fragebogen Habilitation'!AB17","v":""}]
[{"$f":"'Fragebogen Habilitation'!F18&\"0000\"","v":"0000"},{"$f":"'Fragebogen Habilitation'!B18","v":9},2024,{"$f":"'Fragebogen Habilitation'!F18","v":""},{"$f":"'Fragebogen Habilitation'!A18","v":2},{"$f":"'Fragebogen Habilitation'!G18","v":0},{"$f":"'Fragebogen Habilitation'!H18","v":0},{"$f":"'Fragebogen Habilitation'!I18","v":0},{"$f":"'Fragebogen Habilitation'!K18","v":""},{"$f":"'Fragebogen Habilitation'!L18","v":0},{"$f":"'Fragebogen Habilitation'!M18","v":0},{"$f":"'Fragebogen Habilitation'!O18","v":""},{"$f":"'Fragebogen Habilitation'!Q18","v":""},{"$f":"'Fragebogen Habilitation'!R18","v":0},{"$f":"'Fragebogen Habilitation'!T18","v":""},{"$f":"IF('Fragebogen Habilitation'!U18=\"\",\"\",'Fragebogen Habilitation'!U18)","v":""},{"$f":"IF('Fragebogen Habilitation'!V18=\"\",\"\",'Fragebogen Habilitation'!V18)","v":""},{"$f":"'Fragebogen Habilitation'!X18","v":""},{"$f":"'Fragebogen Habilitation'!Z18","v":""},{"$f":"'Fragebogen Habilitation'!AB18","v":""}]
[{"$f":"'Fragebogen Habilitation'!F19&\"0000\"","v":"0000"},{"$f":"'Fragebogen Habilitation'!B19","v":9},2024,{"$f":"'Fragebogen Habilitation'!F19","v":""},{"$f":"'Fragebogen Habilitation'!A19","v":3},{"$f":"'Fragebogen Habilitation'!G19","v":0},{"$f":"'Fragebogen Habilitation'!H19","v":0},{"$f":"'Fragebogen Habilitation'!I19","v":0},{"$f":"'Fragebogen Habilitation'!K19","v":""},{"$f":"'Fragebogen Habilitation'!L19","v":0},{"$f":"'Fragebogen Habilitation'!M19","v":0},{"$f":"'Fragebogen Habilitation'!O19","v":""},{"$f":"'Fragebogen Habilitation'!Q19","v":""},{"$f":"'Fragebogen Habilitation'!R19","v":0},{"$f":"'Fragebogen Habilitation'!T19","v":""},{"$f":"IF('Fragebogen Habilitation'!U19=\"\",\"\",'Fragebogen Habilitation'!U19)","v":""},{"$f":"IF('Fragebogen Habilitation'!V19=\"\",\"\",'Fragebogen Habilitation'!V19)","v":""},{"$f":"'Fragebogen Habilitation'!X19","v":""},{"$f":"'Fragebogen Habilitation'!Z19","v":""},{"$f":"'Fragebogen Habilitation'!AB19","v":""}]
[{"$f":"'Fragebogen Habilitation'!F20&\"0000\"","v":"0000"},{"$f":"'Fragebogen Habilitation'!B20","v":9},2024,{"$f":"'Fragebogen Habilitation'!F20","v":""},{"$f":"'Fragebogen Habilitation'!A20","v":4},{"$f":"'Fragebogen Habilitation'!G20","v":0},{"$f":"'Fragebogen Habilitation'!H20","v":0},{"$f":"'Fragebogen Habilitation'!I20","v":0},{"$f":"'Fragebogen Habilitation'!K20","v":""},{"$f":"'Fragebogen Habilitation'!L20","v":0},{"$f":"'Fragebogen Habilitation'!M20","v":0},{"$f":"'Fragebogen Habilitation'!O20","v":""},{"$f":"'Fragebogen Habilitation'!Q20","v":""},{"$f":"'Fragebogen Habilitation'!R20","v":0},{"$f":"'Fragebogen Habilitation'!T20","v":""},{"$f":"IF('Fragebogen Habilitation'!U20=\"\",\"\",'Fragebogen Habilitation'!U20)","v":""},{"$f":"IF('Fragebogen Habilitation'!V20=\"\",\"\",'Fragebogen Habilitation'!V20)","v":""},{"$f":"'Fragebogen Habilitation'!X20","v":""},{"$f":"'Fragebogen Habilitation'!Z20","v":""},{"$f":"'Fragebogen Habilitation'!AB20","v":""}]
[{"$f":"'Fragebogen Habilitation'!F21&\"0000\"","v":"0000"},{"$f":"'Fragebogen Habilitation'!B21","v":9},2024,{"$f":"'Fragebogen Habilitation'!F21","v":""},{"$f":"'Fragebogen Habilitation'!A21","v":5},{"$f":"'Fragebogen Habilitation'!G21","v":0},{"$f":"'Fragebogen Habilitation'!H21","v":0},{"$f":"'Fragebogen Habilitation'!I21","v":0},{"$f":"'Fragebogen Habilitation'!K21","v":""},{"$f":"'Fragebogen Habilitation'!L21","v":0},{"$f":"'Fragebogen Habilitation'!M21","v":0},{"$f":"'Fragebogen Habilitation'!O21","v":""},{"$f":"'Fragebogen Habilitation'!Q21","v":""},{"$f":"'Fragebogen Habilitation'!R21","v":0},{"$f":"'Fragebogen Habilitation'!T21","v":""},{"$f":"IF('Fragebogen Habilitation'!U21=\"\",\"\",'Fragebogen Habilitation'!U21)","v":""},{"$f":"IF('Fragebogen Habilitation'!V21=\"\",\"\",'Fragebogen Habilitation'!V21)","v":""},{"$f":"'Fragebogen Habilitation'!X21","v":""},{"$f":"'Fragebogen Habilitation'!Z21","v":""},{"$f":"'Fragebogen Habilitation'!AB21","v":""}]
[{"$f":"'Fragebogen Habilitation'!F22&\"0000\"","v":"0000"},{"$f":"'Fragebogen Habilitation'!B22","v":9},2024,{"$f":"'Fragebogen Habilitation'!F22","v":""},{"$f":"'Fragebogen Habilitation'!A22","v":6},{"$f":"'Fragebogen Habilitation'!G22","v":0},{"$f":"'Fragebogen Habilitation'!H22","v":0},{"$f":"'Fragebogen Habilitation'!I22","v":0},{"$f":"'Fragebogen Habilitation'!K22","v":""},{"$f":"'Fragebogen Habilitation'!L22","v":0},{"$f":"'Fragebogen Habilitation'!M22","v":0},{"$f":"'Fragebogen Habilitation'!O22","v":""},{"$f":"'Fragebogen Habilitation'!Q22","v":""},{"$f":"'Fragebogen Habilitation'!R22","v":0},{"$f":"'Fragebogen Habilitation'!T22","v":""},{"$f":"IF('Fragebogen Habilitation'!U22=\"\",\"\",'Fragebogen Habilitation'!U22)","v":""},{"$f":"IF('Fragebogen Habilitation'!V22=\"\",\"\",'Fragebogen Habilitation'!V22)","v":""},{"$f":"'Fragebogen Habilitation'!X22","v":""},{"$f":"'Fragebogen Habilitation'!Z22","v":""},{"$f":"'Fragebogen Habilitation'!AB22","v":""}]
[{"$f":"'Fragebogen Habilitation'!F23&\"0000\"","v":"0000"},{"$f":"'Fragebogen Habilitation'!B23","v":9},2024,{"$f":"'Fragebogen Habilitation'!F23","v":""},{"$f":"'Fragebogen Habilitation'!A23","v":7},{"$f":"'Fragebogen Habilitation'!G23","v":0},{"$f":"'Fragebogen Habilitation'!H23","v":0},{"$f":"'Fragebogen Habilitation'!I23","v":0},{"$f":"'Fragebogen Habilitation'!K23","v":""},{"$f":"'Fragebogen Habilitation'!L23","v":0},{"$f":"'Fragebogen Habilitation'!M23","v":0},{"$f":"'Fragebogen Habilitation'!O23","v":""},{"$f":"'Fragebogen Habilitation'!Q23","v":""},{"$f":"'Fragebogen Habilitation'!R23","v":0},{"$f":"'Fragebogen Habilitation'!T23","v":""},{"$f":"IF('Fragebogen Habilitation'!U23=\"\",\"\",'Fragebogen Habilitation'!U23)","v":""},{"$f":"IF('Fragebogen Habilitation'!V23=\"\",\"\",'Fragebogen Habilitation'!V23)","v":""},{"$f":"'Fragebogen Habilitation'!X23","v":""},{"$f":"'Fragebogen Habilitation'!Z23","v":""},{"$f":"'Fragebogen Habilitation'!AB23","v":""}]
[{"$f":"'Fragebogen Habilitation'!F24&\"0000\"","v":"0000"},{"$f":"'Fragebogen Habilitation'!B24","v":9},2024,{"$f":"'Fragebogen Habilitation'!F24","v":""},{"$f":"'Fragebogen Habilitation'!A24","v":8},{"$f":"'Fragebogen Habilitation'!G24","v":0},{"$f":"'Fragebogen Habilitation'!H24","v":0},{"$f":"'Fragebogen Habilitation'!I24","v":0},{"$f":"'Fragebogen Habilitation'!K24","v":""},{"$f":"'Fragebogen Habilitation'!L24","v":0},{"$f":"'Fragebogen Habilitation'!M24","v":0},{"$f":"'Fragebogen Habilitation'!O24","v":""},{"$f":"'Fragebogen Habilitation'!Q24","v":""},{"$f":"'Fragebogen Habilitation'!R24","v":0},{"$f":"'Fragebogen Habilitation'!T24","v":""},{"$f":"IF('Fragebogen Habilitation'!U24=\"\",\"\",'Fragebogen Habilitation'!U24)","v":""},{"$f":"IF('Fragebogen Habilitation'!V24=\"\",\"\",'Fragebogen Habilitation'!V24)","v":""},{"$f":"'Fragebogen Habilitation'!X24","v":""},{"$f":"'Fragebogen Habilitation'!Z24","v":""},{"$f":"'Fragebogen Habilitation'!AB24","v":""}]
[{"$f":"'Fragebogen Habilitation'!F25&\"0000\"","v":"0000"},{"$f":"'Fragebogen Habilitation'!B25","v":9},2024,{"$f":"'Fragebogen Habilitation'!F25","v":""},{"$f":"'Fragebogen Habilitation'!A25","v":9},{"$f":"'Fragebogen Habilitation'!G25","v":0},{"$f":"'Fragebogen Habilitation'!H25","v":0},{"$f":"'Fragebogen Habilitation'!I25","v":0},{"$f":"'Fragebogen Habilitation'!K25","v":""},{"$f":"'Fragebogen Habilitation'!L25","v":0},{"$f":"'Fragebogen Habilitation'!M25","v":0},{"$f":"'Fragebogen Habilitation'!O25","v":""},{"$f":"'Fragebogen Habilitation'!Q25","v":""},{"$f":"'Fragebogen Habilitation'!R25","v":0},{"$f":"'Fragebogen Habilitation'!T25","v":""},{"$f":"IF('Fragebogen Habilitation'!U25=\"\",\"\",'Fragebogen Habilitation'!U25)","v":""},{"$f":"IF('Fragebogen Habilitation'!V25=\"\",\"\",'Fragebogen Habilitation'!V25)","v":""},{"$f":"'Fragebogen Habilitation'!X25","v":""},{"$f":"'Fragebogen Habilitation'!Z25","v":""},{"$f":"'Fragebogen Habilitation'!AB25","v":""}]
[{"$f":"'Fragebogen Habilitation'!F26&\"0000\"","v":"0000"},{"$f":"'Fragebogen Habilitation'!B26","v":9},2024,{"$f":"'Fragebogen Habilitation'!F26","v":""},{"$f":"'Fragebogen Habilitation'!A26","v":10},{"$f":"'Fragebogen Habilitation'!G26","v":0},{"$f":"'Fragebogen Habilitation'!H26","v":0},{"$f":"'Fragebogen Habilitation'!I26","v":0},{"$f":"'Fragebogen Habilitation'!K26","v":""},{"$f":"'Fragebogen Habilitation'!L26","v":0},{"$f":"'Fragebogen Habilitation'!M26","v":0},{"$f":"'Fragebogen Habilitation'!O26","v":""},{"$f":"'Fragebogen Habilitation'!Q26","v":""},{"$f":"'Fragebogen Habilitation'!R26","v":0},{"$f":"'Fragebogen Habilitation'!T26","v":""},{"$f":"IF('Fragebogen Habilitation'!U26=\"\",\"\",'Fragebogen Habilitation'!U26)","v":""},{"$f":"IF('Fragebogen Habilitation'!V26=\"\",\"\",'Fragebogen Habilitation'!V26)","v":""},{"$f":"'Fragebogen Habilitation'!X26","v":""},{"$f":"'Fragebogen Habilitation'!Z26","v":""},{"$f":"'Fragebogen Habilitation'!AB26","v":""}]
[{"$f":"'Fragebogen Habilitation'!F27&\"0000\"","v":"0000"},{"$f":"'Fragebogen Habilitation'!B27","v":9},2024,{"$f":"'Fragebogen Habilitation'!F27","v":""},{"$f":"'Fragebogen Habilitation'!A27","v":11},{"$f":"'Fragebogen Habilitation'!G27","v":0},{"$f":"'Fragebogen Habilitation'!H27","v":0},{"$f":"'Fragebogen Habilitation'!I27","v":0},{"$f":"'Fragebogen Habilitation'!K27","v":""},{"$f":"'Fragebogen Habilitation'!L27","v":0},{"$f":"'Fragebogen Habilitation'!M27","v":0},{"$f":"'Fragebogen Habilitation'!O27","v":""},{"$f":"'Fragebogen Habilitation'!Q27","v":""},{"$f":"'Fragebogen Habilitation'!R27","v":0},{"$f":"'Fragebogen Habilitation'!T27","v":""},{"$f":"IF('Fragebogen Habilitation'!U27=\"\",\"\",'Fragebogen Habilitation'!U27)","v":""},{"$f":"IF('Fragebogen Habilitation'!V27=\"\",\"\",'Fragebogen Habilitation'!V27)","v":""},{"$f":"'Fragebogen Habilitation'!X27","v":""},{"$f":"'Fragebogen Habilitation'!Z27","v":""},{"$f":"'Fragebogen Habilitation'!AB27","v":""}]
[{"$f":"'Fragebogen Habilitation'!F28&\"0000\"","v":"0000"},{"$f":"'Fragebogen Habilitation'!B28","v":9},2024,{"$f":"'Fragebogen Habilitation'!F28","v":""},{"$f":"'Fragebogen Habilitation'!A28","v":12},{"$f":"'Fragebogen Habilitation'!G28","v":0},{"$f":"'Fragebogen Habilitation'!H28","v":0},{"$f":"'Fragebogen Habilitation'!I28","v":0},{"$f":"'Fragebogen Habilitation'!K28","v":""},{"$f":"'Fragebogen Habilitation'!L28","v":0},{"$f":"'Fragebogen Habilitation'!M28","v":0},{"$f":"'Fragebogen Habilitation'!O28","v":""},{"$f":"'Fragebogen Habilitation'!Q28","v":""},{"$f":"'Fragebogen Habilitation'!R28","v":0},{"$f":"'Fragebogen Habilitation'!T28","v":""},{"$f":"IF('Fragebogen Habilitation'!U28=\"\",\"\",'Fragebogen Habilitation'!U28)","v":""},{"$f":"IF('Fragebogen Habilitation'!V28=\"\",\"\",'Fragebogen Habilitation'!V28)","v":""},{"$f":"'Fragebogen Habilitation'!X28","v":""},{"$f":"'Fragebogen Habilitation'!Z28","v":""},{"$f":"'Fragebogen Habilitation'!AB28","v":""}]
[{"$f":"'Fragebogen Habilitation'!F29&\"0000\"","v":"0000"},{"$f":"'Fragebogen Habilitation'!B29","v":9},2024,{"$f":"'Fragebogen Habilitation'!F29","v":""},{"$f":"'Fragebogen Habilitation'!A29","v":13},{"$f":"'Fragebogen Habilitation'!G29","v":0},{"$f":"'Fragebogen Habilitation'!H29","v":0},{"$f":"'Fragebogen Habilitation'!I29","v":0},{"$f":"'Fragebogen Habilitation'!K29","v":""},{"$f":"'Fragebogen Habilitation'!L29","v":0},{"$f":"'Fragebogen Habilitation'!M29","v":0},{"$f":"'Fragebogen Habilitation'!O29","v":""},{"$f":"'Fragebogen Habilitation'!Q29","v":""},{"$f":"'Fragebogen Habilitation'!R29","v":0},{"$f":"'Fragebogen Habilitation'!T29","v":""},{"$f":"IF('Fragebogen Habilitation'!U29=\"\",\"\",'Fragebogen Habilitation'!U29)","v":""},{"$f":"IF('Fragebogen Habilitation'!V29=\"\",\"\",'Fragebogen Habilitation'!V29)","v":""},{"$f":"'Fragebogen Habilitation'!X29","v":""},{"$f":"'Fragebogen Habilitation'!Z29","v":""},{"$f":"'Fragebogen Habilitation'!AB29","v":""}]
[{"$f":"'Fragebogen Habilitation'!F30&\"0000\"","v":"0000"},{"$f":"'Fragebogen Habilitation'!B30","v":9},2024,{"$f":"'Fragebogen Habilitation'!F30","v":""},{"$f":"'Fragebogen Habilitation'!A30","v":14},{"$f":"'Fragebogen Habilitation'!G30","v":0},{"$f":"'Fragebogen Habilitation'!H30","v":0},{"$f":"'Fragebogen Habilitation'!I30","v":0},{"$f":"'Fragebogen Habilitation'!K30","v":""},{"$f":"'Fragebogen Habilitation'!L30","v":0},{"$f":"'Fragebogen Habilitation'!M30","v":0},{"$f":"'Fragebogen Habilitation'!O30","v":""},{"$f":"'Fragebogen Habilitation'!Q30","v":""},{"$f":"'Fragebogen Habilitation'!R30","v":0},{"$f":"'Fragebogen Habilitation'!T30","v":""},{"$f":"IF('Fragebogen Habilitation'!U30=\"\",\"\",'Fragebogen Habilitation'!U30)","v":""},{"$f":"IF('Fragebogen Habilitation'!V30=\"\",\"\",'Fragebogen Habilitation'!V30)","v":""},{"$f":"'Fragebogen Habilitation'!X30","v":""},{"$f":"'Fragebogen Habilitation'!Z30","v":""},{"$f":"'Fragebogen Habilitation'!AB30","v":""}]
[{"$f":"'Fragebogen Habilitation'!F31&\"0000\"","v":"0000"},{"$f":"'Fragebogen Habilitation'!B31","v":9},2024,{"$f":"'Fragebogen Habilitation'!F31","v":""},{"$f":"'Fragebogen Habilitation'!A31","v":15},{"$f":"'Fragebogen Habilitation'!G31","v":0},{"$f":"'Fragebogen Habilitation'!H31","v":0},{"$f":"'Fragebogen Habilitation'!I31","v":0},{"$f":"'Fragebogen Habilitation'!K31","v":""},{"$f":"'Fragebogen Habilitation'!L31","v":0},{"$f":"'Fragebogen Habilitation'!M31","v":0},{"$f":"'Fragebogen Habilitation'!O31","v":""},{"$f":"'Fragebogen Habilitation'!Q31","v":""},{"$f":"'Fragebogen Habilitation'!R31","v":0},{"$f":"'Fragebogen Habilitation'!T31","v":""},{"$f":"IF('Fragebogen Habilitation'!U31=\"\",\"\",'Fragebogen Habilitation'!U31)","v":""},{"$f":"IF('Fragebogen Habilitation'!V31=\"\",\"\",'Fragebogen Habilitation'!V31)","v":""},{"$f":"'Fragebogen Habilitation'!X31","v":""},{"$f":"'Fragebogen Habilitation'!Z31","v":""},{"$f":"'Fragebogen Habilitation'!AB31","v":""}]
[{"$f":"'Fragebogen Habilitation'!F32&\"0000\"","v":"0000"},{"$f":"'Fragebogen Habilitation'!B32","v":9},2024,{"$f":"'Fragebogen Habilitation'!F32","v":""},{"$f":"'Fragebogen Habilitation'!A32","v":16},{"$f":"'Fragebogen Habilitation'!G32","v":0},{"$f":"'Fragebogen Habilitation'!H32","v":0},{"$f":"'Fragebogen Habilitation'!I32","v":0},{"$f":"'Fragebogen Habilitation'!K32","v":""},{"$f":"'Fragebogen Habilitation'!L32","v":0},{"$f":"'Fragebogen Habilitation'!M32","v":0},{"$f":"'Fragebogen Habilitation'!O32","v":""},{"$f":"'Fragebogen Habilitation'!Q32","v":""},{"$f":"'Fragebogen Habilitation'!R32","v":0},{"$f":"'Fragebogen Habilitation'!T32","v":""},{"$f":"IF('Fragebogen Habilitation'!U32=\"\",\"\",'Fragebogen Habilitation'!U32)","v":""},{"$f":"IF('Fragebogen Habilitation'!V32=\"\",\"\",'Fragebogen Habilitation'!V32)","v":""},{"$f":"'Fragebogen Habilitation'!X32","v":""},{"$f":"'Fragebogen Habilitation'!Z32","v":""},{"$f":"'Fragebogen Habilitation'!AB32","v":""}]
[{"$f":"'Fragebogen Habilitation'!F33&\"0000\"","v":"0000"},{"$f":"'Fragebogen Habilitation'!B33","v":9},2024,{"$f":"'Fragebogen Habilitation'!F33","v":""},{"$f":"'Fragebogen Habilitation'!A33","v":17},{"$f":"'Fragebogen Habilitation'!G33","v":0},{"$f":"'Fragebogen Habilitation'!H33","v":0},{"$f":"'Fragebogen Habilitation'!I33","v":0},{"$f":"'Fragebogen Habilitation'!K33","v":""},{"$f":"'Fragebogen Habilitation'!L33","v":0},{"$f":"'Fragebogen Habilitation'!M33","v":0},{"$f":"'Fragebogen Habilitation'!O33","v":""},{"$f":"'Fragebogen Habilitation'!Q33","v":""},{"$f":"'Fragebogen Habilitation'!R33","v":0},{"$f":"'Fragebogen Habilitation'!T33","v":""},{"$f":"IF('Fragebogen Habilitation'!U33=\"\",\"\",'Fragebogen Habilitation'!U33)","v":""},{"$f":"IF('Fragebogen Habilitation'!V33=\"\",\"\",'Fragebogen Habilitation'!V33)","v":""},{"$f":"'Fragebogen Habilitation'!X33","v":""},{"$f":"'Fragebogen Habilitation'!Z33","v":""},{"$f":"'Fragebogen Habilitation'!AB33","v":""}]
[{"$f":"'Fragebogen Habilitation'!F34&\"0000\"","v":"0000"},{"$f":"'Fragebogen Habilitation'!B34","v":9},2024,{"$f":"'Fragebogen Habilitation'!F34","v":""},{"$f":"'Fragebogen Habilitation'!A34","v":18},{"$f":"'Fragebogen Habilitation'!G34","v":0},{"$f":"'Fragebogen Habilitation'!H34","v":0},{"$f":"'Fragebogen Habilitation'!I34","v":0},{"$f":"'Fragebogen Habilitation'!K34","v":""},{"$f":"'Fragebogen Habilitation'!L34","v":0},{"$f":"'Fragebogen Habilitation'!M34","v":0},{"$f":"'Fragebogen Habilitation'!O34","v":""},{"$f":"'Fragebogen Habilitation'!Q34","v":""},{"$f":"'Fragebogen Habilitation'!R34","v":0},{"$f":"'Fragebogen Habilitation'!T34","v":""},{"$f":"IF('Fragebogen Habilitation'!U34=\"\",\"\",'Fragebogen Habilitation'!U34)","v":""},{"$f":"IF('Fragebogen Habilitation'!V34=\"\",\"\",'Fragebogen Habilitation'!V34)","v":""},{"$f":"'Fragebogen Habilitation'!X34","v":""},{"$f":"'Fragebogen Habilitation'!Z34","v":""},{"$f":"'Fragebogen Habilitation'!AB34","v":""}]
[{"$f":"'Fragebogen Habilitation'!F35&\"0000\"","v":"0000"},{"$f":"'Fragebogen Habilitation'!B35","v":9},2024,{"$f":"'Fragebogen Habilitation'!F35","v":""},{"$f":"'Fragebogen Habilitation'!A35","v":19},{"$f":"'Fragebogen Habilitation'!G35","v":0},{"$f":"'Fragebogen Habilitation'!H35","v":0},{"$f":"'Fragebogen Habilitation'!I35","v":0},{"$f":"'Fragebogen Habilitation'!K35","v":""},{"$f":"'Fragebogen Habilitation'!L35","v":0},{"$f":"'Fragebogen Habilitation'!M35","v":0},{"$f":"'Fragebogen Habilitation'!O35","v":""},{"$f":"'Fragebogen Habilitation'!Q35","v":""},{"$f":"'Fragebogen Habilitation'!R35","v":0},{"$f":"'Fragebogen Habilitation'!T35","v":""},{"$f":"IF('Fragebogen Habilitation'!U35=\"\",\"\",'Fragebogen Habilitation'!U35)","v":""},{"$f":"IF('Fragebogen Habilitation'!V35=\"\",\"\",'Fragebogen Habilitation'!V35)","v":""},{"$f":"'Fragebogen Habilitation'!X35","v":""},{"$f":"'Fragebogen Habilitation'!Z35","v":""},{"$f":"'Fragebogen Habilitation'!AB35","v":""}]
[{"$f":"'Fragebogen Habilitation'!F36&\"0000\"","v":"0000"},{"$f":"'Fragebogen Habilitation'!B36","v":9},2024,{"$f":"'Fragebogen Habilitation'!F36","v":""},{"$f":"'Fragebogen Habilitation'!A36","v":20},{"$f":"'Fragebogen Habilitation'!G36","v":0},{"$f":"'Fragebogen Habilitation'!H36","v":0},{"$f":"'Fragebogen Habilitation'!I36","v":0},{"$f":"'Fragebogen Habilitation'!K36","v":""},{"$f":"'Fragebogen Habilitation'!L36","v":0},{"$f":"'Fragebogen Habilitation'!M36","v":0},{"$f":"'Fragebogen Habilitation'!O36","v":""},{"$f":"'Fragebogen Habilitation'!Q36","v":""},{"$f":"'Fragebogen Habilitation'!R36","v":0},{"$f":"'Fragebogen Habilitation'!T36","v":""},{"$f":"IF('Fragebogen Habilitation'!U36=\"\",\"\",'Fragebogen Habilitation'!U36)","v":""},{"$f":"IF('Fragebogen Habilitation'!V36=\"\",\"\",'Fragebogen Habilitation'!V36)","v":""},{"$f":"'Fragebogen Habilitation'!X36","v":""},{"$f":"'Fragebogen Habilitation'!Z36","v":""},{"$f":"'Fragebogen Habilitation'!AB36","v":""}]
[{"$f":"'Fragebogen Habilitation'!F37&\"0000\"","v":"0000"},{"$f":"'Fragebogen Habilitation'!B37","v":9},2024,{"$f":"'Fragebogen Habilitation'!F37","v":""},{"$f":"'Fragebogen Habilitation'!A37","v":21},{"$f":"'Fragebogen Habilitation'!G37","v":0},{"$f":"'Fragebogen Habilitation'!H37","v":0},{"$f":"'Fragebogen Habilitation'!I37","v":0},{"$f":"'Fragebogen Habilitation'!K37","v":""},{"$f":"'Fragebogen Habilitation'!L37","v":0},{"$f":"'Fragebogen Habilitation'!M37","v":0},{"$f":"'Fragebogen Habilitation'!O37","v":""},{"$f":"'Fragebogen Habilitation'!Q37","v":""},{"$f":"'Fragebogen Habilitation'!R37","v":0},{"$f":"'Fragebogen Habilitation'!T37","v":""},{"$f":"IF('Fragebogen Habilitation'!U37=\"\",\"\",'Fragebogen Habilitation'!U37)","v":""},{"$f":"IF('Fragebogen Habilitation'!V37=\"\",\"\",'Fragebogen Habilitation'!V37)","v":""},{"$f":"'Fragebogen Habilitation'!X37","v":""},{"$f":"'Fragebogen Habilitation'!Z37","v":""},{"$f":"'Fragebogen Habilitation'!AB37","v":""}]
[{"$f":"'Fragebogen Habilitation'!F38&\"0000\"","v":"0000"},{"$f":"'Fragebogen Habilitation'!B38","v":9},2024,{"$f":"'Fragebogen Habilitation'!F38","v":""},{"$f":"'Fragebogen Habilitation'!A38","v":22},{"$f":"'Fragebogen Habilitation'!G38","v":0},{"$f":"'Fragebogen Habilitation'!H38","v":0},{"$f":"'Fragebogen Habilitation'!I38","v":0},{"$f":"'Fragebogen Habilitation'!K38","v":""},{"$f":"'Fragebogen Habilitation'!L38","v":0},{"$f":"'Fragebogen Habilitation'!M38","v":0},{"$f":"'Fragebogen Habilitation'!O38","v":""},{"$f":"'Fragebogen Habilitation'!Q38","v":""},{"$f":"'Fragebogen Habilitation'!R38","v":0},{"$f":"'Fragebogen Habilitation'!T38","v":""},{"$f":"IF('Fragebogen Habilitation'!U38=\"\",\"\",'Fragebogen Habilitation'!U38)","v":""},{"$f":"IF('Fragebogen Habilitation'!V38=\"\",\"\",'Fragebogen Habilitation'!V38)","v":""},{"$f":"'Fragebogen Habilitation'!X38","v":""},{"$f":"'Fragebogen Habilitation'!Z38","v":""},{"$f":"'Fragebogen Habilitation'!AB38","v":""}]
[{"$f":"'Fragebogen Habilitation'!F39&\"0000\"","v":"0000"},{"$f":"'Fragebogen Habilitation'!B39","v":9},2024,{"$f":"'Fragebogen Habilitation'!F39","v":""},{"$f":"'Fragebogen Habilitation'!A39","v":23},{"$f":"'Fragebogen Habilitation'!G39","v":0},{"$f":"'Fragebogen Habilitation'!H39","v":0},{"$f":"'Fragebogen Habilitation'!I39","v":0},{"$f":"'Fragebogen Habilitation'!K39","v":""},{"$f":"'Fragebogen Habilitation'!L39","v":0},{"$f":"'Fragebogen Habilitation'!M39","v":0},{"$f":"'Fragebogen Habilitation'!O39","v":""},{"$f":"'Fragebogen Habilitation'!Q39","v":""},{"$f":"'Fragebogen Habilitation'!R39","v":0},{"$f":"'Fragebogen Habilitation'!T39","v":""},{"$f":"IF('Fragebogen Habilitation'!U39=\"\",\"\",'Fragebogen Habilitation'!U39)","v":""},{"$f":"IF('Fragebogen Habilitation'!V39=\"\",\"\",'Fragebogen Habilitation'!V39)","v":""},{"$f":"'Fragebogen Habilitation'!X39","v":""},{"$f":"'Fragebogen Habilitation'!Z39","v":""},{"$f":"'Fragebogen Habilitation'!AB39","v":""}]
[{"$f":"'Fragebogen Habilitation'!F40&\"0000\"","v":"0000"},{"$f":"'Fragebogen Habilitation'!B40","v":9},2024,{"$f":"'Fragebogen Habilitation'!F40","v":""},{"$f":"'Fragebogen Habilitation'!A40","v":24},{"$f":"'Fragebogen Habilitation'!G40","v":0},{"$f":"'Fragebogen Habilitation'!H40","v":0},{"$f":"'Fragebogen Habilitation'!I40","v":0},{"$f":"'Fragebogen Habilitation'!K40","v":""},{"$f":"'Fragebogen Habilitation'!L40","v":0},{"$f":"'Fragebogen Habilitation'!M40","v":0},{"$f":"'Fragebogen Habilitation'!O40","v":""},{"$f":"'Fragebogen Habilitation'!Q40","v":""},{"$f":"'Fragebogen Habilitation'!R40","v":0},{"$f":"'Fragebogen Habilitation'!T40","v":""},{"$f":"IF('Fragebogen Habilitation'!U40=\"\",\"\",'Fragebogen Habilitation'!U40)","v":""},{"$f":"IF('Fragebogen Habilitation'!V40=\"\",\"\",'Fragebogen Habilitation'!V40)","v":""},{"$f":"'Fragebogen Habilitation'!X40","v":""},{"$f":"'Fragebogen Habilitation'!Z40","v":""},{"$f":"'Fragebogen Habilitation'!AB40","v":""}]
[{"$f":"'Fragebogen Habilitation'!F41&\"0000\"","v":"0000"},{"$f":"'Fragebogen Habilitation'!B41","v":9},2024,{"$f":"'Fragebogen Habilitation'!F41","v":""},{"$f":"'Fragebogen Habilitation'!A41","v":25},{"$f":"'Fragebogen Habilitation'!G41","v":0},{"$f":"'Fragebogen Habilitation'!H41","v":0},{"$f":"'Fragebogen Habilitation'!I41","v":0},{"$f":"'Fragebogen Habilitation'!K41","v":""},{"$f":"'Fragebogen Habilitation'!L41","v":0},{"$f":"'Fragebogen Habilitation'!M41","v":0},{"$f":"'Fragebogen Habilitation'!O41","v":""},{"$f":"'Fragebogen Habilitation'!Q41","v":""},{"$f":"'Fragebogen Habilitation'!R41","v":0},{"$f":"'Fragebogen Habilitation'!T41","v":""},{"$f":"IF('Fragebogen Habilitation'!U41=\"\",\"\",'Fragebogen Habilitation'!U41)","v":""},{"$f":"IF('Fragebogen Habilitation'!V41=\"\",\"\",'Fragebogen Habilitation'!V41)","v":""},{"$f":"'Fragebogen Habilitation'!X41","v":""},{"$f":"'Fragebogen Habilitation'!Z41","v":""},{"$f":"'Fragebogen Habilitation'!AB41","v":""}]
[{"$f":"'Fragebogen Habilitation'!F42&\"0000\"","v":"0000"},{"$f":"'Fragebogen Habilitation'!B42","v":9},2024,{"$f":"'Fragebogen Habilitation'!F42","v":""},{"$f":"'Fragebogen Habilitation'!A42","v":26},{"$f":"'Fragebogen Habilitation'!G42","v":0},{"$f":"'Fragebogen Habilitation'!H42","v":0},{"$f":"'Fragebogen Habilitation'!I42","v":0},{"$f":"'Fragebogen Habilitation'!K42","v":""},{"$f":"'Fragebogen Habilitation'!L42","v":0},{"$f":"'Fragebogen Habilitation'!M42","v":0},{"$f":"'Fragebogen Habilitation'!O42","v":""},{"$f":"'Fragebogen Habilitation'!Q42","v":""},{"$f":"'Fragebogen Habilitation'!R42","v":0},{"$f":"'Fragebogen Habilitation'!T42","v":""},{"$f":"IF('Fragebogen Habilitation'!U42=\"\",\"\",'Fragebogen Habilitation'!U42)","v":""},{"$f":"IF('Fragebogen Habilitation'!V42=\"\",\"\",'Fragebogen Habilitation'!V42)","v":""},{"$f":"'Fragebogen Habilitation'!X42","v":""},{"$f":"'Fragebogen Habilitation'!Z42","v":""},{"$f":"'Fragebogen Habilitation'!AB42","v":""}]
[{"$f":"'Fragebogen Habilitation'!F43&\"0000\"","v":"0000"},{"$f":"'Fragebogen Habilitation'!B43","v":9},2024,{"$f":"'Fragebogen Habilitation'!F43","v":""},{"$f":"'Fragebogen Habilitation'!A43","v":27},{"$f":"'Fragebogen Habilitation'!G43","v":0},{"$f":"'Fragebogen Habilitation'!H43","v":0},{"$f":"'Fragebogen Habilitation'!I43","v":0},{"$f":"'Fragebogen Habilitation'!K43","v":""},{"$f":"'Fragebogen Habilitation'!L43","v":0},{"$f":"'Fragebogen Habilitation'!M43","v":0},{"$f":"'Fragebogen Habilitation'!O43","v":""},{"$f":"'Fragebogen Habilitation'!Q43","v":""},{"$f":"'Fragebogen Habilitation'!R43","v":0},{"$f":"'Fragebogen Habilitation'!T43","v":""},{"$f":"IF('Fragebogen Habilitation'!U43=\"\",\"\",'Fragebogen Habilitation'!U43)","v":""},{"$f":"IF('Fragebogen Habilitation'!V43=\"\",\"\",'Fragebogen Habilitation'!V43)","v":""},{"$f":"'Fragebogen Habilitation'!X43","v":""},{"$f":"'Fragebogen Habilitation'!Z43","v":""},{"$f":"'Fragebogen Habilitation'!AB43","v":""}]
[{"$f":"'Fragebogen Habilitation'!F44&\"0000\"","v":"0000"},{"$f":"'Fragebogen Habilitation'!B44","v":9},2024,{"$f":"'Fragebogen Habilitation'!F44","v":""},{"$f":"'Fragebogen Habilitation'!A44","v":28},{"$f":"'Fragebogen Habilitation'!G44","v":0},{"$f":"'Fragebogen Habilitation'!H44","v":0},{"$f":"'Fragebogen Habilitation'!I44","v":0},{"$f":"'Fragebogen Habilitation'!K44","v":""},{"$f":"'Fragebogen Habilitation'!L44","v":0},{"$f":"'Fragebogen Habilitation'!M44","v":0},{"$f":"'Fragebogen Habilitation'!O44","v":""},{"$f":"'Fragebogen Habilitation'!Q44","v":""},{"$f":"'Fragebogen Habilitation'!R44","v":0},{"$f":"'Fragebogen Habilitation'!T44","v":""},{"$f":"IF('Fragebogen Habilitation'!U44=\"\",\"\",'Fragebogen Habilitation'!U44)","v":""},{"$f":"IF('Fragebogen Habilitation'!V44=\"\",\"\",'Fragebogen Habilitation'!V44)","v":""},{"$f":"'Fragebogen Habilitation'!X44","v":""},{"$f":"'Fragebogen Habilitation'!Z44","v":""},{"$f":"'Fragebogen Habilitation'!AB44","v":""}]
[{"$f":"'Fragebogen Habilitation'!F45&\"0000\"","v":"0000"},{"$f":"'Fragebogen Habilitation'!B45","v":9},2024,{"$f":"'Fragebogen Habilitation'!F45","v":""},{"$f":"'Fragebogen Habilitation'!A45","v":29},{"$f":"'Fragebogen Habilitation'!G45","v":0},{"$f":"'Fragebogen Habilitation'!H45","v":0},{"$f":"'Fragebogen Habilitation'!I45","v":0},{"$f":"'Fragebogen Habilitation'!K45","v":""},{"$f":"'Fragebogen Habilitation'!L45","v":0},{"$f":"'Fragebogen Habilitation'!M45","v":0},{"$f":"'Fragebogen Habilitation'!O45","v":""},{"$f":"'Fragebogen Habilitation'!Q45","v":""},{"$f":"'Fragebogen Habilitation'!R45","v":0},{"$f":"'Fragebogen Habilitation'!T45","v":""},{"$f":"IF('Fragebogen Habilitation'!U45=\"\",\"\",'Fragebogen Habilitation'!U45)","v":""},{"$f":"IF('Fragebogen Habilitation'!V45=\"\",\"\",'Fragebogen Habilitation'!V45)","v":""},{"$f":"'Fragebogen Habilitation'!X45","v":""},{"$f":"'Fragebogen Habilitation'!Z45","v":""},{"$f":"'Fragebogen Habilitation'!AB45","v":""}]
[{"$f":"'Fragebogen Habilitation'!F46&\"0000\"","v":"0000"},{"$f":"'Fragebogen Habilitation'!B46","v":9},2024,{"$f":"'Fragebogen Habilitation'!F46","v":""},{"$f":"'Fragebogen Habilitation'!A46","v":30},{"$f":"'Fragebogen Habilitation'!G46","v":0},{"$f":"'Fragebogen Habilitation'!H46","v":0},{"$f":"'Fragebogen Habilitation'!I46","v":0},{"$f":"'Fragebogen Habilitation'!K46","v":""},{"$f":"'Fragebogen Habilitation'!L46","v":0},{"$f":"'Fragebogen Habilitation'!M46","v":0},{"$f":"'Fragebogen Habilitation'!O46","v":""},{"$f":"'Fragebogen Habilitation'!Q46","v":""},{"$f":"'Fragebogen Habilitation'!R46","v":0},{"$f":"'Fragebogen Habilitation'!T46","v":""},{"$f":"IF('Fragebogen Habilitation'!U46=\"\",\"\",'Fragebogen Habilitation'!U46)","v":""},{"$f":"IF('Fragebogen Habilitation'!V46=\"\",\"\",'Fragebogen Habilitation'!V46)","v":""},{"$f":"'Fragebogen Habilitation'!X46","v":""},{"$f":"'Fragebogen Habilitation'!Z46","v":""},{"$f":"'Fragebogen Habilitation'!AB46","v":""}]
[{"$f":"'Fragebogen Habilitation'!F47&\"0000\"","v":"0000"},{"$f":"'Fragebogen Habilitation'!B47","v":9},2024,{"$f":"'Fragebogen Habilitation'!F47","v":""},{"$f":"'Fragebogen Habilitation'!A47","v":31},{"$f":"'Fragebogen Habilitation'!G47","v":0},{"$f":"'Fragebogen Habilitation'!H47","v":0},{"$f":"'Fragebogen Habilitation'!I47","v":0},{"$f":"'Fragebogen Habilitation'!K47","v":""},{"$f":"'Fragebogen Habilitation'!L47","v":0},{"$f":"'Fragebogen Habilitation'!M47","v":0},{"$f":"'Fragebogen Habilitation'!O47","v":""},{"$f":"'Fragebogen Habilitation'!Q47","v":""},{"$f":"'Fragebogen Habilitation'!R47","v":0},{"$f":"'Fragebogen Habilitation'!T47","v":""},{"$f":"IF('Fragebogen Habilitation'!U47=\"\",\"\",'Fragebogen Habilitation'!U47)","v":""},{"$f":"IF('Fragebogen Habilitation'!V47=\"\",\"\",'Fragebogen Habilitation'!V47)","v":""},{"$f":"'Fragebogen Habilitation'!X47","v":""},{"$f":"'Fragebogen Habilitation'!Z47","v":""},{"$f":"'Fragebogen Habilitation'!AB47","v":""}]
[{"$f":"'Fragebogen Habilitation'!F48&\"0000\"","v":"0000"},{"$f":"'Fragebogen Habilitation'!B48","v":9},2024,{"$f":"'Fragebogen Habilitation'!F48","v":""},{"$f":"'Fragebogen Habilitation'!A48","v":32},{"$f":"'Fragebogen Habilitation'!G48","v":0},{"$f":"'Fragebogen Habilitation'!H48","v":0},{"$f":"'Fragebogen Habilitation'!I48","v":0},{"$f":"'Fragebogen Habilitation'!K48","v":""},{"$f":"'Fragebogen Habilitation'!L48","v":0},{"$f":"'Fragebogen Habilitation'!M48","v":0},{"$f":"'Fragebogen Habilitation'!O48","v":""},{"$f":"'Fragebogen Habilitation'!Q48","v":""},{"$f":"'Fragebogen Habilitation'!R48","v":0},{"$f":"'Fragebogen Habilitation'!T48","v":""},{"$f":"IF('Fragebogen Habilitation'!U48=\"\",\"\",'Fragebogen Habilitation'!U48)","v":""},{"$f":"IF('Fragebogen Habilitation'!V48=\"\",\"\",'Fragebogen Habilitation'!V48)","v":""},{"$f":"'Fragebogen Habilitation'!X48","v":""},{"$f":"'Fragebogen Habilitation'!Z48","v":""},{"$f":"'Fragebogen Habilitation'!AB48","v":""}]
[{"$f":"'Fragebogen Habilitation'!F49&\"0000\"","v":"0000"},{"$f":"'Fragebogen Habilitation'!B49","v":9},2024,{"$f":"'Fragebogen Habilitation'!F49","v":""},{"$f":"'Fragebogen Habilitation'!A49","v":33},{"$f":"'Fragebogen Habilitation'!G49","v":0},{"$f":"'Fragebogen Habilitation'!H49","v":0},{"$f":"'Fragebogen Habilitation'!I49","v":0},{"$f":"'Fragebogen Habilitation'!K49","v":""},{"$f":"'Fragebogen Habilitation'!L49","v":0},{"$f":"'Fragebogen Habilitation'!M49","v":0},{"$f":"'Fragebogen Habilitation'!O49","v":""},{"$f":"'Fragebogen Habilitation'!Q49","v":""},{"$f":"'Fragebogen Habilitation'!R49","v":0},{"$f":"'Fragebogen Habilitation'!T49","v":""},{"$f":"IF('Fragebogen Habilitation'!U49=\"\",\"\",'Fragebogen Habilitation'!U49)","v":""},{"$f":"IF('Fragebogen Habilitation'!V49=\"\",\"\",'Fragebogen Habilitation'!V49)","v":""},{"$f":"'Fragebogen Habilitation'!X49","v":""},{"$f":"'Fragebogen Habilitation'!Z49","v":""},{"$f":"'Fragebogen Habilitation'!AB49","v":""}]
[{"$f":"'Fragebogen Habilitation'!F50&\"0000\"","v":"0000"},{"$f":"'Fragebogen Habilitation'!B50","v":9},2024,{"$f":"'Fragebogen Habilitation'!F50","v":""},{"$f":"'Fragebogen Habilitation'!A50","v":34},{"$f":"'Fragebogen Habilitation'!G50","v":0},{"$f":"'Fragebogen Habilitation'!H50","v":0},{"$f":"'Fragebogen Habilitation'!I50","v":0},{"$f":"'Fragebogen Habilitation'!K50","v":""},{"$f":"'Fragebogen Habilitation'!L50","v":0},{"$f":"'Fragebogen Habilitation'!M50","v":0},{"$f":"'Fragebogen Habilitation'!O50","v":""},{"$f":"'Fragebogen Habilitation'!Q50","v":""},{"$f":"'Fragebogen Habilitation'!R50","v":0},{"$f":"'Fragebogen Habilitation'!T50","v":""},{"$f":"IF('Fragebogen Habilitation'!U50=\"\",\"\",'Fragebogen Habilitation'!U50)","v":""},{"$f":"IF('Fragebogen Habilitation'!V50=\"\",\"\",'Fragebogen Habilitation'!V50)","v":""},{"$f":"'Fragebogen Habilitation'!X50","v":""},{"$f":"'Fragebogen Habilitation'!Z50","v":""},{"$f":"'Fragebogen Habilitation'!AB50","v":""}]
[{"$f":"'Fragebogen Habilitation'!F51&\"0000\"","v":"0000"},{"$f":"'Fragebogen Habilitation'!B51","v":9},2024,{"$f":"'Fragebogen Habilitation'!F51","v":""},{"$f":"'Fragebogen Habilitation'!A51","v":35},{"$f":"'Fragebogen Habilitation'!G51","v":0},{"$f":"'Fragebogen Habilitation'!H51","v":0},{"$f":"'Fragebogen Habilitation'!I51","v":0},{"$f":"'Fragebogen Habilitation'!K51","v":""},{"$f":"'Fragebogen Habilitation'!L51","v":0},{"$f":"'Fragebogen Habilitation'!M51","v":0},{"$f":"'Fragebogen Habilitation'!O51","v":""},{"$f":"'Fragebogen Habilitation'!Q51","v":""},{"$f":"'Fragebogen Habilitation'!R51","v":0},{"$f":"'Fragebogen Habilitation'!T51","v":""},{"$f":"IF('Fragebogen Habilitation'!U51=\"\",\"\",'Fragebogen Habilitation'!U51)","v":""},{"$f":"IF('Fragebogen Habilitation'!V51=\"\",\"\",'Fragebogen Habilitation'!V51)","v":""},{"$f":"'Fragebogen Habilitation'!X51","v":""},{"$f":"'Fragebogen Habilitation'!Z51","v":""},{"$f":"'Fragebogen Habilitation'!AB51","v":""}]
[{"$f":"'Fragebogen Habilitation'!F52&\"0000\"","v":"0000"},{"$f":"'Fragebogen Habilitation'!B52","v":9},2024,{"$f":"'Fragebogen Habilitation'!F52","v":""},{"$f":"'Fragebogen Habilitation'!A52","v":36},{"$f":"'Fragebogen Habilitation'!G52","v":0},{"$f":"'Fragebogen Habilitation'!H52","v":0},{"$f":"'Fragebogen Habilitation'!I52","v":0},{"$f":"'Fragebogen Habilitation'!K52","v":""},{"$f":"'Fragebogen Habilitation'!L52","v":0},{"$f":"'Fragebogen Habilitation'!M52","v":0},{"$f":"'Fragebogen Habilitation'!O52","v":""},{"$f":"'Fragebogen Habilitation'!Q52","v":""},{"$f":"'Fragebogen Habilitation'!R52","v":0},{"$f":"'Fragebogen Habilitation'!T52","v":""},{"$f":"IF('Fragebogen Habilitation'!U52=\"\",\"\",'Fragebogen Habilitation'!U52)","v":""},{"$f":"IF('Fragebogen Habilitation'!V52=\"\",\"\",'Fragebogen Habilitation'!V52)","v":""},{"$f":"'Fragebogen Habilitation'!X52","v":""},{"$f":"'Fragebogen Habilitation'!Z52","v":""},{"$f":"'Fragebogen Habilitation'!AB52","v":""}]
[{"$f":"'Fragebogen Habilitation'!F53&\"0000\"","v":"0000"},{"$f":"'Fragebogen Habilitation'!B53","v":9},2024,{"$f":"'Fragebogen Habilitation'!F53","v":""},{"$f":"'Fragebogen Habilitation'!A53","v":37},{"$f":"'Fragebogen Habilitation'!G53","v":0},{"$f":"'Fragebogen Habilitation'!H53","v":0},{"$f":"'Fragebogen Habilitation'!I53","v":0},{"$f":"'Fragebogen Habilitation'!K53","v":""},{"$f":"'Fragebogen Habilitation'!L53","v":0},{"$f":"'Fragebogen Habilitation'!M53","v":0},{"$f":"'Fragebogen Habilitation'!O53","v":""},{"$f":"'Fragebogen Habilitation'!Q53","v":""},{"$f":"'Fragebogen Habilitation'!R53","v":0},{"$f":"'Fragebogen Habilitation'!T53","v":""},{"$f":"IF('Fragebogen Habilitation'!U53=\"\",\"\",'Fragebogen Habilitation'!U53)","v":""},{"$f":"IF('Fragebogen Habilitation'!V53=\"\",\"\",'Fragebogen Habilitation'!V53)","v":""},{"$f":"'Fragebogen Habilitation'!X53","v":""},{"$f":"'Fragebogen Habilitation'!Z53","v":""},{"$f":"'Fragebogen Habilitation'!AB53","v":""}]
[{"$f":"'Fragebogen Habilitation'!F54&\"0000\"","v":"0000"},{"$f":"'Fragebogen Habilitation'!B54","v":9},2024,{"$f":"'Fragebogen Habilitation'!F54","v":""},{"$f":"'Fragebogen Habilitation'!A54","v":38},{"$f":"'Fragebogen Habilitation'!G54","v":0},{"$f":"'Fragebogen Habilitation'!H54","v":0},{"$f":"'Fragebogen Habilitation'!I54","v":0},{"$f":"'Fragebogen Habilitation'!K54","v":""},{"$f":"'Fragebogen Habilitation'!L54","v":0},{"$f":"'Fragebogen Habilitation'!M54","v":0},{"$f":"'Fragebogen Habilitation'!O54","v":""},{"$f":"'Fragebogen Habilitation'!Q54","v":""},{"$f":"'Fragebogen Habilitation'!R54","v":0},{"$f":"'Fragebogen Habilitation'!T54","v":""},{"$f":"IF('Fragebogen Habilitation'!U54=\"\",\"\",'Fragebogen Habilitation'!U54)","v":""},{"$f":"IF('Fragebogen Habilitation'!V54=\"\",\"\",'Fragebogen Habilitation'!V54)","v":""},{"$f":"'Fragebogen Habilitation'!X54","v":""},{"$f":"'Fragebogen Habilitation'!Z54","v":""},{"$f":"'Fragebogen Habilitation'!AB54","v":""}]
[{"$f":"'Fragebogen Habilitation'!F55&\"0000\"","v":"0000"},{"$f":"'Fragebogen Habilitation'!B55","v":9},2024,{"$f":"'Fragebogen Habilitation'!F55","v":""},{"$f":"'Fragebogen Habilitation'!A55","v":39},{"$f":"'Fragebogen Habilitation'!G55","v":0},{"$f":"'Fragebogen Habilitation'!H55","v":0},{"$f":"'Fragebogen Habilitation'!I55","v":0},{"$f":"'Fragebogen Habilitation'!K55","v":""},{"$f":"'Fragebogen Habilitation'!L55","v":0},{"$f":"'Fragebogen Habilitation'!M55","v":0},{"$f":"'Fragebogen Habilitation'!O55","v":""},{"$f":"'Fragebogen Habilitation'!Q55","v":""},{"$f":"'Fragebogen Habilitation'!R55","v":0},{"$f":"'Fragebogen Habilitation'!T55","v":""},{"$f":"IF('Fragebogen Habilitation'!U55=\"\",\"\",'Fragebogen Habilitation'!U55)","v":""},{"$f":"IF('Fragebogen Habilitation'!V55=\"\",\"\",'Fragebogen Habilitation'!V55)","v":""},{"$f":"'Fragebogen Habilitation'!X55","v":""},{"$f":"'Fragebogen Habilitation'!Z55","v":""},{"$f":"'Fragebogen Habilitation'!AB55","v":""}]
[{"$f":"'Fragebogen Habilitation'!F56&\"0000\"","v":"0000"},{"$f":"'Fragebogen Habilitation'!B56","v":9},2024,{"$f":"'Fragebogen Habilitation'!F56","v":""},{"$f":"'Fragebogen Habilitation'!A56","v":40},{"$f":"'Fragebogen Habilitation'!G56","v":0},{"$f":"'Fragebogen Habilitation'!H56","v":0},{"$f":"'Fragebogen Habilitation'!I56","v":0},{"$f":"'Fragebogen Habilitation'!K56","v":""},{"$f":"'Fragebogen Habilitation'!L56","v":0},{"$f":"'Fragebogen Habilitation'!M56","v":0},{"$f":"'Fragebogen Habilitation'!O56","v":""},{"$f":"'Fragebogen Habilitation'!Q56","v":""},{"$f":"'Fragebogen Habilitation'!R56","v":0},{"$f":"'Fragebogen Habilitation'!T56","v":""},{"$f":"IF('Fragebogen Habilitation'!U56=\"\",\"\",'Fragebogen Habilitation'!U56)","v":""},{"$f":"IF('Fragebogen Habilitation'!V56=\"\",\"\",'Fragebogen Habilitation'!V56)","v":""},{"$f":"'Fragebogen Habilitation'!X56","v":""},{"$f":"'Fragebogen Habilitation'!Z56","v":""},{"$f":"'Fragebogen Habilitation'!AB56","v":""}]
[{"$f":"'Fragebogen Habilitation'!F57&\"0000\"","v":"0000"},{"$f":"'Fragebogen Habilitation'!B57","v":9},2024,{"$f":"'Fragebogen Habilitation'!F57","v":""},{"$f":"'Fragebogen Habilitation'!A57","v":41},{"$f":"'Fragebogen Habilitation'!G57","v":0},{"$f":"'Fragebogen Habilitation'!H57","v":0},{"$f":"'Fragebogen Habilitation'!I57","v":0},{"$f":"'Fragebogen Habilitation'!K57","v":""},{"$f":"'Fragebogen Habilitation'!L57","v":0},{"$f":"'Fragebogen Habilitation'!M57","v":0},{"$f":"'Fragebogen Habilitation'!O57","v":""},{"$f":"'Fragebogen Habilitation'!Q57","v":""},{"$f":"'Fragebogen Habilitation'!R57","v":0},{"$f":"'Fragebogen Habilitation'!T57","v":""},{"$f":"IF('Fragebogen Habilitation'!U57=\"\",\"\",'Fragebogen Habilitation'!U57)","v":""},{"$f":"IF('Fragebogen Habilitation'!V57=\"\",\"\",'Fragebogen Habilitation'!V57)","v":""},{"$f":"'Fragebogen Habilitation'!X57","v":""},{"$f":"'Fragebogen Habilitation'!Z57","v":""},{"$f":"'Fragebogen Habilitation'!AB57","v":""}]
[{"$f":"'Fragebogen Habilitation'!F58&\"0000\"","v":"0000"},{"$f":"'Fragebogen Habilitation'!B58","v":9},2024,{"$f":"'Fragebogen Habilitation'!F58","v":""},{"$f":"'Fragebogen Habilitation'!A58","v":42},{"$f":"'Fragebogen Habilitation'!G58","v":0},{"$f":"'Fragebogen Habilitation'!H58","v":0},{"$f":"'Fragebogen Habilitation'!I58","v":0},{"$f":"'Fragebogen Habilitation'!K58","v":""},{"$f":"'Fragebogen Habilitation'!L58","v":0},{"$f":"'Fragebogen Habilitation'!M58","v":0},{"$f":"'Fragebogen Habilitation'!O58","v":""},{"$f":"'Fragebogen Habilitation'!Q58","v":""},{"$f":"'Fragebogen Habilitation'!R58","v":0},{"$f":"'Fragebogen Habilitation'!T58","v":""},{"$f":"IF('Fragebogen Habilitation'!U58=\"\",\"\",'Fragebogen Habilitation'!U58)","v":""},{"$f":"IF('Fragebogen Habilitation'!V58=\"\",\"\",'Fragebogen Habilitation'!V58)","v":""},{"$f":"'Fragebogen Habilitation'!X58","v":""},{"$f":"'Fragebogen Habilitation'!Z58","v":""},{"$f":"'Fragebogen Habilitation'!AB58","v":""}]
[{"$f":"'Fragebogen Habilitation'!F59&\"0000\"","v":"0000"},{"$f":"'Fragebogen Habilitation'!B59","v":9},2024,{"$f":"'Fragebogen Habilitation'!F59","v":""},{"$f":"'Fragebogen Habilitation'!A59","v":43},{"$f":"'Fragebogen Habilitation'!G59","v":0},{"$f":"'Fragebogen Habilitation'!H59","v":0},{"$f":"'Fragebogen Habilitation'!I59","v":0},{"$f":"'Fragebogen Habilitation'!K59","v":""},{"$f":"'Fragebogen Habilitation'!L59","v":0},{"$f":"'Fragebogen Habilitation'!M59","v":0},{"$f":"'Fragebogen Habilitation'!O59","v":""},{"$f":"'Fragebogen Habilitation'!Q59","v":""},{"$f":"'Fragebogen Habilitation'!R59","v":0},{"$f":"'Fragebogen Habilitation'!T59","v":""},{"$f":"IF('Fragebogen Habilitation'!U59=\"\",\"\",'Fragebogen Habilitation'!U59)","v":""},{"$f":"IF('Fragebogen Habilitation'!V59=\"\",\"\",'Fragebogen Habilitation'!V59)","v":""},{"$f":"'Fragebogen Habilitation'!X59","v":""},{"$f":"'Fragebogen Habilitation'!Z59","v":""},{"$f":"'Fragebogen Habilitation'!AB59","v":""}]
[{"$f":"'Fragebogen Habilitation'!F60&\"0000\"","v":"0000"},{"$f":"'Fragebogen Habilitation'!B60","v":9},2024,{"$f":"'Fragebogen Habilitation'!F60","v":""},{"$f":"'Fragebogen Habilitation'!A60","v":44},{"$f":"'Fragebogen Habilitation'!G60","v":0},{"$f":"'Fragebogen Habilitation'!H60","v":0},{"$f":"'Fragebogen Habilitation'!I60","v":0},{"$f":"'Fragebogen Habilitation'!K60","v":""},{"$f":"'Fragebogen Habilitation'!L60","v":0},{"$f":"'Fragebogen Habilitation'!M60","v":0},{"$f":"'Fragebogen Habilitation'!O60","v":""},{"$f":"'Fragebogen Habilitation'!Q60","v":""},{"$f":"'Fragebogen Habilitation'!R60","v":0},{"$f":"'Fragebogen Habilitation'!T60","v":""},{"$f":"IF('Fragebogen Habilitation'!U60=\"\",\"\",'Fragebogen Habilitation'!U60)","v":""},{"$f":"IF('Fragebogen Habilitation'!V60=\"\",\"\",'Fragebogen Habilitation'!V60)","v":""},{"$f":"'Fragebogen Habilitation'!X60","v":""},{"$f":"'Fragebogen Habilitation'!Z60","v":""},{"$f":"'Fragebogen Habilitation'!AB60","v":""}]
[{"$f":"'Fragebogen Habilitation'!F61&\"0000\"","v":"0000"},{"$f":"'Fragebogen Habilitation'!B61","v":9},2024,{"$f":"'Fragebogen Habilitation'!F61","v":""},{"$f":"'Fragebogen Habilitation'!A61","v":45},{"$f":"'Fragebogen Habilitation'!G61","v":0},{"$f":"'Fragebogen Habilitation'!H61","v":0},{"$f":"'Fragebogen Habilitation'!I61","v":0},{"$f":"'Fragebogen Habilitation'!K61","v":""},{"$f":"'Fragebogen Habilitation'!L61","v":0},{"$f":"'Fragebogen Habilitation'!M61","v":0},{"$f":"'Fragebogen Habilitation'!O61","v":""},{"$f":"'Fragebogen Habilitation'!Q61","v":""},{"$f":"'Fragebogen Habilitation'!R61","v":0},{"$f":"'Fragebogen Habilitation'!T61","v":""},{"$f":"IF('Fragebogen Habilitation'!U61=\"\",\"\",'Fragebogen Habilitation'!U61)","v":""},{"$f":"IF('Fragebogen Habilitation'!V61=\"\",\"\",'Fragebogen Habilitation'!V61)","v":""},{"$f":"'Fragebogen Habilitation'!X61","v":""},{"$f":"'Fragebogen Habilitation'!Z61","v":""},{"$f":"'Fragebogen Habilitation'!AB61","v":""}]
[{"$f":"'Fragebogen Habilitation'!F62&\"0000\"","v":"0000"},{"$f":"'Fragebogen Habilitation'!B62","v":9},2024,{"$f":"'Fragebogen Habilitation'!F62","v":""},{"$f":"'Fragebogen Habilitation'!A62","v":46},{"$f":"'Fragebogen Habilitation'!G62","v":0},{"$f":"'Fragebogen Habilitation'!H62","v":0},{"$f":"'Fragebogen Habilitation'!I62","v":0},{"$f":"'Fragebogen Habilitation'!K62","v":""},{"$f":"'Fragebogen Habilitation'!L62","v":0},{"$f":"'Fragebogen Habilitation'!M62","v":0},{"$f":"'Fragebogen Habilitation'!O62","v":""},{"$f":"'Fragebogen Habilitation'!Q62","v":""},{"$f":"'Fragebogen Habilitation'!R62","v":0},{"$f":"'Fragebogen Habilitation'!T62","v":""},{"$f":"IF('Fragebogen Habilitation'!U62=\"\",\"\",'Fragebogen Habilitation'!U62)","v":""},{"$f":"IF('Fragebogen Habilitation'!V62=\"\",\"\",'Fragebogen Habilitation'!V62)","v":""},{"$f":"'Fragebogen Habilitation'!X62","v":""},{"$f":"'Fragebogen Habilitation'!Z62","v":""},{"$f":"'Fragebogen Habilitation'!AB62","v":""}]
[{"$f":"'Fragebogen Habilitation'!F63&\"0000\"","v":"0000"},{"$f":"'Fragebogen Habilitation'!B63","v":9},2024,{"$f":"'Fragebogen Habilitation'!F63","v":""},{"$f":"'Fragebogen Habilitation'!A63","v":47},{"$f":"'Fragebogen Habilitation'!G63","v":0},{"$f":"'Fragebogen Habilitation'!H63","v":0},{"$f":"'Fragebogen Habilitation'!I63","v":0},{"$f":"'Fragebogen Habilitation'!K63","v":""},{"$f":"'Fragebogen Habilitation'!L63","v":0},{"$f":"'Fragebogen Habilitation'!M63","v":0},{"$f":"'Fragebogen Habilitation'!O63","v":""},{"$f":"'Fragebogen Habilitation'!Q63","v":""},{"$f":"'Fragebogen Habilitation'!R63","v":0},{"$f":"'Fragebogen Habilitation'!T63","v":""},{"$f":"IF('Fragebogen Habilitation'!U63=\"\",\"\",'Fragebogen Habilitation'!U63)","v":""},{"$f":"IF('Fragebogen Habilitation'!V63=\"\",\"\",'Fragebogen Habilitation'!V63)","v":""},{"$f":"'Fragebogen Habilitation'!X63","v":""},{"$f":"'Fragebogen Habilitation'!Z63","v":""},{"$f":"'Fragebogen Habilitation'!AB63","v":""}]
[{"$f":"'Fragebogen Habilitation'!F64&\"0000\"","v":"0000"},{"$f":"'Fragebogen Habilitation'!B64","v":9},2024,{"$f":"'Fragebogen Habilitation'!F64","v":""},{"$f":"'Fragebogen Habilitation'!A64","v":48},{"$f":"'Fragebogen Habilitation'!G64","v":0},{"$f":"'Fragebogen Habilitation'!H64","v":0},{"$f":"'Fragebogen Habilitation'!I64","v":0},{"$f":"'Fragebogen Habilitation'!K64","v":""},{"$f":"'Fragebogen Habilitation'!L64","v":0},{"$f":"'Fragebogen Habilitation'!M64","v":0},{"$f":"'Fragebogen Habilitation'!O64","v":""},{"$f":"'Fragebogen Habilitation'!Q64","v":""},{"$f":"'Fragebogen Habilitation'!R64","v":0},{"$f":"'Fragebogen Habilitation'!T64","v":""},{"$f":"IF('Fragebogen Habilitation'!U64=\"\",\"\",'Fragebogen Habilitation'!U64)","v":""},{"$f":"IF('Fragebogen Habilitation'!V64=\"\",\"\",'Fragebogen Habilitation'!V64)","v":""},{"$f":"'Fragebogen Habilitation'!X64","v":""},{"$f":"'Fragebogen Habilitation'!Z64","v":""},{"$f":"'Fragebogen Habilitation'!AB64","v":""}]
[{"$f":"'Fragebogen Habilitation'!F65&\"0000\"","v":"0000"},{"$f":"'Fragebogen Habilitation'!B65","v":9},2024,{"$f":"'Fragebogen Habilitation'!F65","v":""},{"$f":"'Fragebogen Habilitation'!A65","v":49},{"$f":"'Fragebogen Habilitation'!G65","v":0},{"$f":"'Fragebogen Habilitation'!H65","v":0},{"$f":"'Fragebogen Habilitation'!I65","v":0},{"$f":"'Fragebogen Habilitation'!K65","v":""},{"$f":"'Fragebogen Habilitation'!L65","v":0},{"$f":"'Fragebogen Habilitation'!M65","v":0},{"$f":"'Fragebogen Habilitation'!O65","v":""},{"$f":"'Fragebogen Habilitation'!Q65","v":""},{"$f":"'Fragebogen Habilitation'!R65","v":0},{"$f":"'Fragebogen Habilitation'!T65","v":""},{"$f":"IF('Fragebogen Habilitation'!U65=\"\",\"\",'Fragebogen Habilitation'!U65)","v":""},{"$f":"IF('Fragebogen Habilitation'!V65=\"\",\"\",'Fragebogen Habilitation'!V65)","v":""},{"$f":"'Fragebogen Habilitation'!X65","v":""},{"$f":"'Fragebogen Habilitation'!Z65","v":""},{"$f":"'Fragebogen Habilitation'!AB65","v":""}]
[{"$f":"'Fragebogen Habilitation'!F66&\"0000\"","v":"0000"},{"$f":"'Fragebogen Habilitation'!B66","v":9},2024,{"$f":"'Fragebogen Habilitation'!F66","v":""},{"$f":"'Fragebogen Habilitation'!A66","v":50},{"$f":"'Fragebogen Habilitation'!G66","v":0},{"$f":"'Fragebogen Habilitation'!H66","v":0},{"$f":"'Fragebogen Habilitation'!I66","v":0},{"$f":"'Fragebogen Habilitation'!K66","v":""},{"$f":"'Fragebogen Habilitation'!L66","v":0},{"$f":"'Fragebogen Habilitation'!M66","v":0},{"$f":"'Fragebogen Habilitation'!O66","v":""},{"$f":"'Fragebogen Habilitation'!Q66","v":""},{"$f":"'Fragebogen Habilitation'!R66","v":0},{"$f":"'Fragebogen Habilitation'!T66","v":""},{"$f":"IF('Fragebogen Habilitation'!U66=\"\",\"\",'Fragebogen Habilitation'!U66)","v":""},{"$f":"IF('Fragebogen Habilitation'!V66=\"\",\"\",'Fragebogen Habilitation'!V66)","v":""},{"$f":"'Fragebogen Habilitation'!X66","v":""},{"$f":"'Fragebogen Habilitation'!Z66","v":""},{"$f":"'Fragebogen Habilitation'!AB66","v":""}]
[{"$f":"'Fragebogen Habilitation'!F67&\"0000\"","v":"0000"},{"$f":"'Fragebogen Habilitation'!B67","v":9},2024,{"$f":"'Fragebogen Habilitation'!F67","v":""},{"$f":"'Fragebogen Habilitation'!A67","v":51},{"$f":"'Fragebogen Habilitation'!G67","v":0},{"$f":"'Fragebogen Habilitation'!H67","v":0},{"$f":"'Fragebogen Habilitation'!I67","v":0},{"$f":"'Fragebogen Habilitation'!K67","v":""},{"$f":"'Fragebogen Habilitation'!L67","v":0},{"$f":"'Fragebogen Habilitation'!M67","v":0},{"$f":"'Fragebogen Habilitation'!O67","v":""},{"$f":"'Fragebogen Habilitation'!Q67","v":""},{"$f":"'Fragebogen Habilitation'!R67","v":0},{"$f":"'Fragebogen Habilitation'!T67","v":""},{"$f":"IF('Fragebogen Habilitation'!U67=\"\",\"\",'Fragebogen Habilitation'!U67)","v":""},{"$f":"IF('Fragebogen Habilitation'!V67=\"\",\"\",'Fragebogen Habilitation'!V67)","v":""},{"$f":"'Fragebogen Habilitation'!X67","v":""},{"$f":"'Fragebogen Habilitation'!Z67","v":""},{"$f":"'Fragebogen Habilitation'!AB67","v":""}]
[{"$f":"'Fragebogen Habilitation'!F68&\"0000\"","v":"0000"},{"$f":"'Fragebogen Habilitation'!B68","v":9},2024,{"$f":"'Fragebogen Habilitation'!F68","v":""},{"$f":"'Fragebogen Habilitation'!A68","v":52},{"$f":"'Fragebogen Habilitation'!G68","v":0},{"$f":"'Fragebogen Habilitation'!H68","v":0},{"$f":"'Fragebogen Habilitation'!I68","v":0},{"$f":"'Fragebogen Habilitation'!K68","v":""},{"$f":"'Fragebogen Habilitation'!L68","v":0},{"$f":"'Fragebogen Habilitation'!M68","v":0},{"$f":"'Fragebogen Habilitation'!O68","v":""},{"$f":"'Fragebogen Habilitation'!Q68","v":""},{"$f":"'Fragebogen Habilitation'!R68","v":0},{"$f":"'Fragebogen Habilitation'!T68","v":""},{"$f":"IF('Fragebogen Habilitation'!U68=\"\",\"\",'Fragebogen Habilitation'!U68)","v":""},{"$f":"IF('Fragebogen Habilitation'!V68=\"\",\"\",'Fragebogen Habilitation'!V68)","v":""},{"$f":"'Fragebogen Habilitation'!X68","v":""},{"$f":"'Fragebogen Habilitation'!Z68","v":""},{"$f":"'Fragebogen Habilitation'!AB68","v":""}]
[{"$f":"'Fragebogen Habilitation'!F69&\"0000\"","v":"0000"},{"$f":"'Fragebogen Habilitation'!B69","v":9},2024,{"$f":"'Fragebogen Habilitation'!F69","v":""},{"$f":"'Fragebogen Habilitation'!A69","v":53},{"$f":"'Fragebogen Habilitation'!G69","v":0},{"$f":"'Fragebogen Habilitation'!H69","v":0},{"$f":"'Fragebogen Habilitation'!I69","v":0},{"$f":"'Fragebogen Habilitation'!K69","v":""},{"$f":"'Fragebogen Habilitation'!L69","v":0},{"$f":"'Fragebogen Habilitation'!M69","v":0},{"$f":"'Fragebogen Habilitation'!O69","v":""},{"$f":"'Fragebogen Habilitation'!Q69","v":""},{"$f":"'Fragebogen Habilitation'!R69","v":0},{"$f":"'Fragebogen Habilitation'!T69","v":""},{"$f":"IF('Fragebogen Habilitation'!U69=\"\",\"\",'Fragebogen Habilitation'!U69)","v":""},{"$f":"IF('Fragebogen Habilitation'!V69=\"\",\"\",'Fragebogen Habilitation'!V69)","v":""},{"$f":"'Fragebogen Habilitation'!X69","v":""},{"$f":"'Fragebogen Habilitation'!Z69","v":""},{"$f":"'Fragebogen Habilitation'!AB69","v":""}]
[{"$f":"'Fragebogen Habilitation'!F70&\"0000\"","v":"0000"},{"$f":"'Fragebogen Habilitation'!B70","v":9},2024,{"$f":"'Fragebogen Habilitation'!F70","v":""},{"$f":"'Fragebogen Habilitation'!A70","v":54},{"$f":"'Fragebogen Habilitation'!G70","v":0},{"$f":"'Fragebogen Habilitation'!H70","v":0},{"$f":"'Fragebogen Habilitation'!I70","v":0},{"$f":"'Fragebogen Habilitation'!K70","v":""},{"$f":"'Fragebogen Habilitation'!L70","v":0},{"$f":"'Fragebogen Habilitation'!M70","v":0},{"$f":"'Fragebogen Habilitation'!O70","v":""},{"$f":"'Fragebogen Habilitation'!Q70","v":""},{"$f":"'Fragebogen Habilitation'!R70","v":0},{"$f":"'Fragebogen Habilitation'!T70","v":""},{"$f":"IF('Fragebogen Habilitation'!U70=\"\",\"\",'Fragebogen Habilitation'!U70)","v":""},{"$f":"IF('Fragebogen Habilitation'!V70=\"\",\"\",'Fragebogen Habilitation'!V70)","v":""},{"$f":"'Fragebogen Habilitation'!X70","v":""},{"$f":"'Fragebogen Habilitation'!Z70","v":""},{"$f":"'Fragebogen Habilitation'!AB70","v":""}]
[{"$f":"'Fragebogen Habilitation'!F71&\"0000\"","v":"0000"},{"$f":"'Fragebogen Habilitation'!B71","v":9},2024,{"$f":"'Fragebogen Habilitation'!F71","v":""},{"$f":"'Fragebogen Habilitation'!A71","v":55},{"$f":"'Fragebogen Habilitation'!G71","v":0},{"$f":"'Fragebogen Habilitation'!H71","v":0},{"$f":"'Fragebogen Habilitation'!I71","v":0},{"$f":"'Fragebogen Habilitation'!K71","v":""},{"$f":"'Fragebogen Habilitation'!L71","v":0},{"$f":"'Fragebogen Habilitation'!M71","v":0},{"$f":"'Fragebogen Habilitation'!O71","v":""},{"$f":"'Fragebogen Habilitation'!Q71","v":""},{"$f":"'Fragebogen Habilitation'!R71","v":0},{"$f":"'Fragebogen Habilitation'!T71","v":""},{"$f":"IF('Fragebogen Habilitation'!U71=\"\",\"\",'Fragebogen Habilitation'!U71)","v":""},{"$f":"IF('Fragebogen Habilitation'!V71=\"\",\"\",'Fragebogen Habilitation'!V71)","v":""},{"$f":"'Fragebogen Habilitation'!X71","v":""},{"$f":"'Fragebogen Habilitation'!Z71","v":""},{"$f":"'Fragebogen Habilitation'!AB71","v":""}]
[{"$f":"'Fragebogen Habilitation'!F72&\"0000\"","v":"0000"},{"$f":"'Fragebogen Habilitation'!B72","v":9},2024,{"$f":"'Fragebogen Habilitation'!F72","v":""},{"$f":"'Fragebogen Habilitation'!A72","v":56},{"$f":"'Fragebogen Habilitation'!G72","v":0},{"$f":"'Fragebogen Habilitation'!H72","v":0},{"$f":"'Fragebogen Habilitation'!I72","v":0},{"$f":"'Fragebogen Habilitation'!K72","v":""},{"$f":"'Fragebogen Habilitation'!L72","v":0},{"$f":"'Fragebogen Habilitation'!M72","v":0},{"$f":"'Fragebogen Habilitation'!O72","v":""},{"$f":"'Fragebogen Habilitation'!Q72","v":""},{"$f":"'Fragebogen Habilitation'!R72","v":0},{"$f":"'Fragebogen Habilitation'!T72","v":""},{"$f":"IF('Fragebogen Habilitation'!U72=\"\",\"\",'Fragebogen Habilitation'!U72)","v":""},{"$f":"IF('Fragebogen Habilitation'!V72=\"\",\"\",'Fragebogen Habilitation'!V72)","v":""},{"$f":"'Fragebogen Habilitation'!X72","v":""},{"$f":"'Fragebogen Habilitation'!Z72","v":""},{"$f":"'Fragebogen Habilitation'!AB72","v":""}]
[{"$f":"'Fragebogen Habilitation'!F73&\"0000\"","v":"0000"},{"$f":"'Fragebogen Habilitation'!B73","v":9},2024,{"$f":"'Fragebogen Habilitation'!F73","v":""},{"$f":"'Fragebogen Habilitation'!A73","v":57},{"$f":"'Fragebogen Habilitation'!G73","v":0},{"$f":"'Fragebogen Habilitation'!H73","v":0},{"$f":"'Fragebogen Habilitation'!I73","v":0},{"$f":"'Fragebogen Habilitation'!K73","v":""},{"$f":"'Fragebogen Habilitation'!L73","v":0},{"$f":"'Fragebogen Habilitation'!M73","v":0},{"$f":"'Fragebogen Habilitation'!O73","v":""},{"$f":"'Fragebogen Habilitation'!Q73","v":""},{"$f":"'Fragebogen Habilitation'!R73","v":0},{"$f":"'Fragebogen Habilitation'!T73","v":""},{"$f":"IF('Fragebogen Habilitation'!U73=\"\",\"\",'Fragebogen Habilitation'!U73)","v":""},{"$f":"IF('Fragebogen Habilitation'!V73=\"\",\"\",'Fragebogen Habilitation'!V73)","v":""},{"$f":"'Fragebogen Habilitation'!X73","v":""},{"$f":"'Fragebogen Habilitation'!Z73","v":""},{"$f":"'Fragebogen Habilitation'!AB73","v":""}]
[{"$f":"'Fragebogen Habilitation'!F74&\"0000\"","v":"0000"},{"$f":"'Fragebogen Habilitation'!B74","v":9},2024,{"$f":"'Fragebogen Habilitation'!F74","v":""},{"$f":"'Fragebogen Habilitation'!A74","v":58},{"$f":"'Fragebogen Habilitation'!G74","v":0},{"$f":"'Fragebogen Habilitation'!H74","v":0},{"$f":"'Fragebogen Habilitation'!I74","v":0},{"$f":"'Fragebogen Habilitation'!K74","v":""},{"$f":"'Fragebogen Habilitation'!L74","v":0},{"$f":"'Fragebogen Habilitation'!M74","v":0},{"$f":"'Fragebogen Habilitation'!O74","v":""},{"$f":"'Fragebogen Habilitation'!Q74","v":""},{"$f":"'Fragebogen Habilitation'!R74","v":0},{"$f":"'Fragebogen Habilitation'!T74","v":""},{"$f":"IF('Fragebogen Habilitation'!U74=\"\",\"\",'Fragebogen Habilitation'!U74)","v":""},{"$f":"IF('Fragebogen Habilitation'!V74=\"\",\"\",'Fragebogen Habilitation'!V74)","v":""},{"$f":"'Fragebogen Habilitation'!X74","v":""},{"$f":"'Fragebogen Habilitation'!Z74","v":""},{"$f":"'Fragebogen Habilitation'!AB74","v":""}]
[{"$f":"'Fragebogen Habilitation'!F75&\"0000\"","v":"0000"},{"$f":"'Fragebogen Habilitation'!B75","v":9},2024,{"$f":"'Fragebogen Habilitation'!F75","v":""},{"$f":"'Fragebogen Habilitation'!A75","v":59},{"$f":"'Fragebogen Habilitation'!G75","v":0},{"$f":"'Fragebogen Habilitation'!H75","v":0},{"$f":"'Fragebogen Habilitation'!I75","v":0},{"$f":"'Fragebogen Habilitation'!K75","v":""},{"$f":"'Fragebogen Habilitation'!L75","v":0},{"$f":"'Fragebogen Habilitation'!M75","v":0},{"$f":"'Fragebogen Habilitation'!O75","v":""},{"$f":"'Fragebogen Habilitation'!Q75","v":""},{"$f":"'Fragebogen Habilitation'!R75","v":0},{"$f":"'Fragebogen Habilitation'!T75","v":""},{"$f":"IF('Fragebogen Habilitation'!U75=\"\",\"\",'Fragebogen Habilitation'!U75)","v":""},{"$f":"IF('Fragebogen Habilitation'!V75=\"\",\"\",'Fragebogen Habilitation'!V75)","v":""},{"$f":"'Fragebogen Habilitation'!X75","v":""},{"$f":"'Fragebogen Habilitation'!Z75","v":""},{"$f":"'Fragebogen Habilitation'!AB75","v":""}]
[{"$f":"'Fragebogen Habilitation'!F76&\"0000\"","v":"0000"},{"$f":"'Fragebogen Habilitation'!B76","v":9},2024,{"$f":"'Fragebogen Habilitation'!F76","v":""},{"$f":"'Fragebogen Habilitation'!A76","v":60},{"$f":"'Fragebogen Habilitation'!G76","v":0},{"$f":"'Fragebogen Habilitation'!H76","v":0},{"$f":"'Fragebogen Habilitation'!I76","v":0},{"$f":"'Fragebogen Habilitation'!K76","v":""},{"$f":"'Fragebogen Habilitation'!L76","v":0},{"$f":"'Fragebogen Habilitation'!M76","v":0},{"$f":"'Fragebogen Habilitation'!O76","v":""},{"$f":"'Fragebogen Habilitation'!Q76","v":""},{"$f":"'Fragebogen Habilitation'!R76","v":0},{"$f":"'Fragebogen Habilitation'!T76","v":""},{"$f":"IF('Fragebogen Habilitation'!U76=\"\",\"\",'Fragebogen Habilitation'!U76)","v":""},{"$f":"IF('Fragebogen Habilitation'!V76=\"\",\"\",'Fragebogen Habilitation'!V76)","v":""},{"$f":"'Fragebogen Habilitation'!X76","v":""},{"$f":"'Fragebogen Habilitation'!Z76","v":""},{"$f":"'Fragebogen Habilitation'!AB76","v":""}]
[{"$f":"'Fragebogen Habilitation'!F77&\"0000\"","v":"0000"},{"$f":"'Fragebogen Habilitation'!B77","v":9},2024,{"$f":"'Fragebogen Habilitation'!F77","v":""},{"$f":"'Fragebogen Habilitation'!A77","v":61},{"$f":"'Fragebogen Habilitation'!G77","v":0},{"$f":"'Fragebogen Habilitation'!H77","v":0},{"$f":"'Fragebogen Habilitation'!I77","v":0},{"$f":"'Fragebogen Habilitation'!K77","v":""},{"$f":"'Fragebogen Habilitation'!L77","v":0},{"$f":"'Fragebogen Habilitation'!M77","v":0},{"$f":"'Fragebogen Habilitation'!O77","v":""},{"$f":"'Fragebogen Habilitation'!Q77","v":""},{"$f":"'Fragebogen Habilitation'!R77","v":0},{"$f":"'Fragebogen Habilitation'!T77","v":""},{"$f":"IF('Fragebogen Habilitation'!U77=\"\",\"\",'Fragebogen Habilitation'!U77)","v":""},{"$f":"IF('Fragebogen Habilitation'!V77=\"\",\"\",'Fragebogen Habilitation'!V77)","v":""},{"$f":"'Fragebogen Habilitation'!X77","v":""},{"$f":"'Fragebogen Habilitation'!Z77","v":""},{"$f":"'Fragebogen Habilitation'!AB77","v":""}]
[{"$f":"'Fragebogen Habilitation'!F78&\"0000\"","v":"0000"},{"$f":"'Fragebogen Habilitation'!B78","v":9},2024,{"$f":"'Fragebogen Habilitation'!F78","v":""},{"$f":"'Fragebogen Habilitation'!A78","v":62},{"$f":"'Fragebogen Habilitation'!G78","v":0},{"$f":"'Fragebogen Habilitation'!H78","v":0},{"$f":"'Fragebogen Habilitation'!I78","v":0},{"$f":"'Fragebogen Habilitation'!K78","v":""},{"$f":"'Fragebogen Habilitation'!L78","v":0},{"$f":"'Fragebogen Habilitation'!M78","v":0},{"$f":"'Fragebogen Habilitation'!O78","v":""},{"$f":"'Fragebogen Habilitation'!Q78","v":""},{"$f":"'Fragebogen Habilitation'!R78","v":0},{"$f":"'Fragebogen Habilitation'!T78","v":""},{"$f":"IF('Fragebogen Habilitation'!U78=\"\",\"\",'Fragebogen Habilitation'!U78)","v":""},{"$f":"IF('Fragebogen Habilitation'!V78=\"\",\"\",'Fragebogen Habilitation'!V78)","v":""},{"$f":"'Fragebogen Habilitation'!X78","v":""},{"$f":"'Fragebogen Habilitation'!Z78","v":""},{"$f":"'Fragebogen Habilitation'!AB78","v":""}]
[{"$f":"'Fragebogen Habilitation'!F79&\"0000\"","v":"0000"},{"$f":"'Fragebogen Habilitation'!B79","v":9},2024,{"$f":"'Fragebogen Habilitation'!F79","v":""},{"$f":"'Fragebogen Habilitation'!A79","v":63},{"$f":"'Fragebogen Habilitation'!G79","v":0},{"$f":"'Fragebogen Habilitation'!H79","v":0},{"$f":"'Fragebogen Habilitation'!I79","v":0},{"$f":"'Fragebogen Habilitation'!K79","v":""},{"$f":"'Fragebogen Habilitation'!L79","v":0},{"$f":"'Fragebogen Habilitation'!M79","v":0},{"$f":"'Fragebogen Habilitation'!O79","v":""},{"$f":"'Fragebogen Habilitation'!Q79","v":""},{"$f":"'Fragebogen Habilitation'!R79","v":0},{"$f":"'Fragebogen Habilitation'!T79","v":""},{"$f":"IF('Fragebogen Habilitation'!U79=\"\",\"\",'Fragebogen Habilitation'!U79)","v":""},{"$f":"IF('Fragebogen Habilitation'!V79=\"\",\"\",'Fragebogen Habilitation'!V79)","v":""},{"$f":"'Fragebogen Habilitation'!X79","v":""},{"$f":"'Fragebogen Habilitation'!Z79","v":""},{"$f":"'Fragebogen Habilitation'!AB79","v":""}]
[{"$f":"'Fragebogen Habilitation'!F80&\"0000\"","v":"0000"},{"$f":"'Fragebogen Habilitation'!B80","v":9},2024,{"$f":"'Fragebogen Habilitation'!F80","v":""},{"$f":"'Fragebogen Habilitation'!A80","v":64},{"$f":"'Fragebogen Habilitation'!G80","v":0},{"$f":"'Fragebogen Habilitation'!H80","v":0},{"$f":"'Fragebogen Habilitation'!I80","v":0},{"$f":"'Fragebogen Habilitation'!K80","v":""},{"$f":"'Fragebogen Habilitation'!L80","v":0},{"$f":"'Fragebogen Habilitation'!M80","v":0},{"$f":"'Fragebogen Habilitation'!O80","v":""},{"$f":"'Fragebogen Habilitation'!Q80","v":""},{"$f":"'Fragebogen Habilitation'!R80","v":0},{"$f":"'Fragebogen Habilitation'!T80","v":""},{"$f":"IF('Fragebogen Habilitation'!U80=\"\",\"\",'Fragebogen Habilitation'!U80)","v":""},{"$f":"IF('Fragebogen Habilitation'!V80=\"\",\"\",'Fragebogen Habilitation'!V80)","v":""},{"$f":"'Fragebogen Habilitation'!X80","v":""},{"$f":"'Fragebogen Habilitation'!Z80","v":""},{"$f":"'Fragebogen Habilitation'!AB80","v":""}]
[{"$f":"'Fragebogen Habilitation'!F81&\"0000\"","v":"0000"},{"$f":"'Fragebogen Habilitation'!B81","v":9},2024,{"$f":"'Fragebogen Habilitation'!F81","v":""},{"$f":"'Fragebogen Habilitation'!A81","v":65},{"$f":"'Fragebogen Habilitation'!G81","v":0},{"$f":"'Fragebogen Habilitation'!H81","v":0},{"$f":"'Fragebogen Habilitation'!I81","v":0},{"$f":"'Fragebogen Habilitation'!K81","v":""},{"$f":"'Fragebogen Habilitation'!L81","v":0},{"$f":"'Fragebogen Habilitation'!M81","v":0},{"$f":"'Fragebogen Habilitation'!O81","v":""},{"$f":"'Fragebogen Habilitation'!Q81","v":""},{"$f":"'Fragebogen Habilitation'!R81","v":0},{"$f":"'Fragebogen Habilitation'!T81","v":""},{"$f":"IF('Fragebogen Habilitation'!U81=\"\",\"\",'Fragebogen Habilitation'!U81)","v":""},{"$f":"IF('Fragebogen Habilitation'!V81=\"\",\"\",'Fragebogen Habilitation'!V81)","v":""},{"$f":"'Fragebogen Habilitation'!X81","v":""},{"$f":"'Fragebogen Habilitation'!Z81","v":""},{"$f":"'Fragebogen Habilitation'!AB81","v":""}]
[{"$f":"'Fragebogen Habilitation'!F82&\"0000\"","v":"0000"},{"$f":"'Fragebogen Habilitation'!B82","v":9},2024,{"$f":"'Fragebogen Habilitation'!F82","v":""},{"$f":"'Fragebogen Habilitation'!A82","v":66},{"$f":"'Fragebogen Habilitation'!G82","v":0},{"$f":"'Fragebogen Habilitation'!H82","v":0},{"$f":"'Fragebogen Habilitation'!I82","v":0},{"$f":"'Fragebogen Habilitation'!K82","v":""},{"$f":"'Fragebogen Habilitation'!L82","v":0},{"$f":"'Fragebogen Habilitation'!M82","v":0},{"$f":"'Fragebogen Habilitation'!O82","v":""},{"$f":"'Fragebogen Habilitation'!Q82","v":""},{"$f":"'Fragebogen Habilitation'!R82","v":0},{"$f":"'Fragebogen Habilitation'!T82","v":""},{"$f":"IF('Fragebogen Habilitation'!U82=\"\",\"\",'Fragebogen Habilitation'!U82)","v":""},{"$f":"IF('Fragebogen Habilitation'!V82=\"\",\"\",'Fragebogen Habilitation'!V82)","v":""},{"$f":"'Fragebogen Habilitation'!X82","v":""},{"$f":"'Fragebogen Habilitation'!Z82","v":""},{"$f":"'Fragebogen Habilitation'!AB82","v":""}]
[{"$f":"'Fragebogen Habilitation'!F83&\"0000\"","v":"0000"},{"$f":"'Fragebogen Habilitation'!B83","v":9},2024,{"$f":"'Fragebogen Habilitation'!F83","v":""},{"$f":"'Fragebogen Habilitation'!A83","v":67},{"$f":"'Fragebogen Habilitation'!G83","v":0},{"$f":"'Fragebogen Habilitation'!H83","v":0},{"$f":"'Fragebogen Habilitation'!I83","v":0},{"$f":"'Fragebogen Habilitation'!K83","v":""},{"$f":"'Fragebogen Habilitation'!L83","v":0},{"$f":"'Fragebogen Habilitation'!M83","v":0},{"$f":"'Fragebogen Habilitation'!O83","v":""},{"$f":"'Fragebogen Habilitation'!Q83","v":""},{"$f":"'Fragebogen Habilitation'!R83","v":0},{"$f":"'Fragebogen Habilitation'!T83","v":""},{"$f":"IF('Fragebogen Habilitation'!U83=\"\",\"\",'Fragebogen Habilitation'!U83)","v":""},{"$f":"IF('Fragebogen Habilitation'!V83=\"\",\"\",'Fragebogen Habilitation'!V83)","v":""},{"$f":"'Fragebogen Habilitation'!X83","v":""},{"$f":"'Fragebogen Habilitation'!Z83","v":""},{"$f":"'Fragebogen Habilitation'!AB83","v":""}]
[{"$f":"'Fragebogen Habilitation'!F84&\"0000\"","v":"0000"},{"$f":"'Fragebogen Habilitation'!B84","v":9},2024,{"$f":"'Fragebogen Habilitation'!F84","v":""},{"$f":"'Fragebogen Habilitation'!A84","v":68},{"$f":"'Fragebogen Habilitation'!G84","v":0},{"$f":"'Fragebogen Habilitation'!H84","v":0},{"$f":"'Fragebogen Habilitation'!I84","v":0},{"$f":"'Fragebogen Habilitation'!K84","v":""},{"$f":"'Fragebogen Habilitation'!L84","v":0},{"$f":"'Fragebogen Habilitation'!M84","v":0},{"$f":"'Fragebogen Habilitation'!O84","v":""},{"$f":"'Fragebogen Habilitation'!Q84","v":""},{"$f":"'Fragebogen Habilitation'!R84","v":0},{"$f":"'Fragebogen Habilitation'!T84","v":""},{"$f":"IF('Fragebogen Habilitation'!U84=\"\",\"\",'Fragebogen Habilitation'!U84)","v":""},{"$f":"IF('Fragebogen Habilitation'!V84=\"\",\"\",'Fragebogen Habilitation'!V84)","v":""},{"$f":"'Fragebogen Habilitation'!X84","v":""},{"$f":"'Fragebogen Habilitation'!Z84","v":""},{"$f":"'Fragebogen Habilitation'!AB84","v":""}]
[{"$f":"'Fragebogen Habilitation'!F85&\"0000\"","v":"0000"},{"$f":"'Fragebogen Habilitation'!B85","v":9},2024,{"$f":"'Fragebogen Habilitation'!F85","v":""},{"$f":"'Fragebogen Habilitation'!A85","v":69},{"$f":"'Fragebogen Habilitation'!G85","v":0},{"$f":"'Fragebogen Habilitation'!H85","v":0},{"$f":"'Fragebogen Habilitation'!I85","v":0},{"$f":"'Fragebogen Habilitation'!K85","v":""},{"$f":"'Fragebogen Habilitation'!L85","v":0},{"$f":"'Fragebogen Habilitation'!M85","v":0},{"$f":"'Fragebogen Habilitation'!O85","v":""},{"$f":"'Fragebogen Habilitation'!Q85","v":""},{"$f":"'Fragebogen Habilitation'!R85","v":0},{"$f":"'Fragebogen Habilitation'!T85","v":""},{"$f":"IF('Fragebogen Habilitation'!U85=\"\",\"\",'Fragebogen Habilitation'!U85)","v":""},{"$f":"IF('Fragebogen Habilitation'!V85=\"\",\"\",'Fragebogen Habilitation'!V85)","v":""},{"$f":"'Fragebogen Habilitation'!X85","v":""},{"$f":"'Fragebogen Habilitation'!Z85","v":""},{"$f":"'Fragebogen Habilitation'!AB85","v":""}]
[{"$f":"'Fragebogen Habilitation'!F86&\"0000\"","v":"0000"},{"$f":"'Fragebogen Habilitation'!B86","v":9},2024,{"$f":"'Fragebogen Habilitation'!F86","v":""},{"$f":"'Fragebogen Habilitation'!A86","v":70},{"$f":"'Fragebogen Habilitation'!G86","v":0},{"$f":"'Fragebogen Habilitation'!H86","v":0},{"$f":"'Fragebogen Habilitation'!I86","v":0},{"$f":"'Fragebogen Habilitation'!K86","v":""},{"$f":"'Fragebogen Habilitation'!L86","v":0},{"$f":"'Fragebogen Habilitation'!M86","v":0},{"$f":"'Fragebogen Habilitation'!O86","v":""},{"$f":"'Fragebogen Habilitation'!Q86","v":""},{"$f":"'Fragebogen Habilitation'!R86","v":0},{"$f":"'Fragebogen Habilitation'!T86","v":""},{"$f":"IF('Fragebogen Habilitation'!U86=\"\",\"\",'Fragebogen Habilitation'!U86)","v":""},{"$f":"IF('Fragebogen Habilitation'!V86=\"\",\"\",'Fragebogen Habilitation'!V86)","v":""},{"$f":"'Fragebogen Habilitation'!X86","v":""},{"$f":"'Fragebogen Habilitation'!Z86","v":""},{"$f":"'Fragebogen Habilitation'!AB86","v":""}]
[{"$f":"'Fragebogen Habilitation'!F87&\"0000\"","v":"0000"},{"$f":"'Fragebogen Habilitation'!B87","v":9},2024,{"$f":"'Fragebogen Habilitation'!F87","v":""},{"$f":"'Fragebogen Habilitation'!A87","v":71},{"$f":"'Fragebogen Habilitation'!G87","v":0},{"$f":"'Fragebogen Habilitation'!H87","v":0},{"$f":"'Fragebogen Habilitation'!I87","v":0},{"$f":"'Fragebogen Habilitation'!K87","v":""},{"$f":"'Fragebogen Habilitation'!L87","v":0},{"$f":"'Fragebogen Habilitation'!M87","v":0},{"$f":"'Fragebogen Habilitation'!O87","v":""},{"$f":"'Fragebogen Habilitation'!Q87","v":""},{"$f":"'Fragebogen Habilitation'!R87","v":0},{"$f":"'Fragebogen Habilitation'!T87","v":""},{"$f":"IF('Fragebogen Habilitation'!U87=\"\",\"\",'Fragebogen Habilitation'!U87)","v":""},{"$f":"IF('Fragebogen Habilitation'!V87=\"\",\"\",'Fragebogen Habilitation'!V87)","v":""},{"$f":"'Fragebogen Habilitation'!X87","v":""},{"$f":"'Fragebogen Habilitation'!Z87","v":""},{"$f":"'Fragebogen Habilitation'!AB87","v":""}]
[{"$f":"'Fragebogen Habilitation'!F88&\"0000\"","v":"0000"},{"$f":"'Fragebogen Habilitation'!B88","v":9},2024,{"$f":"'Fragebogen Habilitation'!F88","v":""},{"$f":"'Fragebogen Habilitation'!A88","v":72},{"$f":"'Fragebogen Habilitation'!G88","v":0},{"$f":"'Fragebogen Habilitation'!H88","v":0},{"$f":"'Fragebogen Habilitation'!I88","v":0},{"$f":"'Fragebogen Habilitation'!K88","v":""},{"$f":"'Fragebogen Habilitation'!L88","v":0},{"$f":"'Fragebogen Habilitation'!M88","v":0},{"$f":"'Fragebogen Habilitation'!O88","v":""},{"$f":"'Fragebogen Habilitation'!Q88","v":""},{"$f":"'Fragebogen Habilitation'!R88","v":0},{"$f":"'Fragebogen Habilitation'!T88","v":""},{"$f":"IF('Fragebogen Habilitation'!U88=\"\",\"\",'Fragebogen Habilitation'!U88)","v":""},{"$f":"IF('Fragebogen Habilitation'!V88=\"\",\"\",'Fragebogen Habilitation'!V88)","v":""},{"$f":"'Fragebogen Habilitation'!X88","v":""},{"$f":"'Fragebogen Habilitation'!Z88","v":""},{"$f":"'Fragebogen Habilitation'!AB88","v":""}]
[{"$f":"'Fragebogen Habilitation'!F89&\"0000\"","v":"0000"},{"$f":"'Fragebogen Habilitation'!B89","v":9},2024,{"$f":"'Fragebogen Habilitation'!F89","v":""},{"$f":"'Fragebogen Habilitation'!A89","v":73},{"$f":"'Fragebogen Habilitation'!G89","v":0},{"$f":"'Fragebogen Habilitation'!H89","v":0},{"$f":"'Fragebogen Habilitation'!I89","v":0},{"$f":"'Fragebogen Habilitation'!K89","v":""},{"$f":"'Fragebogen Habilitation'!L89","v":0},{"$f":"'Fragebogen Habilitation'!M89","v":0},{"$f":"'Fragebogen Habilitation'!O89","v":""},{"$f":"'Fragebogen Habilitation'!Q89","v":""},{"$f":"'Fragebogen Habilitation'!R89","v":0},{"$f":"'Fragebogen Habilitation'!T89","v":""},{"$f":"IF('Fragebogen Habilitation'!U89=\"\",\"\",'Fragebogen Habilitation'!U89)","v":""},{"$f":"IF('Fragebogen Habilitation'!V89=\"\",\"\",'Fragebogen Habilitation'!V89)","v":""},{"$f":"'Fragebogen Habilitation'!X89","v":""},{"$f":"'Fragebogen Habilitation'!Z89","v":""},{"$f":"'Fragebogen Habilitation'!AB89","v":""}]
[{"$f":"'Fragebogen Habilitation'!F90&\"0000\"","v":"0000"},{"$f":"'Fragebogen Habilitation'!B90","v":9},2024,{"$f":"'Fragebogen Habilitation'!F90","v":""},{"$f":"'Fragebogen Habilitation'!A90","v":74},{"$f":"'Fragebogen Habilitation'!G90","v":0},{"$f":"'Fragebogen Habilitation'!H90","v":0},{"$f":"'Fragebogen Habilitation'!I90","v":0},{"$f":"'Fragebogen Habilitation'!K90","v":""},{"$f":"'Fragebogen Habilitation'!L90","v":0},{"$f":"'Fragebogen Habilitation'!M90","v":0},{"$f":"'Fragebogen Habilitation'!O90","v":""},{"$f":"'Fragebogen Habilitation'!Q90","v":""},{"$f":"'Fragebogen Habilitation'!R90","v":0},{"$f":"'Fragebogen Habilitation'!T90","v":""},{"$f":"IF('Fragebogen Habilitation'!U90=\"\",\"\",'Fragebogen Habilitation'!U90)","v":""},{"$f":"IF('Fragebogen Habilitation'!V90=\"\",\"\",'Fragebogen Habilitation'!V90)","v":""},{"$f":"'Fragebogen Habilitation'!X90","v":""},{"$f":"'Fragebogen Habilitation'!Z90","v":""},{"$f":"'Fragebogen Habilitation'!AB90","v":""}]
[{"$f":"'Fragebogen Habilitation'!F91&\"0000\"","v":"0000"},{"$f":"'Fragebogen Habilitation'!B91","v":9},2024,{"$f":"'Fragebogen Habilitation'!F91","v":""},{"$f":"'Fragebogen Habilitation'!A91","v":75},{"$f":"'Fragebogen Habilitation'!G91","v":0},{"$f":"'Fragebogen Habilitation'!H91","v":0},{"$f":"'Fragebogen Habilitation'!I91","v":0},{"$f":"'Fragebogen Habilitation'!K91","v":""},{"$f":"'Fragebogen Habilitation'!L91","v":0},{"$f":"'Fragebogen Habilitation'!M91","v":0},{"$f":"'Fragebogen Habilitation'!O91","v":""},{"$f":"'Fragebogen Habilitation'!Q91","v":""},{"$f":"'Fragebogen Habilitation'!R91","v":0},{"$f":"'Fragebogen Habilitation'!T91","v":""},{"$f":"IF('Fragebogen Habilitation'!U91=\"\",\"\",'Fragebogen Habilitation'!U91)","v":""},{"$f":"IF('Fragebogen Habilitation'!V91=\"\",\"\",'Fragebogen Habilitation'!V91)","v":""},{"$f":"'Fragebogen Habilitation'!X91","v":""},{"$f":"'Fragebogen Habilitation'!Z91","v":""},{"$f":"'Fragebogen Habilitation'!AB91","v":""}]
[{"$f":"'Fragebogen Habilitation'!F92&\"0000\"","v":"0000"},{"$f":"'Fragebogen Habilitation'!B92","v":9},2024,{"$f":"'Fragebogen Habilitation'!F92","v":""},{"$f":"'Fragebogen Habilitation'!A92","v":76},{"$f":"'Fragebogen Habilitation'!G92","v":0},{"$f":"'Fragebogen Habilitation'!H92","v":0},{"$f":"'Fragebogen Habilitation'!I92","v":0},{"$f":"'Fragebogen Habilitation'!K92","v":""},{"$f":"'Fragebogen Habilitation'!L92","v":0},{"$f":"'Fragebogen Habilitation'!M92","v":0},{"$f":"'Fragebogen Habilitation'!O92","v":""},{"$f":"'Fragebogen Habilitation'!Q92","v":""},{"$f":"'Fragebogen Habilitation'!R92","v":0},{"$f":"'Fragebogen Habilitation'!T92","v":""},{"$f":"IF('Fragebogen Habilitation'!U92=\"\",\"\",'Fragebogen Habilitation'!U92)","v":""},{"$f":"IF('Fragebogen Habilitation'!V92=\"\",\"\",'Fragebogen Habilitation'!V92)","v":""},{"$f":"'Fragebogen Habilitation'!X92","v":""},{"$f":"'Fragebogen Habilitation'!Z92","v":""},{"$f":"'Fragebogen Habilitation'!AB92","v":""}]
[{"$f":"'Fragebogen Habilitation'!F93&\"0000\"","v":"0000"},{"$f":"'Fragebogen Habilitation'!B93","v":9},2024,{"$f":"'Fragebogen Habilitation'!F93","v":""},{"$f":"'Fragebogen Habilitation'!A93","v":77},{"$f":"'Fragebogen Habilitation'!G93","v":0},{"$f":"'Fragebogen Habilitation'!H93","v":0},{"$f":"'Fragebogen Habilitation'!I93","v":0},{"$f":"'Fragebogen Habilitation'!K93","v":""},{"$f":"'Fragebogen Habilitation'!L93","v":0},{"$f":"'Fragebogen Habilitation'!M93","v":0},{"$f":"'Fragebogen Habilitation'!O93","v":""},{"$f":"'Fragebogen Habilitation'!Q93","v":""},{"$f":"'Fragebogen Habilitation'!R93","v":0},{"$f":"'Fragebogen Habilitation'!T93","v":""},{"$f":"IF('Fragebogen Habilitation'!U93=\"\",\"\",'Fragebogen Habilitation'!U93)","v":""},{"$f":"IF('Fragebogen Habilitation'!V93=\"\",\"\",'Fragebogen Habilitation'!V93)","v":""},{"$f":"'Fragebogen Habilitation'!X93","v":""},{"$f":"'Fragebogen Habilitation'!Z93","v":""},{"$f":"'Fragebogen Habilitation'!AB93","v":""}]
[{"$f":"'Fragebogen Habilitation'!F94&\"0000\"","v":"0000"},{"$f":"'Fragebogen Habilitation'!B94","v":9},2024,{"$f":"'Fragebogen Habilitation'!F94","v":""},{"$f":"'Fragebogen Habilitation'!A94","v":78},{"$f":"'Fragebogen Habilitation'!G94","v":0},{"$f":"'Fragebogen Habilitation'!H94","v":0},{"$f":"'Fragebogen Habilitation'!I94","v":0},{"$f":"'Fragebogen Habilitation'!K94","v":""},{"$f":"'Fragebogen Habilitation'!L94","v":0},{"$f":"'Fragebogen Habilitation'!M94","v":0},{"$f":"'Fragebogen Habilitation'!O94","v":""},{"$f":"'Fragebogen Habilitation'!Q94","v":""},{"$f":"'Fragebogen Habilitation'!R94","v":0},{"$f":"'Fragebogen Habilitation'!T94","v":""},{"$f":"IF('Fragebogen Habilitation'!U94=\"\",\"\",'Fragebogen Habilitation'!U94)","v":""},{"$f":"IF('Fragebogen Habilitation'!V94=\"\",\"\",'Fragebogen Habilitation'!V94)","v":""},{"$f":"'Fragebogen Habilitation'!X94","v":""},{"$f":"'Fragebogen Habilitation'!Z94","v":""},{"$f":"'Fragebogen Habilitation'!AB94","v":""}]
[{"$f":"'Fragebogen Habilitation'!F95&\"0000\"","v":"0000"},{"$f":"'Fragebogen Habilitation'!B95","v":9},2024,{"$f":"'Fragebogen Habilitation'!F95","v":""},{"$f":"'Fragebogen Habilitation'!A95","v":79},{"$f":"'Fragebogen Habilitation'!G95","v":0},{"$f":"'Fragebogen Habilitation'!H95","v":0},{"$f":"'Fragebogen Habilitation'!I95","v":0},{"$f":"'Fragebogen Habilitation'!K95","v":""},{"$f":"'Fragebogen Habilitation'!L95","v":0},{"$f":"'Fragebogen Habilitation'!M95","v":0},{"$f":"'Fragebogen Habilitation'!O95","v":""},{"$f":"'Fragebogen Habilitation'!Q95","v":""},{"$f":"'Fragebogen Habilitation'!R95","v":0},{"$f":"'Fragebogen Habilitation'!T95","v":""},{"$f":"IF('Fragebogen Habilitation'!U95=\"\",\"\",'Fragebogen Habilitation'!U95)","v":""},{"$f":"IF('Fragebogen Habilitation'!V95=\"\",\"\",'Fragebogen Habilitation'!V95)","v":""},{"$f":"'Fragebogen Habilitation'!X95","v":""},{"$f":"'Fragebogen Habilitation'!Z95","v":""},{"$f":"'Fragebogen Habilitation'!AB95","v":""}]
[{"$f":"'Fragebogen Habilitation'!F96&\"0000\"","v":"0000"},{"$f":"'Fragebogen Habilitation'!B96","v":9},2024,{"$f":"'Fragebogen Habilitation'!F96","v":""},{"$f":"'Fragebogen Habilitation'!A96","v":80},{"$f":"'Fragebogen Habilitation'!G96","v":0},{"$f":"'Fragebogen Habilitation'!H96","v":0},{"$f":"'Fragebogen Habilitation'!I96","v":0},{"$f":"'Fragebogen Habilitation'!K96","v":""},{"$f":"'Fragebogen Habilitation'!L96","v":0},{"$f":"'Fragebogen Habilitation'!M96","v":0},{"$f":"'Fragebogen Habilitation'!O96","v":""},{"$f":"'Fragebogen Habilitation'!Q96","v":""},{"$f":"'Fragebogen Habilitation'!R96","v":0},{"$f":"'Fragebogen Habilitation'!T96","v":""},{"$f":"IF('Fragebogen Habilitation'!U96=\"\",\"\",'Fragebogen Habilitation'!U96)","v":""},{"$f":"IF('Fragebogen Habilitation'!V96=\"\",\"\",'Fragebogen Habilitation'!V96)","v":""},{"$f":"'Fragebogen Habilitation'!X96","v":""},{"$f":"'Fragebogen Habilitation'!Z96","v":""},{"$f":"'Fragebogen Habilitation'!AB96","v":""}]
[{"$f":"'Fragebogen Habilitation'!F97&\"0000\"","v":"0000"},{"$f":"'Fragebogen Habilitation'!B97","v":9},2024,{"$f":"'Fragebogen Habilitation'!F97","v":""},{"$f":"'Fragebogen Habilitation'!A97","v":81},{"$f":"'Fragebogen Habilitation'!G97","v":0},{"$f":"'Fragebogen Habilitation'!H97","v":0},{"$f":"'Fragebogen Habilitation'!I97","v":0},{"$f":"'Fragebogen Habilitation'!K97","v":""},{"$f":"'Fragebogen Habilitation'!L97","v":0},{"$f":"'Fragebogen Habilitation'!M97","v":0},{"$f":"'Fragebogen Habilitation'!O97","v":""},{"$f":"'Fragebogen Habilitation'!Q97","v":""},{"$f":"'Fragebogen Habilitation'!R97","v":0},{"$f":"'Fragebogen Habilitation'!T97","v":""},{"$f":"IF('Fragebogen Habilitation'!U97=\"\",\"\",'Fragebogen Habilitation'!U97)","v":""},{"$f":"IF('Fragebogen Habilitation'!V97=\"\",\"\",'Fragebogen Habilitation'!V97)","v":""},{"$f":"'Fragebogen Habilitation'!X97","v":""},{"$f":"'Fragebogen Habilitation'!Z97","v":""},{"$f":"'Fragebogen Habilitation'!AB97","v":""}]
[{"$f":"'Fragebogen Habilitation'!F98&\"0000\"","v":"0000"},{"$f":"'Fragebogen Habilitation'!B98","v":9},2024,{"$f":"'Fragebogen Habilitation'!F98","v":""},{"$f":"'Fragebogen Habilitation'!A98","v":82},{"$f":"'Fragebogen Habilitation'!G98","v":0},{"$f":"'Fragebogen Habilitation'!H98","v":0},{"$f":"'Fragebogen Habilitation'!I98","v":0},{"$f":"'Fragebogen Habilitation'!K98","v":""},{"$f":"'Fragebogen Habilitation'!L98","v":0},{"$f":"'Fragebogen Habilitation'!M98","v":0},{"$f":"'Fragebogen Habilitation'!O98","v":""},{"$f":"'Fragebogen Habilitation'!Q98","v":""},{"$f":"'Fragebogen Habilitation'!R98","v":0},{"$f":"'Fragebogen Habilitation'!T98","v":""},{"$f":"IF('Fragebogen Habilitation'!U98=\"\",\"\",'Fragebogen Habilitation'!U98)","v":""},{"$f":"IF('Fragebogen Habilitation'!V98=\"\",\"\",'Fragebogen Habilitation'!V98)","v":""},{"$f":"'Fragebogen Habilitation'!X98","v":""},{"$f":"'Fragebogen Habilitation'!Z98","v":""},{"$f":"'Fragebogen Habilitation'!AB98","v":""}]
[{"$f":"'Fragebogen Habilitation'!F99&\"0000\"","v":"0000"},{"$f":"'Fragebogen Habilitation'!B99","v":9},2024,{"$f":"'Fragebogen Habilitation'!F99","v":""},{"$f":"'Fragebogen Habilitation'!A99","v":83},{"$f":"'Fragebogen Habilitation'!G99","v":0},{"$f":"'Fragebogen Habilitation'!H99","v":0},{"$f":"'Fragebogen Habilitation'!I99","v":0},{"$f":"'Fragebogen Habilitation'!K99","v":""},{"$f":"'Fragebogen Habilitation'!L99","v":0},{"$f":"'Fragebogen Habilitation'!M99","v":0},{"$f":"'Fragebogen Habilitation'!O99","v":""},{"$f":"'Fragebogen Habilitation'!Q99","v":""},{"$f":"'Fragebogen Habilitation'!R99","v":0},{"$f":"'Fragebogen Habilitation'!T99","v":""},{"$f":"IF('Fragebogen Habilitation'!U99=\"\",\"\",'Fragebogen Habilitation'!U99)","v":""},{"$f":"IF('Fragebogen Habilitation'!V99=\"\",\"\",'Fragebogen Habilitation'!V99)","v":""},{"$f":"'Fragebogen Habilitation'!X99","v":""},{"$f":"'Fragebogen Habilitation'!Z99","v":""},{"$f":"'Fragebogen Habilitation'!AB99","v":""}]
[{"$f":"'Fragebogen Habilitation'!F100&\"0000\"","v":"0000"},{"$f":"'Fragebogen Habilitation'!B100","v":9},2024,{"$f":"'Fragebogen Habilitation'!F100","v":""},{"$f":"'Fragebogen Habilitation'!A100","v":84},{"$f":"'Fragebogen Habilitation'!G100","v":0},{"$f":"'Fragebogen Habilitation'!H100","v":0},{"$f":"'Fragebogen Habilitation'!I100","v":0},{"$f":"'Fragebogen Habilitation'!K100","v":""},{"$f":"'Fragebogen Habilitation'!L100","v":0},{"$f":"'Fragebogen Habilitation'!M100","v":0},{"$f":"'Fragebogen Habilitation'!O100","v":""},{"$f":"'Fragebogen Habilitation'!Q100","v":""},{"$f":"'Fragebogen Habilitation'!R100","v":0},{"$f":"'Fragebogen Habilitation'!T100","v":""},{"$f":"IF('Fragebogen Habilitation'!U100=\"\",\"\",'Fragebogen Habilitation'!U100)","v":""},{"$f":"IF('Fragebogen Habilitation'!V100=\"\",\"\",'Fragebogen Habilitation'!V100)","v":""},{"$f":"'Fragebogen Habilitation'!X100","v":""},{"$f":"'Fragebogen Habilitation'!Z100","v":""},{"$f":"'Fragebogen Habilitation'!AB100","v":""}]
[{"$f":"'Fragebogen Habilitation'!F101&\"0000\"","v":"0000"},{"$f":"'Fragebogen Habilitation'!B101","v":9},2024,{"$f":"'Fragebogen Habilitation'!F101","v":""},{"$f":"'Fragebogen Habilitation'!A101","v":85},{"$f":"'Fragebogen Habilitation'!G101","v":0},{"$f":"'Fragebogen Habilitation'!H101","v":0},{"$f":"'Fragebogen Habilitation'!I101","v":0},{"$f":"'Fragebogen Habilitation'!K101","v":""},{"$f":"'Fragebogen Habilitation'!L101","v":0},{"$f":"'Fragebogen Habilitation'!M101","v":0},{"$f":"'Fragebogen Habilitation'!O101","v":""},{"$f":"'Fragebogen Habilitation'!Q101","v":""},{"$f":"'Fragebogen Habilitation'!R101","v":0},{"$f":"'Fragebogen Habilitation'!T101","v":""},{"$f":"IF('Fragebogen Habilitation'!U101=\"\",\"\",'Fragebogen Habilitation'!U101)","v":""},{"$f":"IF('Fragebogen Habilitation'!V101=\"\",\"\",'Fragebogen Habilitation'!V101)","v":""},{"$f":"'Fragebogen Habilitation'!X101","v":""},{"$f":"'Fragebogen Habilitation'!Z101","v":""},{"$f":"'Fragebogen Habilitation'!AB101","v":""}]
[{"$f":"'Fragebogen Habilitation'!F102&\"0000\"","v":"0000"},{"$f":"'Fragebogen Habilitation'!B102","v":9},2024,{"$f":"'Fragebogen Habilitation'!F102","v":""},{"$f":"'Fragebogen Habilitation'!A102","v":86},{"$f":"'Fragebogen Habilitation'!G102","v":0},{"$f":"'Fragebogen Habilitation'!H102","v":0},{"$f":"'Fragebogen Habilitation'!I102","v":0},{"$f":"'Fragebogen Habilitation'!K102","v":""},{"$f":"'Fragebogen Habilitation'!L102","v":0},{"$f":"'Fragebogen Habilitation'!M102","v":0},{"$f":"'Fragebogen Habilitation'!O102","v":""},{"$f":"'Fragebogen Habilitation'!Q102","v":""},{"$f":"'Fragebogen Habilitation'!R102","v":0},{"$f":"'Fragebogen Habilitation'!T102","v":""},{"$f":"IF('Fragebogen Habilitation'!U102=\"\",\"\",'Fragebogen Habilitation'!U102)","v":""},{"$f":"IF('Fragebogen Habilitation'!V102=\"\",\"\",'Fragebogen Habilitation'!V102)","v":""},{"$f":"'Fragebogen Habilitation'!X102","v":""},{"$f":"'Fragebogen Habilitation'!Z102","v":""},{"$f":"'Fragebogen Habilitation'!AB102","v":""}]
[{"$f":"'Fragebogen Habilitation'!F103&\"0000\"","v":"0000"},{"$f":"'Fragebogen Habilitation'!B103","v":9},2024,{"$f":"'Fragebogen Habilitation'!F103","v":""},{"$f":"'Fragebogen Habilitation'!A103","v":87},{"$f":"'Fragebogen Habilitation'!G103","v":0},{"$f":"'Fragebogen Habilitation'!H103","v":0},{"$f":"'Fragebogen Habilitation'!I103","v":0},{"$f":"'Fragebogen Habilitation'!K103","v":""},{"$f":"'Fragebogen Habilitation'!L103","v":0},{"$f":"'Fragebogen Habilitation'!M103","v":0},{"$f":"'Fragebogen Habilitation'!O103","v":""},{"$f":"'Fragebogen Habilitation'!Q103","v":""},{"$f":"'Fragebogen Habilitation'!R103","v":0},{"$f":"'Fragebogen Habilitation'!T103","v":""},{"$f":"IF('Fragebogen Habilitation'!U103=\"\",\"\",'Fragebogen Habilitation'!U103)","v":""},{"$f":"IF('Fragebogen Habilitation'!V103=\"\",\"\",'Fragebogen Habilitation'!V103)","v":""},{"$f":"'Fragebogen Habilitation'!X103","v":""},{"$f":"'Fragebogen Habilitation'!Z103","v":""},{"$f":"'Fragebogen Habilitation'!AB103","v":""}]
[{"$f":"'Fragebogen Habilitation'!F104&\"0000\"","v":"0000"},{"$f":"'Fragebogen Habilitation'!B104","v":9},2024,{"$f":"'Fragebogen Habilitation'!F104","v":""},{"$f":"'Fragebogen Habilitation'!A104","v":88},{"$f":"'Fragebogen Habilitation'!G104","v":0},{"$f":"'Fragebogen Habilitation'!H104","v":0},{"$f":"'Fragebogen Habilitation'!I104","v":0},{"$f":"'Fragebogen Habilitation'!K104","v":""},{"$f":"'Fragebogen Habilitation'!L104","v":0},{"$f":"'Fragebogen Habilitation'!M104","v":0},{"$f":"'Fragebogen Habilitation'!O104","v":""},{"$f":"'Fragebogen Habilitation'!Q104","v":""},{"$f":"'Fragebogen Habilitation'!R104","v":0},{"$f":"'Fragebogen Habilitation'!T104","v":""},{"$f":"IF('Fragebogen Habilitation'!U104=\"\",\"\",'Fragebogen Habilitation'!U104)","v":""},{"$f":"IF('Fragebogen Habilitation'!V104=\"\",\"\",'Fragebogen Habilitation'!V104)","v":""},{"$f":"'Fragebogen Habilitation'!X104","v":""},{"$f":"'Fragebogen Habilitation'!Z104","v":""},{"$f":"'Fragebogen Habilitation'!AB104","v":""}]
[{"$f":"'Fragebogen Habilitation'!F105&\"0000\"","v":"0000"},{"$f":"'Fragebogen Habilitation'!B105","v":9},2024,{"$f":"'Fragebogen Habilitation'!F105","v":""},{"$f":"'Fragebogen Habilitation'!A105","v":89},{"$f":"'Fragebogen Habilitation'!G105","v":0},{"$f":"'Fragebogen Habilitation'!H105","v":0},{"$f":"'Fragebogen Habilitation'!I105","v":0},{"$f":"'Fragebogen Habilitation'!K105","v":""},{"$f":"'Fragebogen Habilitation'!L105","v":0},{"$f":"'Fragebogen Habilitation'!M105","v":0},{"$f":"'Fragebogen Habilitation'!O105","v":""},{"$f":"'Fragebogen Habilitation'!Q105","v":""},{"$f":"'Fragebogen Habilitation'!R105","v":0},{"$f":"'Fragebogen Habilitation'!T105","v":""},{"$f":"IF('Fragebogen Habilitation'!U105=\"\",\"\",'Fragebogen Habilitation'!U105)","v":""},{"$f":"IF('Fragebogen Habilitation'!V105=\"\",\"\",'Fragebogen Habilitation'!V105)","v":""},{"$f":"'Fragebogen Habilitation'!X105","v":""},{"$f":"'Fragebogen Habilitation'!Z105","v":""},{"$f":"'Fragebogen Habilitation'!AB105","v":""}]
[{"$f":"'Fragebogen Habilitation'!F106&\"0000\"","v":"0000"},{"$f":"'Fragebogen Habilitation'!B106","v":9},2024,{"$f":"'Fragebogen Habilitation'!F106","v":""},{"$f":"'Fragebogen Habilitation'!A106","v":90},{"$f":"'Fragebogen Habilitation'!G106","v":0},{"$f":"'Fragebogen Habilitation'!H106","v":0},{"$f":"'Fragebogen Habilitation'!I106","v":0},{"$f":"'Fragebogen Habilitation'!K106","v":""},{"$f":"'Fragebogen Habilitation'!L106","v":0},{"$f":"'Fragebogen Habilitation'!M106","v":0},{"$f":"'Fragebogen Habilitation'!O106","v":""},{"$f":"'Fragebogen Habilitation'!Q106","v":""},{"$f":"'Fragebogen Habilitation'!R106","v":0},{"$f":"'Fragebogen Habilitation'!T106","v":""},{"$f":"IF('Fragebogen Habilitation'!U106=\"\",\"\",'Fragebogen Habilitation'!U106)","v":""},{"$f":"IF('Fragebogen Habilitation'!V106=\"\",\"\",'Fragebogen Habilitation'!V106)","v":""},{"$f":"'Fragebogen Habilitation'!X106","v":""},{"$f":"'Fragebogen Habilitation'!Z106","v":""},{"$f":"'Fragebogen Habilitation'!AB106","v":""}]
[{"$f":"'Fragebogen Habilitation'!F107&\"0000\"","v":"0000"},{"$f":"'Fragebogen Habilitation'!B107","v":9},2024,{"$f":"'Fragebogen Habilitation'!F107","v":""},{"$f":"'Fragebogen Habilitation'!A107","v":91},{"$f":"'Fragebogen Habilitation'!G107","v":0},{"$f":"'Fragebogen Habilitation'!H107","v":0},{"$f":"'Fragebogen Habilitation'!I107","v":0},{"$f":"'Fragebogen Habilitation'!K107","v":""},{"$f":"'Fragebogen Habilitation'!L107","v":0},{"$f":"'Fragebogen Habilitation'!M107","v":0},{"$f":"'Fragebogen Habilitation'!O107","v":""},{"$f":"'Fragebogen Habilitation'!Q107","v":""},{"$f":"'Fragebogen Habilitation'!R107","v":0},{"$f":"'Fragebogen Habilitation'!T107","v":""},{"$f":"IF('Fragebogen Habilitation'!U107=\"\",\"\",'Fragebogen Habilitation'!U107)","v":""},{"$f":"IF('Fragebogen Habilitation'!V107=\"\",\"\",'Fragebogen Habilitation'!V107)","v":""},{"$f":"'Fragebogen Habilitation'!X107","v":""},{"$f":"'Fragebogen Habilitation'!Z107","v":""},{"$f":"'Fragebogen Habilitation'!AB107","v":""}]
[{"$f":"'Fragebogen Habilitation'!F108&\"0000\"","v":"0000"},{"$f":"'Fragebogen Habilitation'!B108","v":9},2024,{"$f":"'Fragebogen Habilitation'!F108","v":""},{"$f":"'Fragebogen Habilitation'!A108","v":92},{"$f":"'Fragebogen Habilitation'!G108","v":0},{"$f":"'Fragebogen Habilitation'!H108","v":0},{"$f":"'Fragebogen Habilitation'!I108","v":0},{"$f":"'Fragebogen Habilitation'!K108","v":""},{"$f":"'Fragebogen Habilitation'!L108","v":0},{"$f":"'Fragebogen Habilitation'!M108","v":0},{"$f":"'Fragebogen Habilitation'!O108","v":""},{"$f":"'Fragebogen Habilitation'!Q108","v":""},{"$f":"'Fragebogen Habilitation'!R108","v":0},{"$f":"'Fragebogen Habilitation'!T108","v":""},{"$f":"IF('Fragebogen Habilitation'!U108=\"\",\"\",'Fragebogen Habilitation'!U108)","v":""},{"$f":"IF('Fragebogen Habilitation'!V108=\"\",\"\",'Fragebogen Habilitation'!V108)","v":""},{"$f":"'Fragebogen Habilitation'!X108","v":""},{"$f":"'Fragebogen Habilitation'!Z108","v":""},{"$f":"'Fragebogen Habilitation'!AB108","v":""}]
[{"$f":"'Fragebogen Habilitation'!F109&\"0000\"","v":"0000"},{"$f":"'Fragebogen Habilitation'!B109","v":9},2024,{"$f":"'Fragebogen Habilitation'!F109","v":""},{"$f":"'Fragebogen Habilitation'!A109","v":93},{"$f":"'Fragebogen Habilitation'!G109","v":0},{"$f":"'Fragebogen Habilitation'!H109","v":0},{"$f":"'Fragebogen Habilitation'!I109","v":0},{"$f":"'Fragebogen Habilitation'!K109","v":""},{"$f":"'Fragebogen Habilitation'!L109","v":0},{"$f":"'Fragebogen Habilitation'!M109","v":0},{"$f":"'Fragebogen Habilitation'!O109","v":""},{"$f":"'Fragebogen Habilitation'!Q109","v":""},{"$f":"'Fragebogen Habilitation'!R109","v":0},{"$f":"'Fragebogen Habilitation'!T109","v":""},{"$f":"IF('Fragebogen Habilitation'!U109=\"\",\"\",'Fragebogen Habilitation'!U109)","v":""},{"$f":"IF('Fragebogen Habilitation'!V109=\"\",\"\",'Fragebogen Habilitation'!V109)","v":""},{"$f":"'Fragebogen Habilitation'!X109","v":""},{"$f":"'Fragebogen Habilitation'!Z109","v":""},{"$f":"'Fragebogen Habilitation'!AB109","v":""}]
[{"$f":"'Fragebogen Habilitation'!F110&\"0000\"","v":"0000"},{"$f":"'Fragebogen Habilitation'!B110","v":9},2024,{"$f":"'Fragebogen Habilitation'!F110","v":""},{"$f":"'Fragebogen Habilitation'!A110","v":94},{"$f":"'Fragebogen Habilitation'!G110","v":0},{"$f":"'Fragebogen Habilitation'!H110","v":0},{"$f":"'Fragebogen Habilitation'!I110","v":0},{"$f":"'Fragebogen Habilitation'!K110","v":""},{"$f":"'Fragebogen Habilitation'!L110","v":0},{"$f":"'Fragebogen Habilitation'!M110","v":0},{"$f":"'Fragebogen Habilitation'!O110","v":""},{"$f":"'Fragebogen Habilitation'!Q110","v":""},{"$f":"'Fragebogen Habilitation'!R110","v":0},{"$f":"'Fragebogen Habilitation'!T110","v":""},{"$f":"IF('Fragebogen Habilitation'!U110=\"\",\"\",'Fragebogen Habilitation'!U110)","v":""},{"$f":"IF('Fragebogen Habilitation'!V110=\"\",\"\",'Fragebogen Habilitation'!V110)","v":""},{"$f":"'Fragebogen Habilitation'!X110","v":""},{"$f":"'Fragebogen Habilitation'!Z110","v":""},{"$f":"'Fragebogen Habilitation'!AB110","v":""}]
[{"$f":"'Fragebogen Habilitation'!F111&\"0000\"","v":"0000"},{"$f":"'Fragebogen Habilitation'!B111","v":9},2024,{"$f":"'Fragebogen Habilitation'!F111","v":""},{"$f":"'Fragebogen Habilitation'!A111","v":95},{"$f":"'Fragebogen Habilitation'!G111","v":0},{"$f":"'Fragebogen Habilitation'!H111","v":0},{"$f":"'Fragebogen Habilitation'!I111","v":0},{"$f":"'Fragebogen Habilitation'!K111","v":""},{"$f":"'Fragebogen Habilitation'!L111","v":0},{"$f":"'Fragebogen Habilitation'!M111","v":0},{"$f":"'Fragebogen Habilitation'!O111","v":""},{"$f":"'Fragebogen Habilitation'!Q111","v":""},{"$f":"'Fragebogen Habilitation'!R111","v":0},{"$f":"'Fragebogen Habilitation'!T111","v":""},{"$f":"IF('Fragebogen Habilitation'!U111=\"\",\"\",'Fragebogen Habilitation'!U111)","v":""},{"$f":"IF('Fragebogen Habilitation'!V111=\"\",\"\",'Fragebogen Habilitation'!V111)","v":""},{"$f":"'Fragebogen Habilitation'!X111","v":""},{"$f":"'Fragebogen Habilitation'!Z111","v":""},{"$f":"'Fragebogen Habilitation'!AB111","v":""}]
[{"$f":"'Fragebogen Habilitation'!F112&\"0000\"","v":"0000"},{"$f":"'Fragebogen Habilitation'!B112","v":9},2024,{"$f":"'Fragebogen Habilitation'!F112","v":""},{"$f":"'Fragebogen Habilitation'!A112","v":96},{"$f":"'Fragebogen Habilitation'!G112","v":0},{"$f":"'Fragebogen Habilitation'!H112","v":0},{"$f":"'Fragebogen Habilitation'!I112","v":0},{"$f":"'Fragebogen Habilitation'!K112","v":""},{"$f":"'Fragebogen Habilitation'!L112","v":0},{"$f":"'Fragebogen Habilitation'!M112","v":0},{"$f":"'Fragebogen Habilitation'!O112","v":""},{"$f":"'Fragebogen Habilitation'!Q112","v":""},{"$f":"'Fragebogen Habilitation'!R112","v":0},{"$f":"'Fragebogen Habilitation'!T112","v":""},{"$f":"IF('Fragebogen Habilitation'!U112=\"\",\"\",'Fragebogen Habilitation'!U112)","v":""},{"$f":"IF('Fragebogen Habilitation'!V112=\"\",\"\",'Fragebogen Habilitation'!V112)","v":""},{"$f":"'Fragebogen Habilitation'!X112","v":""},{"$f":"'Fragebogen Habilitation'!Z112","v":""},{"$f":"'Fragebogen Habilitation'!AB112","v":""}]
[{"$f":"'Fragebogen Habilitation'!F113&\"0000\"","v":"0000"},{"$f":"'Fragebogen Habilitation'!B113","v":9},2024,{"$f":"'Fragebogen Habilitation'!F113","v":""},{"$f":"'Fragebogen Habilitation'!A113","v":97},{"$f":"'Fragebogen Habilitation'!G113","v":0},{"$f":"'Fragebogen Habilitation'!H113","v":0},{"$f":"'Fragebogen Habilitation'!I113","v":0},{"$f":"'Fragebogen Habilitation'!K113","v":""},{"$f":"'Fragebogen Habilitation'!L113","v":0},{"$f":"'Fragebogen Habilitation'!M113","v":0},{"$f":"'Fragebogen Habilitation'!O113","v":""},{"$f":"'Fragebogen Habilitation'!Q113","v":""},{"$f":"'Fragebogen Habilitation'!R113","v":0},{"$f":"'Fragebogen Habilitation'!T113","v":""},{"$f":"IF('Fragebogen Habilitation'!U113=\"\",\"\",'Fragebogen Habilitation'!U113)","v":""},{"$f":"IF('Fragebogen Habilitation'!V113=\"\",\"\",'Fragebogen Habilitation'!V113)","v":""},{"$f":"'Fragebogen Habilitation'!X113","v":""},{"$f":"'Fragebogen Habilitation'!Z113","v":""},{"$f":"'Fragebogen Habilitation'!AB113","v":""}]
[{"$f":"'Fragebogen Habilitation'!F114&\"0000\"","v":"0000"},{"$f":"'Fragebogen Habilitation'!B114","v":9},2024,{"$f":"'Fragebogen Habilitation'!F114","v":""},{"$f":"'Fragebogen Habilitation'!A114","v":98},{"$f":"'Fragebogen Habilitation'!G114","v":0},{"$f":"'Fragebogen Habilitation'!H114","v":0},{"$f":"'Fragebogen Habilitation'!I114","v":0},{"$f":"'Fragebogen Habilitation'!K114","v":""},{"$f":"'Fragebogen Habilitation'!L114","v":0},{"$f":"'Fragebogen Habilitation'!M114","v":0},{"$f":"'Fragebogen Habilitation'!O114","v":""},{"$f":"'Fragebogen Habilitation'!Q114","v":""},{"$f":"'Fragebogen Habilitation'!R114","v":0},{"$f":"'Fragebogen Habilitation'!T114","v":""},{"$f":"IF('Fragebogen Habilitation'!U114=\"\",\"\",'Fragebogen Habilitation'!U114)","v":""},{"$f":"IF('Fragebogen Habilitation'!V114=\"\",\"\",'Fragebogen Habilitation'!V114)","v":""},{"$f":"'Fragebogen Habilitation'!X114","v":""},{"$f":"'Fragebogen Habilitation'!Z114","v":""},{"$f":"'Fragebogen Habilitation'!AB114","v":""}]
[{"$f":"'Fragebogen Habilitation'!F115&\"0000\"","v":"0000"},{"$f":"'Fragebogen Habilitation'!B115","v":9},2024,{"$f":"'Fragebogen Habilitation'!F115","v":""},{"$f":"'Fragebogen Habilitation'!A115","v":99},{"$f":"'Fragebogen Habilitation'!G115","v":0},{"$f":"'Fragebogen Habilitation'!H115","v":0},{"$f":"'Fragebogen Habilitation'!I115","v":0},{"$f":"'Fragebogen Habilitation'!K115","v":""},{"$f":"'Fragebogen Habilitation'!L115","v":0},{"$f":"'Fragebogen Habilitation'!M115","v":0},{"$f":"'Fragebogen Habilitation'!O115","v":""},{"$f":"'Fragebogen Habilitation'!Q115","v":""},{"$f":"'Fragebogen Habilitation'!R115","v":0},{"$f":"'Fragebogen Habilitation'!T115","v":""},{"$f":"IF('Fragebogen Habilitation'!U115=\"\",\"\",'Fragebogen Habilitation'!U115)","v":""},{"$f":"IF('Fragebogen Habilitation'!V115=\"\",\"\",'Fragebogen Habilitation'!V115)","v":""},{"$f":"'Fragebogen Habilitation'!X115","v":""},{"$f":"'Fragebogen Habilitation'!Z115","v":""},{"$f":"'Fragebogen Habilitation'!AB115","v":""}]
[{"$f":"'Fragebogen Habilitation'!F116&\"0000\"","v":"0000"},{"$f":"'Fragebogen Habilitation'!B116","v":9},2024,{"$f":"'Fragebogen Habilitation'!F116","v":""},{"$f":"'Fragebogen Habilitation'!A116","v":100},{"$f":"'Fragebogen Habilitation'!G116","v":0},{"$f":"'Fragebogen Habilitation'!H116","v":0},{"$f":"'Fragebogen Habilitation'!I116","v":0},{"$f":"'Fragebogen Habilitation'!K116","v":""},{"$f":"'Fragebogen Habilitation'!L116","v":0},{"$f":"'Fragebogen Habilitation'!M116","v":0},{"$f":"'Fragebogen Habilitation'!O116","v":""},{"$f":"'Fragebogen Habilitation'!Q116","v":""},{"$f":"'Fragebogen Habilitation'!R116","v":0},{"$f":"'Fragebogen Habilitation'!T116","v":""},{"$f":"IF('Fragebogen Habilitation'!U116=\"\",\"\",'Fragebogen Habilitation'!U116)","v":""},{"$f":"IF('Fragebogen Habilitation'!V116=\"\",\"\",'Fragebogen Habilitation'!V116)","v":""},{"$f":"'Fragebogen Habilitation'!X116","v":""},{"$f":"'Fragebogen Habilitation'!Z116","v":""},{"$f":"'Fragebogen Habilitation'!AB116","v":""}]
[{"$f":"'Fragebogen Habilitation'!F117&\"0000\"","v":"0000"},{"$f":"'Fragebogen Habilitation'!B117","v":9},2024,{"$f":"'Fragebogen Habilitation'!F117","v":""},{"$f":"'Fragebogen Habilitation'!A117","v":101},{"$f":"'Fragebogen Habilitation'!G117","v":0},{"$f":"'Fragebogen Habilitation'!H117","v":0},{"$f":"'Fragebogen Habilitation'!I117","v":0},{"$f":"'Fragebogen Habilitation'!K117","v":""},{"$f":"'Fragebogen Habilitation'!L117","v":0},{"$f":"'Fragebogen Habilitation'!M117","v":0},{"$f":"'Fragebogen Habilitation'!O117","v":""},{"$f":"'Fragebogen Habilitation'!Q117","v":""},{"$f":"'Fragebogen Habilitation'!R117","v":0},{"$f":"'Fragebogen Habilitation'!T117","v":""},{"$f":"IF('Fragebogen Habilitation'!U117=\"\",\"\",'Fragebogen Habilitation'!U117)","v":""},{"$f":"IF('Fragebogen Habilitation'!V117=\"\",\"\",'Fragebogen Habilitation'!V117)","v":""},{"$f":"'Fragebogen Habilitation'!X117","v":""},{"$f":"'Fragebogen Habilitation'!Z117","v":""},{"$f":"'Fragebogen Habilitation'!AB117","v":""}]
[{"$f":"'Fragebogen Habilitation'!F118&\"0000\"","v":"0000"},{"$f":"'Fragebogen Habilitation'!B118","v":9},2024,{"$f":"'Fragebogen Habilitation'!F118","v":""},{"$f":"'Fragebogen Habilitation'!A118","v":102},{"$f":"'Fragebogen Habilitation'!G118","v":0},{"$f":"'Fragebogen Habilitation'!H118","v":0},{"$f":"'Fragebogen Habilitation'!I118","v":0},{"$f":"'Fragebogen Habilitation'!K118","v":""},{"$f":"'Fragebogen Habilitation'!L118","v":0},{"$f":"'Fragebogen Habilitation'!M118","v":0},{"$f":"'Fragebogen Habilitation'!O118","v":""},{"$f":"'Fragebogen Habilitation'!Q118","v":""},{"$f":"'Fragebogen Habilitation'!R118","v":0},{"$f":"'Fragebogen Habilitation'!T118","v":""},{"$f":"IF('Fragebogen Habilitation'!U118=\"\",\"\",'Fragebogen Habilitation'!U118)","v":""},{"$f":"IF('Fragebogen Habilitation'!V118=\"\",\"\",'Fragebogen Habilitation'!V118)","v":""},{"$f":"'Fragebogen Habilitation'!X118","v":""},{"$f":"'Fragebogen Habilitation'!Z118","v":""},{"$f":"'Fragebogen Habilitation'!AB118","v":""}]
[{"$f":"'Fragebogen Habilitation'!F119&\"0000\"","v":"0000"},{"$f":"'Fragebogen Habilitation'!B119","v":9},2024,{"$f":"'Fragebogen Habilitation'!F119","v":""},{"$f":"'Fragebogen Habilitation'!A119","v":103},{"$f":"'Fragebogen Habilitation'!G119","v":0},{"$f":"'Fragebogen Habilitation'!H119","v":0},{"$f":"'Fragebogen Habilitation'!I119","v":0},{"$f":"'Fragebogen Habilitation'!K119","v":""},{"$f":"'Fragebogen Habilitation'!L119","v":0},{"$f":"'Fragebogen Habilitation'!M119","v":0},{"$f":"'Fragebogen Habilitation'!O119","v":""},{"$f":"'Fragebogen Habilitation'!Q119","v":""},{"$f":"'Fragebogen Habilitation'!R119","v":0},{"$f":"'Fragebogen Habilitation'!T119","v":""},{"$f":"IF('Fragebogen Habilitation'!U119=\"\",\"\",'Fragebogen Habilitation'!U119)","v":""},{"$f":"IF('Fragebogen Habilitation'!V119=\"\",\"\",'Fragebogen Habilitation'!V119)","v":""},{"$f":"'Fragebogen Habilitation'!X119","v":""},{"$f":"'Fragebogen Habilitation'!Z119","v":""},{"$f":"'Fragebogen Habilitation'!AB119","v":""}]
[{"$f":"'Fragebogen Habilitation'!F120&\"0000\"","v":"0000"},{"$f":"'Fragebogen Habilitation'!B120","v":9},2024,{"$f":"'Fragebogen Habilitation'!F120","v":""},{"$f":"'Fragebogen Habilitation'!A120","v":104},{"$f":"'Fragebogen Habilitation'!G120","v":0},{"$f":"'Fragebogen Habilitation'!H120","v":0},{"$f":"'Fragebogen Habilitation'!I120","v":0},{"$f":"'Fragebogen Habilitation'!K120","v":""},{"$f":"'Fragebogen Habilitation'!L120","v":0},{"$f":"'Fragebogen Habilitation'!M120","v":0},{"$f":"'Fragebogen Habilitation'!O120","v":""},{"$f":"'Fragebogen Habilitation'!Q120","v":""},{"$f":"'Fragebogen Habilitation'!R120","v":0},{"$f":"'Fragebogen Habilitation'!T120","v":""},{"$f":"IF('Fragebogen Habilitation'!U120=\"\",\"\",'Fragebogen Habilitation'!U120)","v":""},{"$f":"IF('Fragebogen Habilitation'!V120=\"\",\"\",'Fragebogen Habilitation'!V120)","v":""},{"$f":"'Fragebogen Habilitation'!X120","v":""},{"$f":"'Fragebogen Habilitation'!Z120","v":""},{"$f":"'Fragebogen Habilitation'!AB120","v":""}]
[{"$f":"'Fragebogen Habilitation'!F121&\"0000\"","v":"0000"},{"$f":"'Fragebogen Habilitation'!B121","v":9},2024,{"$f":"'Fragebogen Habilitation'!F121","v":""},{"$f":"'Fragebogen Habilitation'!A121","v":105},{"$f":"'Fragebogen Habilitation'!G121","v":0},{"$f":"'Fragebogen Habilitation'!H121","v":0},{"$f":"'Fragebogen Habilitation'!I121","v":0},{"$f":"'Fragebogen Habilitation'!K121","v":""},{"$f":"'Fragebogen Habilitation'!L121","v":0},{"$f":"'Fragebogen Habilitation'!M121","v":0},{"$f":"'Fragebogen Habilitation'!O121","v":""},{"$f":"'Fragebogen Habilitation'!Q121","v":""},{"$f":"'Fragebogen Habilitation'!R121","v":0},{"$f":"'Fragebogen Habilitation'!T121","v":""},{"$f":"IF('Fragebogen Habilitation'!U121=\"\",\"\",'Fragebogen Habilitation'!U121)","v":""},{"$f":"IF('Fragebogen Habilitation'!V121=\"\",\"\",'Fragebogen Habilitation'!V121)","v":""},{"$f":"'Fragebogen Habilitation'!X121","v":""},{"$f":"'Fragebogen Habilitation'!Z121","v":""},{"$f":"'Fragebogen Habilitation'!AB121","v":""}]
[{"$f":"'Fragebogen Habilitation'!F122&\"0000\"","v":"0000"},{"$f":"'Fragebogen Habilitation'!B122","v":9},2024,{"$f":"'Fragebogen Habilitation'!F122","v":""},{"$f":"'Fragebogen Habilitation'!A122","v":106},{"$f":"'Fragebogen Habilitation'!G122","v":0},{"$f":"'Fragebogen Habilitation'!H122","v":0},{"$f":"'Fragebogen Habilitation'!I122","v":0},{"$f":"'Fragebogen Habilitation'!K122","v":""},{"$f":"'Fragebogen Habilitation'!L122","v":0},{"$f":"'Fragebogen Habilitation'!M122","v":0},{"$f":"'Fragebogen Habilitation'!O122","v":""},{"$f":"'Fragebogen Habilitation'!Q122","v":""},{"$f":"'Fragebogen Habilitation'!R122","v":0},{"$f":"'Fragebogen Habilitation'!T122","v":""},{"$f":"IF('Fragebogen Habilitation'!U122=\"\",\"\",'Fragebogen Habilitation'!U122)","v":""},{"$f":"IF('Fragebogen Habilitation'!V122=\"\",\"\",'Fragebogen Habilitation'!V122)","v":""},{"$f":"'Fragebogen Habilitation'!X122","v":""},{"$f":"'Fragebogen Habilitation'!Z122","v":""},{"$f":"'Fragebogen Habilitation'!AB122","v":""}]
[{"$f":"'Fragebogen Habilitation'!F123&\"0000\"","v":"0000"},{"$f":"'Fragebogen Habilitation'!B123","v":9},2024,{"$f":"'Fragebogen Habilitation'!F123","v":""},{"$f":"'Fragebogen Habilitation'!A123","v":107},{"$f":"'Fragebogen Habilitation'!G123","v":0},{"$f":"'Fragebogen Habilitation'!H123","v":0},{"$f":"'Fragebogen Habilitation'!I123","v":0},{"$f":"'Fragebogen Habilitation'!K123","v":""},{"$f":"'Fragebogen Habilitation'!L123","v":0},{"$f":"'Fragebogen Habilitation'!M123","v":0},{"$f":"'Fragebogen Habilitation'!O123","v":""},{"$f":"'Fragebogen Habilitation'!Q123","v":""},{"$f":"'Fragebogen Habilitation'!R123","v":0},{"$f":"'Fragebogen Habilitation'!T123","v":""},{"$f":"IF('Fragebogen Habilitation'!U123=\"\",\"\",'Fragebogen Habilitation'!U123)","v":""},{"$f":"IF('Fragebogen Habilitation'!V123=\"\",\"\",'Fragebogen Habilitation'!V123)","v":""},{"$f":"'Fragebogen Habilitation'!X123","v":""},{"$f":"'Fragebogen Habilitation'!Z123","v":""},{"$f":"'Fragebogen Habilitation'!AB123","v":""}]
[{"$f":"'Fragebogen Habilitation'!F124&\"0000\"","v":"0000"},{"$f":"'Fragebogen Habilitation'!B124","v":9},2024,{"$f":"'Fragebogen Habilitation'!F124","v":""},{"$f":"'Fragebogen Habilitation'!A124","v":108},{"$f":"'Fragebogen Habilitation'!G124","v":0},{"$f":"'Fragebogen Habilitation'!H124","v":0},{"$f":"'Fragebogen Habilitation'!I124","v":0},{"$f":"'Fragebogen Habilitation'!K124","v":""},{"$f":"'Fragebogen Habilitation'!L124","v":0},{"$f":"'Fragebogen Habilitation'!M124","v":0},{"$f":"'Fragebogen Habilitation'!O124","v":""},{"$f":"'Fragebogen Habilitation'!Q124","v":""},{"$f":"'Fragebogen Habilitation'!R124","v":0},{"$f":"'Fragebogen Habilitation'!T124","v":""},{"$f":"IF('Fragebogen Habilitation'!U124=\"\",\"\",'Fragebogen Habilitation'!U124)","v":""},{"$f":"IF('Fragebogen Habilitation'!V124=\"\",\"\",'Fragebogen Habilitation'!V124)","v":""},{"$f":"'Fragebogen Habilitation'!X124","v":""},{"$f":"'Fragebogen Habilitation'!Z124","v":""},{"$f":"'Fragebogen Habilitation'!AB124","v":""}]
[{"$f":"'Fragebogen Habilitation'!F125&\"0000\"","v":"0000"},{"$f":"'Fragebogen Habilitation'!B125","v":9},2024,{"$f":"'Fragebogen Habilitation'!F125","v":""},{"$f":"'Fragebogen Habilitation'!A125","v":109},{"$f":"'Fragebogen Habilitation'!G125","v":0},{"$f":"'Fragebogen Habilitation'!H125","v":0},{"$f":"'Fragebogen Habilitation'!I125","v":0},{"$f":"'Fragebogen Habilitation'!K125","v":""},{"$f":"'Fragebogen Habilitation'!L125","v":0},{"$f":"'Fragebogen Habilitation'!M125","v":0},{"$f":"'Fragebogen Habilitation'!O125","v":""},{"$f":"'Fragebogen Habilitation'!Q125","v":""},{"$f":"'Fragebogen Habilitation'!R125","v":0},{"$f":"'Fragebogen Habilitation'!T125","v":""},{"$f":"IF('Fragebogen Habilitation'!U125=\"\",\"\",'Fragebogen Habilitation'!U125)","v":""},{"$f":"IF('Fragebogen Habilitation'!V125=\"\",\"\",'Fragebogen Habilitation'!V125)","v":""},{"$f":"'Fragebogen Habilitation'!X125","v":""},{"$f":"'Fragebogen Habilitation'!Z125","v":""},{"$f":"'Fragebogen Habilitation'!AB125","v":""}]
[{"$f":"'Fragebogen Habilitation'!F126&\"0000\"","v":"0000"},{"$f":"'Fragebogen Habilitation'!B126","v":9},2024,{"$f":"'Fragebogen Habilitation'!F126","v":""},{"$f":"'Fragebogen Habilitation'!A126","v":110},{"$f":"'Fragebogen Habilitation'!G126","v":0},{"$f":"'Fragebogen Habilitation'!H126","v":0},{"$f":"'Fragebogen Habilitation'!I126","v":0},{"$f":"'Fragebogen Habilitation'!K126","v":""},{"$f":"'Fragebogen Habilitation'!L126","v":0},{"$f":"'Fragebogen Habilitation'!M126","v":0},{"$f":"'Fragebogen Habilitation'!O126","v":""},{"$f":"'Fragebogen Habilitation'!Q126","v":""},{"$f":"'Fragebogen Habilitation'!R126","v":0},{"$f":"'Fragebogen Habilitation'!T126","v":""},{"$f":"IF('Fragebogen Habilitation'!U126=\"\",\"\",'Fragebogen Habilitation'!U126)","v":""},{"$f":"IF('Fragebogen Habilitation'!V126=\"\",\"\",'Fragebogen Habilitation'!V126)","v":""},{"$f":"'Fragebogen Habilitation'!X126","v":""},{"$f":"'Fragebogen Habilitation'!Z126","v":""},{"$f":"'Fragebogen Habilitation'!AB126","v":""}]
[{"$f":"'Fragebogen Habilitation'!F127&\"0000\"","v":"0000"},{"$f":"'Fragebogen Habilitation'!B127","v":9},2024,{"$f":"'Fragebogen Habilitation'!F127","v":""},{"$f":"'Fragebogen Habilitation'!A127","v":111},{"$f":"'Fragebogen Habilitation'!G127","v":0},{"$f":"'Fragebogen Habilitation'!H127","v":0},{"$f":"'Fragebogen Habilitation'!I127","v":0},{"$f":"'Fragebogen Habilitation'!K127","v":""},{"$f":"'Fragebogen Habilitation'!L127","v":0},{"$f":"'Fragebogen Habilitation'!M127","v":0},{"$f":"'Fragebogen Habilitation'!O127","v":""},{"$f":"'Fragebogen Habilitation'!Q127","v":""},{"$f":"'Fragebogen Habilitation'!R127","v":0},{"$f":"'Fragebogen Habilitation'!T127","v":""},{"$f":"IF('Fragebogen Habilitation'!U127=\"\",\"\",'Fragebogen Habilitation'!U127)","v":""},{"$f":"IF('Fragebogen Habilitation'!V127=\"\",\"\",'Fragebogen Habilitation'!V127)","v":""},{"$f":"'Fragebogen Habilitation'!X127","v":""},{"$f":"'Fragebogen Habilitation'!Z127","v":""},{"$f":"'Fragebogen Habilitation'!AB127","v":""}]
[{"$f":"'Fragebogen Habilitation'!F128&\"0000\"","v":"0000"},{"$f":"'Fragebogen Habilitation'!B128","v":9},2024,{"$f":"'Fragebogen Habilitation'!F128","v":""},{"$f":"'Fragebogen Habilitation'!A128","v":112},{"$f":"'Fragebogen Habilitation'!G128","v":0},{"$f":"'Fragebogen Habilitation'!H128","v":0},{"$f":"'Fragebogen Habilitation'!I128","v":0},{"$f":"'Fragebogen Habilitation'!K128","v":""},{"$f":"'Fragebogen Habilitation'!L128","v":0},{"$f":"'Fragebogen Habilitation'!M128","v":0},{"$f":"'Fragebogen Habilitation'!O128","v":""},{"$f":"'Fragebogen Habilitation'!Q128","v":""},{"$f":"'Fragebogen Habilitation'!R128","v":0},{"$f":"'Fragebogen Habilitation'!T128","v":""},{"$f":"IF('Fragebogen Habilitation'!U128=\"\",\"\",'Fragebogen Habilitation'!U128)","v":""},{"$f":"IF('Fragebogen Habilitation'!V128=\"\",\"\",'Fragebogen Habilitation'!V128)","v":""},{"$f":"'Fragebogen Habilitation'!X128","v":""},{"$f":"'Fragebogen Habilitation'!Z128","v":""},{"$f":"'Fragebogen Habilitation'!AB128","v":""}]
[{"$f":"'Fragebogen Habilitation'!F129&\"0000\"","v":"0000"},{"$f":"'Fragebogen Habilitation'!B129","v":9},2024,{"$f":"'Fragebogen Habilitation'!F129","v":""},{"$f":"'Fragebogen Habilitation'!A129","v":113},{"$f":"'Fragebogen Habilitation'!G129","v":0},{"$f":"'Fragebogen Habilitation'!H129","v":0},{"$f":"'Fragebogen Habilitation'!I129","v":0},{"$f":"'Fragebogen Habilitation'!K129","v":""},{"$f":"'Fragebogen Habilitation'!L129","v":0},{"$f":"'Fragebogen Habilitation'!M129","v":0},{"$f":"'Fragebogen Habilitation'!O129","v":""},{"$f":"'Fragebogen Habilitation'!Q129","v":""},{"$f":"'Fragebogen Habilitation'!R129","v":0},{"$f":"'Fragebogen Habilitation'!T129","v":""},{"$f":"IF('Fragebogen Habilitation'!U129=\"\",\"\",'Fragebogen Habilitation'!U129)","v":""},{"$f":"IF('Fragebogen Habilitation'!V129=\"\",\"\",'Fragebogen Habilitation'!V129)","v":""},{"$f":"'Fragebogen Habilitation'!X129","v":""},{"$f":"'Fragebogen Habilitation'!Z129","v":""},{"$f":"'Fragebogen Habilitation'!AB129","v":""}]
[{"$f":"'Fragebogen Habilitation'!F130&\"0000\"","v":"0000"},{"$f":"'Fragebogen Habilitation'!B130","v":9},2024,{"$f":"'Fragebogen Habilitation'!F130","v":""},{"$f":"'Fragebogen Habilitation'!A130","v":114},{"$f":"'Fragebogen Habilitation'!G130","v":0},{"$f":"'Fragebogen Habilitation'!H130","v":0},{"$f":"'Fragebogen Habilitation'!I130","v":0},{"$f":"'Fragebogen Habilitation'!K130","v":""},{"$f":"'Fragebogen Habilitation'!L130","v":0},{"$f":"'Fragebogen Habilitation'!M130","v":0},{"$f":"'Fragebogen Habilitation'!O130","v":""},{"$f":"'Fragebogen Habilitation'!Q130","v":""},{"$f":"'Fragebogen Habilitation'!R130","v":0},{"$f":"'Fragebogen Habilitation'!T130","v":""},{"$f":"IF('Fragebogen Habilitation'!U130=\"\",\"\",'Fragebogen Habilitation'!U130)","v":""},{"$f":"IF('Fragebogen Habilitation'!V130=\"\",\"\",'Fragebogen Habilitation'!V130)","v":""},{"$f":"'Fragebogen Habilitation'!X130","v":""},{"$f":"'Fragebogen Habilitation'!Z130","v":""},{"$f":"'Fragebogen Habilitation'!AB130","v":""}]
[{"$f":"'Fragebogen Habilitation'!F131&\"0000\"","v":"0000"},{"$f":"'Fragebogen Habilitation'!B131","v":9},2024,{"$f":"'Fragebogen Habilitation'!F131","v":""},{"$f":"'Fragebogen Habilitation'!A131","v":115},{"$f":"'Fragebogen Habilitation'!G131","v":0},{"$f":"'Fragebogen Habilitation'!H131","v":0},{"$f":"'Fragebogen Habilitation'!I131","v":0},{"$f":"'Fragebogen Habilitation'!K131","v":""},{"$f":"'Fragebogen Habilitation'!L131","v":0},{"$f":"'Fragebogen Habilitation'!M131","v":0},{"$f":"'Fragebogen Habilitation'!O131","v":""},{"$f":"'Fragebogen Habilitation'!Q131","v":""},{"$f":"'Fragebogen Habilitation'!R131","v":0},{"$f":"'Fragebogen Habilitation'!T131","v":""},{"$f":"IF('Fragebogen Habilitation'!U131=\"\",\"\",'Fragebogen Habilitation'!U131)","v":""},{"$f":"IF('Fragebogen Habilitation'!V131=\"\",\"\",'Fragebogen Habilitation'!V131)","v":""},{"$f":"'Fragebogen Habilitation'!X131","v":""},{"$f":"'Fragebogen Habilitation'!Z131","v":""},{"$f":"'Fragebogen Habilitation'!AB131","v":""}]
[{"$f":"'Fragebogen Habilitation'!F132&\"0000\"","v":"0000"},{"$f":"'Fragebogen Habilitation'!B132","v":9},2024,{"$f":"'Fragebogen Habilitation'!F132","v":""},{"$f":"'Fragebogen Habilitation'!A132","v":116},{"$f":"'Fragebogen Habilitation'!G132","v":0},{"$f":"'Fragebogen Habilitation'!H132","v":0},{"$f":"'Fragebogen Habilitation'!I132","v":0},{"$f":"'Fragebogen Habilitation'!K132","v":""},{"$f":"'Fragebogen Habilitation'!L132","v":0},{"$f":"'Fragebogen Habilitation'!M132","v":0},{"$f":"'Fragebogen Habilitation'!O132","v":""},{"$f":"'Fragebogen Habilitation'!Q132","v":""},{"$f":"'Fragebogen Habilitation'!R132","v":0},{"$f":"'Fragebogen Habilitation'!T132","v":""},{"$f":"IF('Fragebogen Habilitation'!U132=\"\",\"\",'Fragebogen Habilitation'!U132)","v":""},{"$f":"IF('Fragebogen Habilitation'!V132=\"\",\"\",'Fragebogen Habilitation'!V132)","v":""},{"$f":"'Fragebogen Habilitation'!X132","v":""},{"$f":"'Fragebogen Habilitation'!Z132","v":""},{"$f":"'Fragebogen Habilitation'!AB132","v":""}]
[{"$f":"'Fragebogen Habilitation'!F133&\"0000\"","v":"0000"},{"$f":"'Fragebogen Habilitation'!B133","v":9},2024,{"$f":"'Fragebogen Habilitation'!F133","v":""},{"$f":"'Fragebogen Habilitation'!A133","v":117},{"$f":"'Fragebogen Habilitation'!G133","v":0},{"$f":"'Fragebogen Habilitation'!H133","v":0},{"$f":"'Fragebogen Habilitation'!I133","v":0},{"$f":"'Fragebogen Habilitation'!K133","v":""},{"$f":"'Fragebogen Habilitation'!L133","v":0},{"$f":"'Fragebogen Habilitation'!M133","v":0},{"$f":"'Fragebogen Habilitation'!O133","v":""},{"$f":"'Fragebogen Habilitation'!Q133","v":""},{"$f":"'Fragebogen Habilitation'!R133","v":0},{"$f":"'Fragebogen Habilitation'!T133","v":""},{"$f":"IF('Fragebogen Habilitation'!U133=\"\",\"\",'Fragebogen Habilitation'!U133)","v":""},{"$f":"IF('Fragebogen Habilitation'!V133=\"\",\"\",'Fragebogen Habilitation'!V133)","v":""},{"$f":"'Fragebogen Habilitation'!X133","v":""},{"$f":"'Fragebogen Habilitation'!Z133","v":""},{"$f":"'Fragebogen Habilitation'!AB133","v":""}]
[{"$f":"'Fragebogen Habilitation'!F134&\"0000\"","v":"0000"},{"$f":"'Fragebogen Habilitation'!B134","v":9},2024,{"$f":"'Fragebogen Habilitation'!F134","v":""},{"$f":"'Fragebogen Habilitation'!A134","v":118},{"$f":"'Fragebogen Habilitation'!G134","v":0},{"$f":"'Fragebogen Habilitation'!H134","v":0},{"$f":"'Fragebogen Habilitation'!I134","v":0},{"$f":"'Fragebogen Habilitation'!K134","v":""},{"$f":"'Fragebogen Habilitation'!L134","v":0},{"$f":"'Fragebogen Habilitation'!M134","v":0},{"$f":"'Fragebogen Habilitation'!O134","v":""},{"$f":"'Fragebogen Habilitation'!Q134","v":""},{"$f":"'Fragebogen Habilitation'!R134","v":0},{"$f":"'Fragebogen Habilitation'!T134","v":""},{"$f":"IF('Fragebogen Habilitation'!U134=\"\",\"\",'Fragebogen Habilitation'!U134)","v":""},{"$f":"IF('Fragebogen Habilitation'!V134=\"\",\"\",'Fragebogen Habilitation'!V134)","v":""},{"$f":"'Fragebogen Habilitation'!X134","v":""},{"$f":"'Fragebogen Habilitation'!Z134","v":""},{"$f":"'Fragebogen Habilitation'!AB134","v":""}]
[{"$f":"'Fragebogen Habilitation'!F135&\"0000\"","v":"0000"},{"$f":"'Fragebogen Habilitation'!B135","v":9},2024,{"$f":"'Fragebogen Habilitation'!F135","v":""},{"$f":"'Fragebogen Habilitation'!A135","v":119},{"$f":"'Fragebogen Habilitation'!G135","v":0},{"$f":"'Fragebogen Habilitation'!H135","v":0},{"$f":"'Fragebogen Habilitation'!I135","v":0},{"$f":"'Fragebogen Habilitation'!K135","v":""},{"$f":"'Fragebogen Habilitation'!L135","v":0},{"$f":"'Fragebogen Habilitation'!M135","v":0},{"$f":"'Fragebogen Habilitation'!O135","v":""},{"$f":"'Fragebogen Habilitation'!Q135","v":""},{"$f":"'Fragebogen Habilitation'!R135","v":0},{"$f":"'Fragebogen Habilitation'!T135","v":""},{"$f":"IF('Fragebogen Habilitation'!U135=\"\",\"\",'Fragebogen Habilitation'!U135)","v":""},{"$f":"IF('Fragebogen Habilitation'!V135=\"\",\"\",'Fragebogen Habilitation'!V135)","v":""},{"$f":"'Fragebogen Habilitation'!X135","v":""},{"$f":"'Fragebogen Habilitation'!Z135","v":""},{"$f":"'Fragebogen Habilitation'!AB135","v":""}]
[{"$f":"'Fragebogen Habilitation'!F136&\"0000\"","v":"0000"},{"$f":"'Fragebogen Habilitation'!B136","v":9},2024,{"$f":"'Fragebogen Habilitation'!F136","v":""},{"$f":"'Fragebogen Habilitation'!A136","v":120},{"$f":"'Fragebogen Habilitation'!G136","v":0},{"$f":"'Fragebogen Habilitation'!H136","v":0},{"$f":"'Fragebogen Habilitation'!I136","v":0},{"$f":"'Fragebogen Habilitation'!K136","v":""},{"$f":"'Fragebogen Habilitation'!L136","v":0},{"$f":"'Fragebogen Habilitation'!M136","v":0},{"$f":"'Fragebogen Habilitation'!O136","v":""},{"$f":"'Fragebogen Habilitation'!Q136","v":""},{"$f":"'Fragebogen Habilitation'!R136","v":0},{"$f":"'Fragebogen Habilitation'!T136","v":""},{"$f":"IF('Fragebogen Habilitation'!U136=\"\",\"\",'Fragebogen Habilitation'!U136)","v":""},{"$f":"IF('Fragebogen Habilitation'!V136=\"\",\"\",'Fragebogen Habilitation'!V136)","v":""},{"$f":"'Fragebogen Habilitation'!X136","v":""},{"$f":"'Fragebogen Habilitation'!Z136","v":""},{"$f":"'Fragebogen Habilitation'!AB136","v":""}]
[{"$f":"'Fragebogen Habilitation'!F137&\"0000\"","v":"0000"},{"$f":"'Fragebogen Habilitation'!B137","v":9},2024,{"$f":"'Fragebogen Habilitation'!F137","v":""},{"$f":"'Fragebogen Habilitation'!A137","v":121},{"$f":"'Fragebogen Habilitation'!G137","v":0},{"$f":"'Fragebogen Habilitation'!H137","v":0},{"$f":"'Fragebogen Habilitation'!I137","v":0},{"$f":"'Fragebogen Habilitation'!K137","v":""},{"$f":"'Fragebogen Habilitation'!L137","v":0},{"$f":"'Fragebogen Habilitation'!M137","v":0},{"$f":"'Fragebogen Habilitation'!O137","v":""},{"$f":"'Fragebogen Habilitation'!Q137","v":""},{"$f":"'Fragebogen Habilitation'!R137","v":0},{"$f":"'Fragebogen Habilitation'!T137","v":""},{"$f":"IF('Fragebogen Habilitation'!U137=\"\",\"\",'Fragebogen Habilitation'!U137)","v":""},{"$f":"IF('Fragebogen Habilitation'!V137=\"\",\"\",'Fragebogen Habilitation'!V137)","v":""},{"$f":"'Fragebogen Habilitation'!X137","v":""},{"$f":"'Fragebogen Habilitation'!Z137","v":""},{"$f":"'Fragebogen Habilitation'!AB137","v":""}]
[{"$f":"'Fragebogen Habilitation'!F138&\"0000\"","v":"0000"},{"$f":"'Fragebogen Habilitation'!B138","v":9},2024,{"$f":"'Fragebogen Habilitation'!F138","v":""},{"$f":"'Fragebogen Habilitation'!A138","v":122},{"$f":"'Fragebogen Habilitation'!G138","v":0},{"$f":"'Fragebogen Habilitation'!H138","v":0},{"$f":"'Fragebogen Habilitation'!I138","v":0},{"$f":"'Fragebogen Habilitation'!K138","v":""},{"$f":"'Fragebogen Habilitation'!L138","v":0},{"$f":"'Fragebogen Habilitation'!M138","v":0},{"$f":"'Fragebogen Habilitation'!O138","v":""},{"$f":"'Fragebogen Habilitation'!Q138","v":""},{"$f":"'Fragebogen Habilitation'!R138","v":0},{"$f":"'Fragebogen Habilitation'!T138","v":""},{"$f":"IF('Fragebogen Habilitation'!U138=\"\",\"\",'Fragebogen Habilitation'!U138)","v":""},{"$f":"IF('Fragebogen Habilitation'!V138=\"\",\"\",'Fragebogen Habilitation'!V138)","v":""},{"$f":"'Fragebogen Habilitation'!X138","v":""},{"$f":"'Fragebogen Habilitation'!Z138","v":""},{"$f":"'Fragebogen Habilitation'!AB138","v":""}]

{"sheet":"IDEV","index":7,"n_rows":123,"n_cols":16,"rows_kept":123,"cut":false,"hidden":true,"merged":[]}
[]
[{"$f":"'Fragebogen Habilitation'!A17","v":1},{"$f":"'Fragebogen Habilitation'!F17","v":0},{"$f":"'Fragebogen Habilitation'!G17","v":0},{"$f":"'Fragebogen Habilitation'!H17","v":0},{"$f":"'Fragebogen Habilitation'!I17","v":0},{"$f":"'Fragebogen Habilitation'!K17","v":""},{"$f":"'Fragebogen Habilitation'!L17","v":0},{"$f":"'Fragebogen Habilitation'!M17","v":0},{"$f":"'Fragebogen Habilitation'!Q17","v":""},{"$f":"'Fragebogen Habilitation'!R17","v":0},{"$f":"'Fragebogen Habilitation'!T17","v":""},{"$f":"IF('Fragebogen Habilitation'!U17=\"\",\"\",'Fragebogen Habilitation'!U17)","v":""},{"$f":"IF('Fragebogen Habilitation'!V17=\"\",\"\",'Fragebogen Habilitation'!V17)","v":""},{"$f":"'Fragebogen Habilitation'!X17","v":""},{"$f":"'Fragebogen Habilitation'!Z17","v":""},{"$f":"'Fragebogen Habilitation'!AB17","v":""}]
[{"$f":"'Fragebogen Habilitation'!A18","v":2},{"$f":"'Fragebogen Habilitation'!F18","v":""},{"$f":"'Fragebogen Habilitation'!G18","v":0},{"$f":"'Fragebogen Habilitation'!H18","v":0},{"$f":"'Fragebogen Habilitation'!I18","v":0},{"$f":"'Fragebogen Habilitation'!K18","v":""},{"$f":"'Fragebogen Habilitation'!L18","v":0},{"$f":"'Fragebogen Habilitation'!M18","v":0},{"$f":"'Fragebogen Habilitation'!Q18","v":""},{"$f":"'Fragebogen Habilitation'!R18","v":0},{"$f":"'Fragebogen Habilitation'!T18","v":""},{"$f":"IF('Fragebogen Habilitation'!U18=\"\",\"\",'Fragebogen Habilitation'!U18)","v":""},{"$f":"IF('Fragebogen Habilitation'!V18=\"\",\"\",'Fragebogen Habilitation'!V18)","v":""},{"$f":"'Fragebogen Habilitation'!X18","v":""},{"$f":"'Fragebogen Habilitation'!Z18","v":""},{"$f":"'Fragebogen Habilitation'!AB18","v":""}]
[{"$f":"'Fragebogen Habilitation'!A19","v":3},{"$f":"'Fragebogen Habilitation'!F19","v":""},{"$f":"'Fragebogen Habilitation'!G19","v":0},{"$f":"'Fragebogen Habilitation'!H19","v":0},{"$f":"'Fragebogen Habilitation'!I19","v":0},{"$f":"'Fragebogen Habilitation'!K19","v":""},{"$f":"'Fragebogen Habilitation'!L19","v":0},{"$f":"'Fragebogen Habilitation'!M19","v":0},{"$f":"'Fragebogen Habilitation'!Q19","v":""},{"$f":"'Fragebogen Habilitation'!R19","v":0},{"$f":"'Fragebogen Habilitation'!T19","v":""},{"$f":"IF('Fragebogen Habilitation'!U19=\"\",\"\",'Fragebogen Habilitation'!U19)","v":""},{"$f":"IF('Fragebogen Habilitation'!V19=\"\",\"\",'Fragebogen Habilitation'!V19)","v":""},{"$f":"'Fragebogen Habilitation'!X19","v":""},{"$f":"'Fragebogen Habilitation'!Z19","v":""},{"$f":"'Fragebogen Habilitation'!AB19","v":""}]
[{"$f":"'Fragebogen Habilitation'!A20","v":4},{"$f":"'Fragebogen Habilitation'!F20","v":""},{"$f":"'Fragebogen Habilitation'!G20","v":0},{"$f":"'Fragebogen Habilitation'!H20","v":0},{"$f":"'Fragebogen Habilitation'!I20","v":0},{"$f":"'Fragebogen Habilitation'!K20","v":""},{"$f":"'Fragebogen Habilitation'!L20","v":0},{"$f":"'Fragebogen Habilitation'!M20","v":0},{"$f":"'Fragebogen Habilitation'!Q20","v":""},{"$f":"'Fragebogen Habilitation'!R20","v":0},{"$f":"'Fragebogen Habilitation'!T20","v":""},{"$f":"IF('Fragebogen Habilitation'!U20=\"\",\"\",'Fragebogen Habilitation'!U20)","v":""},{"$f":"IF('Fragebogen Habilitation'!V20=\"\",\"\",'Fragebogen Habilitation'!V20)","v":""},{"$f":"'Fragebogen Habilitation'!X20","v":""},{"$f":"'Fragebogen Habilitation'!Z20","v":""},{"$f":"'Fragebogen Habilitation'!AB20","v":""}]
[{"$f":"'Fragebogen Habilitation'!A21","v":5},{"$f":"'Fragebogen Habilitation'!F21","v":""},{"$f":"'Fragebogen Habilitation'!G21","v":0},{"$f":"'Fragebogen Habilitation'!H21","v":0},{"$f":"'Fragebogen Habilitation'!I21","v":0},{"$f":"'Fragebogen Habilitation'!K21","v":""},{"$f":"'Fragebogen Habilitation'!L21","v":0},{"$f":"'Fragebogen Habilitation'!M21","v":0},{"$f":"'Fragebogen Habilitation'!Q21","v":""},{"$f":"'Fragebogen Habilitation'!R21","v":0},{"$f":"'Fragebogen Habilitation'!T21","v":""},{"$f":"IF('Fragebogen Habilitation'!U21=\"\",\"\",'Fragebogen Habilitation'!U21)","v":""},{"$f":"IF('Fragebogen Habilitation'!V21=\"\",\"\",'Fragebogen Habilitation'!V21)","v":""},{"$f":"'Fragebogen Habilitation'!X21","v":""},{"$f":"'Fragebogen Habilitation'!Z21","v":""},{"$f":"'Fragebogen Habilitation'!AB21","v":""}]
[{"$f":"'Fragebogen Habilitation'!A22","v":6},{"$f":"'Fragebogen Habilitation'!F22","v":""},{"$f":"'Fragebogen Habilitation'!G22","v":0},{"$f":"'Fragebogen Habilitation'!H22","v":0},{"$f":"'Fragebogen Habilitation'!I22","v":0},{"$f":"'Fragebogen Habilitation'!K22","v":""},{"$f":"'Fragebogen Habilitation'!L22","v":0},{"$f":"'Fragebogen Habilitation'!M22","v":0},{"$f":"'Fragebogen Habilitation'!Q22","v":""},{"$f":"'Fragebogen Habilitation'!R22","v":0},{"$f":"'Fragebogen Habilitation'!T22","v":""},{"$f":"IF('Fragebogen Habilitation'!U22=\"\",\"\",'Fragebogen Habilitation'!U22)","v":""},{"$f":"IF('Fragebogen Habilitation'!V22=\"\",\"\",'Fragebogen Habilitation'!V22)","v":""},{"$f":"'Fragebogen Habilitation'!X22","v":""},{"$f":"'Fragebogen Habilitation'!Z22","v":""},{"$f":"'Fragebogen Habilitation'!AB22","v":""}]
[{"$f":"'Fragebogen Habilitation'!A23","v":7},{"$f":"'Fragebogen Habilitation'!F23","v":""},{"$f":"'Fragebogen Habilitation'!G23","v":0},{"$f":"'Fragebogen Habilitation'!H23","v":0},{"$f":"'Fragebogen Habilitation'!I23","v":0},{"$f":"'Fragebogen Habilitation'!K23","v":""},{"$f":"'Fragebogen Habilitation'!L23","v":0},{"$f":"'Fragebogen Habilitation'!M23","v":0},{"$f":"'Fragebogen Habilitation'!Q23","v":""},{"$f":"'Fragebogen Habilitation'!R23","v":0},{"$f":"'Fragebogen Habilitation'!T23","v":""},{"$f":"IF('Fragebogen Habilitation'!U23=\"\",\"\",'Fragebogen Habilitation'!U23)","v":""},{"$f":"IF('Fragebogen Habilitation'!V23=\"\",\"\",'Fragebogen Habilitation'!V23)","v":""},{"$f":"'Fragebogen Habilitation'!X23","v":""},{"$f":"'Fragebogen Habilitation'!Z23","v":""},{"$f":"'Fragebogen Habilitation'!AB23","v":""}]
[{"$f":"'Fragebogen Habilitation'!A24","v":8},{"$f":"'Fragebogen Habilitation'!F24","v":""},{"$f":"'Fragebogen Habilitation'!G24","v":0},{"$f":"'Fragebogen Habilitation'!H24","v":0},{"$f":"'Fragebogen Habilitation'!I24","v":0},{"$f":"'Fragebogen Habilitation'!K24","v":""},{"$f":"'Fragebogen Habilitation'!L24","v":0},{"$f":"'Fragebogen Habilitation'!M24","v":0},{"$f":"'Fragebogen Habilitation'!Q24","v":""},{"$f":"'Fragebogen Habilitation'!R24","v":0},{"$f":"'Fragebogen Habilitation'!T24","v":""},{"$f":"IF('Fragebogen Habilitation'!U24=\"\",\"\",'Fragebogen Habilitation'!U24)","v":""},{"$f":"IF('Fragebogen Habilitation'!V24=\"\",\"\",'Fragebogen Habilitation'!V24)","v":""},{"$f":"'Fragebogen Habilitation'!X24","v":""},{"$f":"'Fragebogen Habilitation'!Z24","v":""},{"$f":"'Fragebogen Habilitation'!AB24","v":""}]
[{"$f":"'Fragebogen Habilitation'!A25","v":9},{"$f":"'Fragebogen Habilitation'!F25","v":""},{"$f":"'Fragebogen Habilitation'!G25","v":0},{"$f":"'Fragebogen Habilitation'!H25","v":0},{"$f":"'Fragebogen Habilitation'!I25","v":0},{"$f":"'Fragebogen Habilitation'!K25","v":""},{"$f":"'Fragebogen Habilitation'!L25","v":0},{"$f":"'Fragebogen Habilitation'!M25","v":0},{"$f":"'Fragebogen Habilitation'!Q25","v":""},{"$f":"'Fragebogen Habilitation'!R25","v":0},{"$f":"'Fragebogen Habilitation'!T25","v":""},{"$f":"IF('Fragebogen Habilitation'!U25=\"\",\"\",'Fragebogen Habilitation'!U25)","v":""},{"$f":"IF('Fragebogen Habilitation'!V25=\"\",\"\",'Fragebogen Habilitation'!V25)","v":""},{"$f":"'Fragebogen Habilitation'!X25","v":""},{"$f":"'Fragebogen Habilitation'!Z25","v":""},{"$f":"'Fragebogen Habilitation'!AB25","v":""}]
[{"$f":"'Fragebogen Habilitation'!A26","v":10},{"$f":"'Fragebogen Habilitation'!F26","v":""},{"$f":"'Fragebogen Habilitation'!G26","v":0},{"$f":"'Fragebogen Habilitation'!H26","v":0},{"$f":"'Fragebogen Habilitation'!I26","v":0},{"$f":"'Fragebogen Habilitation'!K26","v":""},{"$f":"'Fragebogen Habilitation'!L26","v":0},{"$f":"'Fragebogen Habilitation'!M26","v":0},{"$f":"'Fragebogen Habilitation'!Q26","v":""},{"$f":"'Fragebogen Habilitation'!R26","v":0},{"$f":"'Fragebogen Habilitation'!T26","v":""},{"$f":"IF('Fragebogen Habilitation'!U26=\"\",\"\",'Fragebogen Habilitation'!U26)","v":""},{"$f":"IF('Fragebogen Habilitation'!V26=\"\",\"\",'Fragebogen Habilitation'!V26)","v":""},{"$f":"'Fragebogen Habilitation'!X26","v":""},{"$f":"'Fragebogen Habilitation'!Z26","v":""},{"$f":"'Fragebogen Habilitation'!AB26","v":""}]
[{"$f":"'Fragebogen Habilitation'!A27","v":11},{"$f":"'Fragebogen Habilitation'!F27","v":""},{"$f":"'Fragebogen Habilitation'!G27","v":0},{"$f":"'Fragebogen Habilitation'!H27","v":0},{"$f":"'Fragebogen Habilitation'!I27","v":0},{"$f":"'Fragebogen Habilitation'!K27","v":""},{"$f":"'Fragebogen Habilitation'!L27","v":0},{"$f":"'Fragebogen Habilitation'!M27","v":0},{"$f":"'Fragebogen Habilitation'!Q27","v":""},{"$f":"'Fragebogen Habilitation'!R27","v":0},{"$f":"'Fragebogen Habilitation'!T27","v":""},{"$f":"IF('Fragebogen Habilitation'!U27=\"\",\"\",'Fragebogen Habilitation'!U27)","v":""},{"$f":"IF('Fragebogen Habilitation'!V27=\"\",\"\",'Fragebogen Habilitation'!V27)","v":""},{"$f":"'Fragebogen Habilitation'!X27","v":""},{"$f":"'Fragebogen Habilitation'!Z27","v":""},{"$f":"'Fragebogen Habilitation'!AB27","v":""}]
[{"$f":"'Fragebogen Habilitation'!A28","v":12},{"$f":"'Fragebogen Habilitation'!F28","v":""},{"$f":"'Fragebogen Habilitation'!G28","v":0},{"$f":"'Fragebogen Habilitation'!H28","v":0},{"$f":"'Fragebogen Habilitation'!I28","v":0},{"$f":"'Fragebogen Habilitation'!K28","v":""},{"$f":"'Fragebogen Habilitation'!L28","v":0},{"$f":"'Fragebogen Habilitation'!M28","v":0},{"$f":"'Fragebogen Habilitation'!Q28","v":""},{"$f":"'Fragebogen Habilitation'!R28","v":0},{"$f":"'Fragebogen Habilitation'!T28","v":""},{"$f":"IF('Fragebogen Habilitation'!U28=\"\",\"\",'Fragebogen Habilitation'!U28)","v":""},{"$f":"IF('Fragebogen Habilitation'!V28=\"\",\"\",'Fragebogen Habilitation'!V28)","v":""},{"$f":"'Fragebogen Habilitation'!X28","v":""},{"$f":"'Fragebogen Habilitation'!Z28","v":""},{"$f":"'Fragebogen Habilitation'!AB28","v":""}]
[{"$f":"'Fragebogen Habilitation'!A29","v":13},{"$f":"'Fragebogen Habilitation'!F29","v":""},{"$f":"'Fragebogen Habilitation'!G29","v":0},{"$f":"'Fragebogen Habilitation'!H29","v":0},{"$f":"'Fragebogen Habilitation'!I29","v":0},{"$f":"'Fragebogen Habilitation'!K29","v":""},{"$f":"'Fragebogen Habilitation'!L29","v":0},{"$f":"'Fragebogen Habilitation'!M29","v":0},{"$f":"'Fragebogen Habilitation'!Q29","v":""},{"$f":"'Fragebogen Habilitation'!R29","v":0},{"$f":"'Fragebogen Habilitation'!T29","v":""},{"$f":"IF('Fragebogen Habilitation'!U29=\"\",\"\",'Fragebogen Habilitation'!U29)","v":""},{"$f":"IF('Fragebogen Habilitation'!V29=\"\",\"\",'Fragebogen Habilitation'!V29)","v":""},{"$f":"'Fragebogen Habilitation'!X29","v":""},{"$f":"'Fragebogen Habilitation'!Z29","v":""},{"$f":"'Fragebogen Habilitation'!AB29","v":""}]
[{"$f":"'Fragebogen Habilitation'!A30","v":14},{"$f":"'Fragebogen Habilitation'!F30","v":""},{"$f":"'Fragebogen Habilitation'!G30","v":0},{"$f":"'Fragebogen Habilitation'!H30","v":0},{"$f":"'Fragebogen Habilitation'!I30","v":0},{"$f":"'Fragebogen Habilitation'!K30","v":""},{"$f":"'Fragebogen Habilitation'!L30","v":0},{"$f":"'Fragebogen Habilitation'!M30","v":0},{"$f":"'Fragebogen Habilitation'!Q30","v":""},{"$f":"'Fragebogen Habilitation'!R30","v":0},{"$f":"'Fragebogen Habilitation'!T30","v":""},{"$f":"IF('Fragebogen Habilitation'!U30=\"\",\"\",'Fragebogen Habilitation'!U30)","v":""},{"$f":"IF('Fragebogen Habilitation'!V30=\"\",\"\",'Fragebogen Habilitation'!V30)","v":""},{"$f":"'Fragebogen Habilitation'!X30","v":""},{"$f":"'Fragebogen Habilitation'!Z30","v":""},{"$f":"'Fragebogen Habilitation'!AB30","v":""}]
[{"$f":"'Fragebogen Habilitation'!A31","v":15},{"$f":"'Fragebogen Habilitation'!F31","v":""},{"$f":"'Fragebogen Habilitation'!G31","v":0},{"$f":"'Fragebogen Habilitation'!H31","v":0},{"$f":"'Fragebogen Habilitation'!I31","v":0},{"$f":"'Fragebogen Habilitation'!K31","v":""},{"$f":"'Fragebogen Habilitation'!L31","v":0},{"$f":"'Fragebogen Habilitation'!M31","v":0},{"$f":"'Fragebogen Habilitation'!Q31","v":""},{"$f":"'Fragebogen Habilitation'!R31","v":0},{"$f":"'Fragebogen Habilitation'!T31","v":""},{"$f":"IF('Fragebogen Habilitation'!U31=\"\",\"\",'Fragebogen Habilitation'!U31)","v":""},{"$f":"IF('Fragebogen Habilitation'!V31=\"\",\"\",'Fragebogen Habilitation'!V31)","v":""},{"$f":"'Fragebogen Habilitation'!X31","v":""},{"$f":"'Fragebogen Habilitation'!Z31","v":""},{"$f":"'Fragebogen Habilitation'!AB31","v":""}]
[{"$f":"'Fragebogen Habilitation'!A32","v":16},{"$f":"'Fragebogen Habilitation'!F32","v":""},{"$f":"'Fragebogen Habilitation'!G32","v":0},{"$f":"'Fragebogen Habilitation'!H32","v":0},{"$f":"'Fragebogen Habilitation'!I32","v":0},{"$f":"'Fragebogen Habilitation'!K32","v":""},{"$f":"'Fragebogen Habilitation'!L32","v":0},{"$f":"'Fragebogen Habilitation'!M32","v":0},{"$f":"'Fragebogen Habilitation'!Q32","v":""},{"$f":"'Fragebogen Habilitation'!R32","v":0},{"$f":"'Fragebogen Habilitation'!T32","v":""},{"$f":"IF('Fragebogen Habilitation'!U32=\"\",\"\",'Fragebogen Habilitation'!U32)","v":""},{"$f":"IF('Fragebogen Habilitation'!V32=\"\",\"\",'Fragebogen Habilitation'!V32)","v":""},{"$f":"'Fragebogen Habilitation'!X32","v":""},{"$f":"'Fragebogen Habilitation'!Z32","v":""},{"$f":"'Fragebogen Habilitation'!AB32","v":""}]
[{"$f":"'Fragebogen Habilitation'!A33","v":17},{"$f":"'Fragebogen Habilitation'!F33","v":""},{"$f":"'Fragebogen Habilitation'!G33","v":0},{"$f":"'Fragebogen Habilitation'!H33","v":0},{"$f":"'Fragebogen Habilitation'!I33","v":0},{"$f":"'Fragebogen Habilitation'!K33","v":""},{"$f":"'Fragebogen Habilitation'!L33","v":0},{"$f":"'Fragebogen Habilitation'!M33","v":0},{"$f":"'Fragebogen Habilitation'!Q33","v":""},{"$f":"'Fragebogen Habilitation'!R33","v":0},{"$f":"'Fragebogen Habilitation'!T33","v":""},{"$f":"IF('Fragebogen Habilitation'!U33=\"\",\"\",'Fragebogen Habilitation'!U33)","v":""},{"$f":"IF('Fragebogen Habilitation'!V33=\"\",\"\",'Fragebogen Habilitation'!V33)","v":""},{"$f":"'Fragebogen Habilitation'!X33","v":""},{"$f":"'Fragebogen Habilitation'!Z33","v":""},{"$f":"'Fragebogen Habilitation'!AB33","v":""}]
[{"$f":"'Fragebogen Habilitation'!A34","v":18},{"$f":"'Fragebogen Habilitation'!F34","v":""},{"$f":"'Fragebogen Habilitation'!G34","v":0},{"$f":"'Fragebogen Habilitation'!H34","v":0},{"$f":"'Fragebogen Habilitation'!I34","v":0},{"$f":"'Fragebogen Habilitation'!K34","v":""},{"$f":"'Fragebogen Habilitation'!L34","v":0},{"$f":"'Fragebogen Habilitation'!M34","v":0},{"$f":"'Fragebogen Habilitation'!Q34","v":""},{"$f":"'Fragebogen Habilitation'!R34","v":0},{"$f":"'Fragebogen Habilitation'!T34","v":""},{"$f":"IF('Fragebogen Habilitation'!U34=\"\",\"\",'Fragebogen Habilitation'!U34)","v":""},{"$f":"IF('Fragebogen Habilitation'!V34=\"\",\"\",'Fragebogen Habilitation'!V34)","v":""},{"$f":"'Fragebogen Habilitation'!X34","v":""},{"$f":"'Fragebogen Habilitation'!Z34","v":""},{"$f":"'Fragebogen Habilitation'!AB34","v":""}]
[{"$f":"'Fragebogen Habilitation'!A35","v":19},{"$f":"'Fragebogen Habilitation'!F35","v":""},{"$f":"'Fragebogen Habilitation'!G35","v":0},{"$f":"'Fragebogen Habilitation'!H35","v":0},{"$f":"'Fragebogen Habilitation'!I35","v":0},{"$f":"'Fragebogen Habilitation'!K35","v":""},{"$f":"'Fragebogen Habilitation'!L35","v":0},{"$f":"'Fragebogen Habilitation'!M35","v":0},{"$f":"'Fragebogen Habilitation'!Q35","v":""},{"$f":"'Fragebogen Habilitation'!R35","v":0},{"$f":"'Fragebogen Habilitation'!T35","v":""},{"$f":"IF('Fragebogen Habilitation'!U35=\"\",\"\",'Fragebogen Habilitation'!U35)","v":""},{"$f":"IF('Fragebogen Habilitation'!V35=\"\",\"\",'Fragebogen Habilitation'!V35)","v":""},{"$f":"'Fragebogen Habilitation'!X35","v":""},{"$f":"'Fragebogen Habilitation'!Z35","v":""},{"$f":"'Fragebogen Habilitation'!AB35","v":""}]
[{"$f":"'Fragebogen Habilitation'!A36","v":20},{"$f":"'Fragebogen Habilitation'!F36","v":""},{"$f":"'Fragebogen Habilitation'!G36","v":0},{"$f":"'Fragebogen Habilitation'!H36","v":0},{"$f":"'Fragebogen Habilitation'!I36","v":0},{"$f":"'Fragebogen Habilitation'!K36","v":""},{"$f":"'Fragebogen Habilitation'!L36","v":0},{"$f":"'Fragebogen Habilitation'!M36","v":0},{"$f":"'Fragebogen Habilitation'!Q36","v":""},{"$f":"'Fragebogen Habilitation'!R36","v":0},{"$f":"'Fragebogen Habilitation'!T36","v":""},{"$f":"IF('Fragebogen Habilitation'!U36=\"\",\"\",'Fragebogen Habilitation'!U36)","v":""},{"$f":"IF('Fragebogen Habilitation'!V36=\"\",\"\",'Fragebogen Habilitation'!V36)","v":""},{"$f":"'Fragebogen Habilitation'!X36","v":""},{"$f":"'Fragebogen Habilitation'!Z36","v":""},{"$f":"'Fragebogen Habilitation'!AB36","v":""}]
[{"$f":"'Fragebogen Habilitation'!A37","v":21},{"$f":"'Fragebogen Habilitation'!F37","v":""},{"$f":"'Fragebogen Habilitation'!G37","v":0},{"$f":"'Fragebogen Habilitation'!H37","v":0},{"$f":"'Fragebogen Habilitation'!I37","v":0},{"$f":"'Fragebogen Habilitation'!K37","v":""},{"$f":"'Fragebogen Habilitation'!L37","v":0},{"$f":"'Fragebogen Habilitation'!M37","v":0},{"$f":"'Fragebogen Habilitation'!Q37","v":""},{"$f":"'Fragebogen Habilitation'!R37","v":0},{"$f":"'Fragebogen Habilitation'!T37","v":""},{"$f":"IF('Fragebogen Habilitation'!U37=\"\",\"\",'Fragebogen Habilitation'!U37)","v":""},{"$f":"IF('Fragebogen Habilitation'!V37=\"\",\"\",'Fragebogen Habilitation'!V37)","v":""},{"$f":"'Fragebogen Habilitation'!X37","v":""},{"$f":"'Fragebogen Habilitation'!Z37","v":""},{"$f":"'Fragebogen Habilitation'!AB37","v":""}]
[{"$f":"'Fragebogen Habilitation'!A38","v":22},{"$f":"'Fragebogen Habilitation'!F38","v":""},{"$f":"'Fragebogen Habilitation'!G38","v":0},{"$f":"'Fragebogen Habilitation'!H38","v":0},{"$f":"'Fragebogen Habilitation'!I38","v":0},{"$f":"'Fragebogen Habilitation'!K38","v":""},{"$f":"'Fragebogen Habilitation'!L38","v":0},{"$f":"'Fragebogen Habilitation'!M38","v":0},{"$f":"'Fragebogen Habilitation'!Q38","v":""},{"$f":"'Fragebogen Habilitation'!R38","v":0},{"$f":"'Fragebogen Habilitation'!T38","v":""},{"$f":"IF('Fragebogen Habilitation'!U38=\"\",\"\",'Fragebogen Habilitation'!U38)","v":""},{"$f":"IF('Fragebogen Habilitation'!V38=\"\",\"\",'Fragebogen Habilitation'!V38)","v":""},{"$f":"'Fragebogen Habilitation'!X38","v":""},{"$f":"'Fragebogen Habilitation'!Z38","v":""},{"$f":"'Fragebogen Habilitation'!AB38","v":""}]
[{"$f":"'Fragebogen Habilitation'!A39","v":23},{"$f":"'Fragebogen Habilitation'!F39","v":""},{"$f":"'Fragebogen Habilitation'!G39","v":0},{"$f":"'Fragebogen Habilitation'!H39","v":0},{"$f":"'Fragebogen Habilitation'!I39","v":0},{"$f":"'Fragebogen Habilitation'!K39","v":""},{"$f":"'Fragebogen Habilitation'!L39","v":0},{"$f":"'Fragebogen Habilitation'!M39","v":0},{"$f":"'Fragebogen Habilitation'!Q39","v":""},{"$f":"'Fragebogen Habilitation'!R39","v":0},{"$f":"'Fragebogen Habilitation'!T39","v":""},{"$f":"IF('Fragebogen Habilitation'!U39=\"\",\"\",'Fragebogen Habilitation'!U39)","v":""},{"$f":"IF('Fragebogen Habilitation'!V39=\"\",\"\",'Fragebogen Habilitation'!V39)","v":""},{"$f":"'Fragebogen Habilitation'!X39","v":""},{"$f":"'Fragebogen Habilitation'!Z39","v":""},{"$f":"'Fragebogen Habilitation'!AB39","v":""}]
[{"$f":"'Fragebogen Habilitation'!A40","v":24},{"$f":"'Fragebogen Habilitation'!F40","v":""},{"$f":"'Fragebogen Habilitation'!G40","v":0},{"$f":"'Fragebogen Habilitation'!H40","v":0},{"$f":"'Fragebogen Habilitation'!I40","v":0},{"$f":"'Fragebogen Habilitation'!K40","v":""},{"$f":"'Fragebogen Habilitation'!L40","v":0},{"$f":"'Fragebogen Habilitation'!M40","v":0},{"$f":"'Fragebogen Habilitation'!Q40","v":""},{"$f":"'Fragebogen Habilitation'!R40","v":0},{"$f":"'Fragebogen Habilitation'!T40","v":""},{"$f":"IF('Fragebogen Habilitation'!U40=\"\",\"\",'Fragebogen Habilitation'!U40)","v":""},{"$f":"IF('Fragebogen Habilitation'!V40=\"\",\"\",'Fragebogen Habilitation'!V40)","v":""},{"$f":"'Fragebogen Habilitation'!X40","v":""},{"$f":"'Fragebogen Habilitation'!Z40","v":""},{"$f":"'Fragebogen Habilitation'!AB40","v":""}]
[{"$f":"'Fragebogen Habilitation'!A41","v":25},{"$f":"'Fragebogen Habilitation'!F41","v":""},{"$f":"'Fragebogen Habilitation'!G41","v":0},{"$f":"'Fragebogen Habilitation'!H41","v":0},{"$f":"'Fragebogen Habilitation'!I41","v":0},{"$f":"'Fragebogen Habilitation'!K41","v":""},{"$f":"'Fragebogen Habilitation'!L41","v":0},{"$f":"'Fragebogen Habilitation'!M41","v":0},{"$f":"'Fragebogen Habilitation'!Q41","v":""},{"$f":"'Fragebogen Habilitation'!R41","v":0},{"$f":"'Fragebogen Habilitation'!T41","v":""},{"$f":"IF('Fragebogen Habilitation'!U41=\"\",\"\",'Fragebogen Habilitation'!U41)","v":""},{"$f":"IF('Fragebogen Habilitation'!V41=\"\",\"\",'Fragebogen Habilitation'!V41)","v":""},{"$f":"'Fragebogen Habilitation'!X41","v":""},{"$f":"'Fragebogen Habilitation'!Z41","v":""},{"$f":"'Fragebogen Habilitation'!AB41","v":""}]
[{"$f":"'Fragebogen Habilitation'!A42","v":26},{"$f":"'Fragebogen Habilitation'!F42","v":""},{"$f":"'Fragebogen Habilitation'!G42","v":0},{"$f":"'Fragebogen Habilitation'!H42","v":0},{"$f":"'Fragebogen Habilitation'!I42","v":0},{"$f":"'Fragebogen Habilitation'!K42","v":""},{"$f":"'Fragebogen Habilitation'!L42","v":0},{"$f":"'Fragebogen Habilitation'!M42","v":0},{"$f":"'Fragebogen Habilitation'!Q42","v":""},{"$f":"'Fragebogen Habilitation'!R42","v":0},{"$f":"'Fragebogen Habilitation'!T42","v":""},{"$f":"IF('Fragebogen Habilitation'!U42=\"\",\"\",'Fragebogen Habilitation'!U42)","v":""},{"$f":"IF('Fragebogen Habilitation'!V42=\"\",\"\",'Fragebogen Habilitation'!V42)","v":""},{"$f":"'Fragebogen Habilitation'!X42","v":""},{"$f":"'Fragebogen Habilitation'!Z42","v":""},{"$f":"'Fragebogen Habilitation'!AB42","v":""}]
[{"$f":"'Fragebogen Habilitation'!A43","v":27},{"$f":"'Fragebogen Habilitation'!F43","v":""},{"$f":"'Fragebogen Habilitation'!G43","v":0},{"$f":"'Fragebogen Habilitation'!H43","v":0},{"$f":"'Fragebogen Habilitation'!I43","v":0},{"$f":"'Fragebogen Habilitation'!K43","v":""},{"$f":"'Fragebogen Habilitation'!L43","v":0},{"$f":"'Fragebogen Habilitation'!M43","v":0},{"$f":"'Fragebogen Habilitation'!Q43","v":""},{"$f":"'Fragebogen Habilitation'!R43","v":0},{"$f":"'Fragebogen Habilitation'!T43","v":""},{"$f":"IF('Fragebogen Habilitation'!U43=\"\",\"\",'Fragebogen Habilitation'!U43)","v":""},{"$f":"IF('Fragebogen Habilitation'!V43=\"\",\"\",'Fragebogen Habilitation'!V43)","v":""},{"$f":"'Fragebogen Habilitation'!X43","v":""},{"$f":"'Fragebogen Habilitation'!Z43","v":""},{"$f":"'Fragebogen Habilitation'!AB43","v":""}]
[{"$f":"'Fragebogen Habilitation'!A44","v":28},{"$f":"'Fragebogen Habilitation'!F44","v":""},{"$f":"'Fragebogen Habilitation'!G44","v":0},{"$f":"'Fragebogen Habilitation'!H44","v":0},{"$f":"'Fragebogen Habilitation'!I44","v":0},{"$f":"'Fragebogen Habilitation'!K44","v":""},{"$f":"'Fragebogen Habilitation'!L44","v":0},{"$f":"'Fragebogen Habilitation'!M44","v":0},{"$f":"'Fragebogen Habilitation'!Q44","v":""},{"$f":"'Fragebogen Habilitation'!R44","v":0},{"$f":"'Fragebogen Habilitation'!T44","v":""},{"$f":"IF('Fragebogen Habilitation'!U44=\"\",\"\",'Fragebogen Habilitation'!U44)","v":""},{"$f":"IF('Fragebogen Habilitation'!V44=\"\",\"\",'Fragebogen Habilitation'!V44)","v":""},{"$f":"'Fragebogen Habilitation'!X44","v":""},{"$f":"'Fragebogen Habilitation'!Z44","v":""},{"$f":"'Fragebogen Habilitation'!AB44","v":""}]
[{"$f":"'Fragebogen Habilitation'!A45","v":29},{"$f":"'Fragebogen Habilitation'!F45","v":""},{"$f":"'Fragebogen Habilitation'!G45","v":0},{"$f":"'Fragebogen Habilitation'!H45","v":0},{"$f":"'Fragebogen Habilitation'!I45","v":0},{"$f":"'Fragebogen Habilitation'!K45","v":""},{"$f":"'Fragebogen Habilitation'!L45","v":0},{"$f":"'Fragebogen Habilitation'!M45","v":0},{"$f":"'Fragebogen Habilitation'!Q45","v":""},{"$f":"'Fragebogen Habilitation'!R45","v":0},{"$f":"'Fragebogen Habilitation'!T45","v":""},{"$f":"IF('Fragebogen Habilitation'!U45=\"\",\"\",'Fragebogen Habilitation'!U45)","v":""},{"$f":"IF('Fragebogen Habilitation'!V45=\"\",\"\",'Fragebogen Habilitation'!V45)","v":""},{"$f":"'Fragebogen Habilitation'!X45","v":""},{"$f":"'Fragebogen Habilitation'!Z45","v":""},{"$f":"'Fragebogen Habilitation'!AB45","v":""}]
[{"$f":"'Fragebogen Habilitation'!A46","v":30},{"$f":"'Fragebogen Habilitation'!F46","v":""},{"$f":"'Fragebogen Habilitation'!G46","v":0},{"$f":"'Fragebogen Habilitation'!H46","v":0},{"$f":"'Fragebogen Habilitation'!I46","v":0},{"$f":"'Fragebogen Habilitation'!K46","v":""},{"$f":"'Fragebogen Habilitation'!L46","v":0},{"$f":"'Fragebogen Habilitation'!M46","v":0},{"$f":"'Fragebogen Habilitation'!Q46","v":""},{"$f":"'Fragebogen Habilitation'!R46","v":0},{"$f":"'Fragebogen Habilitation'!T46","v":""},{"$f":"IF('Fragebogen Habilitation'!U46=\"\",\"\",'Fragebogen Habilitation'!U46)","v":""},{"$f":"IF('Fragebogen Habilitation'!V46=\"\",\"\",'Fragebogen Habilitation'!V46)","v":""},{"$f":"'Fragebogen Habilitation'!X46","v":""},{"$f":"'Fragebogen Habilitation'!Z46","v":""},{"$f":"'Fragebogen Habilitation'!AB46","v":""}]
[{"$f":"'Fragebogen Habilitation'!A47","v":31},{"$f":"'Fragebogen Habilitation'!F47","v":""},{"$f":"'Fragebogen Habilitation'!G47","v":0},{"$f":"'Fragebogen Habilitation'!H47","v":0},{"$f":"'Fragebogen Habilitation'!I47","v":0},{"$f":"'Fragebogen Habilitation'!K47","v":""},{"$f":"'Fragebogen Habilitation'!L47","v":0},{"$f":"'Fragebogen Habilitation'!M47","v":0},{"$f":"'Fragebogen Habilitation'!Q47","v":""},{"$f":"'Fragebogen Habilitation'!R47","v":0},{"$f":"'Fragebogen Habilitation'!T47","v":""},{"$f":"IF('Fragebogen Habilitation'!U47=\"\",\"\",'Fragebogen Habilitation'!U47)","v":""},{"$f":"IF('Fragebogen Habilitation'!V47=\"\",\"\",'Fragebogen Habilitation'!V47)","v":""},{"$f":"'Fragebogen Habilitation'!X47","v":""},{"$f":"'Fragebogen Habilitation'!Z47","v":""},{"$f":"'Fragebogen Habilitation'!AB47","v":""}]
[{"$f":"'Fragebogen Habilitation'!A48","v":32},{"$f":"'Fragebogen Habilitation'!F48","v":""},{"$f":"'Fragebogen Habilitation'!G48","v":0},{"$f":"'Fragebogen Habilitation'!H48","v":0},{"$f":"'Fragebogen Habilitation'!I48","v":0},{"$f":"'Fragebogen Habilitation'!K48","v":""},{"$f":"'Fragebogen Habilitation'!L48","v":0},{"$f":"'Fragebogen Habilitation'!M48","v":0},{"$f":"'Fragebogen Habilitation'!Q48","v":""},{"$f":"'Fragebogen Habilitation'!R48","v":0},{"$f":"'Fragebogen Habilitation'!T48","v":""},{"$f":"IF('Fragebogen Habilitation'!U48=\"\",\"\",'Fragebogen Habilitation'!U48)","v":""},{"$f":"IF('Fragebogen Habilitation'!V48=\"\",\"\",'Fragebogen Habilitation'!V48)","v":""},{"$f":"'Fragebogen Habilitation'!X48","v":""},{"$f":"'Fragebogen Habilitation'!Z48","v":""},{"$f":"'Fragebogen Habilitation'!AB48","v":""}]
[{"$f":"'Fragebogen Habilitation'!A49","v":33},{"$f":"'Fragebogen Habilitation'!F49","v":""},{"$f":"'Fragebogen Habilitation'!G49","v":0},{"$f":"'Fragebogen Habilitation'!H49","v":0},{"$f":"'Fragebogen Habilitation'!I49","v":0},{"$f":"'Fragebogen Habilitation'!K49","v":""},{"$f":"'Fragebogen Habilitation'!L49","v":0},{"$f":"'Fragebogen Habilitation'!M49","v":0},{"$f":"'Fragebogen Habilitation'!Q49","v":""},{"$f":"'Fragebogen Habilitation'!R49","v":0},{"$f":"'Fragebogen Habilitation'!T49","v":""},{"$f":"IF('Fragebogen Habilitation'!U49=\"\",\"\",'Fragebogen Habilitation'!U49)","v":""},{"$f":"IF('Fragebogen Habilitation'!V49=\"\",\"\",'Fragebogen Habilitation'!V49)","v":""},{"$f":"'Fragebogen Habilitation'!X49","v":""},{"$f":"'Fragebogen Habilitation'!Z49","v":""},{"$f":"'Fragebogen Habilitation'!AB49","v":""}]
[{"$f":"'Fragebogen Habilitation'!A50","v":34},{"$f":"'Fragebogen Habilitation'!F50","v":""},{"$f":"'Fragebogen Habilitation'!G50","v":0},{"$f":"'Fragebogen Habilitation'!H50","v":0},{"$f":"'Fragebogen Habilitation'!I50","v":0},{"$f":"'Fragebogen Habilitation'!K50","v":""},{"$f":"'Fragebogen Habilitation'!L50","v":0},{"$f":"'Fragebogen Habilitation'!M50","v":0},{"$f":"'Fragebogen Habilitation'!Q50","v":""},{"$f":"'Fragebogen Habilitation'!R50","v":0},{"$f":"'Fragebogen Habilitation'!T50","v":""},{"$f":"IF('Fragebogen Habilitation'!U50=\"\",\"\",'Fragebogen Habilitation'!U50)","v":""},{"$f":"IF('Fragebogen Habilitation'!V50=\"\",\"\",'Fragebogen Habilitation'!V50)","v":""},{"$f":"'Fragebogen Habilitation'!X50","v":""},{"$f":"'Fragebogen Habilitation'!Z50","v":""},{"$f":"'Fragebogen Habilitation'!AB50","v":""}]
[{"$f":"'Fragebogen Habilitation'!A51","v":35},{"$f":"'Fragebogen Habilitation'!F51","v":""},{"$f":"'Fragebogen Habilitation'!G51","v":0},{"$f":"'Fragebogen Habilitation'!H51","v":0},{"$f":"'Fragebogen Habilitation'!I51","v":0},{"$f":"'Fragebogen Habilitation'!K51","v":""},{"$f":"'Fragebogen Habilitation'!L51","v":0},{"$f":"'Fragebogen Habilitation'!M51","v":0},{"$f":"'Fragebogen Habilitation'!Q51","v":""},{"$f":"'Fragebogen Habilitation'!R51","v":0},{"$f":"'Fragebogen Habilitation'!T51","v":""},{"$f":"IF('Fragebogen Habilitation'!U51=\"\",\"\",'Fragebogen Habilitation'!U51)","v":""},{"$f":"IF('Fragebogen Habilitation'!V51=\"\",\"\",'Fragebogen Habilitation'!V51)","v":""},{"$f":"'Fragebogen Habilitation'!X51","v":""},{"$f":"'Fragebogen Habilitation'!Z51","v":""},{"$f":"'Fragebogen Habilitation'!AB51","v":""}]
[{"$f":"'Fragebogen Habilitation'!A52","v":36},{"$f":"'Fragebogen Habilitation'!F52","v":""},{"$f":"'Fragebogen Habilitation'!G52","v":0},{"$f":"'Fragebogen Habilitation'!H52","v":0},{"$f":"'Fragebogen Habilitation'!I52","v":0},{"$f":"'Fragebogen Habilitation'!K52","v":""},{"$f":"'Fragebogen Habilitation'!L52","v":0},{"$f":"'Fragebogen Habilitation'!M52","v":0},{"$f":"'Fragebogen Habilitation'!Q52","v":""},{"$f":"'Fragebogen Habilitation'!R52","v":0},{"$f":"'Fragebogen Habilitation'!T52","v":""},{"$f":"IF('Fragebogen Habilitation'!U52=\"\",\"\",'Fragebogen Habilitation'!U52)","v":""},{"$f":"IF('Fragebogen Habilitation'!V52=\"\",\"\",'Fragebogen Habilitation'!V52)","v":""},{"$f":"'Fragebogen Habilitation'!X52","v":""},{"$f":"'Fragebogen Habilitation'!Z52","v":""},{"$f":"'Fragebogen Habilitation'!AB52","v":""}]
[{"$f":"'Fragebogen Habilitation'!A53","v":37},{"$f":"'Fragebogen Habilitation'!F53","v":""},{"$f":"'Fragebogen Habilitation'!G53","v":0},{"$f":"'Fragebogen Habilitation'!H53","v":0},{"$f":"'Fragebogen Habilitation'!I53","v":0},{"$f":"'Fragebogen Habilitation'!K53","v":""},{"$f":"'Fragebogen Habilitation'!L53","v":0},{"$f":"'Fragebogen Habilitation'!M53","v":0},{"$f":"'Fragebogen Habilitation'!Q53","v":""},{"$f":"'Fragebogen Habilitation'!R53","v":0},{"$f":"'Fragebogen Habilitation'!T53","v":""},{"$f":"IF('Fragebogen Habilitation'!U53=\"\",\"\",'Fragebogen Habilitation'!U53)","v":""},{"$f":"IF('Fragebogen Habilitation'!V53=\"\",\"\",'Fragebogen Habilitation'!V53)","v":""},{"$f":"'Fragebogen Habilitation'!X53","v":""},{"$f":"'Fragebogen Habilitation'!Z53","v":""},{"$f":"'Fragebogen Habilitation'!AB53","v":""}]
[{"$f":"'Fragebogen Habilitation'!A54","v":38},{"$f":"'Fragebogen Habilitation'!F54","v":""},{"$f":"'Fragebogen Habilitation'!G54","v":0},{"$f":"'Fragebogen Habilitation'!H54","v":0},{"$f":"'Fragebogen Habilitation'!I54","v":0},{"$f":"'Fragebogen Habilitation'!K54","v":""},{"$f":"'Fragebogen Habilitation'!L54","v":0},{"$f":"'Fragebogen Habilitation'!M54","v":0},{"$f":"'Fragebogen Habilitation'!Q54","v":""},{"$f":"'Fragebogen Habilitation'!R54","v":0},{"$f":"'Fragebogen Habilitation'!T54","v":""},{"$f":"IF('Fragebogen Habilitation'!U54=\"\",\"\",'Fragebogen Habilitation'!U54)","v":""},{"$f":"IF('Fragebogen Habilitation'!V54=\"\",\"\",'Fragebogen Habilitation'!V54)","v":""},{"$f":"'Fragebogen Habilitation'!X54","v":""},{"$f":"'Fragebogen Habilitation'!Z54","v":""},{"$f":"'Fragebogen Habilitation'!AB54","v":""}]
[{"$f":"'Fragebogen Habilitation'!A55","v":39},{"$f":"'Fragebogen Habilitation'!F55","v":""},{"$f":"'Fragebogen Habilitation'!G55","v":0},{"$f":"'Fragebogen Habilitation'!H55","v":0},{"$f":"'Fragebogen Habilitation'!I55","v":0},{"$f":"'Fragebogen Habilitation'!K55","v":""},{"$f":"'Fragebogen Habilitation'!L55","v":0},{"$f":"'Fragebogen Habilitation'!M55","v":0},{"$f":"'Fragebogen Habilitation'!Q55","v":""},{"$f":"'Fragebogen Habilitation'!R55","v":0},{"$f":"'Fragebogen Habilitation'!T55","v":""},{"$f":"IF('Fragebogen Habilitation'!U55=\"\",\"\",'Fragebogen Habilitation'!U55)","v":""},{"$f":"IF('Fragebogen Habilitation'!V55=\"\",\"\",'Fragebogen Habilitation'!V55)","v":""},{"$f":"'Fragebogen Habilitation'!X55","v":""},{"$f":"'Fragebogen Habilitation'!Z55","v":""},{"$f":"'Fragebogen Habilitation'!AB55","v":""}]
[{"$f":"'Fragebogen Habilitation'!A56","v":40},{"$f":"'Fragebogen Habilitation'!F56","v":""},{"$f":"'Fragebogen Habilitation'!G56","v":0},{"$f":"'Fragebogen Habilitation'!H56","v":0},{"$f":"'Fragebogen Habilitation'!I56","v":0},{"$f":"'Fragebogen Habilitation'!K56","v":""},{"$f":"'Fragebogen Habilitation'!L56","v":0},{"$f":"'Fragebogen Habilitation'!M56","v":0},{"$f":"'Fragebogen Habilitation'!Q56","v":""},{"$f":"'Fragebogen Habilitation'!R56","v":0},{"$f":"'Fragebogen Habilitation'!T56","v":""},{"$f":"IF('Fragebogen Habilitation'!U56=\"\",\"\",'Fragebogen Habilitation'!U56)","v":""},{"$f":"IF('Fragebogen Habilitation'!V56=\"\",\"\",'Fragebogen Habilitation'!V56)","v":""},{"$f":"'Fragebogen Habilitation'!X56","v":""},{"$f":"'Fragebogen Habilitation'!Z56","v":""},{"$f":"'Fragebogen Habilitation'!AB56","v":""}]
[{"$f":"'Fragebogen Habilitation'!A57","v":41},{"$f":"'Fragebogen Habilitation'!F57","v":""},{"$f":"'Fragebogen Habilitation'!G57","v":0},{"$f":"'Fragebogen Habilitation'!H57","v":0},{"$f":"'Fragebogen Habilitation'!I57","v":0},{"$f":"'Fragebogen Habilitation'!K57","v":""},{"$f":"'Fragebogen Habilitation'!L57","v":0},{"$f":"'Fragebogen Habilitation'!M57","v":0},{"$f":"'Fragebogen Habilitation'!Q57","v":""},{"$f":"'Fragebogen Habilitation'!R57","v":0},{"$f":"'Fragebogen Habilitation'!T57","v":""},{"$f":"IF('Fragebogen Habilitation'!U57=\"\",\"\",'Fragebogen Habilitation'!U57)","v":""},{"$f":"IF('Fragebogen Habilitation'!V57=\"\",\"\",'Fragebogen Habilitation'!V57)","v":""},{"$f":"'Fragebogen Habilitation'!X57","v":""},{"$f":"'Fragebogen Habilitation'!Z57","v":""},{"$f":"'Fragebogen Habilitation'!AB57","v":""}]
[{"$f":"'Fragebogen Habilitation'!A58","v":42},{"$f":"'Fragebogen Habilitation'!F58","v":""},{"$f":"'Fragebogen Habilitation'!G58","v":0},{"$f":"'Fragebogen Habilitation'!H58","v":0},{"$f":"'Fragebogen Habilitation'!I58","v":0},{"$f":"'Fragebogen Habilitation'!K58","v":""},{"$f":"'Fragebogen Habilitation'!L58","v":0},{"$f":"'Fragebogen Habilitation'!M58","v":0},{"$f":"'Fragebogen Habilitation'!Q58","v":""},{"$f":"'Fragebogen Habilitation'!R58","v":0},{"$f":"'Fragebogen Habilitation'!T58","v":""},{"$f":"IF('Fragebogen Habilitation'!U58=\"\",\"\",'Fragebogen Habilitation'!U58)","v":""},{"$f":"IF('Fragebogen Habilitation'!V58=\"\",\"\",'Fragebogen Habilitation'!V58)","v":""},{"$f":"'Fragebogen Habilitation'!X58","v":""},{"$f":"'Fragebogen Habilitation'!Z58","v":""},{"$f":"'Fragebogen Habilitation'!AB58","v":""}]
[{"$f":"'Fragebogen Habilitation'!A59","v":43},{"$f":"'Fragebogen Habilitation'!F59","v":""},{"$f":"'Fragebogen Habilitation'!G59","v":0},{"$f":"'Fragebogen Habilitation'!H59","v":0},{"$f":"'Fragebogen Habilitation'!I59","v":0},{"$f":"'Fragebogen Habilitation'!K59","v":""},{"$f":"'Fragebogen Habilitation'!L59","v":0},{"$f":"'Fragebogen Habilitation'!M59","v":0},{"$f":"'Fragebogen Habilitation'!Q59","v":""},{"$f":"'Fragebogen Habilitation'!R59","v":0},{"$f":"'Fragebogen Habilitation'!T59","v":""},{"$f":"IF('Fragebogen Habilitation'!U59=\"\",\"\",'Fragebogen Habilitation'!U59)","v":""},{"$f":"IF('Fragebogen Habilitation'!V59=\"\",\"\",'Fragebogen Habilitation'!V59)","v":""},{"$f":"'Fragebogen Habilitation'!X59","v":""},{"$f":"'Fragebogen Habilitation'!Z59","v":""},{"$f":"'Fragebogen Habilitation'!AB59","v":""}]
[{"$f":"'Fragebogen Habilitation'!A60","v":44},{"$f":"'Fragebogen Habilitation'!F60","v":""},{"$f":"'Fragebogen Habilitation'!G60","v":0},{"$f":"'Fragebogen Habilitation'!H60","v":0},{"$f":"'Fragebogen Habilitation'!I60","v":0},{"$f":"'Fragebogen Habilitation'!K60","v":""},{"$f":"'Fragebogen Habilitation'!L60","v":0},{"$f":"'Fragebogen Habilitation'!M60","v":0},{"$f":"'Fragebogen Habilitation'!Q60","v":""},{"$f":"'Fragebogen Habilitation'!R60","v":0},{"$f":"'Fragebogen Habilitation'!T60","v":""},{"$f":"IF('Fragebogen Habilitation'!U60=\"\",\"\",'Fragebogen Habilitation'!U60)","v":""},{"$f":"IF('Fragebogen Habilitation'!V60=\"\",\"\",'Fragebogen Habilitation'!V60)","v":""},{"$f":"'Fragebogen Habilitation'!X60","v":""},{"$f":"'Fragebogen Habilitation'!Z60","v":""},{"$f":"'Fragebogen Habilitation'!AB60","v":""}]
[{"$f":"'Fragebogen Habilitation'!A61","v":45},{"$f":"'Fragebogen Habilitation'!F61","v":""},{"$f":"'Fragebogen Habilitation'!G61","v":0},{"$f":"'Fragebogen Habilitation'!H61","v":0},{"$f":"'Fragebogen Habilitation'!I61","v":0},{"$f":"'Fragebogen Habilitation'!K61","v":""},{"$f":"'Fragebogen Habilitation'!L61","v":0},{"$f":"'Fragebogen Habilitation'!M61","v":0},{"$f":"'Fragebogen Habilitation'!Q61","v":""},{"$f":"'Fragebogen Habilitation'!R61","v":0},{"$f":"'Fragebogen Habilitation'!T61","v":""},{"$f":"IF('Fragebogen Habilitation'!U61=\"\",\"\",'Fragebogen Habilitation'!U61)","v":""},{"$f":"IF('Fragebogen Habilitation'!V61=\"\",\"\",'Fragebogen Habilitation'!V61)","v":""},{"$f":"'Fragebogen Habilitation'!X61","v":""},{"$f":"'Fragebogen Habilitation'!Z61","v":""},{"$f":"'Fragebogen Habilitation'!AB61","v":""}]
[{"$f":"'Fragebogen Habilitation'!A62","v":46},{"$f":"'Fragebogen Habilitation'!F62","v":""},{"$f":"'Fragebogen Habilitation'!G62","v":0},{"$f":"'Fragebogen Habilitation'!H62","v":0},{"$f":"'Fragebogen Habilitation'!I62","v":0},{"$f":"'Fragebogen Habilitation'!K62","v":""},{"$f":"'Fragebogen Habilitation'!L62","v":0},{"$f":"'Fragebogen Habilitation'!M62","v":0},{"$f":"'Fragebogen Habilitation'!Q62","v":""},{"$f":"'Fragebogen Habilitation'!R62","v":0},{"$f":"'Fragebogen Habilitation'!T62","v":""},{"$f":"IF('Fragebogen Habilitation'!U62=\"\",\"\",'Fragebogen Habilitation'!U62)","v":""},{"$f":"IF('Fragebogen Habilitation'!V62=\"\",\"\",'Fragebogen Habilitation'!V62)","v":""},{"$f":"'Fragebogen Habilitation'!X62","v":""},{"$f":"'Fragebogen Habilitation'!Z62","v":""},{"$f":"'Fragebogen Habilitation'!AB62","v":""}]
[{"$f":"'Fragebogen Habilitation'!A63","v":47},{"$f":"'Fragebogen Habilitation'!F63","v":""},{"$f":"'Fragebogen Habilitation'!G63","v":0},{"$f":"'Fragebogen Habilitation'!H63","v":0},{"$f":"'Fragebogen Habilitation'!I63","v":0},{"$f":"'Fragebogen Habilitation'!K63","v":""},{"$f":"'Fragebogen Habilitation'!L63","v":0},{"$f":"'Fragebogen Habilitation'!M63","v":0},{"$f":"'Fragebogen Habilitation'!Q63","v":""},{"$f":"'Fragebogen Habilitation'!R63","v":0},{"$f":"'Fragebogen Habilitation'!T63","v":""},{"$f":"IF('Fragebogen Habilitation'!U63=\"\",\"\",'Fragebogen Habilitation'!U63)","v":""},{"$f":"IF('Fragebogen Habilitation'!V63=\"\",\"\",'Fragebogen Habilitation'!V63)","v":""},{"$f":"'Fragebogen Habilitation'!X63","v":""},{"$f":"'Fragebogen Habilitation'!Z63","v":""},{"$f":"'Fragebogen Habilitation'!AB63","v":""}]
[{"$f":"'Fragebogen Habilitation'!A64","v":48},{"$f":"'Fragebogen Habilitation'!F64","v":""},{"$f":"'Fragebogen Habilitation'!G64","v":0},{"$f":"'Fragebogen Habilitation'!H64","v":0},{"$f":"'Fragebogen Habilitation'!I64","v":0},{"$f":"'Fragebogen Habilitation'!K64","v":""},{"$f":"'Fragebogen Habilitation'!L64","v":0},{"$f":"'Fragebogen Habilitation'!M64","v":0},{"$f":"'Fragebogen Habilitation'!Q64","v":""},{"$f":"'Fragebogen Habilitation'!R64","v":0},{"$f":"'Fragebogen Habilitation'!T64","v":""},{"$f":"IF('Fragebogen Habilitation'!U64=\"\",\"\",'Fragebogen Habilitation'!U64)","v":""},{"$f":"IF('Fragebogen Habilitation'!V64=\"\",\"\",'Fragebogen Habilitation'!V64)","v":""},{"$f":"'Fragebogen Habilitation'!X64","v":""},{"$f":"'Fragebogen Habilitation'!Z64","v":""},{"$f":"'Fragebogen Habilitation'!AB64","v":""}]
[{"$f":"'Fragebogen Habilitation'!A65","v":49},{"$f":"'Fragebogen Habilitation'!F65","v":""},{"$f":"'Fragebogen Habilitation'!G65","v":0},{"$f":"'Fragebogen Habilitation'!H65","v":0},{"$f":"'Fragebogen Habilitation'!I65","v":0},{"$f":"'Fragebogen Habilitation'!K65","v":""},{"$f":"'Fragebogen Habilitation'!L65","v":0},{"$f":"'Fragebogen Habilitation'!M65","v":0},{"$f":"'Fragebogen Habilitation'!Q65","v":""},{"$f":"'Fragebogen Habilitation'!R65","v":0},{"$f":"'Fragebogen Habilitation'!T65","v":""},{"$f":"IF('Fragebogen Habilitation'!U65=\"\",\"\",'Fragebogen Habilitation'!U65)","v":""},{"$f":"IF('Fragebogen Habilitation'!V65=\"\",\"\",'Fragebogen Habilitation'!V65)","v":""},{"$f":"'Fragebogen Habilitation'!X65","v":""},{"$f":"'Fragebogen Habilitation'!Z65","v":""},{"$f":"'Fragebogen Habilitation'!AB65","v":""}]
[{"$f":"'Fragebogen Habilitation'!A66","v":50},{"$f":"'Fragebogen Habilitation'!F66","v":""},{"$f":"'Fragebogen Habilitation'!G66","v":0},{"$f":"'Fragebogen Habilitation'!H66","v":0},{"$f":"'Fragebogen Habilitation'!I66","v":0},{"$f":"'Fragebogen Habilitation'!K66","v":""},{"$f":"'Fragebogen Habilitation'!L66","v":0},{"$f":"'Fragebogen Habilitation'!M66","v":0},{"$f":"'Fragebogen Habilitation'!Q66","v":""},{"$f":"'Fragebogen Habilitation'!R66","v":0},{"$f":"'Fragebogen Habilitation'!T66","v":""},{"$f":"IF('Fragebogen Habilitation'!U66=\"\",\"\",'Fragebogen Habilitation'!U66)","v":""},{"$f":"IF('Fragebogen Habilitation'!V66=\"\",\"\",'Fragebogen Habilitation'!V66)","v":""},{"$f":"'Fragebogen Habilitation'!X66","v":""},{"$f":"'Fragebogen Habilitation'!Z66","v":""},{"$f":"'Fragebogen Habilitation'!AB66","v":""}]
[{"$f":"'Fragebogen Habilitation'!A67","v":51},{"$f":"'Fragebogen Habilitation'!F67","v":""},{"$f":"'Fragebogen Habilitation'!G67","v":0},{"$f":"'Fragebogen Habilitation'!H67","v":0},{"$f":"'Fragebogen Habilitation'!I67","v":0},{"$f":"'Fragebogen Habilitation'!K67","v":""},{"$f":"'Fragebogen Habilitation'!L67","v":0},{"$f":"'Fragebogen Habilitation'!M67","v":0},{"$f":"'Fragebogen Habilitation'!Q67","v":""},{"$f":"'Fragebogen Habilitation'!R67","v":0},{"$f":"'Fragebogen Habilitation'!T67","v":""},{"$f":"IF('Fragebogen Habilitation'!U67=\"\",\"\",'Fragebogen Habilitation'!U67)","v":""},{"$f":"IF('Fragebogen Habilitation'!V67=\"\",\"\",'Fragebogen Habilitation'!V67)","v":""},{"$f":"'Fragebogen Habilitation'!X67","v":""},{"$f":"'Fragebogen Habilitation'!Z67","v":""},{"$f":"'Fragebogen Habilitation'!AB67","v":""}]
[{"$f":"'Fragebogen Habilitation'!A68","v":52},{"$f":"'Fragebogen Habilitation'!F68","v":""},{"$f":"'Fragebogen Habilitation'!G68","v":0},{"$f":"'Fragebogen Habilitation'!H68","v":0},{"$f":"'Fragebogen Habilitation'!I68","v":0},{"$f":"'Fragebogen Habilitation'!K68","v":""},{"$f":"'Fragebogen Habilitation'!L68","v":0},{"$f":"'Fragebogen Habilitation'!M68","v":0},{"$f":"'Fragebogen Habilitation'!Q68","v":""},{"$f":"'Fragebogen Habilitation'!R68","v":0},{"$f":"'Fragebogen Habilitation'!T68","v":""},{"$f":"IF('Fragebogen Habilitation'!U68=\"\",\"\",'Fragebogen Habilitation'!U68)","v":""},{"$f":"IF('Fragebogen Habilitation'!V68=\"\",\"\",'Fragebogen Habilitation'!V68)","v":""},{"$f":"'Fragebogen Habilitation'!X68","v":""},{"$f":"'Fragebogen Habilitation'!Z68","v":""},{"$f":"'Fragebogen Habilitation'!AB68","v":""}]
[{"$f":"'Fragebogen Habilitation'!A69","v":53},{"$f":"'Fragebogen Habilitation'!F69","v":""},{"$f":"'Fragebogen Habilitation'!G69","v":0},{"$f":"'Fragebogen Habilitation'!H69","v":0},{"$f":"'Fragebogen Habilitation'!I69","v":0},{"$f":"'Fragebogen Habilitation'!K69","v":""},{"$f":"'Fragebogen Habilitation'!L69","v":0},{"$f":"'Fragebogen Habilitation'!M69","v":0},{"$f":"'Fragebogen Habilitation'!Q69","v":""},{"$f":"'Fragebogen Habilitation'!R69","v":0},{"$f":"'Fragebogen Habilitation'!T69","v":""},{"$f":"IF('Fragebogen Habilitation'!U69=\"\",\"\",'Fragebogen Habilitation'!U69)","v":""},{"$f":"IF('Fragebogen Habilitation'!V69=\"\",\"\",'Fragebogen Habilitation'!V69)","v":""},{"$f":"'Fragebogen Habilitation'!X69","v":""},{"$f":"'Fragebogen Habilitation'!Z69","v":""},{"$f":"'Fragebogen Habilitation'!AB69","v":""}]
[{"$f":"'Fragebogen Habilitation'!A70","v":54},{"$f":"'Fragebogen Habilitation'!F70","v":""},{"$f":"'Fragebogen Habilitation'!G70","v":0},{"$f":"'Fragebogen Habilitation'!H70","v":0},{"$f":"'Fragebogen Habilitation'!I70","v":0},{"$f":"'Fragebogen Habilitation'!K70","v":""},{"$f":"'Fragebogen Habilitation'!L70","v":0},{"$f":"'Fragebogen Habilitation'!M70","v":0},{"$f":"'Fragebogen Habilitation'!Q70","v":""},{"$f":"'Fragebogen Habilitation'!R70","v":0},{"$f":"'Fragebogen Habilitation'!T70","v":""},{"$f":"IF('Fragebogen Habilitation'!U70=\"\",\"\",'Fragebogen Habilitation'!U70)","v":""},{"$f":"IF('Fragebogen Habilitation'!V70=\"\",\"\",'Fragebogen Habilitation'!V70)","v":""},{"$f":"'Fragebogen Habilitation'!X70","v":""},{"$f":"'Fragebogen Habilitation'!Z70","v":""},{"$f":"'Fragebogen Habilitation'!AB70","v":""}]
[{"$f":"'Fragebogen Habilitation'!A71","v":55},{"$f":"'Fragebogen Habilitation'!F71","v":""},{"$f":"'Fragebogen Habilitation'!G71","v":0},{"$f":"'Fragebogen Habilitation'!H71","v":0},{"$f":"'Fragebogen Habilitation'!I71","v":0},{"$f":"'Fragebogen Habilitation'!K71","v":""},{"$f":"'Fragebogen Habilitation'!L71","v":0},{"$f":"'Fragebogen Habilitation'!M71","v":0},{"$f":"'Fragebogen Habilitation'!Q71","v":""},{"$f":"'Fragebogen Habilitation'!R71","v":0},{"$f":"'Fragebogen Habilitation'!T71","v":""},{"$f":"IF('Fragebogen Habilitation'!U71=\"\",\"\",'Fragebogen Habilitation'!U71)","v":""},{"$f":"IF('Fragebogen Habilitation'!V71=\"\",\"\",'Fragebogen Habilitation'!V71)","v":""},{"$f":"'Fragebogen Habilitation'!X71","v":""},{"$f":"'Fragebogen Habilitation'!Z71","v":""},{"$f":"'Fragebogen Habilitation'!AB71","v":""}]
[{"$f":"'Fragebogen Habilitation'!A72","v":56},{"$f":"'Fragebogen Habilitation'!F72","v":""},{"$f":"'Fragebogen Habilitation'!G72","v":0},{"$f":"'Fragebogen Habilitation'!H72","v":0},{"$f":"'Fragebogen Habilitation'!I72","v":0},{"$f":"'Fragebogen Habilitation'!K72","v":""},{"$f":"'Fragebogen Habilitation'!L72","v":0},{"$f":"'Fragebogen Habilitation'!M72","v":0},{"$f":"'Fragebogen Habilitation'!Q72","v":""},{"$f":"'Fragebogen Habilitation'!R72","v":0},{"$f":"'Fragebogen Habilitation'!T72","v":""},{"$f":"IF('Fragebogen Habilitation'!U72=\"\",\"\",'Fragebogen Habilitation'!U72)","v":""},{"$f":"IF('Fragebogen Habilitation'!V72=\"\",\"\",'Fragebogen Habilitation'!V72)","v":""},{"$f":"'Fragebogen Habilitation'!X72","v":""},{"$f":"'Fragebogen Habilitation'!Z72","v":""},{"$f":"'Fragebogen Habilitation'!AB72","v":""}]
[{"$f":"'Fragebogen Habilitation'!A73","v":57},{"$f":"'Fragebogen Habilitation'!F73","v":""},{"$f":"'Fragebogen Habilitation'!G73","v":0},{"$f":"'Fragebogen Habilitation'!H73","v":0},{"$f":"'Fragebogen Habilitation'!I73","v":0},{"$f":"'Fragebogen Habilitation'!K73","v":""},{"$f":"'Fragebogen Habilitation'!L73","v":0},{"$f":"'Fragebogen Habilitation'!M73","v":0},{"$f":"'Fragebogen Habilitation'!Q73","v":""},{"$f":"'Fragebogen Habilitation'!R73","v":0},{"$f":"'Fragebogen Habilitation'!T73","v":""},{"$f":"IF('Fragebogen Habilitation'!U73=\"\",\"\",'Fragebogen Habilitation'!U73)","v":""},{"$f":"IF('Fragebogen Habilitation'!V73=\"\",\"\",'Fragebogen Habilitation'!V73)","v":""},{"$f":"'Fragebogen Habilitation'!X73","v":""},{"$f":"'Fragebogen Habilitation'!Z73","v":""},{"$f":"'Fragebogen Habilitation'!AB73","v":""}]
[{"$f":"'Fragebogen Habilitation'!A74","v":58},{"$f":"'Fragebogen Habilitation'!F74","v":""},{"$f":"'Fragebogen Habilitation'!G74","v":0},{"$f":"'Fragebogen Habilitation'!H74","v":0},{"$f":"'Fragebogen Habilitation'!I74","v":0},{"$f":"'Fragebogen Habilitation'!K74","v":""},{"$f":"'Fragebogen Habilitation'!L74","v":0},{"$f":"'Fragebogen Habilitation'!M74","v":0},{"$f":"'Fragebogen Habilitation'!Q74","v":""},{"$f":"'Fragebogen Habilitation'!R74","v":0},{"$f":"'Fragebogen Habilitation'!T74","v":""},{"$f":"IF('Fragebogen Habilitation'!U74=\"\",\"\",'Fragebogen Habilitation'!U74)","v":""},{"$f":"IF('Fragebogen Habilitation'!V74=\"\",\"\",'Fragebogen Habilitation'!V74)","v":""},{"$f":"'Fragebogen Habilitation'!X74","v":""},{"$f":"'Fragebogen Habilitation'!Z74","v":""},{"$f":"'Fragebogen Habilitation'!AB74","v":""}]
[{"$f":"'Fragebogen Habilitation'!A75","v":59},{"$f":"'Fragebogen Habilitation'!F75","v":""},{"$f":"'Fragebogen Habilitation'!G75","v":0},{"$f":"'Fragebogen Habilitation'!H75","v":0},{"$f":"'Fragebogen Habilitation'!I75","v":0},{"$f":"'Fragebogen Habilitation'!K75","v":""},{"$f":"'Fragebogen Habilitation'!L75","v":0},{"$f":"'Fragebogen Habilitation'!M75","v":0},{"$f":"'Fragebogen Habilitation'!Q75","v":""},{"$f":"'Fragebogen Habilitation'!R75","v":0},{"$f":"'Fragebogen Habilitation'!T75","v":""},{"$f":"IF('Fragebogen Habilitation'!U75=\"\",\"\",'Fragebogen Habilitation'!U75)","v":""},{"$f":"IF('Fragebogen Habilitation'!V75=\"\",\"\",'Fragebogen Habilitation'!V75)","v":""},{"$f":"'Fragebogen Habilitation'!X75","v":""},{"$f":"'Fragebogen Habilitation'!Z75","v":""},{"$f":"'Fragebogen Habilitation'!AB75","v":""}]
[{"$f":"'Fragebogen Habilitation'!A76","v":60},{"$f":"'Fragebogen Habilitation'!F76","v":""},{"$f":"'Fragebogen Habilitation'!G76","v":0},{"$f":"'Fragebogen Habilitation'!H76","v":0},{"$f":"'Fragebogen Habilitation'!I76","v":0},{"$f":"'Fragebogen Habilitation'!K76","v":""},{"$f":"'Fragebogen Habilitation'!L76","v":0},{"$f":"'Fragebogen Habilitation'!M76","v":0},{"$f":"'Fragebogen Habilitation'!Q76","v":""},{"$f":"'Fragebogen Habilitation'!R76","v":0},{"$f":"'Fragebogen Habilitation'!T76","v":""},{"$f":"IF('Fragebogen Habilitation'!U76=\"\",\"\",'Fragebogen Habilitation'!U76)","v":""},{"$f":"IF('Fragebogen Habilitation'!V76=\"\",\"\",'Fragebogen Habilitation'!V76)","v":""},{"$f":"'Fragebogen Habilitation'!X76","v":""},{"$f":"'Fragebogen Habilitation'!Z76","v":""},{"$f":"'Fragebogen Habilitation'!AB76","v":""}]
[{"$f":"'Fragebogen Habilitation'!A77","v":61},{"$f":"'Fragebogen Habilitation'!F77","v":""},{"$f":"'Fragebogen Habilitation'!G77","v":0},{"$f":"'Fragebogen Habilitation'!H77","v":0},{"$f":"'Fragebogen Habilitation'!I77","v":0},{"$f":"'Fragebogen Habilitation'!K77","v":""},{"$f":"'Fragebogen Habilitation'!L77","v":0},{"$f":"'Fragebogen Habilitation'!M77","v":0},{"$f":"'Fragebogen Habilitation'!Q77","v":""},{"$f":"'Fragebogen Habilitation'!R77","v":0},{"$f":"'Fragebogen Habilitation'!T77","v":""},{"$f":"IF('Fragebogen Habilitation'!U77=\"\",\"\",'Fragebogen Habilitation'!U77)","v":""},{"$f":"IF('Fragebogen Habilitation'!V77=\"\",\"\",'Fragebogen Habilitation'!V77)","v":""},{"$f":"'Fragebogen Habilitation'!X77","v":""},{"$f":"'Fragebogen Habilitation'!Z77","v":""},{"$f":"'Fragebogen Habilitation'!AB77","v":""}]
[{"$f":"'Fragebogen Habilitation'!A78","v":62},{"$f":"'Fragebogen Habilitation'!F78","v":""},{"$f":"'Fragebogen Habilitation'!G78","v":0},{"$f":"'Fragebogen Habilitation'!H78","v":0},{"$f":"'Fragebogen Habilitation'!I78","v":0},{"$f":"'Fragebogen Habilitation'!K78","v":""},{"$f":"'Fragebogen Habilitation'!L78","v":0},{"$f":"'Fragebogen Habilitation'!M78","v":0},{"$f":"'Fragebogen Habilitation'!Q78","v":""},{"$f":"'Fragebogen Habilitation'!R78","v":0},{"$f":"'Fragebogen Habilitation'!T78","v":""},{"$f":"IF('Fragebogen Habilitation'!U78=\"\",\"\",'Fragebogen Habilitation'!U78)","v":""},{"$f":"IF('Fragebogen Habilitation'!V78=\"\",\"\",'Fragebogen Habilitation'!V78)","v":""},{"$f":"'Fragebogen Habilitation'!X78","v":""},{"$f":"'Fragebogen Habilitation'!Z78","v":""},{"$f":"'Fragebogen Habilitation'!AB78","v":""}]
[{"$f":"'Fragebogen Habilitation'!A79","v":63},{"$f":"'Fragebogen Habilitation'!F79","v":""},{"$f":"'Fragebogen Habilitation'!G79","v":0},{"$f":"'Fragebogen Habilitation'!H79","v":0},{"$f":"'Fragebogen Habilitation'!I79","v":0},{"$f":"'Fragebogen Habilitation'!K79","v":""},{"$f":"'Fragebogen Habilitation'!L79","v":0},{"$f":"'Fragebogen Habilitation'!M79","v":0},{"$f":"'Fragebogen Habilitation'!Q79","v":""},{"$f":"'Fragebogen Habilitation'!R79","v":0},{"$f":"'Fragebogen Habilitation'!T79","v":""},{"$f":"IF('Fragebogen Habilitation'!U79=\"\",\"\",'Fragebogen Habilitation'!U79)","v":""},{"$f":"IF('Fragebogen Habilitation'!V79=\"\",\"\",'Fragebogen Habilitation'!V79)","v":""},{"$f":"'Fragebogen Habilitation'!X79","v":""},{"$f":"'Fragebogen Habilitation'!Z79","v":""},{"$f":"'Fragebogen Habilitation'!AB79","v":""}]
[{"$f":"'Fragebogen Habilitation'!A80","v":64},{"$f":"'Fragebogen Habilitation'!F80","v":""},{"$f":"'Fragebogen Habilitation'!G80","v":0},{"$f":"'Fragebogen Habilitation'!H80","v":0},{"$f":"'Fragebogen Habilitation'!I80","v":0},{"$f":"'Fragebogen Habilitation'!K80","v":""},{"$f":"'Fragebogen Habilitation'!L80","v":0},{"$f":"'Fragebogen Habilitation'!M80","v":0},{"$f":"'Fragebogen Habilitation'!Q80","v":""},{"$f":"'Fragebogen Habilitation'!R80","v":0},{"$f":"'Fragebogen Habilitation'!T80","v":""},{"$f":"IF('Fragebogen Habilitation'!U80=\"\",\"\",'Fragebogen Habilitation'!U80)","v":""},{"$f":"IF('Fragebogen Habilitation'!V80=\"\",\"\",'Fragebogen Habilitation'!V80)","v":""},{"$f":"'Fragebogen Habilitation'!X80","v":""},{"$f":"'Fragebogen Habilitation'!Z80","v":""},{"$f":"'Fragebogen Habilitation'!AB80","v":""}]
[{"$f":"'Fragebogen Habilitation'!A81","v":65},{"$f":"'Fragebogen Habilitation'!F81","v":""},{"$f":"'Fragebogen Habilitation'!G81","v":0},{"$f":"'Fragebogen Habilitation'!H81","v":0},{"$f":"'Fragebogen Habilitation'!I81","v":0},{"$f":"'Fragebogen Habilitation'!K81","v":""},{"$f":"'Fragebogen Habilitation'!L81","v":0},{"$f":"'Fragebogen Habilitation'!M81","v":0},{"$f":"'Fragebogen Habilitation'!Q81","v":""},{"$f":"'Fragebogen Habilitation'!R81","v":0},{"$f":"'Fragebogen Habilitation'!T81","v":""},{"$f":"IF('Fragebogen Habilitation'!U81=\"\",\"\",'Fragebogen Habilitation'!U81)","v":""},{"$f":"IF('Fragebogen Habilitation'!V81=\"\",\"\",'Fragebogen Habilitation'!V81)","v":""},{"$f":"'Fragebogen Habilitation'!X81","v":""},{"$f":"'Fragebogen Habilitation'!Z81","v":""},{"$f":"'Fragebogen Habilitation'!AB81","v":""}]
[{"$f":"'Fragebogen Habilitation'!A82","v":66},{"$f":"'Fragebogen Habilitation'!F82","v":""},{"$f":"'Fragebogen Habilitation'!G82","v":0},{"$f":"'Fragebogen Habilitation'!H82","v":0},{"$f":"'Fragebogen Habilitation'!I82","v":0},{"$f":"'Fragebogen Habilitation'!K82","v":""},{"$f":"'Fragebogen Habilitation'!L82","v":0},{"$f":"'Fragebogen Habilitation'!M82","v":0},{"$f":"'Fragebogen Habilitation'!Q82","v":""},{"$f":"'Fragebogen Habilitation'!R82","v":0},{"$f":"'Fragebogen Habilitation'!T82","v":""},{"$f":"IF('Fragebogen Habilitation'!U82=\"\",\"\",'Fragebogen Habilitation'!U82)","v":""},{"$f":"IF('Fragebogen Habilitation'!V82=\"\",\"\",'Fragebogen Habilitation'!V82)","v":""},{"$f":"'Fragebogen Habilitation'!X82","v":""},{"$f":"'Fragebogen Habilitation'!Z82","v":""},{"$f":"'Fragebogen Habilitation'!AB82","v":""}]
[{"$f":"'Fragebogen Habilitation'!A83","v":67},{"$f":"'Fragebogen Habilitation'!F83","v":""},{"$f":"'Fragebogen Habilitation'!G83","v":0},{"$f":"'Fragebogen Habilitation'!H83","v":0},{"$f":"'Fragebogen Habilitation'!I83","v":0},{"$f":"'Fragebogen Habilitation'!K83","v":""},{"$f":"'Fragebogen Habilitation'!L83","v":0},{"$f":"'Fragebogen Habilitation'!M83","v":0},{"$f":"'Fragebogen Habilitation'!Q83","v":""},{"$f":"'Fragebogen Habilitation'!R83","v":0},{"$f":"'Fragebogen Habilitation'!T83","v":""},{"$f":"IF('Fragebogen Habilitation'!U83=\"\",\"\",'Fragebogen Habilitation'!U83)","v":""},{"$f":"IF('Fragebogen Habilitation'!V83=\"\",\"\",'Fragebogen Habilitation'!V83)","v":""},{"$f":"'Fragebogen Habilitation'!X83","v":""},{"$f":"'Fragebogen Habilitation'!Z83","v":""},{"$f":"'Fragebogen Habilitation'!AB83","v":""}]
[{"$f":"'Fragebogen Habilitation'!A84","v":68},{"$f":"'Fragebogen Habilitation'!F84","v":""},{"$f":"'Fragebogen Habilitation'!G84","v":0},{"$f":"'Fragebogen Habilitation'!H84","v":0},{"$f":"'Fragebogen Habilitation'!I84","v":0},{"$f":"'Fragebogen Habilitation'!K84","v":""},{"$f":"'Fragebogen Habilitation'!L84","v":0},{"$f":"'Fragebogen Habilitation'!M84","v":0},{"$f":"'Fragebogen Habilitation'!Q84","v":""},{"$f":"'Fragebogen Habilitation'!R84","v":0},{"$f":"'Fragebogen Habilitation'!T84","v":""},{"$f":"IF('Fragebogen Habilitation'!U84=\"\",\"\",'Fragebogen Habilitation'!U84)","v":""},{"$f":"IF('Fragebogen Habilitation'!V84=\"\",\"\",'Fragebogen Habilitation'!V84)","v":""},{"$f":"'Fragebogen Habilitation'!X84","v":""},{"$f":"'Fragebogen Habilitation'!Z84","v":""},{"$f":"'Fragebogen Habilitation'!AB84","v":""}]
[{"$f":"'Fragebogen Habilitation'!A85","v":69},{"$f":"'Fragebogen Habilitation'!F85","v":""},{"$f":"'Fragebogen Habilitation'!G85","v":0},{"$f":"'Fragebogen Habilitation'!H85","v":0},{"$f":"'Fragebogen Habilitation'!I85","v":0},{"$f":"'Fragebogen Habilitation'!K85","v":""},{"$f":"'Fragebogen Habilitation'!L85","v":0},{"$f":"'Fragebogen Habilitation'!M85","v":0},{"$f":"'Fragebogen Habilitation'!Q85","v":""},{"$f":"'Fragebogen Habilitation'!R85","v":0},{"$f":"'Fragebogen Habilitation'!T85","v":""},{"$f":"IF('Fragebogen Habilitation'!U85=\"\",\"\",'Fragebogen Habilitation'!U85)","v":""},{"$f":"IF('Fragebogen Habilitation'!V85=\"\",\"\",'Fragebogen Habilitation'!V85)","v":""},{"$f":"'Fragebogen Habilitation'!X85","v":""},{"$f":"'Fragebogen Habilitation'!Z85","v":""},{"$f":"'Fragebogen Habilitation'!AB85","v":""}]
[{"$f":"'Fragebogen Habilitation'!A86","v":70},{"$f":"'Fragebogen Habilitation'!F86","v":""},{"$f":"'Fragebogen Habilitation'!G86","v":0},{"$f":"'Fragebogen Habilitation'!H86","v":0},{"$f":"'Fragebogen Habilitation'!I86","v":0},{"$f":"'Fragebogen Habilitation'!K86","v":""},{"$f":"'Fragebogen Habilitation'!L86","v":0},{"$f":"'Fragebogen Habilitation'!M86","v":0},{"$f":"'Fragebogen Habilitation'!Q86","v":""},{"$f":"'Fragebogen Habilitation'!R86","v":0},{"$f":"'Fragebogen Habilitation'!T86","v":""},{"$f":"IF('Fragebogen Habilitation'!U86=\"\",\"\",'Fragebogen Habilitation'!U86)","v":""},{"$f":"IF('Fragebogen Habilitation'!V86=\"\",\"\",'Fragebogen Habilitation'!V86)","v":""},{"$f":"'Fragebogen Habilitation'!X86","v":""},{"$f":"'Fragebogen Habilitation'!Z86","v":""},{"$f":"'Fragebogen Habilitation'!AB86","v":""}]
[{"$f":"'Fragebogen Habilitation'!A87","v":71},{"$f":"'Fragebogen Habilitation'!F87","v":""},{"$f":"'Fragebogen Habilitation'!G87","v":0},{"$f":"'Fragebogen Habilitation'!H87","v":0},{"$f":"'Fragebogen Habilitation'!I87","v":0},{"$f":"'Fragebogen Habilitation'!K87","v":""},{"$f":"'Fragebogen Habilitation'!L87","v":0},{"$f":"'Fragebogen Habilitation'!M87","v":0},{"$f":"'Fragebogen Habilitation'!Q87","v":""},{"$f":"'Fragebogen Habilitation'!R87","v":0},{"$f":"'Fragebogen Habilitation'!T87","v":""},{"$f":"IF('Fragebogen Habilitation'!U87=\"\",\"\",'Fragebogen Habilitation'!U87)","v":""},{"$f":"IF('Fragebogen Habilitation'!V87=\"\",\"\",'Fragebogen Habilitation'!V87)","v":""},{"$f":"'Fragebogen Habilitation'!X87","v":""},{"$f":"'Fragebogen Habilitation'!Z87","v":""},{"$f":"'Fragebogen Habilitation'!AB87","v":""}]
[{"$f":"'Fragebogen Habilitation'!A88","v":72},{"$f":"'Fragebogen Habilitation'!F88","v":""},{"$f":"'Fragebogen Habilitation'!G88","v":0},{"$f":"'Fragebogen Habilitation'!H88","v":0},{"$f":"'Fragebogen Habilitation'!I88","v":0},{"$f":"'Fragebogen Habilitation'!K88","v":""},{"$f":"'Fragebogen Habilitation'!L88","v":0},{"$f":"'Fragebogen Habilitation'!M88","v":0},{"$f":"'Fragebogen Habilitation'!Q88","v":""},{"$f":"'Fragebogen Habilitation'!R88","v":0},{"$f":"'Fragebogen Habilitation'!T88","v":""},{"$f":"IF('Fragebogen Habilitation'!U88=\"\",\"\",'Fragebogen Habilitation'!U88)","v":""},{"$f":"IF('Fragebogen Habilitation'!V88=\"\",\"\",'Fragebogen Habilitation'!V88)","v":""},{"$f":"'Fragebogen Habilitation'!X88","v":""},{"$f":"'Fragebogen Habilitation'!Z88","v":""},{"$f":"'Fragebogen Habilitation'!AB88","v":""}]
[{"$f":"'Fragebogen Habilitation'!A89","v":73},{"$f":"'Fragebogen Habilitation'!F89","v":""},{"$f":"'Fragebogen Habilitation'!G89","v":0},{"$f":"'Fragebogen Habilitation'!H89","v":0},{"$f":"'Fragebogen Habilitation'!I89","v":0},{"$f":"'Fragebogen Habilitation'!K89","v":""},{"$f":"'Fragebogen Habilitation'!L89","v":0},{"$f":"'Fragebogen Habilitation'!M89","v":0},{"$f":"'Fragebogen Habilitation'!Q89","v":""},{"$f":"'Fragebogen Habilitation'!R89","v":0},{"$f":"'Fragebogen Habilitation'!T89","v":""},{"$f":"IF('Fragebogen Habilitation'!U89=\"\",\"\",'Fragebogen Habilitation'!U89)","v":""},{"$f":"IF('Fragebogen Habilitation'!V89=\"\",\"\",'Fragebogen Habilitation'!V89)","v":""},{"$f":"'Fragebogen Habilitation'!X89","v":""},{"$f":"'Fragebogen Habilitation'!Z89","v":""},{"$f":"'Fragebogen Habilitation'!AB89","v":""}]
[{"$f":"'Fragebogen Habilitation'!A90","v":74},{"$f":"'Fragebogen Habilitation'!F90","v":""},{"$f":"'Fragebogen Habilitation'!G90","v":0},{"$f":"'Fragebogen Habilitation'!H90","v":0},{"$f":"'Fragebogen Habilitation'!I90","v":0},{"$f":"'Fragebogen Habilitation'!K90","v":""},{"$f":"'Fragebogen Habilitation'!L90","v":0},{"$f":"'Fragebogen Habilitation'!M90","v":0},{"$f":"'Fragebogen Habilitation'!Q90","v":""},{"$f":"'Fragebogen Habilitation'!R90","v":0},{"$f":"'Fragebogen Habilitation'!T90","v":""},{"$f":"IF('Fragebogen Habilitation'!U90=\"\",\"\",'Fragebogen Habilitation'!U90)","v":""},{"$f":"IF('Fragebogen Habilitation'!V90=\"\",\"\",'Fragebogen Habilitation'!V90)","v":""},{"$f":"'Fragebogen Habilitation'!X90","v":""},{"$f":"'Fragebogen Habilitation'!Z90","v":""},{"$f":"'Fragebogen Habilitation'!AB90","v":""}]
[{"$f":"'Fragebogen Habilitation'!A91","v":75},{"$f":"'Fragebogen Habilitation'!F91","v":""},{"$f":"'Fragebogen Habilitation'!G91","v":0},{"$f":"'Fragebogen Habilitation'!H91","v":0},{"$f":"'Fragebogen Habilitation'!I91","v":0},{"$f":"'Fragebogen Habilitation'!K91","v":""},{"$f":"'Fragebogen Habilitation'!L91","v":0},{"$f":"'Fragebogen Habilitation'!M91","v":0},{"$f":"'Fragebogen Habilitation'!Q91","v":""},{"$f":"'Fragebogen Habilitation'!R91","v":0},{"$f":"'Fragebogen Habilitation'!T91","v":""},{"$f":"IF('Fragebogen Habilitation'!U91=\"\",\"\",'Fragebogen Habilitation'!U91)","v":""},{"$f":"IF('Fragebogen Habilitation'!V91=\"\",\"\",'Fragebogen Habilitation'!V91)","v":""},{"$f":"'Fragebogen Habilitation'!X91","v":""},{"$f":"'Fragebogen Habilitation'!Z91","v":""},{"$f":"'Fragebogen Habilitation'!AB91","v":""}]
[{"$f":"'Fragebogen Habilitation'!A92","v":76},{"$f":"'Fragebogen Habilitation'!F92","v":""},{"$f":"'Fragebogen Habilitation'!G92","v":0},{"$f":"'Fragebogen Habilitation'!H92","v":0},{"$f":"'Fragebogen Habilitation'!I92","v":0},{"$f":"'Fragebogen Habilitation'!K92","v":""},{"$f":"'Fragebogen Habilitation'!L92","v":0},{"$f":"'Fragebogen Habilitation'!M92","v":0},{"$f":"'Fragebogen Habilitation'!Q92","v":""},{"$f":"'Fragebogen Habilitation'!R92","v":0},{"$f":"'Fragebogen Habilitation'!T92","v":""},{"$f":"IF('Fragebogen Habilitation'!U92=\"\",\"\",'Fragebogen Habilitation'!U92)","v":""},{"$f":"IF('Fragebogen Habilitation'!V92=\"\",\"\",'Fragebogen Habilitation'!V92)","v":""},{"$f":"'Fragebogen Habilitation'!X92","v":""},{"$f":"'Fragebogen Habilitation'!Z92","v":""},{"$f":"'Fragebogen Habilitation'!AB92","v":""}]
[{"$f":"'Fragebogen Habilitation'!A93","v":77},{"$f":"'Fragebogen Habilitation'!F93","v":""},{"$f":"'Fragebogen Habilitation'!G93","v":0},{"$f":"'Fragebogen Habilitation'!H93","v":0},{"$f":"'Fragebogen Habilitation'!I93","v":0},{"$f":"'Fragebogen Habilitation'!K93","v":""},{"$f":"'Fragebogen Habilitation'!L93","v":0},{"$f":"'Fragebogen Habilitation'!M93","v":0},{"$f":"'Fragebogen Habilitation'!Q93","v":""},{"$f":"'Fragebogen Habilitation'!R93","v":0},{"$f":"'Fragebogen Habilitation'!T93","v":""},{"$f":"IF('Fragebogen Habilitation'!U93=\"\",\"\",'Fragebogen Habilitation'!U93)","v":""},{"$f":"IF('Fragebogen Habilitation'!V93=\"\",\"\",'Fragebogen Habilitation'!V93)","v":""},{"$f":"'Fragebogen Habilitation'!X93","v":""},{"$f":"'Fragebogen Habilitation'!Z93","v":""},{"$f":"'Fragebogen Habilitation'!AB93","v":""}]
[{"$f":"'Fragebogen Habilitation'!A94","v":78},{"$f":"'Fragebogen Habilitation'!F94","v":""},{"$f":"'Fragebogen Habilitation'!G94","v":0},{"$f":"'Fragebogen Habilitation'!H94","v":0},{"$f":"'Fragebogen Habilitation'!I94","v":0},{"$f":"'Fragebogen Habilitation'!K94","v":""},{"$f":"'Fragebogen Habilitation'!L94","v":0},{"$f":"'Fragebogen Habilitation'!M94","v":0},{"$f":"'Fragebogen Habilitation'!Q94","v":""},{"$f":"'Fragebogen Habilitation'!R94","v":0},{"$f":"'Fragebogen Habilitation'!T94","v":""},{"$f":"IF('Fragebogen Habilitation'!U94=\"\",\"\",'Fragebogen Habilitation'!U94)","v":""},{"$f":"IF('Fragebogen Habilitation'!V94=\"\",\"\",'Fragebogen Habilitation'!V94)","v":""},{"$f":"'Fragebogen Habilitation'!X94","v":""},{"$f":"'Fragebogen Habilitation'!Z94","v":""},{"$f":"'Fragebogen Habilitation'!AB94","v":""}]
[{"$f":"'Fragebogen Habilitation'!A95","v":79},{"$f":"'Fragebogen Habilitation'!F95","v":""},{"$f":"'Fragebogen Habilitation'!G95","v":0},{"$f":"'Fragebogen Habilitation'!H95","v":0},{"$f":"'Fragebogen Habilitation'!I95","v":0},{"$f":"'Fragebogen Habilitation'!K95","v":""},{"$f":"'Fragebogen Habilitation'!L95","v":0},{"$f":"'Fragebogen Habilitation'!M95","v":0},{"$f":"'Fragebogen Habilitation'!Q95","v":""},{"$f":"'Fragebogen Habilitation'!R95","v":0},{"$f":"'Fragebogen Habilitation'!T95","v":""},{"$f":"IF('Fragebogen Habilitation'!U95=\"\",\"\",'Fragebogen Habilitation'!U95)","v":""},{"$f":"IF('Fragebogen Habilitation'!V95=\"\",\"\",'Fragebogen Habilitation'!V95)","v":""},{"$f":"'Fragebogen Habilitation'!X95","v":""},{"$f":"'Fragebogen Habilitation'!Z95","v":""},{"$f":"'Fragebogen Habilitation'!AB95","v":""}]
[{"$f":"'Fragebogen Habilitation'!A96","v":80},{"$f":"'Fragebogen Habilitation'!F96","v":""},{"$f":"'Fragebogen Habilitation'!G96","v":0},{"$f":"'Fragebogen Habilitation'!H96","v":0},{"$f":"'Fragebogen Habilitation'!I96","v":0},{"$f":"'Fragebogen Habilitation'!K96","v":""},{"$f":"'Fragebogen Habilitation'!L96","v":0},{"$f":"'Fragebogen Habilitation'!M96","v":0},{"$f":"'Fragebogen Habilitation'!Q96","v":""},{"$f":"'Fragebogen Habilitation'!R96","v":0},{"$f":"'Fragebogen Habilitation'!T96","v":""},{"$f":"IF('Fragebogen Habilitation'!U96=\"\",\"\",'Fragebogen Habilitation'!U96)","v":""},{"$f":"IF('Fragebogen Habilitation'!V96=\"\",\"\",'Fragebogen Habilitation'!V96)","v":""},{"$f":"'Fragebogen Habilitation'!X96","v":""},{"$f":"'Fragebogen Habilitation'!Z96","v":""},{"$f":"'Fragebogen Habilitation'!AB96","v":""}]
[{"$f":"'Fragebogen Habilitation'!A97","v":81},{"$f":"'Fragebogen Habilitation'!F97","v":""},{"$f":"'Fragebogen Habilitation'!G97","v":0},{"$f":"'Fragebogen Habilitation'!H97","v":0},{"$f":"'Fragebogen Habilitation'!I97","v":0},{"$f":"'Fragebogen Habilitation'!K97","v":""},{"$f":"'Fragebogen Habilitation'!L97","v":0},{"$f":"'Fragebogen Habilitation'!M97","v":0},{"$f":"'Fragebogen Habilitation'!Q97","v":""},{"$f":"'Fragebogen Habilitation'!R97","v":0},{"$f":"'Fragebogen Habilitation'!T97","v":""},{"$f":"IF('Fragebogen Habilitation'!U97=\"\",\"\",'Fragebogen Habilitation'!U97)","v":""},{"$f":"IF('Fragebogen Habilitation'!V97=\"\",\"\",'Fragebogen Habilitation'!V97)","v":""},{"$f":"'Fragebogen Habilitation'!X97","v":""},{"$f":"'Fragebogen Habilitation'!Z97","v":""},{"$f":"'Fragebogen Habilitation'!AB97","v":""}]
[{"$f":"'Fragebogen Habilitation'!A98","v":82},{"$f":"'Fragebogen Habilitation'!F98","v":""},{"$f":"'Fragebogen Habilitation'!G98","v":0},{"$f":"'Fragebogen Habilitation'!H98","v":0},{"$f":"'Fragebogen Habilitation'!I98","v":0},{"$f":"'Fragebogen Habilitation'!K98","v":""},{"$f":"'Fragebogen Habilitation'!L98","v":0},{"$f":"'Fragebogen Habilitation'!M98","v":0},{"$f":"'Fragebogen Habilitation'!Q98","v":""},{"$f":"'Fragebogen Habilitation'!R98","v":0},{"$f":"'Fragebogen Habilitation'!T98","v":""},{"$f":"IF('Fragebogen Habilitation'!U98=\"\",\"\",'Fragebogen Habilitation'!U98)","v":""},{"$f":"IF('Fragebogen Habilitation'!V98=\"\",\"\",'Fragebogen Habilitation'!V98)","v":""},{"$f":"'Fragebogen Habilitation'!X98","v":""},{"$f":"'Fragebogen Habilitation'!Z98","v":""},{"$f":"'Fragebogen Habilitation'!AB98","v":""}]
[{"$f":"'Fragebogen Habilitation'!A99","v":83},{"$f":"'Fragebogen Habilitation'!F99","v":""},{"$f":"'Fragebogen Habilitation'!G99","v":0},{"$f":"'Fragebogen Habilitation'!H99","v":0},{"$f":"'Fragebogen Habilitation'!I99","v":0},{"$f":"'Fragebogen Habilitation'!K99","v":""},{"$f":"'Fragebogen Habilitation'!L99","v":0},{"$f":"'Fragebogen Habilitation'!M99","v":0},{"$f":"'Fragebogen Habilitation'!Q99","v":""},{"$f":"'Fragebogen Habilitation'!R99","v":0},{"$f":"'Fragebogen Habilitation'!T99","v":""},{"$f":"IF('Fragebogen Habilitation'!U99=\"\",\"\",'Fragebogen Habilitation'!U99)","v":""},{"$f":"IF('Fragebogen Habilitation'!V99=\"\",\"\",'Fragebogen Habilitation'!V99)","v":""},{"$f":"'Fragebogen Habilitation'!X99","v":""},{"$f":"'Fragebogen Habilitation'!Z99","v":""},{"$f":"'Fragebogen Habilitation'!AB99","v":""}]
[{"$f":"'Fragebogen Habilitation'!A100","v":84},{"$f":"'Fragebogen Habilitation'!F100","v":""},{"$f":"'Fragebogen Habilitation'!G100","v":0},{"$f":"'Fragebogen Habilitation'!H100","v":0},{"$f":"'Fragebogen Habilitation'!I100","v":0},{"$f":"'Fragebogen Habilitation'!K100","v":""},{"$f":"'Fragebogen Habilitation'!L100","v":0},{"$f":"'Fragebogen Habilitation'!M100","v":0},{"$f":"'Fragebogen Habilitation'!Q100","v":""},{"$f":"'Fragebogen Habilitation'!R100","v":0},{"$f":"'Fragebogen Habilitation'!T100","v":""},{"$f":"IF('Fragebogen Habilitation'!U100=\"\",\"\",'Fragebogen Habilitation'!U100)","v":""},{"$f":"IF('Fragebogen Habilitation'!V100=\"\",\"\",'Fragebogen Habilitation'!V100)","v":""},{"$f":"'Fragebogen Habilitation'!X100","v":""},{"$f":"'Fragebogen Habilitation'!Z100","v":""},{"$f":"'Fragebogen Habilitation'!AB100","v":""}]
[{"$f":"'Fragebogen Habilitation'!A101","v":85},{"$f":"'Fragebogen Habilitation'!F101","v":""},{"$f":"'Fragebogen Habilitation'!G101","v":0},{"$f":"'Fragebogen Habilitation'!H101","v":0},{"$f":"'Fragebogen Habilitation'!I101","v":0},{"$f":"'Fragebogen Habilitation'!K101","v":""},{"$f":"'Fragebogen Habilitation'!L101","v":0},{"$f":"'Fragebogen Habilitation'!M101","v":0},{"$f":"'Fragebogen Habilitation'!Q101","v":""},{"$f":"'Fragebogen Habilitation'!R101","v":0},{"$f":"'Fragebogen Habilitation'!T101","v":""},{"$f":"IF('Fragebogen Habilitation'!U101=\"\",\"\",'Fragebogen Habilitation'!U101)","v":""},{"$f":"IF('Fragebogen Habilitation'!V101=\"\",\"\",'Fragebogen Habilitation'!V101)","v":""},{"$f":"'Fragebogen Habilitation'!X101","v":""},{"$f":"'Fragebogen Habilitation'!Z101","v":""},{"$f":"'Fragebogen Habilitation'!AB101","v":""}]
[{"$f":"'Fragebogen Habilitation'!A102","v":86},{"$f":"'Fragebogen Habilitation'!F102","v":""},{"$f":"'Fragebogen Habilitation'!G102","v":0},{"$f":"'Fragebogen Habilitation'!H102","v":0},{"$f":"'Fragebogen Habilitation'!I102","v":0},{"$f":"'Fragebogen Habilitation'!K102","v":""},{"$f":"'Fragebogen Habilitation'!L102","v":0},{"$f":"'Fragebogen Habilitation'!M102","v":0},{"$f":"'Fragebogen Habilitation'!Q102","v":""},{"$f":"'Fragebogen Habilitation'!R102","v":0},{"$f":"'Fragebogen Habilitation'!T102","v":""},{"$f":"IF('Fragebogen Habilitation'!U102=\"\",\"\",'Fragebogen Habilitation'!U102)","v":""},{"$f":"IF('Fragebogen Habilitation'!V102=\"\",\"\",'Fragebogen Habilitation'!V102)","v":""},{"$f":"'Fragebogen Habilitation'!X102","v":""},{"$f":"'Fragebogen Habilitation'!Z102","v":""},{"$f":"'Fragebogen Habilitation'!AB102","v":""}]
[{"$f":"'Fragebogen Habilitation'!A103","v":87},{"$f":"'Fragebogen Habilitation'!F103","v":""},{"$f":"'Fragebogen Habilitation'!G103","v":0},{"$f":"'Fragebogen Habilitation'!H103","v":0},{"$f":"'Fragebogen Habilitation'!I103","v":0},{"$f":"'Fragebogen Habilitation'!K103","v":""},{"$f":"'Fragebogen Habilitation'!L103","v":0},{"$f":"'Fragebogen Habilitation'!M103","v":0},{"$f":"'Fragebogen Habilitation'!Q103","v":""},{"$f":"'Fragebogen Habilitation'!R103","v":0},{"$f":"'Fragebogen Habilitation'!T103","v":""},{"$f":"IF('Fragebogen Habilitation'!U103=\"\",\"\",'Fragebogen Habilitation'!U103)","v":""},{"$f":"IF('Fragebogen Habilitation'!V103=\"\",\"\",'Fragebogen Habilitation'!V103)","v":""},{"$f":"'Fragebogen Habilitation'!X103","v":""},{"$f":"'Fragebogen Habilitation'!Z103","v":""},{"$f":"'Fragebogen Habilitation'!AB103","v":""}]
[{"$f":"'Fragebogen Habilitation'!A104","v":88},{"$f":"'Fragebogen Habilitation'!F104","v":""},{"$f":"'Fragebogen Habilitation'!G104","v":0},{"$f":"'Fragebogen Habilitation'!H104","v":0},{"$f":"'Fragebogen Habilitation'!I104","v":0},{"$f":"'Fragebogen Habilitation'!K104","v":""},{"$f":"'Fragebogen Habilitation'!L104","v":0},{"$f":"'Fragebogen Habilitation'!M104","v":0},{"$f":"'Fragebogen Habilitation'!Q104","v":""},{"$f":"'Fragebogen Habilitation'!R104","v":0},{"$f":"'Fragebogen Habilitation'!T104","v":""},{"$f":"IF('Fragebogen Habilitation'!U104=\"\",\"\",'Fragebogen Habilitation'!U104)","v":""},{"$f":"IF('Fragebogen Habilitation'!V104=\"\",\"\",'Fragebogen Habilitation'!V104)","v":""},{"$f":"'Fragebogen Habilitation'!X104","v":""},{"$f":"'Fragebogen Habilitation'!Z104","v":""},{"$f":"'Fragebogen Habilitation'!AB104","v":""}]
[{"$f":"'Fragebogen Habilitation'!A105","v":89},{"$f":"'Fragebogen Habilitation'!F105","v":""},{"$f":"'Fragebogen Habilitation'!G105","v":0},{"$f":"'Fragebogen Habilitation'!H105","v":0},{"$f":"'Fragebogen Habilitation'!I105","v":0},{"$f":"'Fragebogen Habilitation'!K105","v":""},{"$f":"'Fragebogen Habilitation'!L105","v":0},{"$f":"'Fragebogen Habilitation'!M105","v":0},{"$f":"'Fragebogen Habilitation'!Q105","v":""},{"$f":"'Fragebogen Habilitation'!R105","v":0},{"$f":"'Fragebogen Habilitation'!T105","v":""},{"$f":"IF('Fragebogen Habilitation'!U105=\"\",\"\",'Fragebogen Habilitation'!U105)","v":""},{"$f":"IF('Fragebogen Habilitation'!V105=\"\",\"\",'Fragebogen Habilitation'!V105)","v":""},{"$f":"'Fragebogen Habilitation'!X105","v":""},{"$f":"'Fragebogen Habilitation'!Z105","v":""},{"$f":"'Fragebogen Habilitation'!AB105","v":""}]
[{"$f":"'Fragebogen Habilitation'!A106","v":90},{"$f":"'Fragebogen Habilitation'!F106","v":""},{"$f":"'Fragebogen Habilitation'!G106","v":0},{"$f":"'Fragebogen Habilitation'!H106","v":0},{"$f":"'Fragebogen Habilitation'!I106","v":0},{"$f":"'Fragebogen Habilitation'!K106","v":""},{"$f":"'Fragebogen Habilitation'!L106","v":0},{"$f":"'Fragebogen Habilitation'!M106","v":0},{"$f":"'Fragebogen Habilitation'!Q106","v":""},{"$f":"'Fragebogen Habilitation'!R106","v":0},{"$f":"'Fragebogen Habilitation'!T106","v":""},{"$f":"IF('Fragebogen Habilitation'!U106=\"\",\"\",'Fragebogen Habilitation'!U106)","v":""},{"$f":"IF('Fragebogen Habilitation'!V106=\"\",\"\",'Fragebogen Habilitation'!V106)","v":""},{"$f":"'Fragebogen Habilitation'!X106","v":""},{"$f":"'Fragebogen Habilitation'!Z106","v":""},{"$f":"'Fragebogen Habilitation'!AB106","v":""}]
[{"$f":"'Fragebogen Habilitation'!A107","v":91},{"$f":"'Fragebogen Habilitation'!F107","v":""},{"$f":"'Fragebogen Habilitation'!G107","v":0},{"$f":"'Fragebogen Habilitation'!H107","v":0},{"$f":"'Fragebogen Habilitation'!I107","v":0},{"$f":"'Fragebogen Habilitation'!K107","v":""},{"$f":"'Fragebogen Habilitation'!L107","v":0},{"$f":"'Fragebogen Habilitation'!M107","v":0},{"$f":"'Fragebogen Habilitation'!Q107","v":""},{"$f":"'Fragebogen Habilitation'!R107","v":0},{"$f":"'Fragebogen Habilitation'!T107","v":""},{"$f":"IF('Fragebogen Habilitation'!U107=\"\",\"\",'Fragebogen Habilitation'!U107)","v":""},{"$f":"IF('Fragebogen Habilitation'!V107=\"\",\"\",'Fragebogen Habilitation'!V107)","v":""},{"$f":"'Fragebogen Habilitation'!X107","v":""},{"$f":"'Fragebogen Habilitation'!Z107","v":""},{"$f":"'Fragebogen Habilitation'!AB107","v":""}]
[{"$f":"'Fragebogen Habilitation'!A108","v":92},{"$f":"'Fragebogen Habilitation'!F108","v":""},{"$f":"'Fragebogen Habilitation'!G108","v":0},{"$f":"'Fragebogen Habilitation'!H108","v":0},{"$f":"'Fragebogen Habilitation'!I108","v":0},{"$f":"'Fragebogen Habilitation'!K108","v":""},{"$f":"'Fragebogen Habilitation'!L108","v":0},{"$f":"'Fragebogen Habilitation'!M108","v":0},{"$f":"'Fragebogen Habilitation'!Q108","v":""},{"$f":"'Fragebogen Habilitation'!R108","v":0},{"$f":"'Fragebogen Habilitation'!T108","v":""},{"$f":"IF('Fragebogen Habilitation'!U108=\"\",\"\",'Fragebogen Habilitation'!U108)","v":""},{"$f":"IF('Fragebogen Habilitation'!V108=\"\",\"\",'Fragebogen Habilitation'!V108)","v":""},{"$f":"'Fragebogen Habilitation'!X108","v":""},{"$f":"'Fragebogen Habilitation'!Z108","v":""},{"$f":"'Fragebogen Habilitation'!AB108","v":""}]
[{"$f":"'Fragebogen Habilitation'!A109","v":93},{"$f":"'Fragebogen Habilitation'!F109","v":""},{"$f":"'Fragebogen Habilitation'!G109","v":0},{"$f":"'Fragebogen Habilitation'!H109","v":0},{"$f":"'Fragebogen Habilitation'!I109","v":0},{"$f":"'Fragebogen Habilitation'!K109","v":""},{"$f":"'Fragebogen Habilitation'!L109","v":0},{"$f":"'Fragebogen Habilitation'!M109","v":0},{"$f":"'Fragebogen Habilitation'!Q109","v":""},{"$f":"'Fragebogen Habilitation'!R109","v":0},{"$f":"'Fragebogen Habilitation'!T109","v":""},{"$f":"IF('Fragebogen Habilitation'!U109=\"\",\"\",'Fragebogen Habilitation'!U109)","v":""},{"$f":"IF('Fragebogen Habilitation'!V109=\"\",\"\",'Fragebogen Habilitation'!V109)","v":""},{"$f":"'Fragebogen Habilitation'!X109","v":""},{"$f":"'Fragebogen Habilitation'!Z109","v":""},{"$f":"'Fragebogen Habilitation'!AB109","v":""}]
[{"$f":"'Fragebogen Habilitation'!A110","v":94},{"$f":"'Fragebogen Habilitation'!F110","v":""},{"$f":"'Fragebogen Habilitation'!G110","v":0},{"$f":"'Fragebogen Habilitation'!H110","v":0},{"$f":"'Fragebogen Habilitation'!I110","v":0},{"$f":"'Fragebogen Habilitation'!K110","v":""},{"$f":"'Fragebogen Habilitation'!L110","v":0},{"$f":"'Fragebogen Habilitation'!M110","v":0},{"$f":"'Fragebogen Habilitation'!Q110","v":""},{"$f":"'Fragebogen Habilitation'!R110","v":0},{"$f":"'Fragebogen Habilitation'!T110","v":""},{"$f":"IF('Fragebogen Habilitation'!U110=\"\",\"\",'Fragebogen Habilitation'!U110)","v":""},{"$f":"IF('Fragebogen Habilitation'!V110=\"\",\"\",'Fragebogen Habilitation'!V110)","v":""},{"$f":"'Fragebogen Habilitation'!X110","v":""},{"$f":"'Fragebogen Habilitation'!Z110","v":""},{"$f":"'Fragebogen Habilitation'!AB110","v":""}]
[{"$f":"'Fragebogen Habilitation'!A111","v":95},{"$f":"'Fragebogen Habilitation'!F111","v":""},{"$f":"'Fragebogen Habilitation'!G111","v":0},{"$f":"'Fragebogen Habilitation'!H111","v":0},{"$f":"'Fragebogen Habilitation'!I111","v":0},{"$f":"'Fragebogen Habilitation'!K111","v":""},{"$f":"'Fragebogen Habilitation'!L111","v":0},{"$f":"'Fragebogen Habilitation'!M111","v":0},{"$f":"'Fragebogen Habilitation'!Q111","v":""},{"$f":"'Fragebogen Habilitation'!R111","v":0},{"$f":"'Fragebogen Habilitation'!T111","v":""},{"$f":"IF('Fragebogen Habilitation'!U111=\"\",\"\",'Fragebogen Habilitation'!U111)","v":""},{"$f":"IF('Fragebogen Habilitation'!V111=\"\",\"\",'Fragebogen Habilitation'!V111)","v":""},{"$f":"'Fragebogen Habilitation'!X111","v":""},{"$f":"'Fragebogen Habilitation'!Z111","v":""},{"$f":"'Fragebogen Habilitation'!AB111","v":""}]
[{"$f":"'Fragebogen Habilitation'!A112","v":96},{"$f":"'Fragebogen Habilitation'!F112","v":""},{"$f":"'Fragebogen Habilitation'!G112","v":0},{"$f":"'Fragebogen Habilitation'!H112","v":0},{"$f":"'Fragebogen Habilitation'!I112","v":0},{"$f":"'Fragebogen Habilitation'!K112","v":""},{"$f":"'Fragebogen Habilitation'!L112","v":0},{"$f":"'Fragebogen Habilitation'!M112","v":0},{"$f":"'Fragebogen Habilitation'!Q112","v":""},{"$f":"'Fragebogen Habilitation'!R112","v":0},{"$f":"'Fragebogen Habilitation'!T112","v":""},{"$f":"IF('Fragebogen Habilitation'!U112=\"\",\"\",'Fragebogen Habilitation'!U112)","v":""},{"$f":"IF('Fragebogen Habilitation'!V112=\"\",\"\",'Fragebogen Habilitation'!V112)","v":""},{"$f":"'Fragebogen Habilitation'!X112","v":""},{"$f":"'Fragebogen Habilitation'!Z112","v":""},{"$f":"'Fragebogen Habilitation'!AB112","v":""}]
[{"$f":"'Fragebogen Habilitation'!A113","v":97},{"$f":"'Fragebogen Habilitation'!F113","v":""},{"$f":"'Fragebogen Habilitation'!G113","v":0},{"$f":"'Fragebogen Habilitation'!H113","v":0},{"$f":"'Fragebogen Habilitation'!I113","v":0},{"$f":"'Fragebogen Habilitation'!K113","v":""},{"$f":"'Fragebogen Habilitation'!L113","v":0},{"$f":"'Fragebogen Habilitation'!M113","v":0},{"$f":"'Fragebogen Habilitation'!Q113","v":""},{"$f":"'Fragebogen Habilitation'!R113","v":0},{"$f":"'Fragebogen Habilitation'!T113","v":""},{"$f":"IF('Fragebogen Habilitation'!U113=\"\",\"\",'Fragebogen Habilitation'!U113)","v":""},{"$f":"IF('Fragebogen Habilitation'!V113=\"\",\"\",'Fragebogen Habilitation'!V113)","v":""},{"$f":"'Fragebogen Habilitation'!X113","v":""},{"$f":"'Fragebogen Habilitation'!Z113","v":""},{"$f":"'Fragebogen Habilitation'!AB113","v":""}]
[{"$f":"'Fragebogen Habilitation'!A114","v":98},{"$f":"'Fragebogen Habilitation'!F114","v":""},{"$f":"'Fragebogen Habilitation'!G114","v":0},{"$f":"'Fragebogen Habilitation'!H114","v":0},{"$f":"'Fragebogen Habilitation'!I114","v":0},{"$f":"'Fragebogen Habilitation'!K114","v":""},{"$f":"'Fragebogen Habilitation'!L114","v":0},{"$f":"'Fragebogen Habilitation'!M114","v":0},{"$f":"'Fragebogen Habilitation'!Q114","v":""},{"$f":"'Fragebogen Habilitation'!R114","v":0},{"$f":"'Fragebogen Habilitation'!T114","v":""},{"$f":"IF('Fragebogen Habilitation'!U114=\"\",\"\",'Fragebogen Habilitation'!U114)","v":""},{"$f":"IF('Fragebogen Habilitation'!V114=\"\",\"\",'Fragebogen Habilitation'!V114)","v":""},{"$f":"'Fragebogen Habilitation'!X114","v":""},{"$f":"'Fragebogen Habilitation'!Z114","v":""},{"$f":"'Fragebogen Habilitation'!AB114","v":""}]
[{"$f":"'Fragebogen Habilitation'!A115","v":99},{"$f":"'Fragebogen Habilitation'!F115","v":""},{"$f":"'Fragebogen Habilitation'!G115","v":0},{"$f":"'Fragebogen Habilitation'!H115","v":0},{"$f":"'Fragebogen Habilitation'!I115","v":0},{"$f":"'Fragebogen Habilitation'!K115","v":""},{"$f":"'Fragebogen Habilitation'!L115","v":0},{"$f":"'Fragebogen Habilitation'!M115","v":0},{"$f":"'Fragebogen Habilitation'!Q115","v":""},{"$f":"'Fragebogen Habilitation'!R115","v":0},{"$f":"'Fragebogen Habilitation'!T115","v":""},{"$f":"IF('Fragebogen Habilitation'!U115=\"\",\"\",'Fragebogen Habilitation'!U115)","v":""},{"$f":"IF('Fragebogen Habilitation'!V115=\"\",\"\",'Fragebogen Habilitation'!V115)","v":""},{"$f":"'Fragebogen Habilitation'!X115","v":""},{"$f":"'Fragebogen Habilitation'!Z115","v":""},{"$f":"'Fragebogen Habilitation'!AB115","v":""}]
[{"$f":"'Fragebogen Habilitation'!A116","v":100},{"$f":"'Fragebogen Habilitation'!F116","v":""},{"$f":"'Fragebogen Habilitation'!G116","v":0},{"$f":"'Fragebogen Habilitation'!H116","v":0},{"$f":"'Fragebogen Habilitation'!I116","v":0},{"$f":"'Fragebogen Habilitation'!K116","v":""},{"$f":"'Fragebogen Habilitation'!L116","v":0},{"$f":"'Fragebogen Habilitation'!M116","v":0},{"$f":"'Fragebogen Habilitation'!Q116","v":""},{"$f":"'Fragebogen Habilitation'!R116","v":0},{"$f":"'Fragebogen Habilitation'!T116","v":""},{"$f":"IF('Fragebogen Habilitation'!U116=\"\",\"\",'Fragebogen Habilitation'!U116)","v":""},{"$f":"IF('Fragebogen Habilitation'!V116=\"\",\"\",'Fragebogen Habilitation'!V116)","v":""},{"$f":"'Fragebogen Habilitation'!X116","v":""},{"$f":"'Fragebogen Habilitation'!Z116","v":""},{"$f":"'Fragebogen Habilitation'!AB116","v":""}]
[{"$f":"'Fragebogen Habilitation'!A117","v":101},{"$f":"'Fragebogen Habilitation'!F117","v":""},{"$f":"'Fragebogen Habilitation'!G117","v":0},{"$f":"'Fragebogen Habilitation'!H117","v":0},{"$f":"'Fragebogen Habilitation'!I117","v":0},{"$f":"'Fragebogen Habilitation'!K117","v":""},{"$f":"'Fragebogen Habilitation'!L117","v":0},{"$f":"'Fragebogen Habilitation'!M117","v":0},{"$f":"'Fragebogen Habilitation'!Q117","v":""},{"$f":"'Fragebogen Habilitation'!R117","v":0},{"$f":"'Fragebogen Habilitation'!T117","v":""},{"$f":"IF('Fragebogen Habilitation'!U117=\"\",\"\",'Fragebogen Habilitation'!U117)","v":""},{"$f":"IF('Fragebogen Habilitation'!V117=\"\",\"\",'Fragebogen Habilitation'!V117)","v":""},{"$f":"'Fragebogen Habilitation'!X117","v":""},{"$f":"'Fragebogen Habilitation'!Z117","v":""},{"$f":"'Fragebogen Habilitation'!AB117","v":""}]
[{"$f":"'Fragebogen Habilitation'!A118","v":102},{"$f":"'Fragebogen Habilitation'!F118","v":""},{"$f":"'Fragebogen Habilitation'!G118","v":0},{"$f":"'Fragebogen Habilitation'!H118","v":0},{"$f":"'Fragebogen Habilitation'!I118","v":0},{"$f":"'Fragebogen Habilitation'!K118","v":""},{"$f":"'Fragebogen Habilitation'!L118","v":0},{"$f":"'Fragebogen Habilitation'!M118","v":0},{"$f":"'Fragebogen Habilitation'!Q118","v":""},{"$f":"'Fragebogen Habilitation'!R118","v":0},{"$f":"'Fragebogen Habilitation'!T118","v":""},{"$f":"IF('Fragebogen Habilitation'!U118=\"\",\"\",'Fragebogen Habilitation'!U118)","v":""},{"$f":"IF('Fragebogen Habilitation'!V118=\"\",\"\",'Fragebogen Habilitation'!V118)","v":""},{"$f":"'Fragebogen Habilitation'!X118","v":""},{"$f":"'Fragebogen Habilitation'!Z118","v":""},{"$f":"'Fragebogen Habilitation'!AB118","v":""}]
[{"$f":"'Fragebogen Habilitation'!A119","v":103},{"$f":"'Fragebogen Habilitation'!F119","v":""},{"$f":"'Fragebogen Habilitation'!G119","v":0},{"$f":"'Fragebogen Habilitation'!H119","v":0},{"$f":"'Fragebogen Habilitation'!I119","v":0},{"$f":"'Fragebogen Habilitation'!K119","v":""},{"$f":"'Fragebogen Habilitation'!L119","v":0},{"$f":"'Fragebogen Habilitation'!M119","v":0},{"$f":"'Fragebogen Habilitation'!Q119","v":""},{"$f":"'Fragebogen Habilitation'!R119","v":0},{"$f":"'Fragebogen Habilitation'!T119","v":""},{"$f":"IF('Fragebogen Habilitation'!U119=\"\",\"\",'Fragebogen Habilitation'!U119)","v":""},{"$f":"IF('Fragebogen Habilitation'!V119=\"\",\"\",'Fragebogen Habilitation'!V119)","v":""},{"$f":"'Fragebogen Habilitation'!X119","v":""},{"$f":"'Fragebogen Habilitation'!Z119","v":""},{"$f":"'Fragebogen Habilitation'!AB119","v":""}]
[{"$f":"'Fragebogen Habilitation'!A120","v":104},{"$f":"'Fragebogen Habilitation'!F120","v":""},{"$f":"'Fragebogen Habilitation'!G120","v":0},{"$f":"'Fragebogen Habilitation'!H120","v":0},{"$f":"'Fragebogen Habilitation'!I120","v":0},{"$f":"'Fragebogen Habilitation'!K120","v":""},{"$f":"'Fragebogen Habilitation'!L120","v":0},{"$f":"'Fragebogen Habilitation'!M120","v":0},{"$f":"'Fragebogen Habilitation'!Q120","v":""},{"$f":"'Fragebogen Habilitation'!R120","v":0},{"$f":"'Fragebogen Habilitation'!T120","v":""},{"$f":"IF('Fragebogen Habilitation'!U120=\"\",\"\",'Fragebogen Habilitation'!U120)","v":""},{"$f":"IF('Fragebogen Habilitation'!V120=\"\",\"\",'Fragebogen Habilitation'!V120)","v":""},{"$f":"'Fragebogen Habilitation'!X120","v":""},{"$f":"'Fragebogen Habilitation'!Z120","v":""},{"$f":"'Fragebogen Habilitation'!AB120","v":""}]
[{"$f":"'Fragebogen Habilitation'!A121","v":105},{"$f":"'Fragebogen Habilitation'!F121","v":""},{"$f":"'Fragebogen Habilitation'!G121","v":0},{"$f":"'Fragebogen Habilitation'!H121","v":0},{"$f":"'Fragebogen Habilitation'!I121","v":0},{"$f":"'Fragebogen Habilitation'!K121","v":""},{"$f":"'Fragebogen Habilitation'!L121","v":0},{"$f":"'Fragebogen Habilitation'!M121","v":0},{"$f":"'Fragebogen Habilitation'!Q121","v":""},{"$f":"'Fragebogen Habilitation'!R121","v":0},{"$f":"'Fragebogen Habilitation'!T121","v":""},{"$f":"IF('Fragebogen Habilitation'!U121=\"\",\"\",'Fragebogen Habilitation'!U121)","v":""},{"$f":"IF('Fragebogen Habilitation'!V121=\"\",\"\",'Fragebogen Habilitation'!V121)","v":""},{"$f":"'Fragebogen Habilitation'!X121","v":""},{"$f":"'Fragebogen Habilitation'!Z121","v":""},{"$f":"'Fragebogen Habilitation'!AB121","v":""}]
[{"$f":"'Fragebogen Habilitation'!A122","v":106},{"$f":"'Fragebogen Habilitation'!F122","v":""},{"$f":"'Fragebogen Habilitation'!G122","v":0},{"$f":"'Fragebogen Habilitation'!H122","v":0},{"$f":"'Fragebogen Habilitation'!I122","v":0},{"$f":"'Fragebogen Habilitation'!K122","v":""},{"$f":"'Fragebogen Habilitation'!L122","v":0},{"$f":"'Fragebogen Habilitation'!M122","v":0},{"$f":"'Fragebogen Habilitation'!Q122","v":""},{"$f":"'Fragebogen Habilitation'!R122","v":0},{"$f":"'Fragebogen Habilitation'!T122","v":""},{"$f":"IF('Fragebogen Habilitation'!U122=\"\",\"\",'Fragebogen Habilitation'!U122)","v":""},{"$f":"IF('Fragebogen Habilitation'!V122=\"\",\"\",'Fragebogen Habilitation'!V122)","v":""},{"$f":"'Fragebogen Habilitation'!X122","v":""},{"$f":"'Fragebogen Habilitation'!Z122","v":""},{"$f":"'Fragebogen Habilitation'!AB122","v":""}]
[{"$f":"'Fragebogen Habilitation'!A123","v":107},{"$f":"'Fragebogen Habilitation'!F123","v":""},{"$f":"'Fragebogen Habilitation'!G123","v":0},{"$f":"'Fragebogen Habilitation'!H123","v":0},{"$f":"'Fragebogen Habilitation'!I123","v":0},{"$f":"'Fragebogen Habilitation'!K123","v":""},{"$f":"'Fragebogen Habilitation'!L123","v":0},{"$f":"'Fragebogen Habilitation'!M123","v":0},{"$f":"'Fragebogen Habilitation'!Q123","v":""},{"$f":"'Fragebogen Habilitation'!R123","v":0},{"$f":"'Fragebogen Habilitation'!T123","v":""},{"$f":"IF('Fragebogen Habilitation'!U123=\"\",\"\",'Fragebogen Habilitation'!U123)","v":""},{"$f":"IF('Fragebogen Habilitation'!V123=\"\",\"\",'Fragebogen Habilitation'!V123)","v":""},{"$f":"'Fragebogen Habilitation'!X123","v":""},{"$f":"'Fragebogen Habilitation'!Z123","v":""},{"$f":"'Fragebogen Habilitation'!AB123","v":""}]
[{"$f":"'Fragebogen Habilitation'!A124","v":108},{"$f":"'Fragebogen Habilitation'!F124","v":""},{"$f":"'Fragebogen Habilitation'!G124","v":0},{"$f":"'Fragebogen Habilitation'!H124","v":0},{"$f":"'Fragebogen Habilitation'!I124","v":0},{"$f":"'Fragebogen Habilitation'!K124","v":""},{"$f":"'Fragebogen Habilitation'!L124","v":0},{"$f":"'Fragebogen Habilitation'!M124","v":0},{"$f":"'Fragebogen Habilitation'!Q124","v":""},{"$f":"'Fragebogen Habilitation'!R124","v":0},{"$f":"'Fragebogen Habilitation'!T124","v":""},{"$f":"IF('Fragebogen Habilitation'!U124=\"\",\"\",'Fragebogen Habilitation'!U124)","v":""},{"$f":"IF('Fragebogen Habilitation'!V124=\"\",\"\",'Fragebogen Habilitation'!V124)","v":""},{"$f":"'Fragebogen Habilitation'!X124","v":""},{"$f":"'Fragebogen Habilitation'!Z124","v":""},{"$f":"'Fragebogen Habilitation'!AB124","v":""}]
[{"$f":"'Fragebogen Habilitation'!A125","v":109},{"$f":"'Fragebogen Habilitation'!F125","v":""},{"$f":"'Fragebogen Habilitation'!G125","v":0},{"$f":"'Fragebogen Habilitation'!H125","v":0},{"$f":"'Fragebogen Habilitation'!I125","v":0},{"$f":"'Fragebogen Habilitation'!K125","v":""},{"$f":"'Fragebogen Habilitation'!L125","v":0},{"$f":"'Fragebogen Habilitation'!M125","v":0},{"$f":"'Fragebogen Habilitation'!Q125","v":""},{"$f":"'Fragebogen Habilitation'!R125","v":0},{"$f":"'Fragebogen Habilitation'!T125","v":""},{"$f":"IF('Fragebogen Habilitation'!U125=\"\",\"\",'Fragebogen Habilitation'!U125)","v":""},{"$f":"IF('Fragebogen Habilitation'!V125=\"\",\"\",'Fragebogen Habilitation'!V125)","v":""},{"$f":"'Fragebogen Habilitation'!X125","v":""},{"$f":"'Fragebogen Habilitation'!Z125","v":""},{"$f":"'Fragebogen Habilitation'!AB125","v":""}]
[{"$f":"'Fragebogen Habilitation'!A126","v":110},{"$f":"'Fragebogen Habilitation'!F126","v":""},{"$f":"'Fragebogen Habilitation'!G126","v":0},{"$f":"'Fragebogen Habilitation'!H126","v":0},{"$f":"'Fragebogen Habilitation'!I126","v":0},{"$f":"'Fragebogen Habilitation'!K126","v":""},{"$f":"'Fragebogen Habilitation'!L126","v":0},{"$f":"'Fragebogen Habilitation'!M126","v":0},{"$f":"'Fragebogen Habilitation'!Q126","v":""},{"$f":"'Fragebogen Habilitation'!R126","v":0},{"$f":"'Fragebogen Habilitation'!T126","v":""},{"$f":"IF('Fragebogen Habilitation'!U126=\"\",\"\",'Fragebogen Habilitation'!U126)","v":""},{"$f":"IF('Fragebogen Habilitation'!V126=\"\",\"\",'Fragebogen Habilitation'!V126)","v":""},{"$f":"'Fragebogen Habilitation'!X126","v":""},{"$f":"'Fragebogen Habilitation'!Z126","v":""},{"$f":"'Fragebogen Habilitation'!AB126","v":""}]
[{"$f":"'Fragebogen Habilitation'!A127","v":111},{"$f":"'Fragebogen Habilitation'!F127","v":""},{"$f":"'Fragebogen Habilitation'!G127","v":0},{"$f":"'Fragebogen Habilitation'!H127","v":0},{"$f":"'Fragebogen Habilitation'!I127","v":0},{"$f":"'Fragebogen Habilitation'!K127","v":""},{"$f":"'Fragebogen Habilitation'!L127","v":0},{"$f":"'Fragebogen Habilitation'!M127","v":0},{"$f":"'Fragebogen Habilitation'!Q127","v":""},{"$f":"'Fragebogen Habilitation'!R127","v":0},{"$f":"'Fragebogen Habilitation'!T127","v":""},{"$f":"IF('Fragebogen Habilitation'!U127=\"\",\"\",'Fragebogen Habilitation'!U127)","v":""},{"$f":"IF('Fragebogen Habilitation'!V127=\"\",\"\",'Fragebogen Habilitation'!V127)","v":""},{"$f":"'Fragebogen Habilitation'!X127","v":""},{"$f":"'Fragebogen Habilitation'!Z127","v":""},{"$f":"'Fragebogen Habilitation'!AB127","v":""}]
[{"$f":"'Fragebogen Habilitation'!A128","v":112},{"$f":"'Fragebogen Habilitation'!F128","v":""},{"$f":"'Fragebogen Habilitation'!G128","v":0},{"$f":"'Fragebogen Habilitation'!H128","v":0},{"$f":"'Fragebogen Habilitation'!I128","v":0},{"$f":"'Fragebogen Habilitation'!K128","v":""},{"$f":"'Fragebogen Habilitation'!L128","v":0},{"$f":"'Fragebogen Habilitation'!M128","v":0},{"$f":"'Fragebogen Habilitation'!Q128","v":""},{"$f":"'Fragebogen Habilitation'!R128","v":0},{"$f":"'Fragebogen Habilitation'!T128","v":""},{"$f":"IF('Fragebogen Habilitation'!U128=\"\",\"\",'Fragebogen Habilitation'!U128)","v":""},{"$f":"IF('Fragebogen Habilitation'!V128=\"\",\"\",'Fragebogen Habilitation'!V128)","v":""},{"$f":"'Fragebogen Habilitation'!X128","v":""},{"$f":"'Fragebogen Habilitation'!Z128","v":""},{"$f":"'Fragebogen Habilitation'!AB128","v":""}]
[{"$f":"'Fragebogen Habilitation'!A129","v":113},{"$f":"'Fragebogen Habilitation'!F129","v":""},{"$f":"'Fragebogen Habilitation'!G129","v":0},{"$f":"'Fragebogen Habilitation'!H129","v":0},{"$f":"'Fragebogen Habilitation'!I129","v":0},{"$f":"'Fragebogen Habilitation'!K129","v":""},{"$f":"'Fragebogen Habilitation'!L129","v":0},{"$f":"'Fragebogen Habilitation'!M129","v":0},{"$f":"'Fragebogen Habilitation'!Q129","v":""},{"$f":"'Fragebogen Habilitation'!R129","v":0},{"$f":"'Fragebogen Habilitation'!T129","v":""},{"$f":"IF('Fragebogen Habilitation'!U129=\"\",\"\",'Fragebogen Habilitation'!U129)","v":""},{"$f":"IF('Fragebogen Habilitation'!V129=\"\",\"\",'Fragebogen Habilitation'!V129)","v":""},{"$f":"'Fragebogen Habilitation'!X129","v":""},{"$f":"'Fragebogen Habilitation'!Z129","v":""},{"$f":"'Fragebogen Habilitation'!AB129","v":""}]
[{"$f":"'Fragebogen Habilitation'!A130","v":114},{"$f":"'Fragebogen Habilitation'!F130","v":""},{"$f":"'Fragebogen Habilitation'!G130","v":0},{"$f":"'Fragebogen Habilitation'!H130","v":0},{"$f":"'Fragebogen Habilitation'!I130","v":0},{"$f":"'Fragebogen Habilitation'!K130","v":""},{"$f":"'Fragebogen Habilitation'!L130","v":0},{"$f":"'Fragebogen Habilitation'!M130","v":0},{"$f":"'Fragebogen Habilitation'!Q130","v":""},{"$f":"'Fragebogen Habilitation'!R130","v":0},{"$f":"'Fragebogen Habilitation'!T130","v":""},{"$f":"IF('Fragebogen Habilitation'!U130=\"\",\"\",'Fragebogen Habilitation'!U130)","v":""},{"$f":"IF('Fragebogen Habilitation'!V130=\"\",\"\",'Fragebogen Habilitation'!V130)","v":""},{"$f":"'Fragebogen Habilitation'!X130","v":""},{"$f":"'Fragebogen Habilitation'!Z130","v":""},{"$f":"'Fragebogen Habilitation'!AB130","v":""}]
[{"$f":"'Fragebogen Habilitation'!A131","v":115},{"$f":"'Fragebogen Habilitation'!F131","v":""},{"$f":"'Fragebogen Habilitation'!G131","v":0},{"$f":"'Fragebogen Habilitation'!H131","v":0},{"$f":"'Fragebogen Habilitation'!I131","v":0},{"$f":"'Fragebogen Habilitation'!K131","v":""},{"$f":"'Fragebogen Habilitation'!L131","v":0},{"$f":"'Fragebogen Habilitation'!M131","v":0},{"$f":"'Fragebogen Habilitation'!Q131","v":""},{"$f":"'Fragebogen Habilitation'!R131","v":0},{"$f":"'Fragebogen Habilitation'!T131","v":""},{"$f":"IF('Fragebogen Habilitation'!U131=\"\",\"\",'Fragebogen Habilitation'!U131)","v":""},{"$f":"IF('Fragebogen Habilitation'!V131=\"\",\"\",'Fragebogen Habilitation'!V131)","v":""},{"$f":"'Fragebogen Habilitation'!X131","v":""},{"$f":"'Fragebogen Habilitation'!Z131","v":""},{"$f":"'Fragebogen Habilitation'!AB131","v":""}]
[{"$f":"'Fragebogen Habilitation'!A132","v":116},{"$f":"'Fragebogen Habilitation'!F132","v":""},{"$f":"'Fragebogen Habilitation'!G132","v":0},{"$f":"'Fragebogen Habilitation'!H132","v":0},{"$f":"'Fragebogen Habilitation'!I132","v":0},{"$f":"'Fragebogen Habilitation'!K132","v":""},{"$f":"'Fragebogen Habilitation'!L132","v":0},{"$f":"'Fragebogen Habilitation'!M132","v":0},{"$f":"'Fragebogen Habilitation'!Q132","v":""},{"$f":"'Fragebogen Habilitation'!R132","v":0},{"$f":"'Fragebogen Habilitation'!T132","v":""},{"$f":"IF('Fragebogen Habilitation'!U132=\"\",\"\",'Fragebogen Habilitation'!U132)","v":""},{"$f":"IF('Fragebogen Habilitation'!V132=\"\",\"\",'Fragebogen Habilitation'!V132)","v":""},{"$f":"'Fragebogen Habilitation'!X132","v":""},{"$f":"'Fragebogen Habilitation'!Z132","v":""},{"$f":"'Fragebogen Habilitation'!AB132","v":""}]
[{"$f":"'Fragebogen Habilitation'!A133","v":117},{"$f":"'Fragebogen Habilitation'!F133","v":""},{"$f":"'Fragebogen Habilitation'!G133","v":0},{"$f":"'Fragebogen Habilitation'!H133","v":0},{"$f":"'Fragebogen Habilitation'!I133","v":0},{"$f":"'Fragebogen Habilitation'!K133","v":""},{"$f":"'Fragebogen Habilitation'!L133","v":0},{"$f":"'Fragebogen Habilitation'!M133","v":0},{"$f":"'Fragebogen Habilitation'!Q133","v":""},{"$f":"'Fragebogen Habilitation'!R133","v":0},{"$f":"'Fragebogen Habilitation'!T133","v":""},{"$f":"IF('Fragebogen Habilitation'!U133=\"\",\"\",'Fragebogen Habilitation'!U133)","v":""},{"$f":"IF('Fragebogen Habilitation'!V133=\"\",\"\",'Fragebogen Habilitation'!V133)","v":""},{"$f":"'Fragebogen Habilitation'!X133","v":""},{"$f":"'Fragebogen Habilitation'!Z133","v":""},{"$f":"'Fragebogen Habilitation'!AB133","v":""}]
[{"$f":"'Fragebogen Habilitation'!A134","v":118},{"$f":"'Fragebogen Habilitation'!F134","v":""},{"$f":"'Fragebogen Habilitation'!G134","v":0},{"$f":"'Fragebogen Habilitation'!H134","v":0},{"$f":"'Fragebogen Habilitation'!I134","v":0},{"$f":"'Fragebogen Habilitation'!K134","v":""},{"$f":"'Fragebogen Habilitation'!L134","v":0},{"$f":"'Fragebogen Habilitation'!M134","v":0},{"$f":"'Fragebogen Habilitation'!Q134","v":""},{"$f":"'Fragebogen Habilitation'!R134","v":0},{"$f":"'Fragebogen Habilitation'!T134","v":""},{"$f":"IF('Fragebogen Habilitation'!U134=\"\",\"\",'Fragebogen Habilitation'!U134)","v":""},{"$f":"IF('Fragebogen Habilitation'!V134=\"\",\"\",'Fragebogen Habilitation'!V134)","v":""},{"$f":"'Fragebogen Habilitation'!X134","v":""},{"$f":"'Fragebogen Habilitation'!Z134","v":""},{"$f":"'Fragebogen Habilitation'!AB134","v":""}]
[{"$f":"'Fragebogen Habilitation'!A135","v":119},{"$f":"'Fragebogen Habilitation'!F135","v":""},{"$f":"'Fragebogen Habilitation'!G135","v":0},{"$f":"'Fragebogen Habilitation'!H135","v":0},{"$f":"'Fragebogen Habilitation'!I135","v":0},{"$f":"'Fragebogen Habilitation'!K135","v":""},{"$f":"'Fragebogen Habilitation'!L135","v":0},{"$f":"'Fragebogen Habilitation'!M135","v":0},{"$f":"'Fragebogen Habilitation'!Q135","v":""},{"$f":"'Fragebogen Habilitation'!R135","v":0},{"$f":"'Fragebogen Habilitation'!T135","v":""},{"$f":"IF('Fragebogen Habilitation'!U135=\"\",\"\",'Fragebogen Habilitation'!U135)","v":""},{"$f":"IF('Fragebogen Habilitation'!V135=\"\",\"\",'Fragebogen Habilitation'!V135)","v":""},{"$f":"'Fragebogen Habilitation'!X135","v":""},{"$f":"'Fragebogen Habilitation'!Z135","v":""},{"$f":"'Fragebogen Habilitation'!AB135","v":""}]
[{"$f":"'Fragebogen Habilitation'!A136","v":120},{"$f":"'Fragebogen Habilitation'!F136","v":""},{"$f":"'Fragebogen Habilitation'!G136","v":0},{"$f":"'Fragebogen Habilitation'!H136","v":0},{"$f":"'Fragebogen Habilitation'!I136","v":0},{"$f":"'Fragebogen Habilitation'!K136","v":""},{"$f":"'Fragebogen Habilitation'!L136","v":0},{"$f":"'Fragebogen Habilitation'!M136","v":0},{"$f":"'Fragebogen Habilitation'!Q136","v":""},{"$f":"'Fragebogen Habilitation'!R136","v":0},{"$f":"'Fragebogen Habilitation'!T136","v":""},{"$f":"IF('Fragebogen Habilitation'!U136=\"\",\"\",'Fragebogen Habilitation'!U136)","v":""},{"$f":"IF('Fragebogen Habilitation'!V136=\"\",\"\",'Fragebogen Habilitation'!V136)","v":""},{"$f":"'Fragebogen Habilitation'!X136","v":""},{"$f":"'Fragebogen Habilitation'!Z136","v":""},{"$f":"'Fragebogen Habilitation'!AB136","v":""}]
[{"$f":"'Fragebogen Habilitation'!A137","v":121},{"$f":"'Fragebogen Habilitation'!F137","v":""},{"$f":"'Fragebogen Habilitation'!G137","v":0},{"$f":"'Fragebogen Habilitation'!H137","v":0},{"$f":"'Fragebogen Habilitation'!I137","v":0},{"$f":"'Fragebogen Habilitation'!K137","v":""},{"$f":"'Fragebogen Habilitation'!L137","v":0},{"$f":"'Fragebogen Habilitation'!M137","v":0},{"$f":"'Fragebogen Habilitation'!Q137","v":""},{"$f":"'Fragebogen Habilitation'!R137","v":0},{"$f":"'Fragebogen Habilitation'!T137","v":""},{"$f":"IF('Fragebogen Habilitation'!U137=\"\",\"\",'Fragebogen Habilitation'!U137)","v":""},{"$f":"IF('Fragebogen Habilitation'!V137=\"\",\"\",'Fragebogen Habilitation'!V137)","v":""},{"$f":"'Fragebogen Habilitation'!X137","v":""},{"$f":"'Fragebogen Habilitation'!Z137","v":""},{"$f":"'Fragebogen Habilitation'!AB137","v":""}]
[{"$f":"'Fragebogen Habilitation'!A138","v":122},{"$f":"'Fragebogen Habilitation'!F138","v":""},{"$f":"'Fragebogen Habilitation'!G138","v":0},{"$f":"'Fragebogen Habilitation'!H138","v":0},{"$f":"'Fragebogen Habilitation'!I138","v":0},{"$f":"'Fragebogen Habilitation'!K138","v":""},{"$f":"'Fragebogen Habilitation'!L138","v":0},{"$f":"'Fragebogen Habilitation'!M138","v":0},{"$f":"'Fragebogen Habilitation'!Q138","v":""},{"$f":"'Fragebogen Habilitation'!R138","v":0},{"$f":"'Fragebogen Habilitation'!T138","v":""},{"$f":"IF('Fragebogen Habilitation'!U138=\"\",\"\",'Fragebogen Habilitation'!U138)","v":""},{"$f":"IF('Fragebogen Habilitation'!V138=\"\",\"\",'Fragebogen Habilitation'!V138)","v":""},{"$f":"'Fragebogen Habilitation'!X138","v":""},{"$f":"'Fragebogen Habilitation'!Z138","v":""},{"$f":"'Fragebogen Habilitation'!AB138","v":""}]